Workbook

Sheet Version
A2: Version | B2: Date | C2: Modified By | D2: Detail
A3: 1 | B3: 2013-08-29 | C3: Sam Shiao | D3: Initial Release
A4: 1.1 | B4: 2013-10-31 | C4: Sam Shiao | D4: Introduced higher transformer failure rates for newly in stalled transformers. Transformers age 3 years or less get a constant failure rate of 0.027
A5: 2 | B5: 2022-02-28 | C5: Barbara Neil | D5: Added CECV, safety and environmental risks
A6: 2.1 | B6: 2022-03-02 | C6: Josh Hockey | D6: Added code to automate the option creation and risk benefits
A7: 2.2 | B7: 2022-03-06 | C7: Josh Hockey | D7: Program was crashing. Fixed optimisation for number of scenarios.
A8: 2.3 | B8: 2022-03-14 | C8: Josh Hockey | D8: Updated with changes to wording. Update to data validation.
A9: 3 | D9: Work in progress. Updating flexibility for switching
A10: 3.1 | D10: Update CECV calcs. Include ability to combine scenarios.
A11: 3.3 | B11: 2022-03-21 | D11: Remove user forms from showing
A12: 3.4-3.9 | B12: 2022-03-29 | C12: Josh Hockey | D12: Various updates to allow better flow of processing
A13: 4.5 | B13: 2022-04-04 | C13: Barbara Neil | D13: Corrected safety calculations
A14: 4.6 | B14: 2022-04-06 | C14: Josh Hockey | D14: Added Fused Transformer
A15: 4.7-4.8 | B15: 2022-04-08 | C15: Josh Hockey | D15: updated fused transformer data to resemble a multipler above failure rates for zone substation transformers
A16: 4.9 | B16: 2022-04-13 | C16: Josh Hockey/ Barb Neil | D16: update CECV calcs based on values provided by the AER
A17: 4.1 | B17: 2022-04-13 | C17: Josh Hockey | D17: Error messaging when Time at capacity 3 = restoration time. Updated read/write requirements
A18: 4.12 | B18: 2022-05-03 | C18: Josh Hockey | D18: Update to CECV calculations.
A19: 4.13 | B19: 2022-05-09 | C19: Josh Hockey | D19: Update to LDC curve to give greater granularity
A20: 4.14 | B20: 2022-06-08 | C20: Josh Hockey | D20: Updat to result_0 tab to handle errors and still calculate total $
A21: 4.15 | B21: 2022-06-08 | C21: Barb Neil, Josh Hockey | D21: Update safety, Environment and Bushfire procedure
A22: 4.16 | B22: 2022-06-19 | C22: Josh Hockey | D22: Error with combine scenarios hitting a limit and therefore not combining correctly. Error fixed.
A23: 4.17 | B23: 2022-07-19 | C23: Josh Hockey | D23: Capacity calculations corrected in HIST and SOLAR tabs. Would not have caused issues in previous versions where capacity at time three was >max demand
A24: 4.18 | B24: 2022-07-21 | C24: Barb Neil, Josh Hockey | D24: Update to CECV numbers after publish of final determination
A25: 4.19 | B25: 2022-07-28 | C25: Josh Hockey | D25: Problem with calculating results for Option 6
A26: 4.2 | B26: 2022-09-07 | C26: Josh Hockey | D26: Updated issue with "Clear Results" code
A27: 4.21 | B27: 2022-09-08 | C27: Josh Hockey | D27: Deleted comments for contingency siuation. Updated comments for load profile in input sheet.
A28: 4.22 | B28: 2022-09-12 | C28: Josh Hockey | D28: Update to CECV calculations. Previous error in calculating load at risk for a feeder. Added scaling to overcome shortcoming in using a single load profile.
A29: 4.23 | B29: 2022-11-22 | C29: Josh Hockey | D29: included probability of failure and benefit multiplier
A30: 4.24 | B30: 2023-01-12 | C30: Josh Hockey | D30: Updated VCR values
A31: 4.25 | B31: 2023-07-13 | C31: Josh Hockey | D31: Update CECV values and value of statiscal Life
A32: 4.26 | B32: 2024-07-26 | C32: Josh Hockey | D32: Update CECV values and VCR values

Sheet Instructions
A2: DO NOT Modify any of the names of the tabs
J3: Known Limitations
A4: Pre-start | J4: There is an issue with calculating the benefits for options 7-9.
A5: 1. Clear input data | J5: If there are more then 9 options + the CF the code won't work and will need to be updated
A6: 2. Clear results content | J6: If there is an update so that more then 5 elements are considered for risks, the code will need to be updated
A7: 3. Clear Benefits | J7: If another row gets added to the results tab the benefits code won't pick up the correct cells
A8: 5. Know what scenarios and options need to be run | J8: The names of sheets shouldn't be changed. The automated sheet creation naming is used to calculate the benefits
B9: Note: If the results content is deleted it will not be possible to recalculate data. Clearing results should only be done at the start | J9: The safety risks when changed do not revert back to the options for the CF.
A11: Start | K11: CECV
A12: 1. Make sure that the number of options remains consistent across scenarios | K12: Only one curve is input. As the calculation is based on the load curve, as the ratio changes through the years so does the generation at risk. This has been overcome by scaling basd on the intial years data.
A13: 2. Enter the data for the Counter-factual of the first scenario
A14: 3. When ready hit the "Start Option Analysis' button. This will begin the process of creating the options for the scenario.
A15: 4.No data has been changed at this point. Only the scenarios have been created.
A16: 5. Go through each of the options and scenario and update the data as required. | K16: Useful Information
A17: 6. Once data input is complete, run the 'Recalculate ALL Option' - this will update the results tab for each option | K17: Only one type can be assessed at a time (e.g. Bus, transformer, feeder). These would be considered scenarios
A18: Note: Renaming tabs will stop some of the code from working correctly. | K18: Useful names for scenarios could be (Bus Tie, TRx, Fdr, VT etc) - try to keep these names short
A19: 7. More scenarios can be entered by completing Start steps 1-6. | K19: The suffix of the new created tabs relates to the option -CF (counter factual), -01 (option 1) etc
K20: Each scenario will be colour coded.
A21: Calculating Benefits
A22: 8. Benefits can be calculated using the "Calculate Benefits" button
A23: Note: The tool can only handle 9 options + counter factual. Everytime a scenario is added the benefits will need to be calculated. | K23: For Automation
K24: - Name of file must not have anyspaces in it (for either NPV or RqBT)
A25: Post Option/ Scenario creation
A26: If on reviewing the data something needs to be changed
B27: 1. Change the data in the option/scenario
B28: 2. Hit the "Recalculate Option" button. (This will update the results tabs with new data for that option/scenario, as well as update the spreadsheet relating to that option
B29: 3. Alt 'Recalculate All' will recalculate every scenario and option
A31: Combine Scenarios
B32: For complex projects that have multiple stages it may be nesecary to use data from your counter-factual up to the year that the new asset will be installed and then use data for the new asset post that year.
B33: This can be done using the 'combine scenarios' button.
B34: Note: Once an option is combined it can not be recalculated. This is due to the fact that it is renamed with a (comb) post-script. It is recommended to save a file (e.g RqBT-All scenarios) before combining and the new workbook file as (e.g. RqBT-Combined). So that if scenarios need to be recalculated it can be done in the 'All scenarios' workbook and then combine scenarios again.
B36: 1. Combining scenarios should only be done at the end once all the scenarios are completed and the user is satisfied that the benefit values in Results is correct.
B37: 2. For a project with multiple stages (one stage per scenario), the Year for Combination should be the year of the latest stage - i.e. for a refurb in 2025, and replacement in 2040, Year for Combination should be 2040
A39: Choose Scenario
B40: At times the user may want to review the results in real time without using the recalculate option. This can be done by entering data in the "Input" tab and reviewing the Results in the "Results_0" tab.
B41: If the user has a number of scenarios and want to see the impact they can copy and paste the data from the scenario tab into the "input sheet". Alternatively the user can hit the "Choose scenario for input sheet" button and choose what they want
A43: Prepare Data for Graphing
B44: This will name row B on the results sheet such that the data can be easily graphed.
B45: If the data is recalcualted the "Prepare Data for Graphing" will need to be re-run.

Sheet Input
C1: Cell Guide: | F1: Safety risk | I1: Environmental risk | K1: Bushfire risk
C2: Input | F2: risk exists | G2: no | I2: risk exists | J2: no | K2: risk exists | L2: no | N2: Option & Scenario Description
C3: Formula/Calculations | F3: likelihood scale | G3: 3 | I3: likelihood scale | J3: 3 | K3: bushfire region | L3: Gold Coast | N3: Loss of F3250, F497 overloads
C4: Formula/Calculations that can be overriden | F4: risk of fatality | G4: no | I4: quantity of spill | J4: >20,000 L
F5: fatality of public | G5: no
C6: Base Year: | D6: 2032 | F6: fatality of employee | G6: yes
C7: Single Contingency | D7: Yes - model single contingency | F7: risk of injury | G7: yes | J7: Benefit Multiplier | K7: =DATA!C73 -> 1
F8: injury to public | G8: no | J8: PoF multiplier | K8: =DATA!C72 -> 1
F9: injury to employee | G9: yes
B11: Contingency Components | P11: Substation/Feeder Load Forecast | Z11: Generation Forecast
C13: Transformers and Circuit Breakers | I13: Circuits/Feeders | Q13: SIFT Load Forecast | U13: Historic 30 minute load data from (SCID/NODW) (kW) This data is not used for calcualtions | W13: 30 minute load data corrected (kW) [for solar customers] This is used for calcualtions | AA13: Generation (export) data MW | AC13: Max installed output (MW) | AE13: Max allowed export under system normal (MW)
C14: Name | D14: Type | E14: YOM | F14: Full restoration of supply time (hours) | G14: Cost of emergency repair ($) | I14: Name | J14: Type | K14: Length (km) | L14: Forced Outage Rate (per year) | M14: Repair (hrs) | Q14: Year | R14: Loading (MVA) | S14: PF | U14: Annual | W14: Annual | AA14: Annual | AC14: Year | AD14: Annual | AE14: Annual
F15: =IFERROR(VLOOKUP(D15,DATA!B$42:G$46,6,FALSE),"") ->  | I15: F3250 | J15: Overhead 33kV | K15: 5.96 | L15: =IFERROR((VLOOKUP(J15,DATA!B$3:C$10,2,FALSE)*(K15/100)),"") -> 0.33376 | M15: 6 | Q15: =D6 -> 2032 | R15: 27.95010388 | S15: 1 | V15: ="" ->  | W15: 9.562380924 | AC15: =D6 -> 2032
F16: =IFERROR(VLOOKUP(D16,DATA!B$42:G$46,6,FALSE),"") ->  | L16: =IFERROR((VLOOKUP(J16,DATA!B$3:C$10,2,FALSE)*(K16/100)),"") ->  | M16: =IFERROR(VLOOKUP(J16,DATA!G$3:H$10,2,FALSE),"") ->  | Q16: =Q15+1 -> 2033 | R16: 28.46452297 | S16: 1 | V16: ="" ->  | W16: 9.1745746 | AC16: =AC15+1 -> 2033
F17: =IFERROR(VLOOKUP(D17,DATA!B$42:G$46,6,FALSE),"") ->  | L17: =IFERROR((VLOOKUP(J17,DATA!B$3:C$10,2,FALSE)*(K17/100)),"") ->  | M17: =IFERROR(VLOOKUP(J17,DATA!G$3:H$10,2,FALSE),"") ->  | Q17: 2034 | R17: 29.03609974 | S17: 1 | V17: ="" ->  | W17: 8.774273756 | AC17: 2034
F18: =IFERROR(VLOOKUP(D18,DATA!B$42:G$46,6,FALSE),"") ->  | L18: =IFERROR((VLOOKUP(J18,DATA!B$3:C$10,2,FALSE)*(K18/100)),"") ->  | M18: =IFERROR(VLOOKUP(J18,DATA!G$3:H$10,2,FALSE),"") ->  | Q18: 2035 | R18: 29.72199186 | S18: 1 | V18: ="" ->  | W18: 8.546816101 | AC18: 2035
F19: =IFERROR(VLOOKUP(D19,DATA!B$42:G$46,6,FALSE),"") ->  | L19: =IFERROR((VLOOKUP(J19,DATA!B$3:C$10,2,FALSE)*(K19/100)),"") ->  | M19: =IFERROR(VLOOKUP(J19,DATA!G$3:H$10,2,FALSE),"") ->  | Q19: 2036 | R19: 30.32199186 | S19: 1 | V19: ="" ->  | W19: 8.24977951 | AC19: 2036
F20: =IFERROR(VLOOKUP(D20,DATA!B$42:G$46,6,FALSE),"") ->  | L20: =IFERROR((VLOOKUP(J20,DATA!B$3:C$10,2,FALSE)*(K20/100)),"") ->  | M20: =IFERROR(VLOOKUP(J20,DATA!G$3:H$10,2,FALSE),"") ->  | Q20: 2037 | R20: 30.91496385 | S20: 1 | V20: ="" ->  | W20: 8.069120923 | AC20: 2037
F21: =IFERROR(VLOOKUP(D21,DATA!B$42:G$46,6,FALSE),"") ->  | L21: =IFERROR((VLOOKUP(J21,DATA!B$3:C$10,2,FALSE)*(K21/100)),"") ->  | M21: =IFERROR(VLOOKUP(J21,DATA!G$3:H$10,2,FALSE),"") ->  | Q21: 2038 | R21: 31.50793585 | S21: 1 | V21: ="" ->  | W21: 8.073314253 | AC21: 2038
F22: =IFERROR(VLOOKUP(D22,DATA!B$42:G$46,6,FALSE),"") ->  | L22: =IFERROR((VLOOKUP(J22,DATA!B$3:C$10,2,FALSE)*(K22/100)),"") ->  | M22: =IFERROR(VLOOKUP(J22,DATA!G$3:H$10,2,FALSE),"") ->  | Q22: 2039 | R22: 32.10090784 | S22: 1 | V22: ="" ->  | W22: 8.064282196 | AC22: 2039
F23: =IFERROR(VLOOKUP(D23,DATA!B$42:G$46,6,FALSE),"") ->  | L23: =IFERROR((VLOOKUP(J23,DATA!B$3:C$10,2,FALSE)*(K23/100)),"") ->  | M23: =IFERROR(VLOOKUP(J23,DATA!G$3:H$10,2,FALSE),"") ->  | Q23: 2040 | R23: 32.69387983 | S23: 1 | V23: ="" ->  | W23: 8.407137552 | AC23: 2040
F24: =IFERROR(VLOOKUP(D24,DATA!B$42:G$46,6,FALSE),"") ->  | L24: =IFERROR((VLOOKUP(J24,DATA!B$3:C$10,2,FALSE)*(K24/100)),"") ->  | M24: =IFERROR(VLOOKUP(J24,DATA!G$3:H$10,2,FALSE),"") ->  | Q24: 2041 | R24: 33.28685183 | S24: 1 | V24: ="" ->  | W24: 8.727909022 | AC24: 2041
F25: =IFERROR(VLOOKUP(D25,DATA!B$42:G$46,6,FALSE),"") ->  | L25: =IFERROR((VLOOKUP(J25,DATA!B$3:C$10,2,FALSE)*(K25/100)),"") ->  | M25: =IFERROR(VLOOKUP(J25,DATA!G$3:H$10,2,FALSE),"") ->  | Q25: 2042 | R25: 33.87982382 | S25: 1 | V25: ="" ->  | W25: 9.308532672 | AC25: 2042
F26: =IFERROR(VLOOKUP(D26,DATA!B$42:G$46,6,FALSE),"") ->  | L26: =IFERROR((VLOOKUP(J26,DATA!B$3:C$10,2,FALSE)*(K26/100)),"") ->  | M26: =IFERROR(VLOOKUP(J26,DATA!G$3:H$10,2,FALSE),"") ->  | Q26: 2043 | R26: 34.47279582 | S26: 1 | V26: ="" ->  | W26: 9.743274993 | AC26: 2043
F27: =IFERROR(VLOOKUP(D27,DATA!B$42:G$46,6,FALSE),"") ->  | L27: =IFERROR((VLOOKUP(J27,DATA!B$3:C$10,2,FALSE)*(K27/100)),"") ->  | M27: =IFERROR(VLOOKUP(J27,DATA!G$3:H$10,2,FALSE),"") ->  | Q27: 2044 | R27: 35.06576781 | S27: 1 | V27: ="" ->  | W27: 10.63217647 | AC27: 2044
F28: =IFERROR(VLOOKUP(D28,DATA!B$42:G$46,6,FALSE),"") ->  | Q28: 2045 | R28: 35.6587398 | S28: 1 | V28: ="" ->  | W28: 11.36206977 | AC28: 2045
F29: =IFERROR(VLOOKUP(D29,DATA!B$42:G$46,6,FALSE),"") ->  | I29: Buses, VTs, CTs and Relays | Q29: 2046 | R29: 36.2517118 | S29: 1 | V29: ="" ->  | W29: 12.26332884 | AC29: 2046
F30: =IFERROR(VLOOKUP(D30,DATA!B$42:G$46,6,FALSE),"") ->  | I30: Name | J30: Type | K30: YOM | L30: Repair (hrs) | M30: Repair Cost ($) | Q30: 2047 | R30: 36.84468379 | S30: 1 | V30: ="" ->  | W30: 11.4404322 | AC30: 2047
F31: =IFERROR(VLOOKUP(D31,DATA!B$42:G$46,6,FALSE),"") ->  | L31: =IFERROR(VLOOKUP(J31,DATA!G$14:H$37,2,FALSE),"") ->  | Q31: 2048 | R31: 37.43765579 | S31: 1 | V31: ="" ->  | W31: 10.64826863 | AC31: 2048
F32: =IFERROR(VLOOKUP(D32,DATA!B$42:G$46,6,FALSE),"") ->  | L32: =IFERROR(VLOOKUP(J32,DATA!G$14:H$37,2,FALSE),"") ->  | Q32: 2049 | R32: 38.03062778 | S32: 1 | V32: ="" ->  | W32: 12.84447317 | AC32: 2049
F33: =IFERROR(VLOOKUP(D33,DATA!B$42:G$46,6,FALSE),"") ->  | L33: =IFERROR(VLOOKUP(J33,DATA!G$14:H$37,2,FALSE),"") ->  | Q33: 2050 | R33: 38.62359977 | S33: 1 | V33: ="" ->  | W33: 11.92900841 | AC33: 2050
F34: =IFERROR(VLOOKUP(D34,DATA!B$42:G$46,6,FALSE),"") ->  | L34: =IFERROR(VLOOKUP(J34,DATA!G$14:H$37,2,FALSE),"") ->  | Q34: 2051 | R34: 39.21657177 | S34: 1 | V34: ="" ->  | W34: 6.927153087 | AC34: 2051
F35: =IFERROR(VLOOKUP(D35,DATA!B$42:G$46,6,FALSE),"") ->  | L35: =IFERROR(VLOOKUP(J35,DATA!G$14:H$37,2,FALSE),"") ->  | Q35: 2052 | R35: 39.80954376 | S35: 1 | V35: ="" ->  | W35: 7.349339401 | AC35: 2052
F36: =IFERROR(VLOOKUP(D36,DATA!B$42:G$46,6,FALSE),"") ->  | L36: =IFERROR(VLOOKUP(J36,DATA!G$14:H$37,2,FALSE),"") ->  | Q36: 2053 | R36: 40.40251576 | S36: 1 | V36: ="" ->  | W36: 8.171875836 | AC36: 2053
F37: =IFERROR(VLOOKUP(D37,DATA!B$42:G$46,6,FALSE),"") ->  | L37: =IFERROR(VLOOKUP(J37,DATA!G$14:H$37,2,FALSE),"") ->  | Q37: 2054 | R37: 40.99548775 | S37: 1 | V37: ="" ->  | W37: 2.203847681 | AC37: 2054
F38: =IFERROR(VLOOKUP(D38,DATA!B$42:G$46,6,FALSE),"") ->  | L38: =IFERROR(VLOOKUP(J38,DATA!G$14:H$37,2,FALSE),"") ->  | Q38: 2055 | R38: 41.58845974 | S38: 1 | V38: ="" ->  | W38: 2.496008479 | AC38: 2055
F39: =IFERROR(VLOOKUP(D39,DATA!B$42:G$46,6,FALSE),"") ->  | L39: =IFERROR(VLOOKUP(J39,DATA!G$14:H$37,2,FALSE),"") ->  | Q39: 2056 | R39: 42.18143174 | S39: 1 | V39: ="" ->  | W39: 3.007326832 | AC39: 2056
F40: =IFERROR(VLOOKUP(D40,DATA!B$42:G$46,6,FALSE),"") ->  | L40: =IFERROR(VLOOKUP(J40,DATA!G$14:H$37,2,FALSE),"") ->  | Q40: 2057 | R40: 42.77440373 | S40: 1 | V40: ="" ->  | W40: 5.860781634 | AC40: 2057
Q41: 2058 | R41: 43.36737573 | S41: 1 | V41: ="" ->  | W41: 6.713305877 | AC41: 2058
Q42: 2059 | R42: 43.96034772 | S42: 1 | V42: ="" ->  | W42: 7.896811494 | AC42: 2059
B43: Contingency Response | I43: VCR Rate Calculation | Q43: 2060 | R43: 44.55331971 | S43: 1 | V43: ="" ->  | W43: 5.147092129 | AC43: 2060
Q44: 2061 | R44: 45.14629171 | S44: 1 | V44: ="" ->  | W44: 7.605408165 | AC44: 2061
C45: Load Served after Contingency | L45: Customer Energy Calculation | Q45: 2062 | R45: 45.7392637 | S45: 1 | V45: ="" ->  | W45: 7.684204927 | AC45: 2062
D46: Rating | E46: Period of Time Rating is available | G46: Notes on why values have been chosen | K46: Postcode | L46: Annual Consumption (kWH) | M46: VCR | Q46: 2063 | R46: 46.3322357 | S46: 1 | V46: ="" ->  | W46: 9.405506057 | AC46: 2063
C47: 'Total' Immediate Capacity | D47: 40.75 | E47: 2 | F47: Time 1 | G47: Protection tripped F497 | J47: Domestic | K47: 4508 | L47: 150081147.1 | M47: =VLOOKUP(K47,Table13[#Data],5,FALSE) -> 26.900961 | Q47: 2064 | R47: 46.92520769 | S47: 1 | V47: ="" ->  | W47: 11.02140964 | AC47: 2064
C48: 'Total' Capacity between Time 1 and Time 3 | D48: =40.75+16 -> 56.75 | E48: =E49-E47 -> 3.9 | F48: Time 2 | G48: ECC+Transfer 16MVA SSNRA to Griffin BS | J48: Commercial | L48: 75349879.77 | M48: =VLOOKUP("*commercial*",VCR!$H$4:$I$12,2,FALSE) -> 52.200298 | Q48: 2065 | R48: 47.51817968 | S48: 1 | V48: ="" ->  | W48: 13.04961145 | AC48: 2065
C49: 'Total' Capacity at Time 3 | D49: =40.75+16+4 -> 60.75 | E49: 5.9 | F49: Time 3 | G49: Additional mobile gen | J49: Industrial | L49: 23714201.95 | M49: =VLOOKUP("*industrial*",VCR!H4:I12,2,FALSE) -> 74.781089 | Q49: =Q48+1 -> 2066 | R49: 48.11115168 | S49: 1 | V49: ="" ->  | W49: 14.69308304 | AC49: =AC48+1 -> 2066
J50: Agricultural | L50: 21950.863 | M50: =VLOOKUP("*agriculture*",VCR!H4:I12,2,FALSE) -> 44.402918 | Q50: =Q49+1 -> 2067 | R50: 48.70412367 | S50: 1 | V50: ="" ->  | W50: 15.71050992 | AC50: =AC49+1 -> 2067
J51: Large Cust. Services (>10MVA) | M51: =VLOOKUP("*services*",VCR!H18:I21,2,FALSE) -> 12.359901 | Q51: 2068 | R51: 49.29709567 | S51: 1 | V51: ="" ->  | W51: 15.87192349 | AC51: 2068
J52: Large Cust. Industrial (>10MVA) | M52: =VLOOKUP("*industrial*",VCR!H18:I21,2,FALSE) -> 138.329736 | Q52: 2069 | R52: 49.89006766 | S52: 1 | V52: ="" ->  | W52: 15.48192108 | AC52: 2069
C53: Export under Contingency (MVA) | J53: Large Cust. Metals (>10MVA) | M53: =VLOOKUP("*metals*",VCR!H18:I21,2,FALSE) -> 23.28677 | Q53: 2070 | R53: 50.48303966 | S53: 1 | V53: ="" ->  | W53: 14.85078995 | AC53: 2070
D54: Rating | E54: Period of Time Export is available | J54: Large Cust. Mines (>10MVA) | M54: =VLOOKUP("*mines*",VCR!H18:I21,2,FALSE) -> 41.220744 | Q54: 2071 | R54: 51.07601165 | S54: 1 | V54: ="" ->  | W54: 14.19423457 | AC54: 2071
C55: Immediate Export allowed | E55: 2 | F55: Time 1 | J55: Total | L55: =SUM(L47:L54) -> 249167179.6 | M55: =(($L$47*$M$47)+($L$48*$M$48)+($L$49*$M$49)+($L$50*$M$50)+ ($L$51*$M$51)+ ($L$52*$M$52)+ ($L$53*$M$53)+ ($L$54*$M$54))/$L$55 -> 39.11013403 | Q55: =Q54+1 -> 2072 | R55: 51.66898364 | S55: 1 | V55: ="" ->  | W55: 13.80853625 | AC55: =AC54+1 -> 2072
C56: Export allowed between Time 1 and Time 3 | E56: =E57-E55 -> -2 | F56: Time 2 | Q56: 2073 | R56: 52.26195564 | S56: 1 | V56: ="" ->  | W56: 13.24633692 | AC56: 2073
C57: Export allowed after Time 3 | F57: Time 3 | Q57: 2074 | R57: 52.85492763 | S57: 1 | V57: ="" ->  | W57: 12.70736312 | AC57: 2074
Q58: 2075 | R58: 53.44789963 | S58: 1 | V58: ="" ->  | W58: 12.08629232 | AC58: 2075
Q59: 2076 | R59: 54.04087162 | S59: 1 | V59: ="" ->  | W59: 11.90720972 | AC59: 2076
Q60: 2077 | R60: 54.63384361 | S60: 1 | V60: ="" ->  | W60: 11.27263968 | AC60: 2077
Q61: 2078 | R61: 55.22681561 | S61: 1 | V61: ="" ->  | W61: 10.66434772 | AC61: 2078
Q62: 2079 | R62: 55.8197876 | S62: 1 | V62: ="" ->  | W62: 9.824864402 | AC62: 2079
Q63: 2080 | R63: 56.4127596 | S63: 1 | V63: ="" ->  | W63: 9.120070025 | AC63: 2080
Q64: 2081 | R64: 57.00573159 | S64: 1 | V64: ="" ->  | W64: 8.488217621 | AC64: 2081
Q65: 2082 | R65: 57.59870358 | S65: 1 | V65: ="" ->  | W65: 8.00863684 | AC65: 2082
Q66: 2083 | R66: 58.19167558 | S66: 1 | V66: ="" ->  | W66: 7.891699783 | AC66: 2083
Q67: 2084 | R67: 58.78464757 | S67: 1 | V67: ="" ->  | W67: 7.699763335 | AC67: 2084
Q68: 2085 | R68: 59.37761957 | S68: 1 | V68: ="" ->  | W68: 7.308024019 | AC68: 2085
Q69: 2086 | R69: 59.97059156 | S69: 1 | V69: ="" ->  | W69: 7.152390231 | AC69: 2086
Q70: 2087 | R70: 60.56356355 | S70: 1 | V70: ="" ->  | W70: 7.12777491 | AC70: 2087
Q71: 2088 | R71: 61.15653555 | S71: 1 | V71: ="" ->  | W71: 7.284835111 | AC71: 2088
Q72: 2089 | R72: 61.74950754 | S72: 1 | V72: ="" ->  | W72: 7.367577947 | AC72: 2089
Q73: 2090 | R73: 62.34247954 | S73: 1 | V73: ="" ->  | W73: 7.462230522 | AC73: 2090
Q74: 2091 | R74: 62.93545153 | S74: 1 | V74: ="" ->  | W74: 7.816178842 | AC74: 2091
Q75: 2092 | R75: 63.52842352 | S75: 1 | V75: ="" ->  | W75: 8.56437262 | AC75: 2092
V76: ="" ->  | W76: 8.942736973
V77: ="" ->  | W77: 11.40831066
V78: ="" ->  | W78: 11.60109049
V79: ="" ->  | W79: 10.7343732
V80: ="" ->  | W80: 6.889671707
V81: ="" ->  | W81: 4.215088661
V82: ="" ->  | W82: 2.305237886
V83: ="" ->  | W83: 2.505078038
V84: ="" ->  | W84: 4.405821968
V85: ="" ->  | W85: 2.105571729
V86: ="" ->  | W86: 1.970111803
V87: ="" ->  | W87: 2.925986206
V88: ="" ->  | W88: 2.627932244
V89: ="" ->  | W89: 2.733913266
V90: ="" ->  | W90: 6.855093301
V91: ="" ->  | W91: 5.971452244
V92: ="" ->  | W92: 7.061595642
V93: ="" ->  | W93: 7.49137539
V94: ="" ->  | W94: 8.813716181
V95: ="" ->  | W95: 10.932911
V96: ="" ->  | W96: 12.56888902
V97: ="" ->  | W97: 14.66124757
V98: ="" ->  | W98: 15.86077035
V99: ="" ->  | W99: 15.72084498
V100: ="" ->  | W100: 15.11986083
V101: ="" ->  | W101: 14.35149319
V102: ="" ->  | W102: 13.37832304
V103: ="" ->  | W103: 12.68051464
V104: ="" ->  | W104: 11.96034937
V105: ="" ->  | W105: 11.56606641
V106: ="" ->  | W106: 10.76097398
V107: ="" ->  | W107: 10.47393754
V108: ="" ->  | W108: 9.8682263
V109: ="" ->  | W109: 9.54399324
V110: ="" ->  | W110: 8.738690626
V111: ="" ->  | W111: 8.097098845
V112: ="" ->  | W112: 7.644602025
V113: ="" ->  | W113: 7.369240278
V114: ="" ->  | W114: 7.280443364
V115: ="" ->  | W115: 7.19489698
V116: ="" ->  | W116: 7.048332752
V117: ="" ->  | W117: 6.872599235
V118: ="" ->  | W118: 6.847090389
V119: ="" ->  | W119: 7.172923858
V120: ="" ->  | W120: 7.604241219
V121: ="" ->  | W121: 8.284345705
V122: ="" ->  | W122: 9.037104353
V123: ="" ->  | W123: 10.36324252
V124: ="" ->  | W124: 11.78157639
V125: ="" ->  | W125: 13.05497173
V126: ="" ->  | W126: 12.29834071
V127: ="" ->  | W127: 12.16594554
V128: ="" ->  | W128: 13.62862249
V129: ="" ->  | W129: 10.32695119
V130: ="" ->  | W130: 8.726109762
V131: ="" ->  | W131: 7.026558482
V132: ="" ->  | W132: 7.41662282
V133: ="" ->  | W133: 8.137955037
V134: ="" ->  | W134: 12.19898546
V135: ="" ->  | W135: 13.5458923
V136: ="" ->  | W136: 13.05654685
V137: ="" ->  | W137: 11.4708792
V138: ="" ->  | W138: 10.86111155
V139: ="" ->  | W139: 11.47398146
V140: ="" ->  | W140: 11.44078019
V141: ="" ->  | W141: 13.04731594
V142: ="" ->  | W142: 13.17406563
V143: ="" ->  | W143: 13.90534916
V144: ="" ->  | W144: 15.30811241
V145: ="" ->  | W145: 16.88005841
V146: ="" ->  | W146: 18.13646676
V147: ="" ->  | W147: 17.72273121
V148: ="" ->  | W148: 16.94437475
V149: ="" ->  | W149: 16.40666733
V150: ="" ->  | W150: 15.92258186
V151: ="" ->  | W151: 14.97262678
V152: ="" ->  | W152: 14.02623098
V153: ="" ->  | W153: 13.26144878
V154: ="" ->  | W154: 12.15927092
V155: ="" ->  | W155: 11.51648778
V156: ="" ->  | W156: 10.73380281
V157: ="" ->  | W157: 10.23549943
V158: ="" ->  | W158: 9.464415025
V159: ="" ->  | W159: 8.538900405
V160: ="" ->  | W160: 8.170747265
V161: ="" ->  | W161: 7.687070835
V162: ="" ->  | W162: 7.359525322
V163: ="" ->  | W163: 7.054250773
V164: ="" ->  | W164: 6.985726711
V165: ="" ->  | W165: 7.084449206
V166: ="" ->  | W166: 7.263358682
V167: ="" ->  | W167: 7.573273543
V168: ="" ->  | W168: 8.154766734
V169: ="" ->  | W169: 8.861681324
V170: ="" ->  | W170: 9.728796316
V171: ="" ->  | W171: 11.3795635
V172: ="" ->  | W172: 12.62262348
V173: ="" ->  | W173: 13.73727056
V174: ="" ->  | W174: 13.98609345
V175: ="" ->  | W175: 13.97197497
V176: ="" ->  | W176: 12.70235083
V177: ="" ->  | W177: 12.23930876
V178: ="" ->  | W178: 12.73257456
V179: ="" ->  | W179: 12.33393692
V180: ="" ->  | W180: 14.36515378
V181: ="" ->  | W181: 12.18636797
V182: ="" ->  | W182: 12.0979548
V183: ="" ->  | W183: 12.93542954
V184: ="" ->  | W184: 14.32408566
V185: ="" ->  | W185: 13.11911538
V186: ="" ->  | W186: 13.5237587
V187: ="" ->  | W187: 14.22147988
V188: ="" ->  | W188: 14.61506773
V189: ="" ->  | W189: 12.63257392
V190: ="" ->  | W190: 12.7241251
V191: ="" ->  | W191: 13.98969197
V192: ="" ->  | W192: 15.13250361
V193: ="" ->  | W193: 16.13176521
V194: ="" ->  | W194: 16.86035464
V195: ="" ->  | W195: 17.06859432
V196: ="" ->  | W196: 16.39092315
V197: ="" ->  | W197: 15.80797869
V198: ="" ->  | W198: 15.02186876
V199: ="" ->  | W199: 14.27720024
V200: ="" ->  | W200: 13.47073068
V201: ="" ->  | W201: 12.72109785
V202: ="" ->  | W202: 11.66698456
... 2048 more rows

Sheet Benefits
B1: Option 1 | I1: Option 2 | P1: Option 3 | W1: Option 4 | AD1: Option 5 | AK1: Option 6 | AR1: Option 7 | AY1: Option 8 | BF1: Option 9 | BM1: Option 10
A2: Date | B2: VCR | C2: CECV | D2: Emergency | E2: Safety | F2: Environmental | G2: Total | I2: VCR | J2: CECV | K2: Emergency | L2: Safety | M2: Environmental | N2: Total | P2: VCR | Q2: CECV | R2: Emergency | S2: Safety | T2: Environmental | U2: Total | W2: VCR | X2: CECV | Y2: Emergency | Z2: Safety | AA2: Environmental | AB2: Total | AD2: VCR | AE2: CECV | AF2: Emergency | AG2: Safety | AH2: Environmental | AI2: Total | AK2: VCR | AL2: CECV | AM2: Emergency | AN2: Safety | AO2: Environmental | AP2: Total | AR2: VCR | AS2: CECV | AT2: Emergency | AU2: Safety | AV2: Environmental | AW2: Total | AY2: VCR | AZ2: CECV | BA2: Emergency | BB2: Safety | BC2: Environmental | BD2: Total | BF2: VCR | BG2: CECV | BH2: Emergency | BI2: Safety | BJ2: Environmental | BK2: Total | BM2: VCR | BN2: CECV | BO2: Emergency | BP2: Safety | BQ2: Environmental | BR2: Total
A3: =Results!A3 -> 2032 | B3: =Results!B3+Results!Q3+Results!AF3-Results!G3-Results!V3-Results!AK3 -> 1118250.409 | C3: =Results!C3+Results!R3+Results!AG3-Results!H3-Results!W3-Results!AL3 -> 0 | D3: =Results!D3+Results!S3+Results!AH3-Results!I3-Results!X3-Results!AM3 -> 0 | E3: =Results!E3+Results!T3+Results!AI3-Results!J3-Results!Y3-Results!AN3 -> 0 | F3: =Results!F3+Results!U3+Results!AJ3-Results!K3-Results!Z3-Results!AO3 -> 0 | G3: =SUM(B3:F3)*DATA!C73 -> 1118250.409 | I3: =Results!B3+Results!Q3+Results!AF3-Results!L3-Results!AA3-Results!AP3 -> 1118250.461 | J3: =Results!C3+Results!R3+Results!AG3-Results!M3-Results!AB3-Results!AQ3 -> 0 | K3: =Results!D3+Results!S3+Results!AH3-Results!N3-Results!AC3-Results!AR3 -> 0 | L3: =Results!E3+Results!T3+Results!AI3-Results!O3-Results!AD3-Results!AS3 -> 0 | M3: =Results!F3+Results!U3+Results!AJ3-Results!P3-Results!AE3-Results!AT3 -> 0 | N3: =SUM(I3:M3)*DATA!C73 -> 1118250.461 | U3: =SUM(P3:T3)*DATA!C73 -> 0 | AB3: =SUM(W3:AA3)*DATA!C73 -> 0 | AI3: =SUM(AD3:AH3)*DATA!C73 -> 0 | BD3: =SUM(AY3:BC3)*DATA!C73 -> 0 | BK3: =SUM(BF3:BJ3)*DATA!C73 -> 0 | BR3: =SUM(BM3:BQ3)*DATA!C73 -> 0
A4: =Results!A4 -> 2033 | B4: =Results!B4+Results!Q4+Results!AF4-Results!G4-Results!V4-Results!AK4 -> 1135126.711 | C4: =Results!C4+Results!R4+Results!AG4-Results!H4-Results!W4-Results!AL4 -> 0 | D4: =Results!D4+Results!S4+Results!AH4-Results!I4-Results!X4-Results!AM4 -> 0 | E4: =Results!E4+Results!T4+Results!AI4-Results!J4-Results!Y4-Results!AN4 -> 0 | F4: =Results!F4+Results!U4+Results!AJ4-Results!K4-Results!Z4-Results!AO4 -> 0 | G4: =SUM(B4:F4)*DATA!C73 -> 1135126.711 | I4: =Results!B4+Results!Q4+Results!AF4-Results!L4-Results!AA4-Results!AP4 -> 1135126.764 | J4: =Results!C4+Results!R4+Results!AG4-Results!M4-Results!AB4-Results!AQ4 -> 0 | K4: =Results!D4+Results!S4+Results!AH4-Results!N4-Results!AC4-Results!AR4 -> 0 | L4: =Results!E4+Results!T4+Results!AI4-Results!O4-Results!AD4-Results!AS4 -> 0 | M4: =Results!F4+Results!U4+Results!AJ4-Results!P4-Results!AE4-Results!AT4 -> 0 | N4: =SUM(I4:M4)*DATA!C73 -> 1135126.764 | U4: =SUM(P4:T4)*DATA!C73 -> 0 | AB4: =SUM(W4:AA4)*DATA!C73 -> 0 | AI4: =SUM(AD4:AH4)*DATA!C73 -> 0 | BD4: =SUM(AY4:BC4)*DATA!C73 -> 0 | BK4: =SUM(BF4:BJ4)*DATA!C73 -> 0 | BR4: =SUM(BM4:BQ4)*DATA!C73 -> 0
A5: =Results!A5 -> 2034 | B5: =Results!B5+Results!Q5+Results!AF5-Results!G5-Results!V5-Results!AK5 -> 1146009.861 | C5: =Results!C5+Results!R5+Results!AG5-Results!H5-Results!W5-Results!AL5 -> 0 | D5: =Results!D5+Results!S5+Results!AH5-Results!I5-Results!X5-Results!AM5 -> 0 | E5: =Results!E5+Results!T5+Results!AI5-Results!J5-Results!Y5-Results!AN5 -> 0 | F5: =Results!F5+Results!U5+Results!AJ5-Results!K5-Results!Z5-Results!AO5 -> 0 | G5: =SUM(B5:F5)*DATA!C73 -> 1146009.861 | I5: =Results!B5+Results!Q5+Results!AF5-Results!L5-Results!AA5-Results!AP5 -> 1146009.914 | J5: =Results!C5+Results!R5+Results!AG5-Results!M5-Results!AB5-Results!AQ5 -> 0 | K5: =Results!D5+Results!S5+Results!AH5-Results!N5-Results!AC5-Results!AR5 -> 0 | L5: =Results!E5+Results!T5+Results!AI5-Results!O5-Results!AD5-Results!AS5 -> 0 | M5: =Results!F5+Results!U5+Results!AJ5-Results!P5-Results!AE5-Results!AT5 -> 0 | N5: =SUM(I5:M5)*DATA!C73 -> 1146009.914 | U5: =SUM(P5:T5)*DATA!C73 -> 0 | AB5: =SUM(W5:AA5)*DATA!C73 -> 0 | AI5: =SUM(AD5:AH5)*DATA!C73 -> 0 | BD5: =SUM(AY5:BC5)*DATA!C73 -> 0 | BK5: =SUM(BF5:BJ5)*DATA!C73 -> 0 | BR5: =SUM(BM5:BQ5)*DATA!C73 -> 0
A6: =Results!A6 -> 2035 | B6: =Results!B6+Results!Q6+Results!AF6-Results!G6-Results!V6-Results!AK6 -> 1157030.774 | C6: =Results!C6+Results!R6+Results!AG6-Results!H6-Results!W6-Results!AL6 -> 0 | D6: =Results!D6+Results!S6+Results!AH6-Results!I6-Results!X6-Results!AM6 -> 0 | E6: =Results!E6+Results!T6+Results!AI6-Results!J6-Results!Y6-Results!AN6 -> 0 | F6: =Results!F6+Results!U6+Results!AJ6-Results!K6-Results!Z6-Results!AO6 -> 0 | G6: =SUM(B6:F6)*DATA!C73 -> 1157030.774 | I6: =Results!B6+Results!Q6+Results!AF6-Results!L6-Results!AA6-Results!AP6 -> 1157030.829 | J6: =Results!C6+Results!R6+Results!AG6-Results!M6-Results!AB6-Results!AQ6 -> 0 | K6: =Results!D6+Results!S6+Results!AH6-Results!N6-Results!AC6-Results!AR6 -> 0 | L6: =Results!E6+Results!T6+Results!AI6-Results!O6-Results!AD6-Results!AS6 -> 0 | M6: =Results!F6+Results!U6+Results!AJ6-Results!P6-Results!AE6-Results!AT6 -> 0 | N6: =SUM(I6:M6)*DATA!C73 -> 1157030.829 | U6: =SUM(P6:T6)*DATA!C73 -> 0 | AB6: =SUM(W6:AA6)*DATA!C73 -> 0 | AI6: =SUM(AD6:AH6)*DATA!C73 -> 0 | BD6: =SUM(AY6:BC6)*DATA!C73 -> 0 | BK6: =SUM(BF6:BJ6)*DATA!C73 -> 0 | BR6: =SUM(BM6:BQ6)*DATA!C73 -> 0
A7: =Results!A7 -> 2036 | B7: =Results!B7+Results!Q7+Results!AF7-Results!G7-Results!V7-Results!AK7 -> 1168067.74 | C7: =Results!C7+Results!R7+Results!AG7-Results!H7-Results!W7-Results!AL7 -> 0 | D7: =Results!D7+Results!S7+Results!AH7-Results!I7-Results!X7-Results!AM7 -> 0 | E7: =Results!E7+Results!T7+Results!AI7-Results!J7-Results!Y7-Results!AN7 -> 0 | F7: =Results!F7+Results!U7+Results!AJ7-Results!K7-Results!Z7-Results!AO7 -> 0 | G7: =SUM(B7:F7)*DATA!C73 -> 1168067.74 | I7: =Results!B7+Results!Q7+Results!AF7-Results!L7-Results!AA7-Results!AP7 -> 1168067.795 | J7: =Results!C7+Results!R7+Results!AG7-Results!M7-Results!AB7-Results!AQ7 -> 0 | K7: =Results!D7+Results!S7+Results!AH7-Results!N7-Results!AC7-Results!AR7 -> 0 | L7: =Results!E7+Results!T7+Results!AI7-Results!O7-Results!AD7-Results!AS7 -> 0 | M7: =Results!F7+Results!U7+Results!AJ7-Results!P7-Results!AE7-Results!AT7 -> 0 | N7: =SUM(I7:M7)*DATA!C73 -> 1168067.795 | U7: =SUM(P7:T7)*DATA!C73 -> 0 | AB7: =SUM(W7:AA7)*DATA!C73 -> 0 | AI7: =SUM(AD7:AH7)*DATA!C73 -> 0 | BD7: =SUM(AY7:BC7)*DATA!C73 -> 0 | BK7: =SUM(BF7:BJ7)*DATA!C73 -> 0 | BR7: =SUM(BM7:BQ7)*DATA!C73 -> 0
A8: =Results!A8 -> 2037 | B8: =Results!B8+Results!Q8+Results!AF8-Results!G8-Results!V8-Results!AK8 -> 1179146.962 | C8: =Results!C8+Results!R8+Results!AG8-Results!H8-Results!W8-Results!AL8 -> 0 | D8: =Results!D8+Results!S8+Results!AH8-Results!I8-Results!X8-Results!AM8 -> 0 | E8: =Results!E8+Results!T8+Results!AI8-Results!J8-Results!Y8-Results!AN8 -> 0 | F8: =Results!F8+Results!U8+Results!AJ8-Results!K8-Results!Z8-Results!AO8 -> 0 | G8: =SUM(B8:F8)*DATA!C73 -> 1179146.962 | I8: =Results!B8+Results!Q8+Results!AF8-Results!L8-Results!AA8-Results!AP8 -> 1179147.018 | J8: =Results!C8+Results!R8+Results!AG8-Results!M8-Results!AB8-Results!AQ8 -> 0 | K8: =Results!D8+Results!S8+Results!AH8-Results!N8-Results!AC8-Results!AR8 -> 0 | L8: =Results!E8+Results!T8+Results!AI8-Results!O8-Results!AD8-Results!AS8 -> 0 | M8: =Results!F8+Results!U8+Results!AJ8-Results!P8-Results!AE8-Results!AT8 -> 0 | N8: =SUM(I8:M8)*DATA!C73 -> 1179147.018 | U8: =SUM(P8:T8)*DATA!C73 -> 0 | AB8: =SUM(W8:AA8)*DATA!C73 -> 0 | AI8: =SUM(AD8:AH8)*DATA!C73 -> 0 | BD8: =SUM(AY8:BC8)*DATA!C73 -> 0 | BK8: =SUM(BF8:BJ8)*DATA!C73 -> 0 | BR8: =SUM(BM8:BQ8)*DATA!C73 -> 0
A9: =Results!A9 -> 2038 | B9: =Results!B9+Results!Q9+Results!AF9-Results!G9-Results!V9-Results!AK9 -> 1190310.988 | C9: =Results!C9+Results!R9+Results!AG9-Results!H9-Results!W9-Results!AL9 -> 0 | D9: =Results!D9+Results!S9+Results!AH9-Results!I9-Results!X9-Results!AM9 -> 0 | E9: =Results!E9+Results!T9+Results!AI9-Results!J9-Results!Y9-Results!AN9 -> 0 | F9: =Results!F9+Results!U9+Results!AJ9-Results!K9-Results!Z9-Results!AO9 -> 0 | G9: =SUM(B9:F9)*DATA!C73 -> 1190310.988 | I9: =Results!B9+Results!Q9+Results!AF9-Results!L9-Results!AA9-Results!AP9 -> 1190311.046 | J9: =Results!C9+Results!R9+Results!AG9-Results!M9-Results!AB9-Results!AQ9 -> 0 | K9: =Results!D9+Results!S9+Results!AH9-Results!N9-Results!AC9-Results!AR9 -> 0 | L9: =Results!E9+Results!T9+Results!AI9-Results!O9-Results!AD9-Results!AS9 -> 0 | M9: =Results!F9+Results!U9+Results!AJ9-Results!P9-Results!AE9-Results!AT9 -> 0 | N9: =SUM(I9:M9)*DATA!C73 -> 1190311.046 | U9: =SUM(P9:T9)*DATA!C73 -> 0 | AB9: =SUM(W9:AA9)*DATA!C73 -> 0 | AI9: =SUM(AD9:AH9)*DATA!C73 -> 0 | BD9: =SUM(AY9:BC9)*DATA!C73 -> 0 | BK9: =SUM(BF9:BJ9)*DATA!C73 -> 0 | BR9: =SUM(BM9:BQ9)*DATA!C73 -> 0
A10: =Results!A10 -> 2039 | B10: =Results!B10+Results!Q10+Results!AF10-Results!G10-Results!V10-Results!AK10 -> 1201524.946 | C10: =Results!C10+Results!R10+Results!AG10-Results!H10-Results!W10-Results!AL10 -> 0 | D10: =Results!D10+Results!S10+Results!AH10-Results!I10-Results!X10-Results!AM10 -> 0 | E10: =Results!E10+Results!T10+Results!AI10-Results!J10-Results!Y10-Results!AN10 -> 0 | F10: =Results!F10+Results!U10+Results!AJ10-Results!K10-Results!Z10-Results!AO10 -> 0 | G10: =SUM(B10:F10)*DATA!C73 -> 1201524.946 | I10: =Results!B10+Results!Q10+Results!AF10-Results!L10-Results!AA10-Results!AP10 -> 1201525.003 | J10: =Results!C10+Results!R10+Results!AG10-Results!M10-Results!AB10-Results!AQ10 -> 0 | K10: =Results!D10+Results!S10+Results!AH10-Results!N10-Results!AC10-Results!AR10 -> 0 | L10: =Results!E10+Results!T10+Results!AI10-Results!O10-Results!AD10-Results!AS10 -> 0 | M10: =Results!F10+Results!U10+Results!AJ10-Results!P10-Results!AE10-Results!AT10 -> 0 | N10: =SUM(I10:M10)*DATA!C73 -> 1201525.003 | U10: =SUM(P10:T10)*DATA!C73 -> 0 | AB10: =SUM(W10:AA10)*DATA!C73 -> 0 | AI10: =SUM(AD10:AH10)*DATA!C73 -> 0 | BD10: =SUM(AY10:BC10)*DATA!C73 -> 0 | BK10: =SUM(BF10:BJ10)*DATA!C73 -> 0 | BR10: =SUM(BM10:BQ10)*DATA!C73 -> 0
A11: =Results!A11 -> 2040 | B11: =Results!B11+Results!Q11+Results!AF11-Results!G11-Results!V11-Results!AK11 -> 1212723.607 | C11: =Results!C11+Results!R11+Results!AG11-Results!H11-Results!W11-Results!AL11 -> 0 | D11: =Results!D11+Results!S11+Results!AH11-Results!I11-Results!X11-Results!AM11 -> 0 | E11: =Results!E11+Results!T11+Results!AI11-Results!J11-Results!Y11-Results!AN11 -> 0 | F11: =Results!F11+Results!U11+Results!AJ11-Results!K11-Results!Z11-Results!AO11 -> 0 | G11: =SUM(B11:F11)*DATA!C73 -> 1212723.607 | I11: =Results!B11+Results!Q11+Results!AF11-Results!L11-Results!AA11-Results!AP11 -> 1212723.665 | J11: =Results!C11+Results!R11+Results!AG11-Results!M11-Results!AB11-Results!AQ11 -> 0 | K11: =Results!D11+Results!S11+Results!AH11-Results!N11-Results!AC11-Results!AR11 -> 0 | L11: =Results!E11+Results!T11+Results!AI11-Results!O11-Results!AD11-Results!AS11 -> 0 | M11: =Results!F11+Results!U11+Results!AJ11-Results!P11-Results!AE11-Results!AT11 -> 0 | N11: =SUM(I11:M11)*DATA!C73 -> 1212723.665 | U11: =SUM(P11:T11)*DATA!C73 -> 0 | AB11: =SUM(W11:AA11)*DATA!C73 -> 0 | AI11: =SUM(AD11:AH11)*DATA!C73 -> 0 | BD11: =SUM(AY11:BC11)*DATA!C73 -> 0 | BK11: =SUM(BF11:BJ11)*DATA!C73 -> 0 | BR11: =SUM(BM11:BQ11)*DATA!C73 -> 0
A12: =Results!A12 -> 2041 | B12: =Results!B12+Results!Q12+Results!AF12-Results!G12-Results!V12-Results!AK12 -> 1224137.624 | C12: =Results!C12+Results!R12+Results!AG12-Results!H12-Results!W12-Results!AL12 -> 0 | D12: =Results!D12+Results!S12+Results!AH12-Results!I12-Results!X12-Results!AM12 -> 0 | E12: =Results!E12+Results!T12+Results!AI12-Results!J12-Results!Y12-Results!AN12 -> 0 | F12: =Results!F12+Results!U12+Results!AJ12-Results!K12-Results!Z12-Results!AO12 -> 0 | G12: =SUM(B12:F12)*DATA!C73 -> 1224137.624 | I12: =Results!B12+Results!Q12+Results!AF12-Results!L12-Results!AA12-Results!AP12 -> 1224137.697 | J12: =Results!C12+Results!R12+Results!AG12-Results!M12-Results!AB12-Results!AQ12 -> 0 | K12: =Results!D12+Results!S12+Results!AH12-Results!N12-Results!AC12-Results!AR12 -> 0 | L12: =Results!E12+Results!T12+Results!AI12-Results!O12-Results!AD12-Results!AS12 -> 0 | M12: =Results!F12+Results!U12+Results!AJ12-Results!P12-Results!AE12-Results!AT12 -> 0 | N12: =SUM(I12:M12)*DATA!C73 -> 1224137.697 | U12: =SUM(P12:T12)*DATA!C73 -> 0 | AB12: =SUM(W12:AA12)*DATA!C73 -> 0 | AI12: =SUM(AD12:AH12)*DATA!C73 -> 0 | BD12: =SUM(AY12:BC12)*DATA!C73 -> 0 | BK12: =SUM(BF12:BJ12)*DATA!C73 -> 0 | BR12: =SUM(BM12:BQ12)*DATA!C73 -> 0
A13: =Results!A13 -> 2042 | B13: =Results!B13+Results!Q13+Results!AF13-Results!G13-Results!V13-Results!AK13 -> 1235596.008 | C13: =Results!C13+Results!R13+Results!AG13-Results!H13-Results!W13-Results!AL13 -> 0 | D13: =Results!D13+Results!S13+Results!AH13-Results!I13-Results!X13-Results!AM13 -> 0 | E13: =Results!E13+Results!T13+Results!AI13-Results!J13-Results!Y13-Results!AN13 -> 0 | F13: =Results!F13+Results!U13+Results!AJ13-Results!K13-Results!Z13-Results!AO13 -> 0 | G13: =SUM(B13:F13)*DATA!C73 -> 1235596.008 | I13: =Results!B13+Results!Q13+Results!AF13-Results!L13-Results!AA13-Results!AP13 -> 1235596.094 | J13: =Results!C13+Results!R13+Results!AG13-Results!M13-Results!AB13-Results!AQ13 -> 0 | K13: =Results!D13+Results!S13+Results!AH13-Results!N13-Results!AC13-Results!AR13 -> 0 | L13: =Results!E13+Results!T13+Results!AI13-Results!O13-Results!AD13-Results!AS13 -> 0 | M13: =Results!F13+Results!U13+Results!AJ13-Results!P13-Results!AE13-Results!AT13 -> 0 | N13: =SUM(I13:M13)*DATA!C73 -> 1235596.094 | U13: =SUM(P13:T13)*DATA!C73 -> 0 | AB13: =SUM(W13:AA13)*DATA!C73 -> 0 | AI13: =SUM(AD13:AH13)*DATA!C73 -> 0 | BD13: =SUM(AY13:BC13)*DATA!C73 -> 0 | BK13: =SUM(BF13:BJ13)*DATA!C73 -> 0 | BR13: =SUM(BM13:BQ13)*DATA!C73 -> 0
A14: =Results!A14 -> 2043 | B14: =Results!B14+Results!Q14+Results!AF14-Results!G14-Results!V14-Results!AK14 -> 1247017.259 | C14: =Results!C14+Results!R14+Results!AG14-Results!H14-Results!W14-Results!AL14 -> 0 | D14: =Results!D14+Results!S14+Results!AH14-Results!I14-Results!X14-Results!AM14 -> 0 | E14: =Results!E14+Results!T14+Results!AI14-Results!J14-Results!Y14-Results!AN14 -> 0 | F14: =Results!F14+Results!U14+Results!AJ14-Results!K14-Results!Z14-Results!AO14 -> 0 | G14: =SUM(B14:F14)*DATA!C73 -> 1247017.259 | I14: =Results!B14+Results!Q14+Results!AF14-Results!L14-Results!AA14-Results!AP14 -> 1247017.33 | J14: =Results!C14+Results!R14+Results!AG14-Results!M14-Results!AB14-Results!AQ14 -> 0 | K14: =Results!D14+Results!S14+Results!AH14-Results!N14-Results!AC14-Results!AR14 -> 0 | L14: =Results!E14+Results!T14+Results!AI14-Results!O14-Results!AD14-Results!AS14 -> 0 | M14: =Results!F14+Results!U14+Results!AJ14-Results!P14-Results!AE14-Results!AT14 -> 0 | N14: =SUM(I14:M14)*DATA!C73 -> 1247017.33 | U14: =SUM(P14:T14)*DATA!C73 -> 0 | AB14: =SUM(W14:AA14)*DATA!C73 -> 0 | AI14: =SUM(AD14:AH14)*DATA!C73 -> 0 | BD14: =SUM(AY14:BC14)*DATA!C73 -> 0 | BK14: =SUM(BF14:BJ14)*DATA!C73 -> 0 | BR14: =SUM(BM14:BQ14)*DATA!C73 -> 0
A15: =Results!A15 -> 2044 | B15: =Results!B15+Results!Q15+Results!AF15-Results!G15-Results!V15-Results!AK15 -> 1258692.725 | C15: =Results!C15+Results!R15+Results!AG15-Results!H15-Results!W15-Results!AL15 -> 0 | D15: =Results!D15+Results!S15+Results!AH15-Results!I15-Results!X15-Results!AM15 -> 0 | E15: =Results!E15+Results!T15+Results!AI15-Results!J15-Results!Y15-Results!AN15 -> 0 | F15: =Results!F15+Results!U15+Results!AJ15-Results!K15-Results!Z15-Results!AO15 -> 0 | G15: =SUM(B15:F15)*DATA!C73 -> 1258692.725 | I15: =Results!B15+Results!Q15+Results!AF15-Results!L15-Results!AA15-Results!AP15 -> 1258692.796 | J15: =Results!C15+Results!R15+Results!AG15-Results!M15-Results!AB15-Results!AQ15 -> 0 | K15: =Results!D15+Results!S15+Results!AH15-Results!N15-Results!AC15-Results!AR15 -> 0 | L15: =Results!E15+Results!T15+Results!AI15-Results!O15-Results!AD15-Results!AS15 -> 0 | M15: =Results!F15+Results!U15+Results!AJ15-Results!P15-Results!AE15-Results!AT15 -> 0 | N15: =SUM(I15:M15)*DATA!C73 -> 1258692.796 | U15: =SUM(P15:T15)*DATA!C73 -> 0 | AB15: =SUM(W15:AA15)*DATA!C73 -> 0 | AI15: =SUM(AD15:AH15)*DATA!C73 -> 0 | BD15: =SUM(AY15:BC15)*DATA!C73 -> 0 | BK15: =SUM(BF15:BJ15)*DATA!C73 -> 0 | BR15: =SUM(BM15:BQ15)*DATA!C73 -> 0
A16: =Results!A16 -> 2045 | B16: =Results!B16+Results!Q16+Results!AF16-Results!G16-Results!V16-Results!AK16 -> 1270293.202 | C16: =Results!C16+Results!R16+Results!AG16-Results!H16-Results!W16-Results!AL16 -> 0 | D16: =Results!D16+Results!S16+Results!AH16-Results!I16-Results!X16-Results!AM16 -> 0 | E16: =Results!E16+Results!T16+Results!AI16-Results!J16-Results!Y16-Results!AN16 -> 0 | F16: =Results!F16+Results!U16+Results!AJ16-Results!K16-Results!Z16-Results!AO16 -> 0 | G16: =SUM(B16:F16)*DATA!C73 -> 1270293.202 | I16: =Results!B16+Results!Q16+Results!AF16-Results!L16-Results!AA16-Results!AP16 -> 1270293.258 | J16: =Results!C16+Results!R16+Results!AG16-Results!M16-Results!AB16-Results!AQ16 -> 0 | K16: =Results!D16+Results!S16+Results!AH16-Results!N16-Results!AC16-Results!AR16 -> 0 | L16: =Results!E16+Results!T16+Results!AI16-Results!O16-Results!AD16-Results!AS16 -> 0 | M16: =Results!F16+Results!U16+Results!AJ16-Results!P16-Results!AE16-Results!AT16 -> 0 | N16: =SUM(I16:M16)*DATA!C73 -> 1270293.258 | U16: =SUM(P16:T16)*DATA!C73 -> 0 | AB16: =SUM(W16:AA16)*DATA!C73 -> 0 | AI16: =SUM(AD16:AH16)*DATA!C73 -> 0 | BD16: =SUM(AY16:BC16)*DATA!C73 -> 0 | BK16: =SUM(BF16:BJ16)*DATA!C73 -> 0 | BR16: =SUM(BM16:BQ16)*DATA!C73 -> 0
A17: =Results!A17 -> 2046 | B17: =Results!B17+Results!Q17+Results!AF17-Results!G17-Results!V17-Results!AK17 -> 1281983.624 | C17: =Results!C17+Results!R17+Results!AG17-Results!H17-Results!W17-Results!AL17 -> 0 | D17: =Results!D17+Results!S17+Results!AH17-Results!I17-Results!X17-Results!AM17 -> 0 | E17: =Results!E17+Results!T17+Results!AI17-Results!J17-Results!Y17-Results!AN17 -> 0 | F17: =Results!F17+Results!U17+Results!AJ17-Results!K17-Results!Z17-Results!AO17 -> 0 | G17: =SUM(B17:F17)*DATA!C73 -> 1281983.624 | I17: =Results!B17+Results!Q17+Results!AF17-Results!L17-Results!AA17-Results!AP17 -> 1281983.574 | J17: =Results!C17+Results!R17+Results!AG17-Results!M17-Results!AB17-Results!AQ17 -> 0 | K17: =Results!D17+Results!S17+Results!AH17-Results!N17-Results!AC17-Results!AR17 -> 0 | L17: =Results!E17+Results!T17+Results!AI17-Results!O17-Results!AD17-Results!AS17 -> 0 | M17: =Results!F17+Results!U17+Results!AJ17-Results!P17-Results!AE17-Results!AT17 -> 0 | N17: =SUM(I17:M17)*DATA!C73 -> 1281983.574 | U17: =SUM(P17:T17)*DATA!C73 -> 0 | AB17: =SUM(W17:AA17)*DATA!C73 -> 0 | AI17: =SUM(AD17:AH17)*DATA!C73 -> 0 | BD17: =SUM(AY17:BC17)*DATA!C73 -> 0 | BK17: =SUM(BF17:BJ17)*DATA!C73 -> 0 | BR17: =SUM(BM17:BQ17)*DATA!C73 -> 0
A18: =Results!A18 -> 2047 | B18: =Results!B18+Results!Q18+Results!AF18-Results!G18-Results!V18-Results!AK18 -> 1293908.651 | C18: =Results!C18+Results!R18+Results!AG18-Results!H18-Results!W18-Results!AL18 -> 0 | D18: =Results!D18+Results!S18+Results!AH18-Results!I18-Results!X18-Results!AM18 -> 0 | E18: =Results!E18+Results!T18+Results!AI18-Results!J18-Results!Y18-Results!AN18 -> 0 | F18: =Results!F18+Results!U18+Results!AJ18-Results!K18-Results!Z18-Results!AO18 -> 0 | G18: =SUM(B18:F18)*DATA!C73 -> 1293908.651 | I18: =Results!B18+Results!Q18+Results!AF18-Results!L18-Results!AA18-Results!AP18 -> 1293908.397 | J18: =Results!C18+Results!R18+Results!AG18-Results!M18-Results!AB18-Results!AQ18 -> 0 | K18: =Results!D18+Results!S18+Results!AH18-Results!N18-Results!AC18-Results!AR18 -> 0 | L18: =Results!E18+Results!T18+Results!AI18-Results!O18-Results!AD18-Results!AS18 -> 0 | M18: =Results!F18+Results!U18+Results!AJ18-Results!P18-Results!AE18-Results!AT18 -> 0 | N18: =SUM(I18:M18)*DATA!C73 -> 1293908.397 | U18: =SUM(P18:T18)*DATA!C73 -> 0 | AB18: =SUM(W18:AA18)*DATA!C73 -> 0 | AI18: =SUM(AD18:AH18)*DATA!C73 -> 0 | BD18: =SUM(AY18:BC18)*DATA!C73 -> 0 | BK18: =SUM(BF18:BJ18)*DATA!C73 -> 0 | BR18: =SUM(BM18:BQ18)*DATA!C73 -> 0
A19: =Results!A19 -> 2048 | B19: =Results!B19+Results!Q19+Results!AF19-Results!G19-Results!V19-Results!AK19 -> 1305825.302 | C19: =Results!C19+Results!R19+Results!AG19-Results!H19-Results!W19-Results!AL19 -> 0 | D19: =Results!D19+Results!S19+Results!AH19-Results!I19-Results!X19-Results!AM19 -> 0 | E19: =Results!E19+Results!T19+Results!AI19-Results!J19-Results!Y19-Results!AN19 -> 0 | F19: =Results!F19+Results!U19+Results!AJ19-Results!K19-Results!Z19-Results!AO19 -> 0 | G19: =SUM(B19:F19)*DATA!C73 -> 1305825.302 | I19: =Results!B19+Results!Q19+Results!AF19-Results!L19-Results!AA19-Results!AP19 -> 1305824.848 | J19: =Results!C19+Results!R19+Results!AG19-Results!M19-Results!AB19-Results!AQ19 -> 0 | K19: =Results!D19+Results!S19+Results!AH19-Results!N19-Results!AC19-Results!AR19 -> 0 | L19: =Results!E19+Results!T19+Results!AI19-Results!O19-Results!AD19-Results!AS19 -> 0 | M19: =Results!F19+Results!U19+Results!AJ19-Results!P19-Results!AE19-Results!AT19 -> 0 | N19: =SUM(I19:M19)*DATA!C73 -> 1305824.848 | U19: =SUM(P19:T19)*DATA!C73 -> 0 | AB19: =SUM(W19:AA19)*DATA!C73 -> 0 | AI19: =SUM(AD19:AH19)*DATA!C73 -> 0 | BD19: =SUM(AY19:BC19)*DATA!C73 -> 0 | BK19: =SUM(BF19:BJ19)*DATA!C73 -> 0 | BR19: =SUM(BM19:BQ19)*DATA!C73 -> 0
A20: =Results!A20 -> 2049 | B20: =Results!B20+Results!Q20+Results!AF20-Results!G20-Results!V20-Results!AK20 -> 1317790.982 | C20: =Results!C20+Results!R20+Results!AG20-Results!H20-Results!W20-Results!AL20 -> 0 | D20: =Results!D20+Results!S20+Results!AH20-Results!I20-Results!X20-Results!AM20 -> 0 | E20: =Results!E20+Results!T20+Results!AI20-Results!J20-Results!Y20-Results!AN20 -> 0 | F20: =Results!F20+Results!U20+Results!AJ20-Results!K20-Results!Z20-Results!AO20 -> 0 | G20: =SUM(B20:F20)*DATA!C73 -> 1317790.982 | I20: =Results!B20+Results!Q20+Results!AF20-Results!L20-Results!AA20-Results!AP20 -> 1317790.319 | J20: =Results!C20+Results!R20+Results!AG20-Results!M20-Results!AB20-Results!AQ20 -> 0 | K20: =Results!D20+Results!S20+Results!AH20-Results!N20-Results!AC20-Results!AR20 -> 0 | L20: =Results!E20+Results!T20+Results!AI20-Results!O20-Results!AD20-Results!AS20 -> 0 | M20: =Results!F20+Results!U20+Results!AJ20-Results!P20-Results!AE20-Results!AT20 -> 0 | N20: =SUM(I20:M20)*DATA!C73 -> 1317790.319 | U20: =SUM(P20:T20)*DATA!C73 -> 0 | AB20: =SUM(W20:AA20)*DATA!C73 -> 0 | AI20: =SUM(AD20:AH20)*DATA!C73 -> 0 | BD20: =SUM(AY20:BC20)*DATA!C73 -> 0 | BK20: =SUM(BF20:BJ20)*DATA!C73 -> 0 | BR20: =SUM(BM20:BQ20)*DATA!C73 -> 0
A21: =Results!A21 -> 2050 | B21: =Results!B21+Results!Q21+Results!AF21-Results!G21-Results!V21-Results!AK21 -> 1329820.968 | C21: =Results!C21+Results!R21+Results!AG21-Results!H21-Results!W21-Results!AL21 -> 0 | D21: =Results!D21+Results!S21+Results!AH21-Results!I21-Results!X21-Results!AM21 -> 0 | E21: =Results!E21+Results!T21+Results!AI21-Results!J21-Results!Y21-Results!AN21 -> 0 | F21: =Results!F21+Results!U21+Results!AJ21-Results!K21-Results!Z21-Results!AO21 -> 0 | G21: =SUM(B21:F21)*DATA!C73 -> 1329820.968 | I21: =Results!B21+Results!Q21+Results!AF21-Results!L21-Results!AA21-Results!AP21 -> 1329820.097 | J21: =Results!C21+Results!R21+Results!AG21-Results!M21-Results!AB21-Results!AQ21 -> 0 | K21: =Results!D21+Results!S21+Results!AH21-Results!N21-Results!AC21-Results!AR21 -> 0 | L21: =Results!E21+Results!T21+Results!AI21-Results!O21-Results!AD21-Results!AS21 -> 0 | M21: =Results!F21+Results!U21+Results!AJ21-Results!P21-Results!AE21-Results!AT21 -> 0 | N21: =SUM(I21:M21)*DATA!C73 -> 1329820.097 | U21: =SUM(P21:T21)*DATA!C73 -> 0 | AB21: =SUM(W21:AA21)*DATA!C73 -> 0 | AI21: =SUM(AD21:AH21)*DATA!C73 -> 0 | BD21: =SUM(AY21:BC21)*DATA!C73 -> 0 | BK21: =SUM(BF21:BJ21)*DATA!C73 -> 0 | BR21: =SUM(BM21:BQ21)*DATA!C73 -> 0
A22: =Results!A22 -> 2051 | B22: =Results!B22+Results!Q22+Results!AF22-Results!G22-Results!V22-Results!AK22 -> 1342042.76 | C22: =Results!C22+Results!R22+Results!AG22-Results!H22-Results!W22-Results!AL22 -> 0 | D22: =Results!D22+Results!S22+Results!AH22-Results!I22-Results!X22-Results!AM22 -> 0 | E22: =Results!E22+Results!T22+Results!AI22-Results!J22-Results!Y22-Results!AN22 -> 0 | F22: =Results!F22+Results!U22+Results!AJ22-Results!K22-Results!Z22-Results!AO22 -> 0 | G22: =SUM(B22:F22)*DATA!C73 -> 1342042.76 | I22: =Results!B22+Results!Q22+Results!AF22-Results!L22-Results!AA22-Results!AP22 -> 1342041.406 | J22: =Results!C22+Results!R22+Results!AG22-Results!M22-Results!AB22-Results!AQ22 -> 0 | K22: =Results!D22+Results!S22+Results!AH22-Results!N22-Results!AC22-Results!AR22 -> 0 | L22: =Results!E22+Results!T22+Results!AI22-Results!O22-Results!AD22-Results!AS22 -> 0 | M22: =Results!F22+Results!U22+Results!AJ22-Results!P22-Results!AE22-Results!AT22 -> 0 | N22: =SUM(I22:M22)*DATA!C73 -> 1342041.406 | U22: =SUM(P22:T22)*DATA!C73 -> 0 | AB22: =SUM(W22:AA22)*DATA!C73 -> 0 | AI22: =SUM(AD22:AH22)*DATA!C73 -> 0 | BD22: =SUM(AY22:BC22)*DATA!C73 -> 0 | BK22: =SUM(BF22:BJ22)*DATA!C73 -> 0 | BR22: =SUM(BM22:BQ22)*DATA!C73 -> 0
A23: =Results!A23 -> 2052 | B23: =Results!B23+Results!Q23+Results!AF23-Results!G23-Results!V23-Results!AK23 -> 1354388.241 | C23: =Results!C23+Results!R23+Results!AG23-Results!H23-Results!W23-Results!AL23 -> 0 | D23: =Results!D23+Results!S23+Results!AH23-Results!I23-Results!X23-Results!AM23 -> 0 | E23: =Results!E23+Results!T23+Results!AI23-Results!J23-Results!Y23-Results!AN23 -> 0 | F23: =Results!F23+Results!U23+Results!AJ23-Results!K23-Results!Z23-Results!AO23 -> 0 | G23: =SUM(B23:F23)*DATA!C73 -> 1354388.241 | I23: =Results!B23+Results!Q23+Results!AF23-Results!L23-Results!AA23-Results!AP23 -> 1354386.35 | J23: =Results!C23+Results!R23+Results!AG23-Results!M23-Results!AB23-Results!AQ23 -> 0 | K23: =Results!D23+Results!S23+Results!AH23-Results!N23-Results!AC23-Results!AR23 -> 0 | L23: =Results!E23+Results!T23+Results!AI23-Results!O23-Results!AD23-Results!AS23 -> 0 | M23: =Results!F23+Results!U23+Results!AJ23-Results!P23-Results!AE23-Results!AT23 -> 0 | N23: =SUM(I23:M23)*DATA!C73 -> 1354386.35 | U23: =SUM(P23:T23)*DATA!C73 -> 0 | AB23: =SUM(W23:AA23)*DATA!C73 -> 0 | AI23: =SUM(AD23:AH23)*DATA!C73 -> 0 | BD23: =SUM(AY23:BC23)*DATA!C73 -> 0 | BK23: =SUM(BF23:BJ23)*DATA!C73 -> 0 | BR23: =SUM(BM23:BQ23)*DATA!C73 -> 0
A24: =Results!A24 -> 2053 | B24: =Results!B24+Results!Q24+Results!AF24-Results!G24-Results!V24-Results!AK24 -> 1366781.445 | C24: =Results!C24+Results!R24+Results!AG24-Results!H24-Results!W24-Results!AL24 -> 0 | D24: =Results!D24+Results!S24+Results!AH24-Results!I24-Results!X24-Results!AM24 -> 0 | E24: =Results!E24+Results!T24+Results!AI24-Results!J24-Results!Y24-Results!AN24 -> 0 | F24: =Results!F24+Results!U24+Results!AJ24-Results!K24-Results!Z24-Results!AO24 -> 0 | G24: =SUM(B24:F24)*DATA!C73 -> 1366781.445 | I24: =Results!B24+Results!Q24+Results!AF24-Results!L24-Results!AA24-Results!AP24 -> 1366779.004 | J24: =Results!C24+Results!R24+Results!AG24-Results!M24-Results!AB24-Results!AQ24 -> 0 | K24: =Results!D24+Results!S24+Results!AH24-Results!N24-Results!AC24-Results!AR24 -> 0 | L24: =Results!E24+Results!T24+Results!AI24-Results!O24-Results!AD24-Results!AS24 -> 0 | M24: =Results!F24+Results!U24+Results!AJ24-Results!P24-Results!AE24-Results!AT24 -> 0 | N24: =SUM(I24:M24)*DATA!C73 -> 1366779.004 | U24: =SUM(P24:T24)*DATA!C73 -> 0 | AB24: =SUM(W24:AA24)*DATA!C73 -> 0 | AI24: =SUM(AD24:AH24)*DATA!C73 -> 0 | BD24: =SUM(AY24:BC24)*DATA!C73 -> 0 | BK24: =SUM(BF24:BJ24)*DATA!C73 -> 0 | BR24: =SUM(BM24:BQ24)*DATA!C73 -> 0
A25: =Results!A25 -> 2054 | B25: =Results!B25+Results!Q25+Results!AF25-Results!G25-Results!V25-Results!AK25 -> 1379140.008 | C25: =Results!C25+Results!R25+Results!AG25-Results!H25-Results!W25-Results!AL25 -> 0 | D25: =Results!D25+Results!S25+Results!AH25-Results!I25-Results!X25-Results!AM25 -> 0 | E25: =Results!E25+Results!T25+Results!AI25-Results!J25-Results!Y25-Results!AN25 -> 0 | F25: =Results!F25+Results!U25+Results!AJ25-Results!K25-Results!Z25-Results!AO25 -> 0 | G25: =SUM(B25:F25)*DATA!C73 -> 1379140.008 | I25: =Results!B25+Results!Q25+Results!AF25-Results!L25-Results!AA25-Results!AP25 -> 1379136.679 | J25: =Results!C25+Results!R25+Results!AG25-Results!M25-Results!AB25-Results!AQ25 -> 0 | K25: =Results!D25+Results!S25+Results!AH25-Results!N25-Results!AC25-Results!AR25 -> 0 | L25: =Results!E25+Results!T25+Results!AI25-Results!O25-Results!AD25-Results!AS25 -> 0 | M25: =Results!F25+Results!U25+Results!AJ25-Results!P25-Results!AE25-Results!AT25 -> 0 | N25: =SUM(I25:M25)*DATA!C73 -> 1379136.679 | U25: =SUM(P25:T25)*DATA!C73 -> 0 | AB25: =SUM(W25:AA25)*DATA!C73 -> 0 | AI25: =SUM(AD25:AH25)*DATA!C73 -> 0 | BD25: =SUM(AY25:BC25)*DATA!C73 -> 0 | BK25: =SUM(BF25:BJ25)*DATA!C73 -> 0 | BR25: =SUM(BM25:BQ25)*DATA!C73 -> 0
A26: =Results!A26 -> 2055 | B26: =Results!B26+Results!Q26+Results!AF26-Results!G26-Results!V26-Results!AK26 -> 1391817.463 | C26: =Results!C26+Results!R26+Results!AG26-Results!H26-Results!W26-Results!AL26 -> 0 | D26: =Results!D26+Results!S26+Results!AH26-Results!I26-Results!X26-Results!AM26 -> 0 | E26: =Results!E26+Results!T26+Results!AI26-Results!J26-Results!Y26-Results!AN26 -> 0 | F26: =Results!F26+Results!U26+Results!AJ26-Results!K26-Results!Z26-Results!AO26 -> 0 | G26: =SUM(B26:F26)*DATA!C73 -> 1391817.463 | I26: =Results!B26+Results!Q26+Results!AF26-Results!L26-Results!AA26-Results!AP26 -> 1391812.602 | J26: =Results!C26+Results!R26+Results!AG26-Results!M26-Results!AB26-Results!AQ26 -> 0 | K26: =Results!D26+Results!S26+Results!AH26-Results!N26-Results!AC26-Results!AR26 -> 0 | L26: =Results!E26+Results!T26+Results!AI26-Results!O26-Results!AD26-Results!AS26 -> 0 | M26: =Results!F26+Results!U26+Results!AJ26-Results!P26-Results!AE26-Results!AT26 -> 0 | N26: =SUM(I26:M26)*DATA!C73 -> 1391812.602 | U26: =SUM(P26:T26)*DATA!C73 -> 0 | AB26: =SUM(W26:AA26)*DATA!C73 -> 0 | AI26: =SUM(AD26:AH26)*DATA!C73 -> 0 | BD26: =SUM(AY26:BC26)*DATA!C73 -> 0 | BK26: =SUM(BF26:BJ26)*DATA!C73 -> 0 | BR26: =SUM(BM26:BQ26)*DATA!C73 -> 0
A27: =Results!A27 -> 2056 | B27: =Results!B27+Results!Q27+Results!AF27-Results!G27-Results!V27-Results!AK27 -> 1404614.964 | C27: =Results!C27+Results!R27+Results!AG27-Results!H27-Results!W27-Results!AL27 -> 0 | D27: =Results!D27+Results!S27+Results!AH27-Results!I27-Results!X27-Results!AM27 -> 0 | E27: =Results!E27+Results!T27+Results!AI27-Results!J27-Results!Y27-Results!AN27 -> 0 | F27: =Results!F27+Results!U27+Results!AJ27-Results!K27-Results!Z27-Results!AO27 -> 0 | G27: =SUM(B27:F27)*DATA!C73 -> 1404614.964 | I27: =Results!B27+Results!Q27+Results!AF27-Results!L27-Results!AA27-Results!AP27 -> 1404608.726 | J27: =Results!C27+Results!R27+Results!AG27-Results!M27-Results!AB27-Results!AQ27 -> 0 | K27: =Results!D27+Results!S27+Results!AH27-Results!N27-Results!AC27-Results!AR27 -> 0 | L27: =Results!E27+Results!T27+Results!AI27-Results!O27-Results!AD27-Results!AS27 -> 0 | M27: =Results!F27+Results!U27+Results!AJ27-Results!P27-Results!AE27-Results!AT27 -> 0 | N27: =SUM(I27:M27)*DATA!C73 -> 1404608.726 | U27: =SUM(P27:T27)*DATA!C73 -> 0 | AB27: =SUM(W27:AA27)*DATA!C73 -> 0 | AI27: =SUM(AD27:AH27)*DATA!C73 -> 0 | BD27: =SUM(AY27:BC27)*DATA!C73 -> 0 | BK27: =SUM(BF27:BJ27)*DATA!C73 -> 0 | BR27: =SUM(BM27:BQ27)*DATA!C73 -> 0
A28: =Results!A28 -> 2057 | B28: =Results!B28+Results!Q28+Results!AF28-Results!G28-Results!V28-Results!AK28 -> 1417246.4 | C28: =Results!C28+Results!R28+Results!AG28-Results!H28-Results!W28-Results!AL28 -> 0 | D28: =Results!D28+Results!S28+Results!AH28-Results!I28-Results!X28-Results!AM28 -> 0 | E28: =Results!E28+Results!T28+Results!AI28-Results!J28-Results!Y28-Results!AN28 -> 0 | F28: =Results!F28+Results!U28+Results!AJ28-Results!K28-Results!Z28-Results!AO28 -> 0 | G28: =SUM(B28:F28)*DATA!C73 -> 1417246.4 | I28: =Results!B28+Results!Q28+Results!AF28-Results!L28-Results!AA28-Results!AP28 -> 1417238.603 | J28: =Results!C28+Results!R28+Results!AG28-Results!M28-Results!AB28-Results!AQ28 -> 0 | K28: =Results!D28+Results!S28+Results!AH28-Results!N28-Results!AC28-Results!AR28 -> 0 | L28: =Results!E28+Results!T28+Results!AI28-Results!O28-Results!AD28-Results!AS28 -> 0 | M28: =Results!F28+Results!U28+Results!AJ28-Results!P28-Results!AE28-Results!AT28 -> 0 | N28: =SUM(I28:M28)*DATA!C73 -> 1417238.603 | U28: =SUM(P28:T28)*DATA!C73 -> 0 | AB28: =SUM(W28:AA28)*DATA!C73 -> 0 | AI28: =SUM(AD28:AH28)*DATA!C73 -> 0 | BD28: =SUM(AY28:BC28)*DATA!C73 -> 0 | BK28: =SUM(BF28:BJ28)*DATA!C73 -> 0 | BR28: =SUM(BM28:BQ28)*DATA!C73 -> 0
A29: =Results!A29 -> 2058 | B29: =Results!B29+Results!Q29+Results!AF29-Results!G29-Results!V29-Results!AK29 -> 1430337.552 | C29: =Results!C29+Results!R29+Results!AG29-Results!H29-Results!W29-Results!AL29 -> 0 | D29: =Results!D29+Results!S29+Results!AH29-Results!I29-Results!X29-Results!AM29 -> 0 | E29: =Results!E29+Results!T29+Results!AI29-Results!J29-Results!Y29-Results!AN29 -> 0 | F29: =Results!F29+Results!U29+Results!AJ29-Results!K29-Results!Z29-Results!AO29 -> 0 | G29: =SUM(B29:F29)*DATA!C73 -> 1430337.552 | I29: =Results!B29+Results!Q29+Results!AF29-Results!L29-Results!AA29-Results!AP29 -> 1430328.015 | J29: =Results!C29+Results!R29+Results!AG29-Results!M29-Results!AB29-Results!AQ29 -> 0 | K29: =Results!D29+Results!S29+Results!AH29-Results!N29-Results!AC29-Results!AR29 -> 0 | L29: =Results!E29+Results!T29+Results!AI29-Results!O29-Results!AD29-Results!AS29 -> 0 | M29: =Results!F29+Results!U29+Results!AJ29-Results!P29-Results!AE29-Results!AT29 -> 0 | N29: =SUM(I29:M29)*DATA!C73 -> 1430328.015 | U29: =SUM(P29:T29)*DATA!C73 -> 0 | AB29: =SUM(W29:AA29)*DATA!C73 -> 0 | AI29: =SUM(AD29:AH29)*DATA!C73 -> 0 | BD29: =SUM(AY29:BC29)*DATA!C73 -> 0 | BK29: =SUM(BF29:BJ29)*DATA!C73 -> 0 | BR29: =SUM(BM29:BQ29)*DATA!C73 -> 0
A30: =Results!A30 -> 2059 | B30: =Results!B30+Results!Q30+Results!AF30-Results!G30-Results!V30-Results!AK30 -> 1443167.472 | C30: =Results!C30+Results!R30+Results!AG30-Results!H30-Results!W30-Results!AL30 -> 0 | D30: =Results!D30+Results!S30+Results!AH30-Results!I30-Results!X30-Results!AM30 -> 0 | E30: =Results!E30+Results!T30+Results!AI30-Results!J30-Results!Y30-Results!AN30 -> 0 | F30: =Results!F30+Results!U30+Results!AJ30-Results!K30-Results!Z30-Results!AO30 -> 0 | G30: =SUM(B30:F30)*DATA!C73 -> 1443167.472 | I30: =Results!B30+Results!Q30+Results!AF30-Results!L30-Results!AA30-Results!AP30 -> 1443155.971 | J30: =Results!C30+Results!R30+Results!AG30-Results!M30-Results!AB30-Results!AQ30 -> 0 | K30: =Results!D30+Results!S30+Results!AH30-Results!N30-Results!AC30-Results!AR30 -> 0 | L30: =Results!E30+Results!T30+Results!AI30-Results!O30-Results!AD30-Results!AS30 -> 0 | M30: =Results!F30+Results!U30+Results!AJ30-Results!P30-Results!AE30-Results!AT30 -> 0 | N30: =SUM(I30:M30)*DATA!C73 -> 1443155.971 | U30: =SUM(P30:T30)*DATA!C73 -> 0 | AB30: =SUM(W30:AA30)*DATA!C73 -> 0 | AI30: =SUM(AD30:AH30)*DATA!C73 -> 0 | BD30: =SUM(AY30:BC30)*DATA!C73 -> 0 | BK30: =SUM(BF30:BJ30)*DATA!C73 -> 0 | BR30: =SUM(BM30:BQ30)*DATA!C73 -> 0
A31: =Results!A31 -> 2060 | B31: =Results!B31+Results!Q31+Results!AF31-Results!G31-Results!V31-Results!AK31 -> 1456591.144 | C31: =Results!C31+Results!R31+Results!AG31-Results!H31-Results!W31-Results!AL31 -> 0 | D31: =Results!D31+Results!S31+Results!AH31-Results!I31-Results!X31-Results!AM31 -> 0 | E31: =Results!E31+Results!T31+Results!AI31-Results!J31-Results!Y31-Results!AN31 -> 0 | F31: =Results!F31+Results!U31+Results!AJ31-Results!K31-Results!Z31-Results!AO31 -> 0 | G31: =SUM(B31:F31)*DATA!C73 -> 1456591.144 | I31: =Results!B31+Results!Q31+Results!AF31-Results!L31-Results!AA31-Results!AP31 -> 1456577.148 | J31: =Results!C31+Results!R31+Results!AG31-Results!M31-Results!AB31-Results!AQ31 -> 0 | K31: =Results!D31+Results!S31+Results!AH31-Results!N31-Results!AC31-Results!AR31 -> 0 | L31: =Results!E31+Results!T31+Results!AI31-Results!O31-Results!AD31-Results!AS31 -> 0 | M31: =Results!F31+Results!U31+Results!AJ31-Results!P31-Results!AE31-Results!AT31 -> 0 | N31: =SUM(I31:M31)*DATA!C73 -> 1456577.148 | U31: =SUM(P31:T31)*DATA!C73 -> 0 | AB31: =SUM(W31:AA31)*DATA!C73 -> 0 | AI31: =SUM(AD31:AH31)*DATA!C73 -> 0 | BD31: =SUM(AY31:BC31)*DATA!C73 -> 0 | BK31: =SUM(BF31:BJ31)*DATA!C73 -> 0 | BR31: =SUM(BM31:BQ31)*DATA!C73 -> 0
A32: =Results!A32 -> 2061 | B32: =Results!B32+Results!Q32+Results!AF32-Results!G32-Results!V32-Results!AK32 -> 1469697.945 | C32: =Results!C32+Results!R32+Results!AG32-Results!H32-Results!W32-Results!AL32 -> 0 | D32: =Results!D32+Results!S32+Results!AH32-Results!I32-Results!X32-Results!AM32 -> 0 | E32: =Results!E32+Results!T32+Results!AI32-Results!J32-Results!Y32-Results!AN32 -> 0 | F32: =Results!F32+Results!U32+Results!AJ32-Results!K32-Results!Z32-Results!AO32 -> 0 | G32: =SUM(B32:F32)*DATA!C73 -> 1469697.945 | I32: =Results!B32+Results!Q32+Results!AF32-Results!L32-Results!AA32-Results!AP32 -> 1469680.11 | J32: =Results!C32+Results!R32+Results!AG32-Results!M32-Results!AB32-Results!AQ32 -> 0 | K32: =Results!D32+Results!S32+Results!AH32-Results!N32-Results!AC32-Results!AR32 -> 0 | L32: =Results!E32+Results!T32+Results!AI32-Results!O32-Results!AD32-Results!AS32 -> 0 | M32: =Results!F32+Results!U32+Results!AJ32-Results!P32-Results!AE32-Results!AT32 -> 0 | N32: =SUM(I32:M32)*DATA!C73 -> 1469680.11 | U32: =SUM(P32:T32)*DATA!C73 -> 0 | AB32: =SUM(W32:AA32)*DATA!C73 -> 0 | AI32: =SUM(AD32:AH32)*DATA!C73 -> 0 | BD32: =SUM(AY32:BC32)*DATA!C73 -> 0 | BK32: =SUM(BF32:BJ32)*DATA!C73 -> 0 | BR32: =SUM(BM32:BQ32)*DATA!C73 -> 0
A33: =Results!A33 -> 2062 | B33: =Results!B33+Results!Q33+Results!AF33-Results!G33-Results!V33-Results!AK33 -> 1482965.214 | C33: =Results!C33+Results!R33+Results!AG33-Results!H33-Results!W33-Results!AL33 -> 0 | D33: =Results!D33+Results!S33+Results!AH33-Results!I33-Results!X33-Results!AM33 -> 0 | E33: =Results!E33+Results!T33+Results!AI33-Results!J33-Results!Y33-Results!AN33 -> 0 | F33: =Results!F33+Results!U33+Results!AJ33-Results!K33-Results!Z33-Results!AO33 -> 0 | G33: =SUM(B33:F33)*DATA!C73 -> 1482965.214 | I33: =Results!B33+Results!Q33+Results!AF33-Results!L33-Results!AA33-Results!AP33 -> 1482941.761 | J33: =Results!C33+Results!R33+Results!AG33-Results!M33-Results!AB33-Results!AQ33 -> 0 | K33: =Results!D33+Results!S33+Results!AH33-Results!N33-Results!AC33-Results!AR33 -> 0 | L33: =Results!E33+Results!T33+Results!AI33-Results!O33-Results!AD33-Results!AS33 -> 0 | M33: =Results!F33+Results!U33+Results!AJ33-Results!P33-Results!AE33-Results!AT33 -> 0 | N33: =SUM(I33:M33)*DATA!C73 -> 1482941.761 | U33: =SUM(P33:T33)*DATA!C73 -> 0 | AB33: =SUM(W33:AA33)*DATA!C73 -> 0 | AI33: =SUM(AD33:AH33)*DATA!C73 -> 0 | BD33: =SUM(AY33:BC33)*DATA!C73 -> 0 | BK33: =SUM(BF33:BJ33)*DATA!C73 -> 0 | BR33: =SUM(BM33:BQ33)*DATA!C73 -> 0
A34: =Results!A34 -> 2063 | B34: =Results!B34+Results!Q34+Results!AF34-Results!G34-Results!V34-Results!AK34 -> 1496812.595 | C34: =Results!C34+Results!R34+Results!AG34-Results!H34-Results!W34-Results!AL34 -> 0 | D34: =Results!D34+Results!S34+Results!AH34-Results!I34-Results!X34-Results!AM34 -> 0 | E34: =Results!E34+Results!T34+Results!AI34-Results!J34-Results!Y34-Results!AN34 -> 0 | F34: =Results!F34+Results!U34+Results!AJ34-Results!K34-Results!Z34-Results!AO34 -> 0 | G34: =SUM(B34:F34)*DATA!C73 -> 1496812.595 | I34: =Results!B34+Results!Q34+Results!AF34-Results!L34-Results!AA34-Results!AP34 -> 1496782.099 | J34: =Results!C34+Results!R34+Results!AG34-Results!M34-Results!AB34-Results!AQ34 -> 0 | K34: =Results!D34+Results!S34+Results!AH34-Results!N34-Results!AC34-Results!AR34 -> 0 | L34: =Results!E34+Results!T34+Results!AI34-Results!O34-Results!AD34-Results!AS34 -> 0 | M34: =Results!F34+Results!U34+Results!AJ34-Results!P34-Results!AE34-Results!AT34 -> 0 | N34: =SUM(I34:M34)*DATA!C73 -> 1496782.099 | U34: =SUM(P34:T34)*DATA!C73 -> 0 | AB34: =SUM(W34:AA34)*DATA!C73 -> 0 | AI34: =SUM(AD34:AH34)*DATA!C73 -> 0 | BD34: =SUM(AY34:BC34)*DATA!C73 -> 0 | BK34: =SUM(BF34:BJ34)*DATA!C73 -> 0 | BR34: =SUM(BM34:BQ34)*DATA!C73 -> 0
A35: =Results!A35 -> 2064 | B35: =Results!B35+Results!Q35+Results!AF35-Results!G35-Results!V35-Results!AK35 -> 1510256.735 | C35: =Results!C35+Results!R35+Results!AG35-Results!H35-Results!W35-Results!AL35 -> 0 | D35: =Results!D35+Results!S35+Results!AH35-Results!I35-Results!X35-Results!AM35 -> 0 | E35: =Results!E35+Results!T35+Results!AI35-Results!J35-Results!Y35-Results!AN35 -> 0 | F35: =Results!F35+Results!U35+Results!AJ35-Results!K35-Results!Z35-Results!AO35 -> 0 | G35: =SUM(B35:F35)*DATA!C73 -> 1510256.735 | I35: =Results!B35+Results!Q35+Results!AF35-Results!L35-Results!AA35-Results!AP35 -> 1510218.755 | J35: =Results!C35+Results!R35+Results!AG35-Results!M35-Results!AB35-Results!AQ35 -> 0 | K35: =Results!D35+Results!S35+Results!AH35-Results!N35-Results!AC35-Results!AR35 -> 0 | L35: =Results!E35+Results!T35+Results!AI35-Results!O35-Results!AD35-Results!AS35 -> 0 | M35: =Results!F35+Results!U35+Results!AJ35-Results!P35-Results!AE35-Results!AT35 -> 0 | N35: =SUM(I35:M35)*DATA!C73 -> 1510218.755 | U35: =SUM(P35:T35)*DATA!C73 -> 0 | AB35: =SUM(W35:AA35)*DATA!C73 -> 0 | AI35: =SUM(AD35:AH35)*DATA!C73 -> 0 | BD35: =SUM(AY35:BC35)*DATA!C73 -> 0 | BK35: =SUM(BF35:BJ35)*DATA!C73 -> 0 | BR35: =SUM(BM35:BQ35)*DATA!C73 -> 0
A36: =Results!A36 -> 2065 | B36: =Results!B36+Results!Q36+Results!AF36-Results!G36-Results!V36-Results!AK36 -> 1523995.27 | C36: =Results!C36+Results!R36+Results!AG36-Results!H36-Results!W36-Results!AL36 -> 0 | D36: =Results!D36+Results!S36+Results!AH36-Results!I36-Results!X36-Results!AM36 -> 0 | E36: =Results!E36+Results!T36+Results!AI36-Results!J36-Results!Y36-Results!AN36 -> 0 | F36: =Results!F36+Results!U36+Results!AJ36-Results!K36-Results!Z36-Results!AO36 -> 0 | G36: =SUM(B36:F36)*DATA!C73 -> 1523995.27 | I36: =Results!B36+Results!Q36+Results!AF36-Results!L36-Results!AA36-Results!AP36 -> 1523948.381 | J36: =Results!C36+Results!R36+Results!AG36-Results!M36-Results!AB36-Results!AQ36 -> 0 | K36: =Results!D36+Results!S36+Results!AH36-Results!N36-Results!AC36-Results!AR36 -> 0 | L36: =Results!E36+Results!T36+Results!AI36-Results!O36-Results!AD36-Results!AS36 -> 0 | M36: =Results!F36+Results!U36+Results!AJ36-Results!P36-Results!AE36-Results!AT36 -> 0 | N36: =SUM(I36:M36)*DATA!C73 -> 1523948.381 | U36: =SUM(P36:T36)*DATA!C73 -> 0 | AB36: =SUM(W36:AA36)*DATA!C73 -> 0 | AI36: =SUM(AD36:AH36)*DATA!C73 -> 0 | BD36: =SUM(AY36:BC36)*DATA!C73 -> 0 | BK36: =SUM(BF36:BJ36)*DATA!C73 -> 0 | BR36: =SUM(BM36:BQ36)*DATA!C73 -> 0
A37: =Results!A37 -> 2066 | B37: =Results!B37+Results!Q37+Results!AF37-Results!G37-Results!V37-Results!AK37 -> 1537896.908 | C37: =Results!C37+Results!R37+Results!AG37-Results!H37-Results!W37-Results!AL37 -> 0 | D37: =Results!D37+Results!S37+Results!AH37-Results!I37-Results!X37-Results!AM37 -> 0 | E37: =Results!E37+Results!T37+Results!AI37-Results!J37-Results!Y37-Results!AN37 -> 0 | F37: =Results!F37+Results!U37+Results!AJ37-Results!K37-Results!Z37-Results!AO37 -> 0 | G37: =SUM(B37:F37)*DATA!C73 -> 1537896.908 | I37: =Results!B37+Results!Q37+Results!AF37-Results!L37-Results!AA37-Results!AP37 -> 1537838.226 | J37: =Results!C37+Results!R37+Results!AG37-Results!M37-Results!AB37-Results!AQ37 -> 0 | K37: =Results!D37+Results!S37+Results!AH37-Results!N37-Results!AC37-Results!AR37 -> 0 | L37: =Results!E37+Results!T37+Results!AI37-Results!O37-Results!AD37-Results!AS37 -> 0 | M37: =Results!F37+Results!U37+Results!AJ37-Results!P37-Results!AE37-Results!AT37 -> 0 | N37: =SUM(I37:M37)*DATA!C73 -> 1537838.226 | U37: =SUM(P37:T37)*DATA!C73 -> 0 | AB37: =SUM(W37:AA37)*DATA!C73 -> 0 | AI37: =SUM(AD37:AH37)*DATA!C73 -> 0 | BD37: =SUM(AY37:BC37)*DATA!C73 -> 0 | BK37: =SUM(BF37:BJ37)*DATA!C73 -> 0 | BR37: =SUM(BM37:BQ37)*DATA!C73 -> 0
A38: =Results!A38 -> 2067 | B38: =Results!B38+Results!Q38+Results!AF38-Results!G38-Results!V38-Results!AK38 -> 1551957.846 | C38: =Results!C38+Results!R38+Results!AG38-Results!H38-Results!W38-Results!AL38 -> 0 | D38: =Results!D38+Results!S38+Results!AH38-Results!I38-Results!X38-Results!AM38 -> 0 | E38: =Results!E38+Results!T38+Results!AI38-Results!J38-Results!Y38-Results!AN38 -> 0 | F38: =Results!F38+Results!U38+Results!AJ38-Results!K38-Results!Z38-Results!AO38 -> 0 | G38: =SUM(B38:F38)*DATA!C73 -> 1551957.846 | I38: =Results!B38+Results!Q38+Results!AF38-Results!L38-Results!AA38-Results!AP38 -> 1551884.807 | J38: =Results!C38+Results!R38+Results!AG38-Results!M38-Results!AB38-Results!AQ38 -> 0 | K38: =Results!D38+Results!S38+Results!AH38-Results!N38-Results!AC38-Results!AR38 -> 0 | L38: =Results!E38+Results!T38+Results!AI38-Results!O38-Results!AD38-Results!AS38 -> 0 | M38: =Results!F38+Results!U38+Results!AJ38-Results!P38-Results!AE38-Results!AT38 -> 0 | N38: =SUM(I38:M38)*DATA!C73 -> 1551884.807 | U38: =SUM(P38:T38)*DATA!C73 -> 0 | AB38: =SUM(W38:AA38)*DATA!C73 -> 0 | AI38: =SUM(AD38:AH38)*DATA!C73 -> 0 | BD38: =SUM(AY38:BC38)*DATA!C73 -> 0 | BK38: =SUM(BF38:BJ38)*DATA!C73 -> 0 | BR38: =SUM(BM38:BQ38)*DATA!C73 -> 0
A39: =Results!A39 -> 2068 | B39: =Results!B39+Results!Q39+Results!AF39-Results!G39-Results!V39-Results!AK39 -> 1566041.027 | C39: =Results!C39+Results!R39+Results!AG39-Results!H39-Results!W39-Results!AL39 -> 0 | D39: =Results!D39+Results!S39+Results!AH39-Results!I39-Results!X39-Results!AM39 -> 0 | E39: =Results!E39+Results!T39+Results!AI39-Results!J39-Results!Y39-Results!AN39 -> 0 | F39: =Results!F39+Results!U39+Results!AJ39-Results!K39-Results!Z39-Results!AO39 -> 0 | G39: =SUM(B39:F39)*DATA!C73 -> 1566041.027 | I39: =Results!B39+Results!Q39+Results!AF39-Results!L39-Results!AA39-Results!AP39 -> 1565950.227 | J39: =Results!C39+Results!R39+Results!AG39-Results!M39-Results!AB39-Results!AQ39 -> 0 | K39: =Results!D39+Results!S39+Results!AH39-Results!N39-Results!AC39-Results!AR39 -> 0 | L39: =Results!E39+Results!T39+Results!AI39-Results!O39-Results!AD39-Results!AS39 -> 0 | M39: =Results!F39+Results!U39+Results!AJ39-Results!P39-Results!AE39-Results!AT39 -> 0 | N39: =SUM(I39:M39)*DATA!C73 -> 1565950.227 | U39: =SUM(P39:T39)*DATA!C73 -> 0 | AB39: =SUM(W39:AA39)*DATA!C73 -> 0 | AI39: =SUM(AD39:AH39)*DATA!C73 -> 0 | BD39: =SUM(AY39:BC39)*DATA!C73 -> 0 | BK39: =SUM(BF39:BJ39)*DATA!C73 -> 0 | BR39: =SUM(BM39:BQ39)*DATA!C73 -> 0
A40: =Results!A40 -> 2069 | B40: =Results!B40+Results!Q40+Results!AF40-Results!G40-Results!V40-Results!AK40 -> 1580474.643 | C40: =Results!C40+Results!R40+Results!AG40-Results!H40-Results!W40-Results!AL40 -> 0 | D40: =Results!D40+Results!S40+Results!AH40-Results!I40-Results!X40-Results!AM40 -> 0 | E40: =Results!E40+Results!T40+Results!AI40-Results!J40-Results!Y40-Results!AN40 -> 0 | F40: =Results!F40+Results!U40+Results!AJ40-Results!K40-Results!Z40-Results!AO40 -> 0 | G40: =SUM(B40:F40)*DATA!C73 -> 1580474.643 | I40: =Results!B40+Results!Q40+Results!AF40-Results!L40-Results!AA40-Results!AP40 -> 1580362.928 | J40: =Results!C40+Results!R40+Results!AG40-Results!M40-Results!AB40-Results!AQ40 -> 0 | K40: =Results!D40+Results!S40+Results!AH40-Results!N40-Results!AC40-Results!AR40 -> 0 | L40: =Results!E40+Results!T40+Results!AI40-Results!O40-Results!AD40-Results!AS40 -> 0 | M40: =Results!F40+Results!U40+Results!AJ40-Results!P40-Results!AE40-Results!AT40 -> 0 | N40: =SUM(I40:M40)*DATA!C73 -> 1580362.928 | U40: =SUM(P40:T40)*DATA!C73 -> 0 | AB40: =SUM(W40:AA40)*DATA!C73 -> 0 | AI40: =SUM(AD40:AH40)*DATA!C73 -> 0 | BD40: =SUM(AY40:BC40)*DATA!C73 -> 0 | BK40: =SUM(BF40:BJ40)*DATA!C73 -> 0 | BR40: =SUM(BM40:BQ40)*DATA!C73 -> 0
A41: =Results!A41 -> 2070 | B41: =Results!B41+Results!Q41+Results!AF41-Results!G41-Results!V41-Results!AK41 -> 1594772.661 | C41: =Results!C41+Results!R41+Results!AG41-Results!H41-Results!W41-Results!AL41 -> 0 | D41: =Results!D41+Results!S41+Results!AH41-Results!I41-Results!X41-Results!AM41 -> 0 | E41: =Results!E41+Results!T41+Results!AI41-Results!J41-Results!Y41-Results!AN41 -> 0 | F41: =Results!F41+Results!U41+Results!AJ41-Results!K41-Results!Z41-Results!AO41 -> 0 | G41: =SUM(B41:F41)*DATA!C73 -> 1594772.661 | I41: =Results!B41+Results!Q41+Results!AF41-Results!L41-Results!AA41-Results!AP41 -> 1594637.924 | J41: =Results!C41+Results!R41+Results!AG41-Results!M41-Results!AB41-Results!AQ41 -> 0 | K41: =Results!D41+Results!S41+Results!AH41-Results!N41-Results!AC41-Results!AR41 -> 0 | L41: =Results!E41+Results!T41+Results!AI41-Results!O41-Results!AD41-Results!AS41 -> 0 | M41: =Results!F41+Results!U41+Results!AJ41-Results!P41-Results!AE41-Results!AT41 -> 0 | N41: =SUM(I41:M41)*DATA!C73 -> 1594637.924 | U41: =SUM(P41:T41)*DATA!C73 -> 0 | AB41: =SUM(W41:AA41)*DATA!C73 -> 0 | AI41: =SUM(AD41:AH41)*DATA!C73 -> 0 | BD41: =SUM(AY41:BC41)*DATA!C73 -> 0 | BK41: =SUM(BF41:BJ41)*DATA!C73 -> 0 | BR41: =SUM(BM41:BQ41)*DATA!C73 -> 0
A42: =Results!A42 -> 2071 | B42: =Results!B42+Results!Q42+Results!AF42-Results!G42-Results!V42-Results!AK42 -> 1609438.741 | C42: =Results!C42+Results!R42+Results!AG42-Results!H42-Results!W42-Results!AL42 -> 0 | D42: =Results!D42+Results!S42+Results!AH42-Results!I42-Results!X42-Results!AM42 -> 0 | E42: =Results!E42+Results!T42+Results!AI42-Results!J42-Results!Y42-Results!AN42 -> 0 | F42: =Results!F42+Results!U42+Results!AJ42-Results!K42-Results!Z42-Results!AO42 -> 0 | G42: =SUM(B42:F42)*DATA!C73 -> 1609438.741 | I42: =Results!B42+Results!Q42+Results!AF42-Results!L42-Results!AA42-Results!AP42 -> 1609271.007 | J42: =Results!C42+Results!R42+Results!AG42-Results!M42-Results!AB42-Results!AQ42 -> 0 | K42: =Results!D42+Results!S42+Results!AH42-Results!N42-Results!AC42-Results!AR42 -> 0 | L42: =Results!E42+Results!T42+Results!AI42-Results!O42-Results!AD42-Results!AS42 -> 0 | M42: =Results!F42+Results!U42+Results!AJ42-Results!P42-Results!AE42-Results!AT42 -> 0 | N42: =SUM(I42:M42)*DATA!C73 -> 1609271.007 | U42: =SUM(P42:T42)*DATA!C73 -> 0 | AB42: =SUM(W42:AA42)*DATA!C73 -> 0 | AI42: =SUM(AD42:AH42)*DATA!C73 -> 0 | BD42: =SUM(AY42:BC42)*DATA!C73 -> 0 | BK42: =SUM(BF42:BJ42)*DATA!C73 -> 0 | BR42: =SUM(BM42:BQ42)*DATA!C73 -> 0
A43: =Results!A43 -> 2072 | B43: =Results!B43+Results!Q43+Results!AF43-Results!G43-Results!V43-Results!AK43 -> 1624547.655 | C43: =Results!C43+Results!R43+Results!AG43-Results!H43-Results!W43-Results!AL43 -> 0 | D43: =Results!D43+Results!S43+Results!AH43-Results!I43-Results!X43-Results!AM43 -> 0 | E43: =Results!E43+Results!T43+Results!AI43-Results!J43-Results!Y43-Results!AN43 -> 0 | F43: =Results!F43+Results!U43+Results!AJ43-Results!K43-Results!Z43-Results!AO43 -> 0 | G43: =SUM(B43:F43)*DATA!C73 -> 1624547.655 | I43: =Results!B43+Results!Q43+Results!AF43-Results!L43-Results!AA43-Results!AP43 -> 1624343.417 | J43: =Results!C43+Results!R43+Results!AG43-Results!M43-Results!AB43-Results!AQ43 -> 0 | K43: =Results!D43+Results!S43+Results!AH43-Results!N43-Results!AC43-Results!AR43 -> 0 | L43: =Results!E43+Results!T43+Results!AI43-Results!O43-Results!AD43-Results!AS43 -> 0 | M43: =Results!F43+Results!U43+Results!AJ43-Results!P43-Results!AE43-Results!AT43 -> 0 | N43: =SUM(I43:M43)*DATA!C73 -> 1624343.417 | U43: =SUM(P43:T43)*DATA!C73 -> 0 | AB43: =SUM(W43:AA43)*DATA!C73 -> 0 | AI43: =SUM(AD43:AH43)*DATA!C73 -> 0 | BD43: =SUM(AY43:BC43)*DATA!C73 -> 0 | BK43: =SUM(BF43:BJ43)*DATA!C73 -> 0 | BR43: =SUM(BM43:BQ43)*DATA!C73 -> 0
A44: =Results!A44 -> 2073 | B44: =Results!B44+Results!Q44+Results!AF44-Results!G44-Results!V44-Results!AK44 -> 1638825.607 | C44: =Results!C44+Results!R44+Results!AG44-Results!H44-Results!W44-Results!AL44 -> 0 | D44: =Results!D44+Results!S44+Results!AH44-Results!I44-Results!X44-Results!AM44 -> 0 | E44: =Results!E44+Results!T44+Results!AI44-Results!J44-Results!Y44-Results!AN44 -> 0 | F44: =Results!F44+Results!U44+Results!AJ44-Results!K44-Results!Z44-Results!AO44 -> 0 | G44: =SUM(B44:F44)*DATA!C73 -> 1638825.607 | I44: =Results!B44+Results!Q44+Results!AF44-Results!L44-Results!AA44-Results!AP44 -> 1638576.96 | J44: =Results!C44+Results!R44+Results!AG44-Results!M44-Results!AB44-Results!AQ44 -> 0 | K44: =Results!D44+Results!S44+Results!AH44-Results!N44-Results!AC44-Results!AR44 -> 0 | L44: =Results!E44+Results!T44+Results!AI44-Results!O44-Results!AD44-Results!AS44 -> 0 | M44: =Results!F44+Results!U44+Results!AJ44-Results!P44-Results!AE44-Results!AT44 -> 0 | N44: =SUM(I44:M44)*DATA!C73 -> 1638576.96 | U44: =SUM(P44:T44)*DATA!C73 -> 0 | AB44: =SUM(W44:AA44)*DATA!C73 -> 0 | AI44: =SUM(AD44:AH44)*DATA!C73 -> 0 | BD44: =SUM(AY44:BC44)*DATA!C73 -> 0 | BK44: =SUM(BF44:BJ44)*DATA!C73 -> 0 | BR44: =SUM(BM44:BQ44)*DATA!C73 -> 0
A45: =Results!A45 -> 2074 | B45: =Results!B45+Results!Q45+Results!AF45-Results!G45-Results!V45-Results!AK45 -> 1654110.95 | C45: =Results!C45+Results!R45+Results!AG45-Results!H45-Results!W45-Results!AL45 -> 0 | D45: =Results!D45+Results!S45+Results!AH45-Results!I45-Results!X45-Results!AM45 -> 0 | E45: =Results!E45+Results!T45+Results!AI45-Results!J45-Results!Y45-Results!AN45 -> 0 | F45: =Results!F45+Results!U45+Results!AJ45-Results!K45-Results!Z45-Results!AO45 -> 0 | G45: =SUM(B45:F45)*DATA!C73 -> 1654110.95 | I45: =Results!B45+Results!Q45+Results!AF45-Results!L45-Results!AA45-Results!AP45 -> 1653812.61 | J45: =Results!C45+Results!R45+Results!AG45-Results!M45-Results!AB45-Results!AQ45 -> 0 | K45: =Results!D45+Results!S45+Results!AH45-Results!N45-Results!AC45-Results!AR45 -> 0 | L45: =Results!E45+Results!T45+Results!AI45-Results!O45-Results!AD45-Results!AS45 -> 0 | M45: =Results!F45+Results!U45+Results!AJ45-Results!P45-Results!AE45-Results!AT45 -> 0 | N45: =SUM(I45:M45)*DATA!C73 -> 1653812.61 | U45: =SUM(P45:T45)*DATA!C73 -> 0 | AB45: =SUM(W45:AA45)*DATA!C73 -> 0 | AI45: =SUM(AD45:AH45)*DATA!C73 -> 0 | BD45: =SUM(AY45:BC45)*DATA!C73 -> 0 | BK45: =SUM(BF45:BJ45)*DATA!C73 -> 0 | BR45: =SUM(BM45:BQ45)*DATA!C73 -> 0
A46: =Results!A46 -> 2075 | B46: =Results!B46+Results!Q46+Results!AF46-Results!G46-Results!V46-Results!AK46 -> 1669411.284 | C46: =Results!C46+Results!R46+Results!AG46-Results!H46-Results!W46-Results!AL46 -> 0 | D46: =Results!D46+Results!S46+Results!AH46-Results!I46-Results!X46-Results!AM46 -> 0 | E46: =Results!E46+Results!T46+Results!AI46-Results!J46-Results!Y46-Results!AN46 -> 0 | F46: =Results!F46+Results!U46+Results!AJ46-Results!K46-Results!Z46-Results!AO46 -> 0 | G46: =SUM(B46:F46)*DATA!C73 -> 1669411.284 | I46: =Results!B46+Results!Q46+Results!AF46-Results!L46-Results!AA46-Results!AP46 -> 1669062.026 | J46: =Results!C46+Results!R46+Results!AG46-Results!M46-Results!AB46-Results!AQ46 -> 0 | K46: =Results!D46+Results!S46+Results!AH46-Results!N46-Results!AC46-Results!AR46 -> 0 | L46: =Results!E46+Results!T46+Results!AI46-Results!O46-Results!AD46-Results!AS46 -> 0 | M46: =Results!F46+Results!U46+Results!AJ46-Results!P46-Results!AE46-Results!AT46 -> 0 | N46: =SUM(I46:M46)*DATA!C73 -> 1669062.026 | U46: =SUM(P46:T46)*DATA!C73 -> 0 | AB46: =SUM(W46:AA46)*DATA!C73 -> 0 | AI46: =SUM(AD46:AH46)*DATA!C73 -> 0 | BD46: =SUM(AY46:BC46)*DATA!C73 -> 0 | BK46: =SUM(BF46:BJ46)*DATA!C73 -> 0 | BR46: =SUM(BM46:BQ46)*DATA!C73 -> 0
A47: =Results!A47 -> 2076 | B47: =Results!B47+Results!Q47+Results!AF47-Results!G47-Results!V47-Results!AK47 -> 1684375.734 | C47: =Results!C47+Results!R47+Results!AG47-Results!H47-Results!W47-Results!AL47 -> 0 | D47: =Results!D47+Results!S47+Results!AH47-Results!I47-Results!X47-Results!AM47 -> 0 | E47: =Results!E47+Results!T47+Results!AI47-Results!J47-Results!Y47-Results!AN47 -> 0 | F47: =Results!F47+Results!U47+Results!AJ47-Results!K47-Results!Z47-Results!AO47 -> 0 | G47: =SUM(B47:F47)*DATA!C73 -> 1684375.734 | I47: =Results!B47+Results!Q47+Results!AF47-Results!L47-Results!AA47-Results!AP47 -> 1683966.846 | J47: =Results!C47+Results!R47+Results!AG47-Results!M47-Results!AB47-Results!AQ47 -> 0 | K47: =Results!D47+Results!S47+Results!AH47-Results!N47-Results!AC47-Results!AR47 -> 0 | L47: =Results!E47+Results!T47+Results!AI47-Results!O47-Results!AD47-Results!AS47 -> 0 | M47: =Results!F47+Results!U47+Results!AJ47-Results!P47-Results!AE47-Results!AT47 -> 0 | N47: =SUM(I47:M47)*DATA!C73 -> 1683966.846 | U47: =SUM(P47:T47)*DATA!C73 -> 0 | AB47: =SUM(W47:AA47)*DATA!C73 -> 0 | AI47: =SUM(AD47:AH47)*DATA!C73 -> 0 | BD47: =SUM(AY47:BC47)*DATA!C73 -> 0 | BK47: =SUM(BF47:BJ47)*DATA!C73 -> 0 | BR47: =SUM(BM47:BQ47)*DATA!C73 -> 0
A48: =Results!A48 -> 2077 | B48: =Results!B48+Results!Q48+Results!AF48-Results!G48-Results!V48-Results!AK48 -> 1700065.646 | C48: =Results!C48+Results!R48+Results!AG48-Results!H48-Results!W48-Results!AL48 -> 0 | D48: =Results!D48+Results!S48+Results!AH48-Results!I48-Results!X48-Results!AM48 -> 0 | E48: =Results!E48+Results!T48+Results!AI48-Results!J48-Results!Y48-Results!AN48 -> 0 | F48: =Results!F48+Results!U48+Results!AJ48-Results!K48-Results!Z48-Results!AO48 -> 0 | G48: =SUM(B48:F48)*DATA!C73 -> 1700065.646 | I48: =Results!B48+Results!Q48+Results!AF48-Results!L48-Results!AA48-Results!AP48 -> 1699584.276 | J48: =Results!C48+Results!R48+Results!AG48-Results!M48-Results!AB48-Results!AQ48 -> 0 | K48: =Results!D48+Results!S48+Results!AH48-Results!N48-Results!AC48-Results!AR48 -> 0 | L48: =Results!E48+Results!T48+Results!AI48-Results!O48-Results!AD48-Results!AS48 -> 0 | M48: =Results!F48+Results!U48+Results!AJ48-Results!P48-Results!AE48-Results!AT48 -> 0 | N48: =SUM(I48:M48)*DATA!C73 -> 1699584.276 | U48: =SUM(P48:T48)*DATA!C73 -> 0 | AB48: =SUM(W48:AA48)*DATA!C73 -> 0 | AI48: =SUM(AD48:AH48)*DATA!C73 -> 0 | BD48: =SUM(AY48:BC48)*DATA!C73 -> 0 | BK48: =SUM(BF48:BJ48)*DATA!C73 -> 0 | BR48: =SUM(BM48:BQ48)*DATA!C73 -> 0
A49: =Results!A49 -> 2078 | B49: =Results!B49+Results!Q49+Results!AF49-Results!G49-Results!V49-Results!AK49 -> 1715203.307 | C49: =Results!C49+Results!R49+Results!AG49-Results!H49-Results!W49-Results!AL49 -> 0 | D49: =Results!D49+Results!S49+Results!AH49-Results!I49-Results!X49-Results!AM49 -> 0 | E49: =Results!E49+Results!T49+Results!AI49-Results!J49-Results!Y49-Results!AN49 -> 0 | F49: =Results!F49+Results!U49+Results!AJ49-Results!K49-Results!Z49-Results!AO49 -> 0 | G49: =SUM(B49:F49)*DATA!C73 -> 1715203.307 | I49: =Results!B49+Results!Q49+Results!AF49-Results!L49-Results!AA49-Results!AP49 -> 1714647.296 | J49: =Results!C49+Results!R49+Results!AG49-Results!M49-Results!AB49-Results!AQ49 -> 0 | K49: =Results!D49+Results!S49+Results!AH49-Results!N49-Results!AC49-Results!AR49 -> 0 | L49: =Results!E49+Results!T49+Results!AI49-Results!O49-Results!AD49-Results!AS49 -> 0 | M49: =Results!F49+Results!U49+Results!AJ49-Results!P49-Results!AE49-Results!AT49 -> 0 | N49: =SUM(I49:M49)*DATA!C73 -> 1714647.296 | U49: =SUM(P49:T49)*DATA!C73 -> 0 | AB49: =SUM(W49:AA49)*DATA!C73 -> 0 | AI49: =SUM(AD49:AH49)*DATA!C73 -> 0 | BD49: =SUM(AY49:BC49)*DATA!C73 -> 0 | BK49: =SUM(BF49:BJ49)*DATA!C73 -> 0 | BR49: =SUM(BM49:BQ49)*DATA!C73 -> 0
A50: =Results!A50 -> 2079 | B50: =Results!B50+Results!Q50+Results!AF50-Results!G50-Results!V50-Results!AK50 -> 1731594.384 | C50: =Results!C50+Results!R50+Results!AG50-Results!H50-Results!W50-Results!AL50 -> 0 | D50: =Results!D50+Results!S50+Results!AH50-Results!I50-Results!X50-Results!AM50 -> 0 | E50: =Results!E50+Results!T50+Results!AI50-Results!J50-Results!Y50-Results!AN50 -> 0 | F50: =Results!F50+Results!U50+Results!AJ50-Results!K50-Results!Z50-Results!AO50 -> 0 | G50: =SUM(B50:F50)*DATA!C73 -> 1731594.384 | I50: =Results!B50+Results!Q50+Results!AF50-Results!L50-Results!AA50-Results!AP50 -> 1730965.679 | J50: =Results!C50+Results!R50+Results!AG50-Results!M50-Results!AB50-Results!AQ50 -> 0 | K50: =Results!D50+Results!S50+Results!AH50-Results!N50-Results!AC50-Results!AR50 -> 0 | L50: =Results!E50+Results!T50+Results!AI50-Results!O50-Results!AD50-Results!AS50 -> 0 | M50: =Results!F50+Results!U50+Results!AJ50-Results!P50-Results!AE50-Results!AT50 -> 0 | N50: =SUM(I50:M50)*DATA!C73 -> 1730965.679 | U50: =SUM(P50:T50)*DATA!C73 -> 0 | AB50: =SUM(W50:AA50)*DATA!C73 -> 0 | AI50: =SUM(AD50:AH50)*DATA!C73 -> 0 | BD50: =SUM(AY50:BC50)*DATA!C73 -> 0 | BK50: =SUM(BF50:BJ50)*DATA!C73 -> 0 | BR50: =SUM(BM50:BQ50)*DATA!C73 -> 0
A51: =Results!A51 -> 2080 | B51: =Results!B51+Results!Q51+Results!AF51-Results!G51-Results!V51-Results!AK51 -> 1747133.661 | C51: =Results!C51+Results!R51+Results!AG51-Results!H51-Results!W51-Results!AL51 -> 0 | D51: =Results!D51+Results!S51+Results!AH51-Results!I51-Results!X51-Results!AM51 -> 0 | E51: =Results!E51+Results!T51+Results!AI51-Results!J51-Results!Y51-Results!AN51 -> 0 | F51: =Results!F51+Results!U51+Results!AJ51-Results!K51-Results!Z51-Results!AO51 -> 0 | G51: =SUM(B51:F51)*DATA!C73 -> 1747133.661 | I51: =Results!B51+Results!Q51+Results!AF51-Results!L51-Results!AA51-Results!AP51 -> 1746413.213 | J51: =Results!C51+Results!R51+Results!AG51-Results!M51-Results!AB51-Results!AQ51 -> 0 | K51: =Results!D51+Results!S51+Results!AH51-Results!N51-Results!AC51-Results!AR51 -> 0 | L51: =Results!E51+Results!T51+Results!AI51-Results!O51-Results!AD51-Results!AS51 -> 0 | M51: =Results!F51+Results!U51+Results!AJ51-Results!P51-Results!AE51-Results!AT51 -> 0 | N51: =SUM(I51:M51)*DATA!C73 -> 1746413.213 | U51: =SUM(P51:T51)*DATA!C73 -> 0 | AB51: =SUM(W51:AA51)*DATA!C73 -> 0 | AI51: =SUM(AD51:AH51)*DATA!C73 -> 0 | BD51: =SUM(AY51:BC51)*DATA!C73 -> 0 | BK51: =SUM(BF51:BJ51)*DATA!C73 -> 0 | BR51: =SUM(BM51:BQ51)*DATA!C73 -> 0
A52: =Results!A52 -> 2081 | B52: =Results!B52+Results!Q52+Results!AF52-Results!G52-Results!V52-Results!AK52 -> 1763452.808 | C52: =Results!C52+Results!R52+Results!AG52-Results!H52-Results!W52-Results!AL52 -> 0 | D52: =Results!D52+Results!S52+Results!AH52-Results!I52-Results!X52-Results!AM52 -> 0 | E52: =Results!E52+Results!T52+Results!AI52-Results!J52-Results!Y52-Results!AN52 -> 0 | F52: =Results!F52+Results!U52+Results!AJ52-Results!K52-Results!Z52-Results!AO52 -> 0 | G52: =SUM(B52:F52)*DATA!C73 -> 1763452.808 | I52: =Results!B52+Results!Q52+Results!AF52-Results!L52-Results!AA52-Results!AP52 -> 1762621.774 | J52: =Results!C52+Results!R52+Results!AG52-Results!M52-Results!AB52-Results!AQ52 -> 0 | K52: =Results!D52+Results!S52+Results!AH52-Results!N52-Results!AC52-Results!AR52 -> 0 | L52: =Results!E52+Results!T52+Results!AI52-Results!O52-Results!AD52-Results!AS52 -> 0 | M52: =Results!F52+Results!U52+Results!AJ52-Results!P52-Results!AE52-Results!AT52 -> 0 | N52: =SUM(I52:M52)*DATA!C73 -> 1762621.774 | U52: =SUM(P52:T52)*DATA!C73 -> 0 | AB52: =SUM(W52:AA52)*DATA!C73 -> 0 | AI52: =SUM(AD52:AH52)*DATA!C73 -> 0 | BD52: =SUM(AY52:BC52)*DATA!C73 -> 0 | BK52: =SUM(BF52:BJ52)*DATA!C73 -> 0 | BR52: =SUM(BM52:BQ52)*DATA!C73 -> 0
A53: =Results!A53 -> 2082 | B53: =Results!B53+Results!Q53+Results!AF53-Results!G53-Results!V53-Results!AK53 -> 1779608.655 | C53: =Results!C53+Results!R53+Results!AG53-Results!H53-Results!W53-Results!AL53 -> 0 | D53: =Results!D53+Results!S53+Results!AH53-Results!I53-Results!X53-Results!AM53 -> 0 | E53: =Results!E53+Results!T53+Results!AI53-Results!J53-Results!Y53-Results!AN53 -> 0 | F53: =Results!F53+Results!U53+Results!AJ53-Results!K53-Results!Z53-Results!AO53 -> 0 | G53: =SUM(B53:F53)*DATA!C73 -> 1779608.655 | I53: =Results!B53+Results!Q53+Results!AF53-Results!L53-Results!AA53-Results!AP53 -> 1778666.065 | J53: =Results!C53+Results!R53+Results!AG53-Results!M53-Results!AB53-Results!AQ53 -> 0 | K53: =Results!D53+Results!S53+Results!AH53-Results!N53-Results!AC53-Results!AR53 -> 0 | L53: =Results!E53+Results!T53+Results!AI53-Results!O53-Results!AD53-Results!AS53 -> 0 | M53: =Results!F53+Results!U53+Results!AJ53-Results!P53-Results!AE53-Results!AT53 -> 0 | N53: =SUM(I53:M53)*DATA!C73 -> 1778666.065 | U53: =SUM(P53:T53)*DATA!C73 -> 0 | AB53: =SUM(W53:AA53)*DATA!C73 -> 0 | AI53: =SUM(AD53:AH53)*DATA!C73 -> 0 | BD53: =SUM(AY53:BC53)*DATA!C73 -> 0 | BK53: =SUM(BF53:BJ53)*DATA!C73 -> 0 | BR53: =SUM(BM53:BQ53)*DATA!C73 -> 0
A54: =Results!A54 -> 2083 | B54: =Results!B54+Results!Q54+Results!AF54-Results!G54-Results!V54-Results!AK54 -> 1796698.111 | C54: =Results!C54+Results!R54+Results!AG54-Results!H54-Results!W54-Results!AL54 -> 0 | D54: =Results!D54+Results!S54+Results!AH54-Results!I54-Results!X54-Results!AM54 -> 0 | E54: =Results!E54+Results!T54+Results!AI54-Results!J54-Results!Y54-Results!AN54 -> 0 | F54: =Results!F54+Results!U54+Results!AJ54-Results!K54-Results!Z54-Results!AO54 -> 0 | G54: =SUM(B54:F54)*DATA!C73 -> 1796698.111 | I54: =Results!B54+Results!Q54+Results!AF54-Results!L54-Results!AA54-Results!AP54 -> 1795628.179 | J54: =Results!C54+Results!R54+Results!AG54-Results!M54-Results!AB54-Results!AQ54 -> 0 | K54: =Results!D54+Results!S54+Results!AH54-Results!N54-Results!AC54-Results!AR54 -> 0 | L54: =Results!E54+Results!T54+Results!AI54-Results!O54-Results!AD54-Results!AS54 -> 0 | M54: =Results!F54+Results!U54+Results!AJ54-Results!P54-Results!AE54-Results!AT54 -> 0 | N54: =SUM(I54:M54)*DATA!C73 -> 1795628.179 | U54: =SUM(P54:T54)*DATA!C73 -> 0 | AB54: =SUM(W54:AA54)*DATA!C73 -> 0 | AI54: =SUM(AD54:AH54)*DATA!C73 -> 0 | BD54: =SUM(AY54:BC54)*DATA!C73 -> 0 | BK54: =SUM(BF54:BJ54)*DATA!C73 -> 0 | BR54: =SUM(BM54:BQ54)*DATA!C73 -> 0
A55: =Results!A55 -> 2084 | B55: =Results!B55+Results!Q55+Results!AF55-Results!G55-Results!V55-Results!AK55 -> 1812698.281 | C55: =Results!C55+Results!R55+Results!AG55-Results!H55-Results!W55-Results!AL55 -> 0 | D55: =Results!D55+Results!S55+Results!AH55-Results!I55-Results!X55-Results!AM55 -> 0 | E55: =Results!E55+Results!T55+Results!AI55-Results!J55-Results!Y55-Results!AN55 -> 0 | F55: =Results!F55+Results!U55+Results!AJ55-Results!K55-Results!Z55-Results!AO55 -> 0 | G55: =SUM(B55:F55)*DATA!C73 -> 1812698.281 | I55: =Results!B55+Results!Q55+Results!AF55-Results!L55-Results!AA55-Results!AP55 -> 1811490.052 | J55: =Results!C55+Results!R55+Results!AG55-Results!M55-Results!AB55-Results!AQ55 -> 0 | K55: =Results!D55+Results!S55+Results!AH55-Results!N55-Results!AC55-Results!AR55 -> 0 | L55: =Results!E55+Results!T55+Results!AI55-Results!O55-Results!AD55-Results!AS55 -> 0 | M55: =Results!F55+Results!U55+Results!AJ55-Results!P55-Results!AE55-Results!AT55 -> 0 | N55: =SUM(I55:M55)*DATA!C73 -> 1811490.052 | U55: =SUM(P55:T55)*DATA!C73 -> 0 | AB55: =SUM(W55:AA55)*DATA!C73 -> 0 | AI55: =SUM(AD55:AH55)*DATA!C73 -> 0 | BD55: =SUM(AY55:BC55)*DATA!C73 -> 0 | BK55: =SUM(BF55:BJ55)*DATA!C73 -> 0 | BR55: =SUM(BM55:BQ55)*DATA!C73 -> 0
A56: =Results!A56 -> 2085 | B56: =Results!B56+Results!Q56+Results!AF56-Results!G56-Results!V56-Results!AK56 -> 1829256.52 | C56: =Results!C56+Results!R56+Results!AG56-Results!H56-Results!W56-Results!AL56 -> 0 | D56: =Results!D56+Results!S56+Results!AH56-Results!I56-Results!X56-Results!AM56 -> 0 | E56: =Results!E56+Results!T56+Results!AI56-Results!J56-Results!Y56-Results!AN56 -> 0 | F56: =Results!F56+Results!U56+Results!AJ56-Results!K56-Results!Z56-Results!AO56 -> 0 | G56: =SUM(B56:F56)*DATA!C73 -> 1829256.52 | I56: =Results!B56+Results!Q56+Results!AF56-Results!L56-Results!AA56-Results!AP56 -> 1827895.25 | J56: =Results!C56+Results!R56+Results!AG56-Results!M56-Results!AB56-Results!AQ56 -> 0 | K56: =Results!D56+Results!S56+Results!AH56-Results!N56-Results!AC56-Results!AR56 -> 0 | L56: =Results!E56+Results!T56+Results!AI56-Results!O56-Results!AD56-Results!AS56 -> 0 | M56: =Results!F56+Results!U56+Results!AJ56-Results!P56-Results!AE56-Results!AT56 -> 0 | N56: =SUM(I56:M56)*DATA!C73 -> 1827895.25 | U56: =SUM(P56:T56)*DATA!C73 -> 0 | AB56: =SUM(W56:AA56)*DATA!C73 -> 0 | AI56: =SUM(AD56:AH56)*DATA!C73 -> 0 | BD56: =SUM(AY56:BC56)*DATA!C73 -> 0 | BK56: =SUM(BF56:BJ56)*DATA!C73 -> 0 | BR56: =SUM(BM56:BQ56)*DATA!C73 -> 0
A57: =Results!A57 -> 2086 | B57: =Results!B57+Results!Q57+Results!AF57-Results!G57-Results!V57-Results!AK57 -> 1845698.801 | C57: =Results!C57+Results!R57+Results!AG57-Results!H57-Results!W57-Results!AL57 -> 0 | D57: =Results!D57+Results!S57+Results!AH57-Results!I57-Results!X57-Results!AM57 -> 0 | E57: =Results!E57+Results!T57+Results!AI57-Results!J57-Results!Y57-Results!AN57 -> 0 | F57: =Results!F57+Results!U57+Results!AJ57-Results!K57-Results!Z57-Results!AO57 -> 0 | G57: =SUM(B57:F57)*DATA!C73 -> 1845698.801 | I57: =Results!B57+Results!Q57+Results!AF57-Results!L57-Results!AA57-Results!AP57 -> 1844168.99 | J57: =Results!C57+Results!R57+Results!AG57-Results!M57-Results!AB57-Results!AQ57 -> 0 | K57: =Results!D57+Results!S57+Results!AH57-Results!N57-Results!AC57-Results!AR57 -> 0 | L57: =Results!E57+Results!T57+Results!AI57-Results!O57-Results!AD57-Results!AS57 -> 0 | M57: =Results!F57+Results!U57+Results!AJ57-Results!P57-Results!AE57-Results!AT57 -> 0 | N57: =SUM(I57:M57)*DATA!C73 -> 1844168.99 | U57: =SUM(P57:T57)*DATA!C73 -> 0 | AB57: =SUM(W57:AA57)*DATA!C73 -> 0 | AI57: =SUM(AD57:AH57)*DATA!C73 -> 0 | BD57: =SUM(AY57:BC57)*DATA!C73 -> 0 | BK57: =SUM(BF57:BJ57)*DATA!C73 -> 0 | BR57: =SUM(BM57:BQ57)*DATA!C73 -> 0
A58: =Results!A58 -> 2087 | B58: =Results!B58+Results!Q58+Results!AF58-Results!G58-Results!V58-Results!AK58 -> 1863876.542 | C58: =Results!C58+Results!R58+Results!AG58-Results!H58-Results!W58-Results!AL58 -> 0 | D58: =Results!D58+Results!S58+Results!AH58-Results!I58-Results!X58-Results!AM58 -> 0 | E58: =Results!E58+Results!T58+Results!AI58-Results!J58-Results!Y58-Results!AN58 -> 0 | F58: =Results!F58+Results!U58+Results!AJ58-Results!K58-Results!Z58-Results!AO58 -> 0 | G58: =SUM(B58:F58)*DATA!C73 -> 1863876.542 | I58: =Results!B58+Results!Q58+Results!AF58-Results!L58-Results!AA58-Results!AP58 -> 1862150.618 | J58: =Results!C58+Results!R58+Results!AG58-Results!M58-Results!AB58-Results!AQ58 -> 0 | K58: =Results!D58+Results!S58+Results!AH58-Results!N58-Results!AC58-Results!AR58 -> 0 | L58: =Results!E58+Results!T58+Results!AI58-Results!O58-Results!AD58-Results!AS58 -> 0 | M58: =Results!F58+Results!U58+Results!AJ58-Results!P58-Results!AE58-Results!AT58 -> 0 | N58: =SUM(I58:M58)*DATA!C73 -> 1862150.618 | U58: =SUM(P58:T58)*DATA!C73 -> 0 | AB58: =SUM(W58:AA58)*DATA!C73 -> 0 | AI58: =SUM(AD58:AH58)*DATA!C73 -> 0 | BD58: =SUM(AY58:BC58)*DATA!C73 -> 0 | BK58: =SUM(BF58:BJ58)*DATA!C73 -> 0 | BR58: =SUM(BM58:BQ58)*DATA!C73 -> 0
A59: =Results!A59 -> 2088 | B59: =Results!B59+Results!Q59+Results!AF59-Results!G59-Results!V59-Results!AK59 -> 1888602.96 | C59: =Results!C59+Results!R59+Results!AG59-Results!H59-Results!W59-Results!AL59 -> 0 | D59: =Results!D59+Results!S59+Results!AH59-Results!I59-Results!X59-Results!AM59 -> 0 | E59: =Results!E59+Results!T59+Results!AI59-Results!J59-Results!Y59-Results!AN59 -> 0 | F59: =Results!F59+Results!U59+Results!AJ59-Results!K59-Results!Z59-Results!AO59 -> 0 | G59: =SUM(B59:F59)*DATA!C73 -> 1888602.96 | I59: =Results!B59+Results!Q59+Results!AF59-Results!L59-Results!AA59-Results!AP59 -> 1886658.444 | J59: =Results!C59+Results!R59+Results!AG59-Results!M59-Results!AB59-Results!AQ59 -> 0 | K59: =Results!D59+Results!S59+Results!AH59-Results!N59-Results!AC59-Results!AR59 -> 0 | L59: =Results!E59+Results!T59+Results!AI59-Results!O59-Results!AD59-Results!AS59 -> 0 | M59: =Results!F59+Results!U59+Results!AJ59-Results!P59-Results!AE59-Results!AT59 -> 0 | N59: =SUM(I59:M59)*DATA!C73 -> 1886658.444 | U59: =SUM(P59:T59)*DATA!C73 -> 0 | AB59: =SUM(W59:AA59)*DATA!C73 -> 0 | AI59: =SUM(AD59:AH59)*DATA!C73 -> 0 | BD59: =SUM(AY59:BC59)*DATA!C73 -> 0 | BK59: =SUM(BF59:BJ59)*DATA!C73 -> 0 | BR59: =SUM(BM59:BQ59)*DATA!C73 -> 0
A60: =Results!A60 -> 2089 | B60: =Results!B60+Results!Q60+Results!AF60-Results!G60-Results!V60-Results!AK60 -> 1915280.772 | C60: =Results!C60+Results!R60+Results!AG60-Results!H60-Results!W60-Results!AL60 -> 0 | D60: =Results!D60+Results!S60+Results!AH60-Results!I60-Results!X60-Results!AM60 -> 0 | E60: =Results!E60+Results!T60+Results!AI60-Results!J60-Results!Y60-Results!AN60 -> 0 | F60: =Results!F60+Results!U60+Results!AJ60-Results!K60-Results!Z60-Results!AO60 -> 0 | G60: =SUM(B60:F60)*DATA!C73 -> 1915280.772 | I60: =Results!B60+Results!Q60+Results!AF60-Results!L60-Results!AA60-Results!AP60 -> 1913069.206 | J60: =Results!C60+Results!R60+Results!AG60-Results!M60-Results!AB60-Results!AQ60 -> 0 | K60: =Results!D60+Results!S60+Results!AH60-Results!N60-Results!AC60-Results!AR60 -> 0 | L60: =Results!E60+Results!T60+Results!AI60-Results!O60-Results!AD60-Results!AS60 -> 0 | M60: =Results!F60+Results!U60+Results!AJ60-Results!P60-Results!AE60-Results!AT60 -> 0 | N60: =SUM(I60:M60)*DATA!C73 -> 1913069.206 | U60: =SUM(P60:T60)*DATA!C73 -> 0 | AB60: =SUM(W60:AA60)*DATA!C73 -> 0 | AI60: =SUM(AD60:AH60)*DATA!C73 -> 0 | BD60: =SUM(AY60:BC60)*DATA!C73 -> 0 | BK60: =SUM(BF60:BJ60)*DATA!C73 -> 0 | BR60: =SUM(BM60:BQ60)*DATA!C73 -> 0
A61: =Results!A61 -> 2090 | B61: =Results!B61+Results!Q61+Results!AF61-Results!G61-Results!V61-Results!AK61 -> 1942671.889 | C61: =Results!C61+Results!R61+Results!AG61-Results!H61-Results!W61-Results!AL61 -> 0 | D61: =Results!D61+Results!S61+Results!AH61-Results!I61-Results!X61-Results!AM61 -> 0 | E61: =Results!E61+Results!T61+Results!AI61-Results!J61-Results!Y61-Results!AN61 -> 0 | F61: =Results!F61+Results!U61+Results!AJ61-Results!K61-Results!Z61-Results!AO61 -> 0 | G61: =SUM(B61:F61)*DATA!C73 -> 1942671.889 | I61: =Results!B61+Results!Q61+Results!AF61-Results!L61-Results!AA61-Results!AP61 -> 1940185.261 | J61: =Results!C61+Results!R61+Results!AG61-Results!M61-Results!AB61-Results!AQ61 -> 0 | K61: =Results!D61+Results!S61+Results!AH61-Results!N61-Results!AC61-Results!AR61 -> 0 | L61: =Results!E61+Results!T61+Results!AI61-Results!O61-Results!AD61-Results!AS61 -> 0 | M61: =Results!F61+Results!U61+Results!AJ61-Results!P61-Results!AE61-Results!AT61 -> 0 | N61: =SUM(I61:M61)*DATA!C73 -> 1940185.261 | U61: =SUM(P61:T61)*DATA!C73 -> 0 | AB61: =SUM(W61:AA61)*DATA!C73 -> 0 | AI61: =SUM(AD61:AH61)*DATA!C73 -> 0 | BD61: =SUM(AY61:BC61)*DATA!C73 -> 0 | BK61: =SUM(BF61:BJ61)*DATA!C73 -> 0 | BR61: =SUM(BM61:BQ61)*DATA!C73 -> 0
A62: =Results!A62 -> 2091 | B62: =Results!B62+Results!Q62+Results!AF62-Results!G62-Results!V62-Results!AK62 -> 1969190.083 | C62: =Results!C62+Results!R62+Results!AG62-Results!H62-Results!W62-Results!AL62 -> 0 | D62: =Results!D62+Results!S62+Results!AH62-Results!I62-Results!X62-Results!AM62 -> 0 | E62: =Results!E62+Results!T62+Results!AI62-Results!J62-Results!Y62-Results!AN62 -> 0 | F62: =Results!F62+Results!U62+Results!AJ62-Results!K62-Results!Z62-Results!AO62 -> 0 | G62: =SUM(B62:F62)*DATA!C73 -> 1969190.083 | I62: =Results!B62+Results!Q62+Results!AF62-Results!L62-Results!AA62-Results!AP62 -> 1966376.771 | J62: =Results!C62+Results!R62+Results!AG62-Results!M62-Results!AB62-Results!AQ62 -> 0 | K62: =Results!D62+Results!S62+Results!AH62-Results!N62-Results!AC62-Results!AR62 -> 0 | L62: =Results!E62+Results!T62+Results!AI62-Results!O62-Results!AD62-Results!AS62 -> 0 | M62: =Results!F62+Results!U62+Results!AJ62-Results!P62-Results!AE62-Results!AT62 -> 0 | N62: =SUM(I62:M62)*DATA!C73 -> 1966376.771 | U62: =SUM(P62:T62)*DATA!C73 -> 0 | AB62: =SUM(W62:AA62)*DATA!C73 -> 0 | AI62: =SUM(AD62:AH62)*DATA!C73 -> 0 | BD62: =SUM(AY62:BC62)*DATA!C73 -> 0 | BK62: =SUM(BF62:BJ62)*DATA!C73 -> 0 | BR62: =SUM(BM62:BQ62)*DATA!C73 -> 0
A63: =Results!A63 -> 2092 | B63: =Results!B63+Results!Q63+Results!AF63-Results!G63-Results!V63-Results!AK63 -> 1998037.673 | C63: =Results!C63+Results!R63+Results!AG63-Results!H63-Results!W63-Results!AL63 -> 0 | D63: =Results!D63+Results!S63+Results!AH63-Results!I63-Results!X63-Results!AM63 -> 0 | E63: =Results!E63+Results!T63+Results!AI63-Results!J63-Results!Y63-Results!AN63 -> 0 | F63: =Results!F63+Results!U63+Results!AJ63-Results!K63-Results!Z63-Results!AO63 -> 0 | G63: =SUM(B63:F63)*DATA!C73 -> 1998037.673 | I63: =Results!B63+Results!Q63+Results!AF63-Results!L63-Results!AA63-Results!AP63 -> 1994857.822 | J63: =Results!C63+Results!R63+Results!AG63-Results!M63-Results!AB63-Results!AQ63 -> 0 | K63: =Results!D63+Results!S63+Results!AH63-Results!N63-Results!AC63-Results!AR63 -> 0 | L63: =Results!E63+Results!T63+Results!AI63-Results!O63-Results!AD63-Results!AS63 -> 0 | M63: =Results!F63+Results!U63+Results!AJ63-Results!P63-Results!AE63-Results!AT63 -> 0 | N63: =SUM(I63:M63)*DATA!C73 -> 1994857.822 | U63: =SUM(P63:T63)*DATA!C73 -> 0 | AB63: =SUM(W63:AA63)*DATA!C73 -> 0 | AI63: =SUM(AD63:AH63)*DATA!C73 -> 0 | BD63: =SUM(AY63:BC63)*DATA!C73 -> 0 | BK63: =SUM(BF63:BJ63)*DATA!C73 -> 0 | BR63: =SUM(BM63:BQ63)*DATA!C73 -> 0

Sheet Results
B1: F497 OOS-CF | G1: F497 OOS-01 | L1: F497 OOS-02 | Q1: F305 OOS-CF | V1: F305 OOS-01 | AA1: F305 OOS-02 | AF1: F3250 OOS-CF | AK1: F3250 OOS-01 | AP1: F3250 OOS-02
A2: Date | B2: VCR at $39.11/kWh | C2: CECV | D2: Emergency Replacement Cost ($) | E2: Safety Risk ($) | F2: Environmental Risk ($) | G2: VCR at $39.11/kWh | H2: CECV | I2: Emergency Replacement Cost ($) | J2: Safety Risk ($) | K2: Environmental Risk ($) | L2: VCR at $39.11/kWh | M2: CECV | N2: Emergency Replacement Cost ($) | O2: Safety Risk ($) | P2: Environmental Risk ($) | Q2: VCR at $39.11/kWh | R2: CECV | S2: Emergency Replacement Cost ($) | T2: Safety Risk ($) | U2: Environmental Risk ($) | V2: VCR at $39.11/kWh | W2: CECV | X2: Emergency Replacement Cost ($) | Y2: Safety Risk ($) | Z2: Environmental Risk ($) | AA2: VCR at $39.11/kWh | AB2: CECV | AC2: Emergency Replacement Cost ($) | AD2: Safety Risk ($) | AE2: Environmental Risk ($) | AF2: VCR at $39.11/kWh | AG2: CECV | AH2: Emergency Replacement Cost ($) | AI2: Safety Risk ($) | AJ2: Environmental Risk ($) | AK2: VCR at $39.11/kWh | AL2: CECV | AM2: Emergency Replacement Cost ($) | AN2: Safety Risk ($) | AO2: Environmental Risk ($) | AP2: VCR at $39.11/kWh | AQ2: CECV | AR2: Emergency Replacement Cost ($) | AS2: Safety Risk ($) | AT2: Environmental Risk ($)
A3: =Results_0!B4 -> 2032 | B3: 594217.6879 | C3: 0 | D3: 0 | E3: 0 | F3: 0 | G3: 0 | H3: 0 | I3: 0 | J3: 0 | K3: 0 | L3: 0 | M3: 0 | N3: 0 | O3: 0 | P3: 0 | Q3: 7619.102604 | R3: 0 | S3: 0 | T3: 0 | U3: 0 | V3: 0.05158395033 | W3: 0 | X3: 0 | Y3: 0 | Z3: 0 | AA3: 0 | AB3: 0 | AC3: 0 | AD3: 0 | AE3: 0 | AF3: 516413.6705 | AG3: 0 | AH3: 0 | AI3: 0 | AJ3: 0 | AK3: 0 | AL3: 0 | AM3: 0 | AN3: 0 | AO3: 0 | AP3: 0 | AQ3: 0 | AR3: 0 | AS3: 0 | AT3: 0
A4: =Results_0!B5 -> 2033 | B4: 605321.1616 | C4: 0 | D4: 0 | E4: 0 | F4: 0 | G4: 0 | H4: 0 | I4: 0 | J4: 0 | K4: 0 | L4: 0 | M4: 0 | N4: 0 | O4: 0 | P4: 0 | Q4: 7639.524646 | R4: 0 | S4: 0 | T4: 0 | U4: 0 | V4: 0.05297326717 | W4: 0 | X4: 0 | Y4: 0 | Z4: 0 | AA4: 0 | AB4: 0 | AC4: 0 | AD4: 0 | AE4: 0 | AF4: 522166.0776 | AG4: 0 | AH4: 0 | AI4: 0 | AJ4: 0 | AK4: 0 | AL4: 0 | AM4: 0 | AN4: 0 | AO4: 0 | AP4: 0 | AQ4: 0 | AR4: 0 | AS4: 0 | AT4: 0
A5: =Results_0!B6 -> 2034 | B5: 610426.5689 | C5: 0 | D5: 0 | E5: 0 | F5: 0 | G5: 0 | H5: 0 | I5: 0 | J5: 0 | K5: 0 | L5: 0 | M5: 0 | N5: 0 | O5: 0 | P5: 0 | Q5: 7659.947946 | R5: 0 | S5: 0 | T5: 0 | U5: 0 | V5: 0.05300511164 | W5: 0 | X5: 0 | Y5: 0 | Z5: 0 | AA5: 0 | AB5: 0 | AC5: 0 | AD5: 0 | AE5: 0 | AF5: 527923.3975 | AG5: 0 | AH5: 0 | AI5: 0 | AJ5: 0 | AK5: 0 | AL5: 0 | AM5: 0 | AN5: 0 | AO5: 0 | AP5: 0 | AQ5: 0 | AR5: 0 | AS5: 0 | AT5: 0
A6: =Results_0!B7 -> 2035 | B6: 615639.6647 | C6: 0 | D6: 0 | E6: 0 | F6: 0 | G6: 0 | H6: 0 | I6: 0 | J6: 0 | K6: 0 | L6: 0 | M6: 0 | N6: 0 | O6: 0 | P6: 0 | Q6: 7680.372967 | R6: 0 | S6: 0 | T6: 0 | U6: 0 | V6: 0.05439687805 | W6: 0 | X6: 0 | Y6: 0 | Z6: 0 | AA6: 0 | AB6: 0 | AC6: 0 | AD6: 0 | AE6: 0 | AF6: 533710.7908 | AG6: 0 | AH6: 0 | AI6: 0 | AJ6: 0 | AK6: 0 | AL6: 0 | AM6: 0 | AN6: 0 | AO6: 0 | AP6: 0 | AQ6: 0 | AR6: 0 | AS6: 0 | AT6: 0
A7: =Results_0!B8 -> 2036 | B7: 620871.431 | C7: 0 | D7: 0 | E7: 0 | F7: 0 | G7: 0 | H7: 0 | I7: 0 | J7: 0 | K7: 0 | L7: 0 | M7: 0 | N7: 0 | O7: 0 | P7: 0 | Q7: 7700.809987 | R7: 0 | S7: 0 | T7: 0 | U7: 0 | V7: 0.05442953904 | W7: 0 | X7: 0 | Y7: 0 | Z7: 0 | AA7: 0 | AB7: 0 | AC7: 0 | AD7: 0 | AE7: 0 | AF7: 539495.5536 | AG7: 0 | AH7: 0 | AI7: 0 | AJ7: 0 | AK7: 0 | AL7: 0 | AM7: 0 | AN7: 0 | AO7: 0 | AP7: 0 | AQ7: 0 | AR7: 0 | AS7: 0 | AT7: 0
A8: =Results_0!B9 -> 2037 | B8: 626125.2323 | C8: 0 | D8: 0 | E8: 0 | F8: 0 | G8: 0 | H8: 0 | I8: 0 | J8: 0 | K8: 0 | L8: 0 | M8: 0 | N8: 0 | O8: 0 | P8: 0 | Q8: 7721.279695 | R8: 0 | S8: 0 | T8: 0 | U8: 0 | V8: 0.05582375503 | W8: 0 | X8: 0 | Y8: 0 | Z8: 0 | AA8: 0 | AB8: 0 | AC8: 0 | AD8: 0 | AE8: 0 | AF8: 545300.5056 | AG8: 0 | AH8: 0 | AI8: 0 | AJ8: 0 | AK8: 0 | AL8: 0 | AM8: 0 | AN8: 0 | AO8: 0 | AP8: 0 | AQ8: 0 | AR8: 0 | AS8: 0 | AT8: 0
A9: =Results_0!B10 -> 2038 | B9: 631447.687 | C9: 0 | D9: 0 | E9: 0 | F9: 0 | G9: 0 | H9: 0 | I9: 0 | J9: 0 | K9: 0 | L9: 0 | M9: 0 | N9: 0 | O9: 0 | P9: 0 | Q9: 7741.751812 | R9: 0 | S9: 0 | T9: 0 | U9: 0 | V9: 0.05721960407 | W9: 0 | X9: 0 | Y9: 0 | Z9: 0 | AA9: 0 | AB9: 0 | AC9: 0 | AD9: 0 | AE9: 0 | AF9: 551121.6068 | AG9: 0 | AH9: 0 | AI9: 0 | AJ9: 0 | AK9: 0 | AL9: 0 | AM9: 0 | AN9: 0 | AO9: 0 | AP9: 0 | AQ9: 0 | AR9: 0 | AS9: 0 | AT9: 0
A10: =Results_0!B11 -> 2039 | B10: 636825.1063 | C10: 0 | D10: 0 | E10: 0 | F10: 0 | G10: 0 | H10: 0 | I10: 0 | J10: 0 | K10: 0 | L10: 0 | M10: 0 | N10: 0 | O10: 0 | P10: 0 | Q10: 7762.41184 | R10: 0 | S10: 0 | T10: 0 | U10: 0 | V10: 0.05725389811 | W10: 0 | X10: 0 | Y10: 0 | Z10: 0 | AA10: 0 | AB10: 0 | AC10: 0 | AD10: 0 | AE10: 0 | AF10: 556937.485 | AG10: 0 | AH10: 0 | AI10: 0 | AJ10: 0 | AK10: 0 | AL10: 0 | AM10: 0 | AN10: 0 | AO10: 0 | AP10: 0 | AQ10: 0 | AR10: 0 | AS10: 0 | AT10: 0
A11: =Results_0!B12 -> 2040 | B11: 642144.9091 | C11: 0 | D11: 0 | E11: 0 | F11: 0 | G11: 0 | H11: 0 | I11: 0 | J11: 0 | K11: 0 | L11: 0 | M11: 0 | N11: 0 | O11: 0 | P11: 0 | Q11: 7782.887841 | R11: 0 | S11: 0 | T11: 0 | U11: 0 | V11: 0.05865219672 | W11: 0 | X11: 0 | Y11: 0 | Z11: 0 | AA11: 0 | AB11: 0 | AC11: 0 | AD11: 0 | AE11: 0 | AF11: 562795.8684 | AG11: 0 | AH11: 0 | AI11: 0 | AJ11: 0 | AK11: 0 | AL11: 0 | AM11: 0 | AN11: 0 | AO11: 0 | AP11: 0 | AQ11: 0 | AR11: 0 | AS11: 0 | AT11: 0
A12: =Results_0!B13 -> 2041 | B12: 647687.4517 | C12: 0 | D12: 0 | E12: 0 | F12: 0 | G12: 0 | H12: 0 | I12: 0 | J12: 0 | K12: 0 | L12: 0 | M12: 0 | N12: 0 | O12: 0 | P12: 0 | Q12: 7803.376237 | R12: 0 | S12: 0 | T12: 0 | U12: 0 | V12: 0.07363209833 | W12: 0 | X12: 0 | Y12: 0 | Z12: 0 | AA12: 0 | AB12: 0 | AC12: 0 | AD12: 0 | AE12: 0 | AF12: 568646.8694 | AG12: 0 | AH12: 0 | AI12: 0 | AJ12: 0 | AK12: 0 | AL12: 0 | AM12: 0 | AN12: 0 | AO12: 0 | AP12: 0 | AQ12: 0 | AR12: 0 | AS12: 0 | AT12: 0
A13: =Results_0!B14 -> 2042 | B13: 653254.0264 | C13: 0 | D13: 0 | E13: 0 | F13: 0 | G13: 0 | H13: 0 | I13: 0 | J13: 0 | K13: 0 | L13: 0 | M13: 0 | N13: 0 | O13: 0 | P13: 0 | Q13: 7823.898082 | R13: 0 | S13: 0 | T13: 0 | U13: 0 | V13: 0.08999551945 | W13: 0 | X13: 0 | Y13: 0 | Z13: 0 | AA13: 0.003930868639 | AB13: 0 | AC13: 0 | AD13: 0 | AE13: 0 | AF13: 574518.1736 | AG13: 0 | AH13: 0 | AI13: 0 | AJ13: 0 | AK13: 0 | AL13: 0 | AM13: 0 | AN13: 0 | AO13: 0 | AP13: 0 | AQ13: 0 | AR13: 0 | AS13: 0 | AT13: 0
A14: =Results_0!B15 -> 2043 | B14: 658762.0089 | C14: 0 | D14: 0 | E14: 0 | F14: 0 | G14: 0 | H14: 0 | I14: 0 | J14: 0 | K14: 0 | L14: 0 | M14: 0 | N14: 0 | O14: 0 | P14: 0 | Q14: 7844.422653 | R14: 0 | S14: 0 | T14: 0 | U14: 0 | V14: 0.09004932843 | W14: 0 | X14: 0 | Y14: 0 | Z14: 0 | AA14: 0.01989005358 | AB14: 0 | AC14: 0 | AD14: 0 | AE14: 0 | AF14: 580410.918 | AG14: 0 | AH14: 0 | AI14: 0 | AJ14: 0 | AK14: 0 | AL14: 0 | AM14: 0 | AN14: 0 | AO14: 0 | AP14: 0 | AQ14: 0 | AR14: 0 | AS14: 0 | AT14: 0
A15: =Results_0!B16 -> 2044 | B15: 664497.8561 | C15: 0 | D15: 0 | E15: 0 | F15: 0 | G15: 0 | H15: 0 | I15: 0 | J15: 0 | K15: 0 | L15: 0 | M15: 0 | N15: 0 | O15: 0 | P15: 0 | Q15: 7864.959295 | R15: 0 | S15: 0 | T15: 0 | U15: 0 | V15: 0.106442022 | W15: 0 | X15: 0 | Y15: 0 | Z15: 0 | AA15: 0.03622637515 | AB15: 0 | AC15: 0 | AD15: 0 | AE15: 0 | AF15: 586330.0165 | AG15: 0 | AH15: 0 | AI15: 0 | AJ15: 0 | AK15: 0 | AL15: 0 | AM15: 0 | AN15: 0 | AO15: 0 | AP15: 0 | AQ15: 0 | AR15: 0 | AS15: 0 | AT15: 0
A16: =Results_0!B17 -> 2045 | B16: 670131.2481 | C16: 0 | D16: 0 | E16: 0 | F16: 0 | G16: 0 | H16: 0 | I16: 0 | J16: 0 | K16: 0 | L16: 0 | M16: 0 | N16: 0 | O16: 0 | P16: 0 | Q16: 7885.540219 | R16: 0 | S16: 0 | T16: 0 | U16: 0 | V16: 0.1078736756 | W16: 0 | X16: 0 | Y16: 0 | Z16: 0 | AA16: 0.05158240172 | AB16: 0 | AC16: 0 | AD16: 0 | AE16: 0 | AF16: 592276.5217 | AG16: 0 | AH16: 0 | AI16: 0 | AJ16: 0 | AK16: 0 | AL16: 0 | AM16: 0 | AN16: 0 | AO16: 0 | AP16: 0 | AQ16: 0 | AR16: 0 | AS16: 0 | AT16: 0
A17: =Results_0!B18 -> 2046 | B17: 675833.9061 | C17: 0 | D17: 0 | E17: 0 | F17: 0 | G17: 0 | H17: 0 | I17: 0 | J17: 0 | K17: 0 | L17: 0 | M17: 0 | N17: 0 | O17: 0 | P17: 0 | Q17: 7906.1552 | R17: 0 | S17: 0 | T17: 0 | U17: 0 | V17: 0.1229275544 | W17: 0 | X17: 0 | Y17: 0 | Z17: 0 | AA17: 0.1725357509 | AB17: 0 | AC17: 0 | AD17: 0 | AE17: 0 | AF17: 598243.6852 | AG17: 0 | AH17: 0 | AI17: 0 | AJ17: 0 | AK17: 0 | AL17: 0 | AM17: 0 | AN17: 0 | AO17: 0 | AP17: 0 | AQ17: 0 | AR17: 0 | AS17: 0 | AT17: 0
A18: =Results_0!B19 -> 2047 | B18: 681786.0798 | C18: 0 | D18: 0 | E18: 0 | F18: 0 | G18: 0 | H18: 0 | I18: 0 | J18: 0 | K18: 0 | L18: 0 | M18: 0 | N18: 0 | O18: 0 | P18: 0 | Q18: 7926.772762 | R18: 0 | S18: 0 | T18: 0 | U18: 0 | V18: 0.1243705985 | W18: 0 | X18: 0 | Y18: 0 | Z18: 0 | AA18: 0.3779087178 | AB18: 0 | AC18: 0 | AD18: 0 | AE18: 0 | AF18: 604195.9226 | AG18: 0 | AH18: 0 | AI18: 0 | AJ18: 0 | AK18: 0 | AL18: 0 | AM18: 0 | AN18: 0 | AO18: 0 | AP18: 0 | AQ18: 0 | AR18: 0 | AS18: 0 | AT18: 0
A19: =Results_0!B20 -> 2048 | B19: 687654.3035 | C19: 0 | D19: 0 | E19: 0 | F19: 0 | G19: 0 | H19: 0 | I19: 0 | J19: 0 | K19: 0 | L19: 0 | M19: 0 | N19: 0 | O19: 0 | P19: 0 | Q19: 7947.403504 | R19: 0 | S19: 0 | T19: 0 | U19: 0 | V19: 0.1394521166 | W19: 0 | X19: 0 | Y19: 0 | Z19: 0 | AA19: 0.5935026177 | AB19: 0 | AC19: 0 | AD19: 0 | AE19: 0 | AF19: 610223.7341 | AG19: 0 | AH19: 0 | AI19: 0 | AJ19: 0 | AK19: 0 | AL19: 0 | AM19: 0 | AN19: 0 | AO19: 0 | AP19: 0 | AQ19: 0 | AR19: 0 | AS19: 0 | AT19: 0
A20: =Results_0!B21 -> 2049 | B20: 693595.6253 | C20: 0 | D20: 0 | E20: 0 | F20: 0 | G20: 0 | H20: 0 | I20: 0 | J20: 0 | K20: 0 | L20: 0 | M20: 0 | N20: 0 | O20: 0 | P20: 0 | Q20: 7968.06876 | R20: 0 | S20: 0 | T20: 0 | U20: 0 | V20: 0.1559228699 | W20: 0 | X20: 0 | Y20: 0 | Z20: 0 | AA20: 0.8180857312 | AB20: 0 | AC20: 0 | AD20: 0 | AE20: 0 | AF20: 616227.4434 | AG20: 0 | AH20: 0 | AI20: 0 | AJ20: 0 | AK20: 0 | AL20: 0 | AM20: 0 | AN20: 0 | AO20: 0 | AP20: 0 | AQ20: 0 | AR20: 0 | AS20: 0 | AT20: 0
A21: =Results_0!B22 -> 2050 | B21: 699576.8043 | C21: 0 | D21: 0 | E21: 0 | F21: 0 | G21: 0 | H21: 0 | I21: 0 | J21: 0 | K21: 0 | L21: 0 | M21: 0 | N21: 0 | O21: 0 | P21: 0 | Q21: 7988.45983 | R21: 0 | S21: 0 | T21: 0 | U21: 0 | V21: 0.1560157088 | W21: 0 | X21: 0 | Y21: 0 | Z21: 0 | AA21: 1.027459255 | AB21: 0 | AC21: 0 | AD21: 0 | AE21: 0 | AF21: 622255.8601 | AG21: 0 | AH21: 0 | AI21: 0 | AJ21: 0 | AK21: 0 | AL21: 0 | AM21: 0 | AN21: 0 | AO21: 0 | AP21: 0 | AQ21: 0 | AR21: 0 | AS21: 0 | AT21: 0
A22: =Results_0!B23 -> 2051 | B22: 705723.8089 | C22: 0 | D22: 0 | E22: 0 | F22: 0 | G22: 0 | H22: 0 | I22: 0 | J22: 0 | K22: 0 | L22: 0 | M22: 0 | N22: 0 | O22: 0 | P22: 0 | Q22: 8009.129979 | R22: 0 | S22: 0 | T22: 0 | U22: 0 | V22: 0.1725157345 | W22: 0 | X22: 0 | Y22: 0 | Z22: 0 | AA22: 1.527350172 | AB22: 0 | AC22: 0 | AD22: 0 | AE22: 0 | AF22: 628309.9941 | AG22: 0 | AH22: 0 | AI22: 0 | AJ22: 0 | AK22: 0 | AL22: 0 | AM22: 0 | AN22: 0 | AO22: 0 | AP22: 0 | AQ22: 0 | AR22: 0 | AS22: 0 | AT22: 0
A23: =Results_0!B24 -> 2052 | B23: 711971.1312 | C23: 0 | D23: 0 | E23: 0 | F23: 0 | G23: 0 | H23: 0 | I23: 0 | J23: 0 | K23: 0 | L23: 0 | M23: 0 | N23: 0 | O23: 0 | P23: 0 | Q23: 8029.803511 | R23: 0 | S23: 0 | T23: 0 | U23: 0 | V23: 0.1739921337 | W23: 0 | X23: 0 | Y23: 0 | Z23: 0 | AA23: 2.065554194 | AB23: 0 | AC23: 0 | AD23: 0 | AE23: 0 | AF23: 634387.4805 | AG23: 0 | AH23: 0 | AI23: 0 | AJ23: 0 | AK23: 0 | AL23: 0 | AM23: 0 | AN23: 0 | AO23: 0 | AP23: 0 | AQ23: 0 | AR23: 0 | AS23: 0 | AT23: 0
A24: =Results_0!B25 -> 2053 | B24: 718239.6081 | C24: 0 | D24: 0 | E24: 0 | F24: 0 | G24: 0 | H24: 0 | I24: 0 | J24: 0 | K24: 0 | L24: 0 | M24: 0 | N24: 0 | O24: 0 | P24: 0 | Q24: 8050.479252 | R24: 0 | S24: 0 | T24: 0 | U24: 0 | V24: 0.189147629 | W24: 0 | X24: 0 | Y24: 0 | Z24: 0 | AA24: 2.630355586 | AB24: 0 | AC24: 0 | AD24: 0 | AE24: 0 | AF24: 640491.547 | AG24: 0 | AH24: 0 | AI24: 0 | AJ24: 0 | AK24: 0 | AL24: 0 | AM24: 0 | AN24: 0 | AO24: 0 | AP24: 0 | AQ24: 0 | AR24: 0 | AS24: 0 | AT24: 0
A25: =Results_0!B26 -> 2054 | B25: 724441.319 | C25: 0 | D25: 0 | E25: 0 | F25: 0 | G25: 0 | H25: 0 | I25: 0 | J25: 0 | K25: 0 | L25: 0 | M25: 0 | N25: 0 | O25: 0 | P25: 0 | Q25: 8071.157937 | R25: 0 | S25: 0 | T25: 0 | U25: 0 | V25: 0.205696442 | W25: 0 | X25: 0 | Y25: 0 | Z25: 0 | AA25: 3.169634713 | AB25: 0 | AC25: 0 | AD25: 0 | AE25: 0 | AF25: 646627.7369 | AG25: 0 | AH25: 0 | AI25: 0 | AJ25: 0 | AK25: 0 | AL25: 0 | AM25: 0 | AN25: 0 | AO25: 0 | AP25: 0.3652777641 | AQ25: 0 | AR25: 0 | AS25: 0 | AT25: 0
A26: =Results_0!B27 -> 2055 | B26: 730922.0697 | C26: 0 | D26: 0 | E26: 0 | F26: 0 | G26: 0 | H26: 0 | I26: 0 | J26: 0 | K26: 0 | L26: 0 | M26: 0 | N26: 0 | O26: 0 | P26: 0 | Q26: 8091.839467 | R26: 0 | S26: 0 | T26: 0 | U26: 0 | V26: 0.2058185533 | W26: 0 | X26: 0 | Y26: 0 | Z26: 0 | AA26: 3.76931505 | AB26: 0 | AC26: 0 | AD26: 0 | AE26: 0 | AF26: 652803.7591 | AG26: 0 | AH26: 0 | AI26: 0 | AJ26: 0 | AK26: 0 | AL26: 0 | AM26: 0 | AN26: 0 | AO26: 0 | AP26: 1.296964409 | AQ26: 0 | AR26: 0 | AS26: 0 | AT26: 0
A27: =Results_0!B28 -> 2056 | B27: 737572.8242 | C27: 0 | D27: 0 | E27: 0 | F27: 0 | G27: 0 | H27: 0 | I27: 0 | J27: 0 | K27: 0 | L27: 0 | M27: 0 | N27: 0 | O27: 0 | P27: 0 | Q27: 8112.556236 | R27: 0 | S27: 0 | T27: 0 | U27: 0 | V27: 0.2223966388 | W27: 0 | X27: 0 | Y27: 0 | Z27: 0 | AA27: 4.330479585 | AB27: 0 | AC27: 0 | AD27: 0 | AE27: 0 | AF27: 658929.8055 | AG27: 0 | AH27: 0 | AI27: 0 | AJ27: 0 | AK27: 0 | AL27: 0 | AM27: 0 | AN27: 0 | AO27: 0 | AP27: 2.129786948 | AQ27: 0 | AR27: 0 | AS27: 0 | AT27: 0
A28: =Results_0!B29 -> 2057 | B28: 743943.5233 | C28: 0 | D28: 0 | E28: 0 | F28: 0 | G28: 0 | H28: 0 | I28: 0 | J28: 0 | K28: 0 | L28: 0 | M28: 0 | N28: 0 | O28: 0 | P28: 0 | Q28: 8133.319325 | R28: 0 | S28: 0 | T28: 0 | U28: 0 | V28: 0.2225285075 | W28: 0 | X28: 0 | Y28: 0 | Z28: 0 | AA28: 4.970814948 | AB28: 0 | AC28: 0 | AD28: 0 | AE28: 0 | AF28: 665169.7798 | AG28: 0 | AH28: 0 | AI28: 0 | AJ28: 0 | AK28: 0 | AL28: 0 | AM28: 0 | AN28: 0 | AO28: 0 | AP28: 3.04902601 | AQ28: 0 | AR28: 0 | AS28: 0 | AT28: 0
A29: =Results_0!B30 -> 2058 | B29: 750822.0408 | C29: 0 | D29: 0 | E29: 0 | F29: 0 | G29: 0 | H29: 0 | I29: 0 | J29: 0 | K29: 0 | L29: 0 | M29: 0 | N29: 0 | O29: 0 | P29: 0 | Q29: 8154.096604 | R29: 0 | S29: 0 | T29: 0 | U29: 0 | V29: 0.2405145674 | W29: 0 | X29: 0 | Y29: 0 | Z29: 0 | AA29: 5.848774964 | AB29: 0 | AC29: 0 | AD29: 0 | AE29: 0 | AF29: 671361.6549 | AG29: 0 | AH29: 0 | AI29: 0 | AJ29: 0 | AK29: 0 | AL29: 0 | AM29: 0 | AN29: 0 | AO29: 0 | AP29: 3.928519427 | AQ29: 0 | AR29: 0 | AS29: 0 | AT29: 0
A30: =Results_0!B31 -> 2059 | B30: 757406.2942 | C30: 0 | D30: 0 | E30: 0 | F30: 0 | G30: 0 | H30: 0 | I30: 0 | J30: 0 | K30: 0 | L30: 0 | M30: 0 | N30: 0 | O30: 0 | P30: 0 | Q30: 8174.550322 | R30: 0 | S30: 0 | T30: 0 | U30: 0 | V30: 0.2557627382 | W30: 0 | X30: 0 | Y30: 0 | Z30: 0 | AA30: 6.762985893 | AB30: 0 | AC30: 0 | AD30: 0 | AE30: 0 | AF30: 677586.8836 | AG30: 0 | AH30: 0 | AI30: 0 | AJ30: 0 | AK30: 0 | AL30: 0 | AM30: 0 | AN30: 0 | AO30: 0 | AP30: 4.994114344 | AQ30: 0 | AR30: 0 | AS30: 0 | AT30: 0
A31: =Results_0!B32 -> 2060 | B31: 764444.39 | C31: 0 | D31: 0 | E31: 0 | F31: 0 | G31: 0 | H31: 0 | I31: 0 | J31: 0 | K31: 0 | L31: 0 | M31: 0 | N31: 0 | O31: 0 | P31: 0 | Q31: 8195.333298 | R31: 0 | S31: 0 | T31: 0 | U31: 0 | V31: 0.2600551271 | W31: 0 | X31: 0 | Y31: 0 | Z31: 0 | AA31: 7.606775186 | AB31: 0 | AC31: 0 | AD31: 0 | AE31: 0 | AF31: 683951.6807 | AG31: 0 | AH31: 0 | AI31: 0 | AJ31: 0 | AK31: 0 | AL31: 0 | AM31: 0 | AN31: 0 | AO31: 0 | AP31: 6.649393868 | AQ31: 0 | AR31: 0 | AS31: 0 | AT31: 0
A32: =Results_0!B33 -> 2061 | B32: 771225.7634 | C32: 0 | D32: 0 | E32: 0 | F32: 0 | G32: 0 | H32: 0 | I32: 0 | J32: 0 | K32: 0 | L32: 0 | M32: 0 | N32: 0 | O32: 0 | P32: 0 | Q32: 8216.119501 | R32: 0 | S32: 0 | T32: 0 | U32: 0 | V32: 0.2794760251 | W32: 0 | X32: 0 | Y32: 0 | Z32: 0 | AA32: 8.56120566 | AB32: 0 | AC32: 0 | AD32: 0 | AE32: 0 | AF32: 690256.3417 | AG32: 0 | AH32: 0 | AI32: 0 | AJ32: 0 | AK32: 0 | AL32: 0 | AM32: 0 | AN32: 0 | AO32: 0 | AP32: 9.55372806 | AQ32: 0 | AR32: 0 | AS32: 0 | AT32: 0
A33: =Results_0!B34 -> 2062 | B33: 778130.4781 | C33: 0 | D33: 0 | E33: 0 | F33: 0 | G33: 0 | H33: 0 | I33: 0 | J33: 0 | K33: 0 | L33: 0 | M33: 0 | N33: 0 | O33: 0 | P33: 0 | Q33: 8236.90893 | R33: 0 | S33: 0 | T33: 0 | U33: 0 | V33: 0.2796412489 | W33: 0 | X33: 0 | Y33: 0 | Z33: 0 | AA33: 9.536916747 | AB33: 0 | AC33: 0 | AD33: 0 | AE33: 0 | AF33: 696598.1065 | AG33: 0 | AH33: 0 | AI33: 0 | AJ33: 0 | AK33: 0 | AL33: 0 | AM33: 0 | AN33: 0 | AO33: 0 | AP33: 14.19617626 | AQ33: 0 | AR33: 0 | AS33: 0 | AT33: 0
A34: =Results_0!B35 -> 2063 | B34: 785568.297 | C34: 0 | D34: 0 | E34: 0 | F34: 0 | G34: 0 | H34: 0 | I34: 0 | J34: 0 | K34: 0 | L34: 0 | M34: 0 | N34: 0 | O34: 0 | P34: 0 | Q34: 8257.712638 | R34: 0 | S34: 0 | T34: 0 | U34: 0 | V34: 0.2990963185 | W34: 0 | X34: 0 | Y34: 0 | Z34: 0 | AA34: 10.60070503 | AB34: 0 | AC34: 0 | AD34: 0 | AE34: 0 | AF34: 702986.8846 | AG34: 0 | AH34: 0 | AI34: 0 | AJ34: 0 | AK34: 0 | AL34: 0 | AM34: 0 | AN34: 0 | AO34: 0 | AP34: 20.19422962 | AQ34: 0 | AR34: 0 | AS34: 0 | AT34: 0
A35: =Results_0!B36 -> 2064 | B35: 792694.0374 | C35: 0 | D35: 0 | E35: 0 | F35: 0 | G35: 0 | H35: 0 | I35: 0 | J35: 0 | K35: 0 | L35: 0 | M35: 0 | N35: 0 | O35: 0 | P35: 0 | Q35: 8278.551957 | R35: 0 | S35: 0 | T35: 0 | U35: 0 | V35: 0.2992729328 | W35: 0 | X35: 0 | Y35: 0 | Z35: 0 | AA35: 11.69412053 | AB35: 0 | AC35: 0 | AD35: 0 | AE35: 0 | AF35: 709284.445 | AG35: 0 | AH35: 0 | AI35: 0 | AJ35: 0 | AK35: 0 | AL35: 0 | AM35: 0 | AN35: 0 | AO35: 0 | AP35: 26.58500053 | AQ35: 0 | AR35: 0 | AS35: 0 | AT35: 0
A36: =Results_0!B37 -> 2065 | B36: 799947.8357 | C36: 0 | D36: 0 | E36: 0 | F36: 0 | G36: 0 | H36: 0 | I36: 0 | J36: 0 | K36: 0 | L36: 0 | M36: 0 | N36: 0 | O36: 0 | P36: 0 | Q36: 8299.041847 | R36: 0 | S36: 0 | T36: 0 | U36: 0 | V36: 0.3187621739 | W36: 0 | X36: 0 | Y36: 0 | Z36: 0 | AA36: 12.70016435 | AB36: 0 | AC36: 0 | AD36: 0 | AE36: 0 | AF36: 715748.7108 | AG36: 0 | AH36: 0 | AI36: 0 | AJ36: 0 | AK36: 0 | AL36: 0 | AM36: 0 | AN36: 0 | AO36: 0 | AP36: 34.50679168 | AQ36: 0 | AR36: 0 | AS36: 0 | AT36: 0
A37: =Results_0!B38 -> 2066 | B37: 807313.7013 | C37: 0 | D37: 0 | E37: 0 | F37: 0 | G37: 0 | H37: 0 | I37: 0 | J37: 0 | K37: 0 | L37: 0 | M37: 0 | N37: 0 | O37: 0 | P37: 0 | Q37: 8319.899179 | R37: 0 | S37: 0 | T37: 0 | U37: 0 | V37: 0.3341184934 | W37: 0 | X37: 0 | Y37: 0 | Z37: 0 | AA37: 14.003992 | AB37: 0 | AC37: 0 | AD37: 0 | AE37: 0 | AF37: 722263.6413 | AG37: 0 | AH37: 0 | AI37: 0 | AJ37: 0 | AK37: 0 | AL37: 0 | AM37: 0 | AN37: 0 | AO37: 0 | AP37: 45.01136984 | AQ37: 0 | AR37: 0 | AS37: 0 | AT37: 0
A38: =Results_0!B39 -> 2067 | B38: 814792.1968 | C38: 0 | D38: 0 | E38: 0 | F38: 0 | G38: 0 | H38: 0 | I38: 0 | J38: 0 | K38: 0 | L38: 0 | M38: 0 | N38: 0 | O38: 0 | P38: 0 | Q38: 8340.793334 | R38: 0 | S38: 0 | T38: 0 | U38: 0 | V38: 0.3384735914 | W38: 0 | X38: 0 | Y38: 0 | Z38: 0 | AA38: 15.334606 | AB38: 0 | AC38: 0 | AD38: 0 | AE38: 0 | AF38: 728825.1943 | AG38: 0 | AH38: 0 | AI38: 0 | AJ38: 0 | AK38: 0 | AL38: 0 | AM38: 0 | AN38: 0 | AO38: 0 | AP38: 58.04257913 | AQ38: 0 | AR38: 0 | AS38: 0 | AT38: 0
A39: =Results_0!B40 -> 2068 | B39: 822411.2102 | C39: 0 | D39: 0 | E39: 0 | F39: 0 | G39: 0 | H39: 0 | I39: 0 | J39: 0 | K39: 0 | L39: 0 | M39: 0 | N39: 0 | O39: 0 | P39: 0 | Q39: 8361.724553 | R39: 0 | S39: 0 | T39: 0 | U39: 0 | V39: 0.3580197851 | W39: 0 | X39: 0 | Y39: 0 | Z39: 0 | AA39: 16.92478408 | AB39: 0 | AC39: 0 | AD39: 0 | AE39: 0 | AF39: 735268.4498 | AG39: 0 | AH39: 0 | AI39: 0 | AJ39: 0 | AK39: 0 | AL39: 0 | AM39: 0 | AN39: 0 | AO39: 0 | AP39: 74.232693 | AQ39: 0 | AR39: 0 | AS39: 0 | AT39: 0
A40: =Results_0!B41 -> 2069 | B40: 830175.3285 | C40: 0 | D40: 0 | E40: 0 | F40: 0 | G40: 0 | H40: 0 | I40: 0 | J40: 0 | K40: 0 | L40: 0 | M40: 0 | N40: 0 | O40: 0 | P40: 0 | Q40: 8382.670804 | R40: 0 | S40: 0 | T40: 0 | U40: 0 | V40: 0.358230571 | W40: 0 | X40: 0 | Y40: 0 | Z40: 0 | AA40: 18.46252765 | AB40: 0 | AC40: 0 | AD40: 0 | AE40: 0 | AF40: 741917.0016 | AG40: 0 | AH40: 0 | AI40: 0 | AJ40: 0 | AK40: 0 | AL40: 0 | AM40: 0 | AN40: 0 | AO40: 0 | AP40: 93.61065126 | AQ40: 0 | AR40: 0 | AS40: 0 | AT40: 0
A41: =Results_0!B42 -> 2070 | B41: 837923.8284 | C41: 0 | D41: 0 | E41: 0 | F41: 0 | G41: 0 | H41: 0 | I41: 0 | J41: 0 | K41: 0 | L41: 0 | M41: 0 | N41: 0 | O41: 0 | P41: 0 | Q41: 8403.229443 | R41: 0 | S41: 0 | T41: 0 | U41: 0 | V41: 0.3778109363 | W41: 0 | X41: 0 | Y41: 0 | Z41: 0 | AA41: 20.18771204 | AB41: 0 | AC41: 0 | AD41: 0 | AE41: 0 | AF41: 748445.981 | AG41: 0 | AH41: 0 | AI41: 0 | AJ41: 0 | AK41: 0 | AL41: 0 | AM41: 0 | AN41: 0 | AO41: 0 | AP41: 114.9273992 | AQ41: 0 | AR41: 0 | AS41: 0 | AT41: 0
A42: =Results_0!B43 -> 2071 | B42: 845993.8672 | C42: 0 | D42: 0 | E42: 0 | F42: 0 | G42: 0 | H42: 0 | I42: 0 | J42: 0 | K42: 0 | L42: 0 | M42: 0 | N42: 0 | O42: 0 | P42: 0 | Q42: 8424.227518 | R42: 0 | S42: 0 | T42: 0 | U42: 0 | V42: 0.3932461321 | W42: 0 | X42: 0 | Y42: 0 | Z42: 0 | AA42: 22.1930548 | AB42: 0 | AC42: 0 | AD42: 0 | AE42: 0 | AF42: 755021.0399 | AG42: 0 | AH42: 0 | AI42: 0 | AJ42: 0 | AK42: 0 | AL42: 0 | AM42: 0 | AN42: 0 | AO42: 0 | AP42: 145.9344994 | AQ42: 0 | AR42: 0 | AS42: 0 | AT42: 0
A43: =Results_0!B44 -> 2072 | B43: 854260.0163 | C43: 0 | D43: 0 | E43: 0 | F43: 0 | G43: 0 | H43: 0 | I43: 0 | J43: 0 | K43: 0 | L43: 0 | M43: 0 | N43: 0 | O43: 0 | P43: 0 | Q43: 8445.263461 | R43: 0 | S43: 0 | T43: 0 | U43: 0 | V43: 0.3976476495 | W43: 0 | X43: 0 | Y43: 0 | Z43: 0 | AA43: 24.35816281 | AB43: 0 | AC43: 0 | AD43: 0 | AE43: 0 | AF43: 761842.7726 | AG43: 0 | AH43: 0 | AI43: 0 | AJ43: 0 | AK43: 0 | AL43: 0 | AM43: 0 | AN43: 0 | AO43: 0 | AP43: 180.277404 | AQ43: 0 | AR43: 0 | AS43: 0 | AT43: 0
A44: =Results_0!B45 -> 2073 | B44: 861840.1707 | C44: 0 | D44: 0 | E44: 0 | F44: 0 | G44: 0 | H44: 0 | I44: 0 | J44: 0 | K44: 0 | L44: 0 | M44: 0 | N44: 0 | O44: 0 | P44: 0 | Q44: 8466.313944 | R44: 0 | S44: 0 | T44: 0 | U44: 0 | V44: 0.4131121177 | W44: 0 | X44: 0 | Y44: 0 | Z44: 0 | AA44: 26.35639724 | AB44: 0 | AC44: 0 | AD44: 0 | AE44: 0 | AF44: 768519.5356 | AG44: 0 | AH44: 0 | AI44: 0 | AJ44: 0 | AK44: 0 | AL44: 0 | AM44: 0 | AN44: 0 | AO44: 0 | AP44: 222.7038954 | AQ44: 0 | AR44: 0 | AS44: 0 | AT44: 0
A45: =Results_0!B46 -> 2074 | B45: 870382.7659 | C45: 0 | D45: 0 | E45: 0 | F45: 0 | G45: 0 | H45: 0 | I45: 0 | J45: 0 | K45: 0 | L45: 0 | M45: 0 | N45: 0 | O45: 0 | P45: 0 | Q45: 8486.940732 | R45: 0 | S45: 0 | T45: 0 | U45: 0 | V45: 0.4175299248 | W45: 0 | X45: 0 | Y45: 0 | Z45: 0 | AA45: 28.8646191 | AB45: 0 | AC45: 0 | AD45: 0 | AE45: 0 | AF45: 775241.6606 | AG45: 0 | AH45: 0 | AI45: 0 | AJ45: 0 | AK45: 0 | AL45: 0 | AM45: 0 | AN45: 0 | AO45: 0 | AP45: 269.8922654 | AQ45: 0 | AR45: 0 | AS45: 0 | AT45: 0
A46: =Results_0!B47 -> 2075 | B46: 878893.8828 | C46: 0 | D46: 0 | E46: 0 | F46: 0 | G46: 0 | H46: 0 | I46: 0 | J46: 0 | K46: 0 | L46: 0 | M46: 0 | N46: 0 | O46: 0 | P46: 0 | Q46: 8508.10205 | R46: 0 | S46: 0 | T46: 0 | U46: 0 | V46: 0.4330236654 | W46: 0 | X46: 0 | Y46: 0 | Z46: 0 | AA46: 31.48940937 | AB46: 0 | AC46: 0 | AD46: 0 | AE46: 0 | AF46: 782009.732 | AG46: 0 | AH46: 0 | AI46: 0 | AJ46: 0 | AK46: 0 | AL46: 0 | AM46: 0 | AN46: 0 | AO46: 0 | AP46: 318.2017962 | AQ46: 0 | AR46: 0 | AS46: 0 | AT46: 0
A47: =Results_0!B48 -> 2076 | B47: 887034.5543 | C47: 0 | D47: 0 | E47: 0 | F47: 0 | G47: 0 | H47: 0 | I47: 0 | J47: 0 | K47: 0 | L47: 1.419796537 | M47: 0 | N47: 0 | O47: 0 | P47: 0 | Q47: 8529.336258 | R47: 0 | S47: 0 | T47: 0 | U47: 0 | V47: 0.4374577622 | W47: 0 | X47: 0 | Y47: 0 | Z47: 0 | AA47: 34.00947031 | AB47: 0 | AC47: 0 | AD47: 0 | AE47: 0 | AF47: 788812.2809 | AG47: 0 | AH47: 0 | AI47: 0 | AJ47: 0 | AK47: 0 | AL47: 0 | AM47: 0 | AN47: 0 | AO47: 0 | AP47: 373.8961412 | AQ47: 0 | AR47: 0 | AS47: 0 | AT47: 0
A48: =Results_0!B49 -> 2077 | B48: 895847.4832 | C48: 0 | D48: 0 | E48: 0 | F48: 0 | G48: 0 | H48: 0 | I48: 0 | J48: 0 | K48: 0 | L48: 3.22648763 | M48: 0 | N48: 0 | O48: 0 | P48: 0 | Q48: 8550.040994 | R48: 0 | S48: 0 | T48: 0 | U48: 0 | V48: 0.4529807752 | W48: 0 | X48: 0 | Y48: 0 | Z48: 0 | AA48: 36.7870926 | AB48: 0 | AC48: 0 | AD48: 0 | AE48: 0 | AF48: 795668.5751 | AG48: 0 | AH48: 0 | AI48: 0 | AJ48: 0 | AK48: 0 | AL48: 0 | AM48: 0 | AN48: 0 | AO48: 0 | AP48: 441.8099018 | AQ48: 0 | AR48: 0 | AS48: 0 | AT48: 0
A49: =Results_0!B50 -> 2078 | B49: 904053.5868 | C49: 0 | D49: 0 | E49: 0 | F49: 0 | G49: 0 | H49: 0 | I49: 0 | J49: 0 | K49: 0 | L49: 5.069170565 | M49: 0 | N49: 0 | O49: 0 | P49: 0 | Q49: 8571.295771 | R49: 0 | S49: 0 | T49: 0 | U49: 0 | V49: 0.4727067677 | W49: 0 | X49: 0 | Y49: 0 | Z49: 0 | AA49: 39.85465866 | AB49: 0 | AC49: 0 | AD49: 0 | AE49: 0 | AF49: 802578.8967 | AG49: 0 | AH49: 0 | AI49: 0 | AJ49: 0 | AK49: 0 | AL49: 0 | AM49: 0 | AN49: 0 | AO49: 0 | AP49: 511.5598938 | AQ49: 0 | AR49: 0 | AS49: 0 | AT49: 0
A50: =Results_0!B51 -> 2079 | B50: 913455.6623 | C50: 0 | D50: 0 | E50: 0 | F50: 0 | G50: 0 | H50: 0 | I50: 0 | J50: 0 | K50: 0 | L50: 6.94838451 | M50: 0 | N50: 0 | O50: 0 | P50: 0 | Q50: 8592.554353 | R50: 0 | S50: 0 | T50: 0 | U50: 0 | V50: 0.4771709942 | W50: 0 | X50: 0 | Y50: 0 | Z50: 0 | AA50: 43.34121747 | AB50: 0 | AC50: 0 | AD50: 0 | AE50: 0 | AF50: 809546.644 | AG50: 0 | AH50: 0 | AI50: 0 | AJ50: 0 | AK50: 0 | AL50: 0 | AM50: 0 | AN50: 0 | AO50: 0 | AP50: 578.8915958 | AQ50: 0 | AR50: 0 | AS50: 0 | AT50: 0
A51: =Results_0!B52 -> 2080 | B51: 921950.5708 | C51: 0 | D51: 0 | E51: 0 | F51: 0 | G51: 0 | H51: 0 | I51: 0 | J51: 0 | K51: 0 | L51: 10.39319609 | M51: 0 | N51: 0 | O51: 0 | P51: 0 | Q51: 8613.280934 | R51: 0 | S51: 0 | T51: 0 | U51: 0 | V51: 0.4927436112 | W51: 0 | X51: 0 | Y51: 0 | Z51: 0 | AA51: 47.17647237 | AB51: 0 | AC51: 0 | AD51: 0 | AE51: 0 | AF51: 816570.3017 | AG51: 0 | AH51: 0 | AI51: 0 | AJ51: 0 | AK51: 0 | AL51: 0 | AM51: 0 | AN51: 0 | AO51: 0 | AP51: 663.3705596 | AQ51: 0 | AR51: 0 | AS51: 0 | AT51: 0
A52: =Results_0!B53 -> 2081 | B52: 931471.5557 | C52: 0 | D52: 0 | E52: 0 | F52: 0 | G52: 0 | H52: 0 | I52: 0 | J52: 0 | K52: 0 | L52: 21.01406873 | M52: 0 | N52: 0 | O52: 0 | P52: 0 | Q52: 8634.641812 | R52: 0 | S52: 0 | T52: 0 | U52: 0 | V52: 0.4972241273 | W52: 0 | X52: 0 | Y52: 0 | Z52: 0 | AA52: 51.39178608 | AB52: 0 | AC52: 0 | AD52: 0 | AE52: 0 | AF52: 823347.108 | AG52: 0 | AH52: 0 | AI52: 0 | AJ52: 0 | AK52: 0 | AL52: 0 | AM52: 0 | AN52: 0 | AO52: 0 | AP52: 759.1257598 | AQ52: 0 | AR52: 0 | AS52: 0 | AT52: 0
A53: =Results_0!B54 -> 2082 | B53: 940477.0873 | C53: 0 | D53: 0 | E53: 0 | F53: 0 | G53: 0 | H53: 0 | I53: 0 | J53: 0 | K53: 0 | L53: 32.10285831 | M53: 0 | N53: 0 | O53: 0 | P53: 0 | Q53: 8656.054327 | R53: 0 | S53: 0 | T53: 0 | U53: 0 | V53: 0.5128260167 | W53: 0 | X53: 0 | Y53: 0 | Z53: 0 | AA53: 56.13287521 | AB53: 0 | AC53: 0 | AD53: 0 | AE53: 0 | AF53: 830476.0263 | AG53: 0 | AH53: 0 | AI53: 0 | AJ53: 0 | AK53: 0 | AL53: 0 | AM53: 0 | AN53: 0 | AO53: 0 | AP53: 854.8675754 | AQ53: 0 | AR53: 0 | AS53: 0 | AT53: 0
A54: =Results_0!B55 -> 2083 | B54: 950350.1035 | C54: 0 | D54: 0 | E54: 0 | F54: 0 | G54: 0 | H54: 0 | I54: 0 | J54: 0 | K54: 0 | L54: 48.38482891 | M54: 0 | N54: 0 | O54: 0 | P54: 0 | Q54: 8676.86112 | R54: 0 | S54: 0 | T54: 0 | U54: 0 | V54: 0.5173228225 | W54: 0 | X54: 0 | Y54: 0 | Z54: 0 | AA54: 61.26358013 | AB54: 0 | AC54: 0 | AD54: 0 | AE54: 0 | AF54: 837671.6636 | AG54: 0 | AH54: 0 | AI54: 0 | AJ54: 0 | AK54: 0 | AL54: 0 | AM54: 0 | AN54: 0 | AO54: 0 | AP54: 960.8005105 | AQ54: 0 | AR54: 0 | AS54: 0 | AT54: 0
A55: =Results_0!B56 -> 2084 | B55: 959404.0188 | C55: 0 | D55: 0 | E55: 0 | F55: 0 | G55: 0 | H55: 0 | I55: 0 | J55: 0 | K55: 0 | L55: 68.35729801 | M55: 0 | N55: 0 | O55: 0 | P55: 0 | Q55: 8698.36341 | R55: 0 | S55: 0 | T55: 0 | U55: 0 | V55: 0.5329539843 | W55: 0 | X55: 0 | Y55: 0 | Z55: 0 | AA55: 65.97354889 | AB55: 0 | AC55: 0 | AD55: 0 | AE55: 0 | AF55: 844596.4316 | AG55: 0 | AH55: 0 | AI55: 0 | AJ55: 0 | AK55: 0 | AL55: 0 | AM55: 0 | AN55: 0 | AO55: 0 | AP55: 1074.430956 | AQ55: 0 | AR55: 0 | AS55: 0 | AT55: 0
A56: =Results_0!B57 -> 2085 | B56: 968594.9798 | C56: 0 | D56: 0 | E56: 0 | F56: 0 | G56: 0 | H56: 0 | I56: 0 | J56: 0 | K56: 0 | L56: 90.07615527 | M56: 0 | N56: 0 | O56: 0 | P56: 0 | Q56: 8719.885002 | R56: 0 | S56: 0 | T56: 0 | U56: 0 | V56: 0.5528052725 | W56: 0 | X56: 0 | Y56: 0 | Z56: 0 | AA56: 72.1547877 | AB56: 0 | AC56: 0 | AD56: 0 | AE56: 0 | AF56: 851942.2075 | AG56: 0 | AH56: 0 | AI56: 0 | AJ56: 0 | AK56: 0 | AL56: 0 | AM56: 0 | AN56: 0 | AO56: 0 | AP56: 1199.59132 | AQ56: 0 | AR56: 0 | AS56: 0 | AT56: 0
A57: =Results_0!B58 -> 2086 | B57: 977957.2312 | C57: 0 | D57: 0 | E57: 0 | F57: 0 | G57: 0 | H57: 0 | I57: 0 | J57: 0 | K57: 0 | L57: 115.2883183 | M57: 0 | N57: 0 | O57: 0 | P57: 0 | Q57: 8740.739155 | R57: 0 | S57: 0 | T57: 0 | U57: 0 | V57: 0.553127514 | W57: 0 | X57: 0 | Y57: 0 | Z57: 0 | AA57: 77.92814302 | AB57: 0 | AC57: 0 | AD57: 0 | AE57: 0 | AF57: 859001.384 | AG57: 0 | AH57: 0 | AI57: 0 | AJ57: 0 | AK57: 0 | AL57: 0 | AM57: 0 | AN57: 0 | AO57: 0 | AP57: 1337.147601 | AQ57: 0 | AR57: 0 | AS57: 0 | AT57: 0
A58: =Results_0!B59 -> 2087 | B58: 988592.9736 | C58: 0 | D58: 0 | E58: 0 | F58: 0 | G58: 0 | H58: 0 | I58: 0 | J58: 0 | K58: 0 | L58: 157.1619505 | M58: 0 | N58: 0 | O58: 0 | P58: 0 | Q58: 8762.341804 | R58: 0 | S58: 0 | T58: 0 | U58: 0 | V58: 0.5730129737 | W58: 0 | X58: 0 | Y58: 0 | Z58: 0 | AA58: 84.32228511 | AB58: 0 | AC58: 0 | AD58: 0 | AE58: 0 | AF58: 866521.7991 | AG58: 0 | AH58: 0 | AI58: 0 | AJ58: 0 | AK58: 0 | AL58: 0 | AM58: 0 | AN58: 0 | AO58: 0 | AP58: 1485.011894 | AQ58: 0 | AR58: 0 | AS58: 0 | AT58: 0
A59: =Results_0!B60 -> 2088 | B59: 1006106.578 | C59: 0 | D59: 0 | E59: 0 | F59: 0 | G59: 0 | H59: 0 | I59: 0 | J59: 0 | K59: 0 | L59: 229.0891331 | M59: 0 | N59: 0 | O59: 0 | P59: 0 | Q59: 8783.984431 | R59: 0 | S59: 0 | T59: 0 | U59: 0 | V59: 0.5733466057 | W59: 0 | X59: 0 | Y59: 0 | Z59: 0 | AA59: 91.36572078 | AB59: 0 | AC59: 0 | AD59: 0 | AE59: 0 | AF59: 873712.9707 | AG59: 0 | AH59: 0 | AI59: 0 | AJ59: 0 | AK59: 0 | AL59: 0 | AM59: 0 | AN59: 0 | AO59: 0 | AP59: 1624.634843 | AQ59: 0 | AR59: 0 | AS59: 0 | AT59: 0
A60: =Results_0!B61 -> 2089 | B60: 1025066.94 | C60: 0 | D60: 0 | E60: 0 | F60: 0 | G60: 0 | H60: 0 | I60: 0 | J60: 0 | K60: 0 | L60: 316.0213621 | M60: 0 | N60: 0 | O60: 0 | P60: 0 | Q60: 8804.933419 | R60: 0 | S60: 0 | T60: 0 | U60: 0 | V60: 0.593266237 | W60: 0 | X60: 0 | Y60: 0 | Z60: 0 | AA60: 100.2545242 | AB60: 0 | AC60: 0 | AD60: 0 | AE60: 0 | AF60: 881409.4917 | AG60: 0 | AH60: 0 | AI60: 0 | AJ60: 0 | AK60: 0 | AL60: 0 | AM60: 0 | AN60: 0 | AO60: 0 | AP60: 1795.882981 | AQ60: 0 | AR60: 0 | AS60: 0 | AT60: 0
A61: =Results_0!B62 -> 2090 | B61: 1045102.067 | C61: 0 | D61: 0 | E61: 0 | F61: 0 | G61: 0 | H61: 0 | I61: 0 | J61: 0 | K61: 0 | L61: 421.4165801 | M61: 0 | N61: 0 | O61: 0 | P61: 0 | Q61: 8826.671555 | R61: 0 | S61: 0 | T61: 0 | U61: 0 | V61: 0.597825752 | W61: 0 | X61: 0 | Y61: 0 | Z61: 0 | AA61: 108.8163952 | AB61: 0 | AC61: 0 | AD61: 0 | AE61: 0 | AF61: 888743.7482 | AG61: 0 | AH61: 0 | AI61: 0 | AJ61: 0 | AK61: 0 | AL61: 0 | AM61: 0 | AN61: 0 | AO61: 0 | AP61: 1956.991912 | AQ61: 0 | AR61: 0 | AS61: 0 | AT61: 0
A62: =Results_0!B63 -> 2091 | B62: 1064184.14 | C62: 0 | D62: 0 | E62: 0 | F62: 0 | G62: 0 | H62: 0 | I62: 0 | J62: 0 | K62: 0 | L62: 564.2104155 | M62: 0 | N62: 0 | O62: 0 | P62: 0 | Q62: 8847.639488 | R62: 0 | S62: 0 | T62: 0 | U62: 0 | V62: 0.6135650624 | W62: 0 | X62: 0 | Y62: 0 | Z62: 0 | AA62: 118.2488114 | AB62: 0 | AC62: 0 | AD62: 0 | AE62: 0 | AF62: 896158.9173 | AG62: 0 | AH62: 0 | AI62: 0 | AJ62: 0 | AK62: 0 | AL62: 0 | AM62: 0 | AN62: 0 | AO62: 0 | AP62: 2131.466435 | AQ62: 0 | AR62: 0 | AS62: 0 | AT62: 0
A63: =Results_0!B64 -> 2092 | B63: 1085528.667 | C63: 0 | D63: 0 | E63: 0 | F63: 0 | G63: 0 | H63: 0 | I63: 0 | J63: 0 | K63: 0 | L63: 731.6820284 | M63: 0 | N63: 0 | O63: 0 | P63: 0 | Q63: 8869.425381 | R63: 0 | S63: 0 | T63: 0 | U63: 0 | V63: 0.6335416463 | W63: 0 | X63: 0 | Y63: 0 | Z63: 0 | AA63: 128.1149779 | AB63: 0 | AC63: 0 | AD63: 0 | AE63: 0 | AF63: 903640.2142 | AG63: 0 | AH63: 0 | AI63: 0 | AJ63: 0 | AK63: 0 | AL63: 0 | AM63: 0 | AN63: 0 | AO63: 0 | AP63: 2320.687195 | AQ63: 0 | AR63: 0 | AS63: 0 | AT63: 0

Sheet Results_0
C2: Annual
C3: Probability Of Load Shedding | D3: Total Load Shed (kWh) | E3: Lost Energy (kWh) | F3: Probability of Curtailment | G3: Total Energy Curtailed (MWh) | H3: Lost Generation (MWh) | I3: =IFERROR("VCR at $" &ROUND(Input!M$55,2)& "/kWh","VCR") -> VCR at $39.11/kWh | J3: CECV | K3: Emergency Replacement Cost ($) | L3: Safety Risk ($) | M3: Environmental Risk ($) | N3: Total Risk ($)
B4: =Input!Q15 -> 2032 | C4: =OFFSET('RISK QUANTN - RELIABILITY solar'!$E$79,0,ROW()-ROW($C$4)) -> 0 | D4: =IFERROR(OFFSET('RISK QUANTN - RELIABILITY solar'!$E$78,0,ROW()-ROW($C$4)),0) -> 0 | E4: =C4*D4 -> 0 | F4: =OFFSET('RISK QUANTN - RELIABILITY expor'!$E$89,0,ROW()-ROW($C$4)) -> 0 | G4: =IFERROR(OFFSET('RISK QUANTN - RELIABILITY expor'!$E$88,0,ROW()-ROW($C$4)),0) -> 0 | H4: =F4*G4 -> 0 | I4: =IFERROR($E4*Input!M$55,0) -> 0 | J4: =OFFSET('RISK QUANTN - RELIABILITY expor'!$E$97,0,ROW()-ROW($C$4)) -> 0 | K4: =OFFSET('RISK QUANTN - EMERGENCY REPLACE'!$D$92,0,ROW()-ROW($C$4)) -> 0 | L4: =OFFSET('RISK QUANTN - SAFETY'!$D$90,0,ROW()-ROW($C$4)) -> 0 | M4: =SUM(OFFSET('RISK QUANTN - ENVIRONMENTAL'!$D$90,0,ROW()-ROW($C$4)),OFFSET('RISK QUANTN - ENVIRONMENTAL'!$D$130,0,ROW()-ROW($C$4))) -> 0 | N4: =SUM(I4:M4) -> 0
B5: =Input!Q16 -> 2033 | C5: =OFFSET('RISK QUANTN - RELIABILITY solar'!$E$79,0,ROW()-ROW($C$4)) -> 0 | D5: =IFERROR(OFFSET('RISK QUANTN - RELIABILITY solar'!$E$78,0,ROW()-ROW($C$4)),0) -> 0 | E5: =C5*D5 -> 0 | F5: =OFFSET('RISK QUANTN - RELIABILITY expor'!$E$89,0,ROW()-ROW($C$4)) -> 0 | G5: =IFERROR(OFFSET('RISK QUANTN - RELIABILITY expor'!$E$88,0,ROW()-ROW($C$4)),0) -> 0 | H5: =F5*G5 -> 0 | I5: =IFERROR($E5*Input!M$55,0) -> 0 | J5: =OFFSET('RISK QUANTN - RELIABILITY expor'!$E$97,0,ROW()-ROW($C$4)) -> 0 | K5: =OFFSET('RISK QUANTN - EMERGENCY REPLACE'!$D$92,0,ROW()-ROW($C$4)) -> 0 | L5: =OFFSET('RISK QUANTN - SAFETY'!$D$90,0,ROW()-ROW($C$4)) -> 0 | M5: =SUM(OFFSET('RISK QUANTN - ENVIRONMENTAL'!$D$90,0,ROW()-ROW($C$4)),OFFSET('RISK QUANTN - ENVIRONMENTAL'!$D$130,0,ROW()-ROW($C$4))) -> 0 | N5: =SUM(I5:M5) -> 0
B6: =Input!Q17 -> 2034 | C6: =OFFSET('RISK QUANTN - RELIABILITY solar'!$E$79,0,ROW()-ROW($C$4)) -> 0 | D6: =IFERROR(OFFSET('RISK QUANTN - RELIABILITY solar'!$E$78,0,ROW()-ROW($C$4)),0) -> 0 | E6: 0 | F6: =OFFSET('RISK QUANTN - RELIABILITY expor'!$E$89,0,ROW()-ROW($C$4)) -> 0 | G6: =IFERROR(OFFSET('RISK QUANTN - RELIABILITY expor'!$E$88,0,ROW()-ROW($C$4)),0) -> 0 | H6: 0 | I6: =IFERROR($E6*Input!M$55,0) -> 0 | J6: =OFFSET('RISK QUANTN - RELIABILITY expor'!$E$97,0,ROW()-ROW($C$4)) -> 0 | K6: =OFFSET('RISK QUANTN - EMERGENCY REPLACE'!$D$92,0,ROW()-ROW($C$4)) -> 0 | L6: =OFFSET('RISK QUANTN - SAFETY'!$D$90,0,ROW()-ROW($C$4)) -> 0 | M6: =SUM(OFFSET('RISK QUANTN - ENVIRONMENTAL'!$D$90,0,ROW()-ROW($C$4)),OFFSET('RISK QUANTN - ENVIRONMENTAL'!$D$130,0,ROW()-ROW($C$4))) -> 0 | N6: 0
B7: =Input!Q18 -> 2035 | C7: =OFFSET('RISK QUANTN - RELIABILITY solar'!$E$79,0,ROW()-ROW($C$4)) -> 0 | D7: =IFERROR(OFFSET('RISK QUANTN - RELIABILITY solar'!$E$78,0,ROW()-ROW($C$4)),0) -> 0 | E7: 0 | F7: =OFFSET('RISK QUANTN - RELIABILITY expor'!$E$89,0,ROW()-ROW($C$4)) -> 0 | G7: =IFERROR(OFFSET('RISK QUANTN - RELIABILITY expor'!$E$88,0,ROW()-ROW($C$4)),0) -> 0 | H7: 0 | I7: =IFERROR($E7*Input!M$55,0) -> 0 | J7: =OFFSET('RISK QUANTN - RELIABILITY expor'!$E$97,0,ROW()-ROW($C$4)) -> 0 | K7: =OFFSET('RISK QUANTN - EMERGENCY REPLACE'!$D$92,0,ROW()-ROW($C$4)) -> 0 | L7: =OFFSET('RISK QUANTN - SAFETY'!$D$90,0,ROW()-ROW($C$4)) -> 0 | M7: =SUM(OFFSET('RISK QUANTN - ENVIRONMENTAL'!$D$90,0,ROW()-ROW($C$4)),OFFSET('RISK QUANTN - ENVIRONMENTAL'!$D$130,0,ROW()-ROW($C$4))) -> 0 | N7: 0
B8: =Input!Q19 -> 2036 | C8: =OFFSET('RISK QUANTN - RELIABILITY solar'!$E$79,0,ROW()-ROW($C$4)) -> 0 | D8: =IFERROR(OFFSET('RISK QUANTN - RELIABILITY solar'!$E$78,0,ROW()-ROW($C$4)),0) -> 0 | E8: =C8*D8 -> 0 | F8: =OFFSET('RISK QUANTN - RELIABILITY expor'!$E$89,0,ROW()-ROW($C$4)) -> 0 | G8: =IFERROR(OFFSET('RISK QUANTN - RELIABILITY expor'!$E$88,0,ROW()-ROW($C$4)),0) -> 0 | H8: 0 | I8: =IFERROR($E8*Input!M$55,0) -> 0 | J8: =OFFSET('RISK QUANTN - RELIABILITY expor'!$E$97,0,ROW()-ROW($C$4)) -> 0 | K8: =OFFSET('RISK QUANTN - EMERGENCY REPLACE'!$D$92,0,ROW()-ROW($C$4)) -> 0 | L8: =OFFSET('RISK QUANTN - SAFETY'!$D$90,0,ROW()-ROW($C$4)) -> 0 | M8: =SUM(OFFSET('RISK QUANTN - ENVIRONMENTAL'!$D$90,0,ROW()-ROW($C$4)),OFFSET('RISK QUANTN - ENVIRONMENTAL'!$D$130,0,ROW()-ROW($C$4))) -> 0 | N8: 0
B9: =Input!Q20 -> 2037 | C9: =OFFSET('RISK QUANTN - RELIABILITY solar'!$E$79,0,ROW()-ROW($C$4)) -> 0 | D9: =IFERROR(OFFSET('RISK QUANTN - RELIABILITY solar'!$E$78,0,ROW()-ROW($C$4)),0) -> 0 | E9: 0 | F9: =OFFSET('RISK QUANTN - RELIABILITY expor'!$E$89,0,ROW()-ROW($C$4)) -> 0 | G9: =IFERROR(OFFSET('RISK QUANTN - RELIABILITY expor'!$E$88,0,ROW()-ROW($C$4)),0) -> 0 | H9: 0 | I9: =IFERROR($E9*Input!M$55,0) -> 0 | J9: =OFFSET('RISK QUANTN - RELIABILITY expor'!$E$97,0,ROW()-ROW($C$4)) -> 0 | K9: =OFFSET('RISK QUANTN - EMERGENCY REPLACE'!$D$92,0,ROW()-ROW($C$4)) -> 0 | L9: =OFFSET('RISK QUANTN - SAFETY'!$D$90,0,ROW()-ROW($C$4)) -> 0 | M9: =SUM(OFFSET('RISK QUANTN - ENVIRONMENTAL'!$D$90,0,ROW()-ROW($C$4)),OFFSET('RISK QUANTN - ENVIRONMENTAL'!$D$130,0,ROW()-ROW($C$4))) -> 0 | N9: 0
B10: =Input!Q21 -> 2038 | C10: =OFFSET('RISK QUANTN - RELIABILITY solar'!$E$79,0,ROW()-ROW($C$4)) -> 0 | D10: =IFERROR(OFFSET('RISK QUANTN - RELIABILITY solar'!$E$78,0,ROW()-ROW($C$4)),0) -> 0 | E10: 0 | F10: =OFFSET('RISK QUANTN - RELIABILITY expor'!$E$89,0,ROW()-ROW($C$4)) -> 0 | G10: =IFERROR(OFFSET('RISK QUANTN - RELIABILITY expor'!$E$88,0,ROW()-ROW($C$4)),0) -> 0 | H10: 0 | I10: =IFERROR($E10*Input!M$55,0) -> 0 | J10: =OFFSET('RISK QUANTN - RELIABILITY expor'!$E$97,0,ROW()-ROW($C$4)) -> 0 | K10: =OFFSET('RISK QUANTN - EMERGENCY REPLACE'!$D$92,0,ROW()-ROW($C$4)) -> 0 | L10: =OFFSET('RISK QUANTN - SAFETY'!$D$90,0,ROW()-ROW($C$4)) -> 0 | M10: =SUM(OFFSET('RISK QUANTN - ENVIRONMENTAL'!$D$90,0,ROW()-ROW($C$4)),OFFSET('RISK QUANTN - ENVIRONMENTAL'!$D$130,0,ROW()-ROW($C$4))) -> 0 | N10: 0
B11: =Input!Q22 -> 2039 | C11: =OFFSET('RISK QUANTN - RELIABILITY solar'!$E$79,0,ROW()-ROW($C$4)) -> 0 | D11: =IFERROR(OFFSET('RISK QUANTN - RELIABILITY solar'!$E$78,0,ROW()-ROW($C$4)),0) -> 0 | E11: 0 | F11: =OFFSET('RISK QUANTN - RELIABILITY expor'!$E$89,0,ROW()-ROW($C$4)) -> 0 | G11: =IFERROR(OFFSET('RISK QUANTN - RELIABILITY expor'!$E$88,0,ROW()-ROW($C$4)),0) -> 0 | H11: 0 | I11: =IFERROR($E11*Input!M$55,0) -> 0 | J11: =OFFSET('RISK QUANTN - RELIABILITY expor'!$E$97,0,ROW()-ROW($C$4)) -> 0 | K11: =OFFSET('RISK QUANTN - EMERGENCY REPLACE'!$D$92,0,ROW()-ROW($C$4)) -> 0 | L11: =OFFSET('RISK QUANTN - SAFETY'!$D$90,0,ROW()-ROW($C$4)) -> 0 | M11: =SUM(OFFSET('RISK QUANTN - ENVIRONMENTAL'!$D$90,0,ROW()-ROW($C$4)),OFFSET('RISK QUANTN - ENVIRONMENTAL'!$D$130,0,ROW()-ROW($C$4))) -> 0 | N11: 0
B12: =Input!Q23 -> 2040 | C12: =OFFSET('RISK QUANTN - RELIABILITY solar'!$E$79,0,ROW()-ROW($C$4)) -> 0 | D12: =IFERROR(OFFSET('RISK QUANTN - RELIABILITY solar'!$E$78,0,ROW()-ROW($C$4)),0) -> 0 | E12: 0 | F12: =OFFSET('RISK QUANTN - RELIABILITY expor'!$E$89,0,ROW()-ROW($C$4)) -> 0 | G12: =IFERROR(OFFSET('RISK QUANTN - RELIABILITY expor'!$E$88,0,ROW()-ROW($C$4)),0) -> 0 | H12: 0 | I12: =IFERROR($E12*Input!M$55,0) -> 0 | J12: =OFFSET('RISK QUANTN - RELIABILITY expor'!$E$97,0,ROW()-ROW($C$4)) -> 0 | K12: =OFFSET('RISK QUANTN - EMERGENCY REPLACE'!$D$92,0,ROW()-ROW($C$4)) -> 0 | L12: =OFFSET('RISK QUANTN - SAFETY'!$D$90,0,ROW()-ROW($C$4)) -> 0 | M12: =SUM(OFFSET('RISK QUANTN - ENVIRONMENTAL'!$D$90,0,ROW()-ROW($C$4)),OFFSET('RISK QUANTN - ENVIRONMENTAL'!$D$130,0,ROW()-ROW($C$4))) -> 0 | N12: 0
B13: =Input!Q24 -> 2041 | C13: =OFFSET('RISK QUANTN - RELIABILITY solar'!$E$79,0,ROW()-ROW($C$4)) -> 0 | D13: =IFERROR(OFFSET('RISK QUANTN - RELIABILITY solar'!$E$78,0,ROW()-ROW($C$4)),0) -> 0 | E13: 0 | F13: =OFFSET('RISK QUANTN - RELIABILITY expor'!$E$89,0,ROW()-ROW($C$4)) -> 0 | G13: =IFERROR(OFFSET('RISK QUANTN - RELIABILITY expor'!$E$88,0,ROW()-ROW($C$4)),0) -> 0 | H13: 0 | I13: =IFERROR($E13*Input!M$55,0) -> 0 | J13: =OFFSET('RISK QUANTN - RELIABILITY expor'!$E$97,0,ROW()-ROW($C$4)) -> 0 | K13: =OFFSET('RISK QUANTN - EMERGENCY REPLACE'!$D$92,0,ROW()-ROW($C$4)) -> 0 | L13: =OFFSET('RISK QUANTN - SAFETY'!$D$90,0,ROW()-ROW($C$4)) -> 0 | M13: =SUM(OFFSET('RISK QUANTN - ENVIRONMENTAL'!$D$90,0,ROW()-ROW($C$4)),OFFSET('RISK QUANTN - ENVIRONMENTAL'!$D$130,0,ROW()-ROW($C$4))) -> 0 | N13: 0
B14: =Input!Q25 -> 2042 | C14: =OFFSET('RISK QUANTN - RELIABILITY solar'!$E$79,0,ROW()-ROW($C$4)) -> 0 | D14: =IFERROR(OFFSET('RISK QUANTN - RELIABILITY solar'!$E$78,0,ROW()-ROW($C$4)),0) -> 0 | E14: 0 | F14: =OFFSET('RISK QUANTN - RELIABILITY expor'!$E$89,0,ROW()-ROW($C$4)) -> 0 | G14: =IFERROR(OFFSET('RISK QUANTN - RELIABILITY expor'!$E$88,0,ROW()-ROW($C$4)),0) -> 0 | H14: 0 | I14: =IFERROR($E14*Input!M$55,0) -> 0 | J14: =OFFSET('RISK QUANTN - RELIABILITY expor'!$E$97,0,ROW()-ROW($C$4)) -> 0 | K14: =OFFSET('RISK QUANTN - EMERGENCY REPLACE'!$D$92,0,ROW()-ROW($C$4)) -> 0 | L14: =OFFSET('RISK QUANTN - SAFETY'!$D$90,0,ROW()-ROW($C$4)) -> 0 | M14: =SUM(OFFSET('RISK QUANTN - ENVIRONMENTAL'!$D$90,0,ROW()-ROW($C$4)),OFFSET('RISK QUANTN - ENVIRONMENTAL'!$D$130,0,ROW()-ROW($C$4))) -> 0 | N14: 0
B15: =Input!Q26 -> 2043 | C15: =OFFSET('RISK QUANTN - RELIABILITY solar'!$E$79,0,ROW()-ROW($C$4)) -> 0 | D15: =IFERROR(OFFSET('RISK QUANTN - RELIABILITY solar'!$E$78,0,ROW()-ROW($C$4)),0) -> 0 | E15: 0 | F15: =OFFSET('RISK QUANTN - RELIABILITY expor'!$E$89,0,ROW()-ROW($C$4)) -> 0 | G15: =IFERROR(OFFSET('RISK QUANTN - RELIABILITY expor'!$E$88,0,ROW()-ROW($C$4)),0) -> 0 | H15: 0 | I15: =IFERROR($E15*Input!M$55,0) -> 0 | J15: =OFFSET('RISK QUANTN - RELIABILITY expor'!$E$97,0,ROW()-ROW($C$4)) -> 0 | K15: =OFFSET('RISK QUANTN - EMERGENCY REPLACE'!$D$92,0,ROW()-ROW($C$4)) -> 0 | L15: =OFFSET('RISK QUANTN - SAFETY'!$D$90,0,ROW()-ROW($C$4)) -> 0 | M15: =SUM(OFFSET('RISK QUANTN - ENVIRONMENTAL'!$D$90,0,ROW()-ROW($C$4)),OFFSET('RISK QUANTN - ENVIRONMENTAL'!$D$130,0,ROW()-ROW($C$4))) -> 0 | N15: 0
B16: =Input!Q27 -> 2044 | C16: =OFFSET('RISK QUANTN - RELIABILITY solar'!$E$79,0,ROW()-ROW($C$4)) -> 0 | D16: =IFERROR(OFFSET('RISK QUANTN - RELIABILITY solar'!$E$78,0,ROW()-ROW($C$4)),0) -> 0 | E16: 0 | F16: =OFFSET('RISK QUANTN - RELIABILITY expor'!$E$89,0,ROW()-ROW($C$4)) -> 0 | G16: =IFERROR(OFFSET('RISK QUANTN - RELIABILITY expor'!$E$88,0,ROW()-ROW($C$4)),0) -> 0 | H16: 0 | I16: =IFERROR($E16*Input!M$55,0) -> 0 | J16: =OFFSET('RISK QUANTN - RELIABILITY expor'!$E$97,0,ROW()-ROW($C$4)) -> 0 | K16: =OFFSET('RISK QUANTN - EMERGENCY REPLACE'!$D$92,0,ROW()-ROW($C$4)) -> 0 | L16: =OFFSET('RISK QUANTN - SAFETY'!$D$90,0,ROW()-ROW($C$4)) -> 0 | M16: =SUM(OFFSET('RISK QUANTN - ENVIRONMENTAL'!$D$90,0,ROW()-ROW($C$4)),OFFSET('RISK QUANTN - ENVIRONMENTAL'!$D$130,0,ROW()-ROW($C$4))) -> 0 | N16: 0
B17: =Input!Q28 -> 2045 | C17: =OFFSET('RISK QUANTN - RELIABILITY solar'!$E$79,0,ROW()-ROW($C$4)) -> 0 | D17: =IFERROR(OFFSET('RISK QUANTN - RELIABILITY solar'!$E$78,0,ROW()-ROW($C$4)),0) -> 0 | E17: 0 | F17: =OFFSET('RISK QUANTN - RELIABILITY expor'!$E$89,0,ROW()-ROW($C$4)) -> 0 | G17: =IFERROR(OFFSET('RISK QUANTN - RELIABILITY expor'!$E$88,0,ROW()-ROW($C$4)),0) -> 0 | H17: 0 | I17: =IFERROR($E17*Input!M$55,0) -> 0 | J17: =OFFSET('RISK QUANTN - RELIABILITY expor'!$E$97,0,ROW()-ROW($C$4)) -> 0 | K17: =OFFSET('RISK QUANTN - EMERGENCY REPLACE'!$D$92,0,ROW()-ROW($C$4)) -> 0 | L17: =OFFSET('RISK QUANTN - SAFETY'!$D$90,0,ROW()-ROW($C$4)) -> 0 | M17: =SUM(OFFSET('RISK QUANTN - ENVIRONMENTAL'!$D$90,0,ROW()-ROW($C$4)),OFFSET('RISK QUANTN - ENVIRONMENTAL'!$D$130,0,ROW()-ROW($C$4))) -> 0 | N17: 0
B18: =Input!Q29 -> 2046 | C18: =OFFSET('RISK QUANTN - RELIABILITY solar'!$E$79,0,ROW()-ROW($C$4)) -> 0 | D18: =IFERROR(OFFSET('RISK QUANTN - RELIABILITY solar'!$E$78,0,ROW()-ROW($C$4)),0) -> 0 | E18: 0 | F18: =OFFSET('RISK QUANTN - RELIABILITY expor'!$E$89,0,ROW()-ROW($C$4)) -> 0 | G18: =IFERROR(OFFSET('RISK QUANTN - RELIABILITY expor'!$E$88,0,ROW()-ROW($C$4)),0) -> 0 | H18: 0 | I18: =IFERROR($E18*Input!M$55,0) -> 0 | J18: =OFFSET('RISK QUANTN - RELIABILITY expor'!$E$97,0,ROW()-ROW($C$4)) -> 0 | K18: =OFFSET('RISK QUANTN - EMERGENCY REPLACE'!$D$92,0,ROW()-ROW($C$4)) -> 0 | L18: =OFFSET('RISK QUANTN - SAFETY'!$D$90,0,ROW()-ROW($C$4)) -> 0 | M18: =SUM(OFFSET('RISK QUANTN - ENVIRONMENTAL'!$D$90,0,ROW()-ROW($C$4)),OFFSET('RISK QUANTN - ENVIRONMENTAL'!$D$130,0,ROW()-ROW($C$4))) -> 0 | N18: 0
B19: =Input!Q30 -> 2047 | C19: =OFFSET('RISK QUANTN - RELIABILITY solar'!$E$79,0,ROW()-ROW($C$4)) -> 0 | D19: =IFERROR(OFFSET('RISK QUANTN - RELIABILITY solar'!$E$78,0,ROW()-ROW($C$4)),0) -> 0 | E19: 0 | F19: =OFFSET('RISK QUANTN - RELIABILITY expor'!$E$89,0,ROW()-ROW($C$4)) -> 0 | G19: =IFERROR(OFFSET('RISK QUANTN - RELIABILITY expor'!$E$88,0,ROW()-ROW($C$4)),0) -> 0 | H19: 0 | I19: =IFERROR($E19*Input!M$55,0) -> 0 | J19: =OFFSET('RISK QUANTN - RELIABILITY expor'!$E$97,0,ROW()-ROW($C$4)) -> 0 | K19: =OFFSET('RISK QUANTN - EMERGENCY REPLACE'!$D$92,0,ROW()-ROW($C$4)) -> 0 | L19: =OFFSET('RISK QUANTN - SAFETY'!$D$90,0,ROW()-ROW($C$4)) -> 0 | M19: =SUM(OFFSET('RISK QUANTN - ENVIRONMENTAL'!$D$90,0,ROW()-ROW($C$4)),OFFSET('RISK QUANTN - ENVIRONMENTAL'!$D$130,0,ROW()-ROW($C$4))) -> 0 | N19: 0
B20: =Input!Q31 -> 2048 | C20: =OFFSET('RISK QUANTN - RELIABILITY solar'!$E$79,0,ROW()-ROW($C$4)) -> 0 | D20: =IFERROR(OFFSET('RISK QUANTN - RELIABILITY solar'!$E$78,0,ROW()-ROW($C$4)),0) -> 0 | E20: 0 | F20: =OFFSET('RISK QUANTN - RELIABILITY expor'!$E$89,0,ROW()-ROW($C$4)) -> 0 | G20: =IFERROR(OFFSET('RISK QUANTN - RELIABILITY expor'!$E$88,0,ROW()-ROW($C$4)),0) -> 0 | H20: 0 | I20: =IFERROR($E20*Input!M$55,0) -> 0 | J20: =OFFSET('RISK QUANTN - RELIABILITY expor'!$E$97,0,ROW()-ROW($C$4)) -> 0 | K20: =OFFSET('RISK QUANTN - EMERGENCY REPLACE'!$D$92,0,ROW()-ROW($C$4)) -> 0 | L20: =OFFSET('RISK QUANTN - SAFETY'!$D$90,0,ROW()-ROW($C$4)) -> 0 | M20: =SUM(OFFSET('RISK QUANTN - ENVIRONMENTAL'!$D$90,0,ROW()-ROW($C$4)),OFFSET('RISK QUANTN - ENVIRONMENTAL'!$D$130,0,ROW()-ROW($C$4))) -> 0 | N20: 0
B21: =Input!Q32 -> 2049 | C21: =OFFSET('RISK QUANTN - RELIABILITY solar'!$E$79,0,ROW()-ROW($C$4)) -> 0 | D21: =IFERROR(OFFSET('RISK QUANTN - RELIABILITY solar'!$E$78,0,ROW()-ROW($C$4)),0) -> 0 | E21: 0 | F21: =OFFSET('RISK QUANTN - RELIABILITY expor'!$E$89,0,ROW()-ROW($C$4)) -> 0 | G21: =IFERROR(OFFSET('RISK QUANTN - RELIABILITY expor'!$E$88,0,ROW()-ROW($C$4)),0) -> 0 | H21: 0 | I21: =IFERROR($E21*Input!M$55,0) -> 0 | J21: =OFFSET('RISK QUANTN - RELIABILITY expor'!$E$97,0,ROW()-ROW($C$4)) -> 0 | K21: =OFFSET('RISK QUANTN - EMERGENCY REPLACE'!$D$92,0,ROW()-ROW($C$4)) -> 0 | L21: =OFFSET('RISK QUANTN - SAFETY'!$D$90,0,ROW()-ROW($C$4)) -> 0 | M21: =SUM(OFFSET('RISK QUANTN - ENVIRONMENTAL'!$D$90,0,ROW()-ROW($C$4)),OFFSET('RISK QUANTN - ENVIRONMENTAL'!$D$130,0,ROW()-ROW($C$4))) -> 0 | N21: 0
B22: =Input!Q33 -> 2050 | C22: =OFFSET('RISK QUANTN - RELIABILITY solar'!$E$79,0,ROW()-ROW($C$4)) -> 0 | D22: =IFERROR(OFFSET('RISK QUANTN - RELIABILITY solar'!$E$78,0,ROW()-ROW($C$4)),0) -> 0 | E22: 0 | F22: =OFFSET('RISK QUANTN - RELIABILITY expor'!$E$89,0,ROW()-ROW($C$4)) -> 0 | G22: =IFERROR(OFFSET('RISK QUANTN - RELIABILITY expor'!$E$88,0,ROW()-ROW($C$4)),0) -> 0 | H22: 0 | I22: =IFERROR($E22*Input!M$55,0) -> 0 | J22: =OFFSET('RISK QUANTN - RELIABILITY expor'!$E$97,0,ROW()-ROW($C$4)) -> 0 | K22: =OFFSET('RISK QUANTN - EMERGENCY REPLACE'!$D$92,0,ROW()-ROW($C$4)) -> 0 | L22: =OFFSET('RISK QUANTN - SAFETY'!$D$90,0,ROW()-ROW($C$4)) -> 0 | M22: =SUM(OFFSET('RISK QUANTN - ENVIRONMENTAL'!$D$90,0,ROW()-ROW($C$4)),OFFSET('RISK QUANTN - ENVIRONMENTAL'!$D$130,0,ROW()-ROW($C$4))) -> 0 | N22: 0
B23: =Input!Q34 -> 2051 | C23: =OFFSET('RISK QUANTN - RELIABILITY solar'!$E$79,0,ROW()-ROW($C$4)) -> 0 | D23: =IFERROR(OFFSET('RISK QUANTN - RELIABILITY solar'!$E$78,0,ROW()-ROW($C$4)),0) -> 0 | E23: 0 | F23: =OFFSET('RISK QUANTN - RELIABILITY expor'!$E$89,0,ROW()-ROW($C$4)) -> 0 | G23: =IFERROR(OFFSET('RISK QUANTN - RELIABILITY expor'!$E$88,0,ROW()-ROW($C$4)),0) -> 0 | H23: 0 | I23: =IFERROR($E23*Input!M$55,0) -> 0 | J23: =OFFSET('RISK QUANTN - RELIABILITY expor'!$E$97,0,ROW()-ROW($C$4)) -> 0 | K23: =OFFSET('RISK QUANTN - EMERGENCY REPLACE'!$D$92,0,ROW()-ROW($C$4)) -> 0 | L23: =OFFSET('RISK QUANTN - SAFETY'!$D$90,0,ROW()-ROW($C$4)) -> 0 | M23: =SUM(OFFSET('RISK QUANTN - ENVIRONMENTAL'!$D$90,0,ROW()-ROW($C$4)),OFFSET('RISK QUANTN - ENVIRONMENTAL'!$D$130,0,ROW()-ROW($C$4))) -> 0 | N23: 0
B24: =Input!Q35 -> 2052 | C24: =OFFSET('RISK QUANTN - RELIABILITY solar'!$E$79,0,ROW()-ROW($C$4)) -> 0 | D24: =IFERROR(OFFSET('RISK QUANTN - RELIABILITY solar'!$E$78,0,ROW()-ROW($C$4)),0) -> 0 | E24: 0 | F24: =OFFSET('RISK QUANTN - RELIABILITY expor'!$E$89,0,ROW()-ROW($C$4)) -> 0 | G24: =IFERROR(OFFSET('RISK QUANTN - RELIABILITY expor'!$E$88,0,ROW()-ROW($C$4)),0) -> 0 | H24: 0 | I24: =IFERROR($E24*Input!M$55,0) -> 0 | J24: =OFFSET('RISK QUANTN - RELIABILITY expor'!$E$97,0,ROW()-ROW($C$4)) -> 0 | K24: =OFFSET('RISK QUANTN - EMERGENCY REPLACE'!$D$92,0,ROW()-ROW($C$4)) -> 0 | L24: =OFFSET('RISK QUANTN - SAFETY'!$D$90,0,ROW()-ROW($C$4)) -> 0 | M24: =SUM(OFFSET('RISK QUANTN - ENVIRONMENTAL'!$D$90,0,ROW()-ROW($C$4)),OFFSET('RISK QUANTN - ENVIRONMENTAL'!$D$130,0,ROW()-ROW($C$4))) -> 0 | N24: 0
B25: =Input!Q36 -> 2053 | C25: =OFFSET('RISK QUANTN - RELIABILITY solar'!$E$79,0,ROW()-ROW($C$4)) -> 0 | D25: =IFERROR(OFFSET('RISK QUANTN - RELIABILITY solar'!$E$78,0,ROW()-ROW($C$4)),0) -> 0 | E25: 0 | F25: =OFFSET('RISK QUANTN - RELIABILITY expor'!$E$89,0,ROW()-ROW($C$4)) -> 0 | G25: =IFERROR(OFFSET('RISK QUANTN - RELIABILITY expor'!$E$88,0,ROW()-ROW($C$4)),0) -> 0 | H25: 0 | I25: =IFERROR($E25*Input!M$55,0) -> 0 | J25: =OFFSET('RISK QUANTN - RELIABILITY expor'!$E$97,0,ROW()-ROW($C$4)) -> 0 | K25: =OFFSET('RISK QUANTN - EMERGENCY REPLACE'!$D$92,0,ROW()-ROW($C$4)) -> 0 | L25: =OFFSET('RISK QUANTN - SAFETY'!$D$90,0,ROW()-ROW($C$4)) -> 0 | M25: =SUM(OFFSET('RISK QUANTN - ENVIRONMENTAL'!$D$90,0,ROW()-ROW($C$4)),OFFSET('RISK QUANTN - ENVIRONMENTAL'!$D$130,0,ROW()-ROW($C$4))) -> 0 | N25: 0
B26: =Input!Q37 -> 2054 | C26: =OFFSET('RISK QUANTN - RELIABILITY solar'!$E$79,0,ROW()-ROW($C$4)) -> 7.618378768e-05 | D26: =IFERROR(OFFSET('RISK QUANTN - RELIABILITY solar'!$E$78,0,ROW()-ROW($C$4)),0) -> 122.5946083 | E26: 0.009339721613 | F26: =OFFSET('RISK QUANTN - RELIABILITY expor'!$E$89,0,ROW()-ROW($C$4)) -> 0 | G26: =IFERROR(OFFSET('RISK QUANTN - RELIABILITY expor'!$E$88,0,ROW()-ROW($C$4)),0) -> 0 | H26: 0 | I26: =IFERROR($E26*Input!M$55,0) -> 0.3652777641 | J26: =OFFSET('RISK QUANTN - RELIABILITY expor'!$E$97,0,ROW()-ROW($C$4)) -> 0 | K26: =OFFSET('RISK QUANTN - EMERGENCY REPLACE'!$D$92,0,ROW()-ROW($C$4)) -> 0 | L26: =OFFSET('RISK QUANTN - SAFETY'!$D$90,0,ROW()-ROW($C$4)) -> 0 | M26: =SUM(OFFSET('RISK QUANTN - ENVIRONMENTAL'!$D$90,0,ROW()-ROW($C$4)),OFFSET('RISK QUANTN - ENVIRONMENTAL'!$D$130,0,ROW()-ROW($C$4))) -> 0 | N26: 0.3652777641
B27: =Input!Q38 -> 2055 | C27: =OFFSET('RISK QUANTN - RELIABILITY solar'!$E$79,0,ROW()-ROW($C$4)) -> 7.618378768e-05 | D27: =IFERROR(OFFSET('RISK QUANTN - RELIABILITY solar'!$E$78,0,ROW()-ROW($C$4)),0) -> 435.2874974 | E27: 0.03316185028 | F27: =OFFSET('RISK QUANTN - RELIABILITY expor'!$E$89,0,ROW()-ROW($C$4)) -> 0 | G27: =IFERROR(OFFSET('RISK QUANTN - RELIABILITY expor'!$E$88,0,ROW()-ROW($C$4)),0) -> 0 | H27: 0 | I27: =IFERROR($E27*Input!M$55,0) -> 1.296964409 | J27: =OFFSET('RISK QUANTN - RELIABILITY expor'!$E$97,0,ROW()-ROW($C$4)) -> 0 | K27: =OFFSET('RISK QUANTN - EMERGENCY REPLACE'!$D$92,0,ROW()-ROW($C$4)) -> 0 | L27: =OFFSET('RISK QUANTN - SAFETY'!$D$90,0,ROW()-ROW($C$4)) -> 0 | M27: =SUM(OFFSET('RISK QUANTN - ENVIRONMENTAL'!$D$90,0,ROW()-ROW($C$4)),OFFSET('RISK QUANTN - ENVIRONMENTAL'!$D$130,0,ROW()-ROW($C$4))) -> 0 | N27: 1.296964409
B28: =Input!Q39 -> 2056 | C28: =OFFSET('RISK QUANTN - RELIABILITY solar'!$E$79,0,ROW()-ROW($C$4)) -> 7.618378768e-05 | D28: =IFERROR(OFFSET('RISK QUANTN - RELIABILITY solar'!$E$78,0,ROW()-ROW($C$4)),0) -> 714.799592 | E28: 0.05445614035 | F28: =OFFSET('RISK QUANTN - RELIABILITY expor'!$E$89,0,ROW()-ROW($C$4)) -> 0 | G28: =IFERROR(OFFSET('RISK QUANTN - RELIABILITY expor'!$E$88,0,ROW()-ROW($C$4)),0) -> 0 | H28: 0 | I28: =IFERROR($E28*Input!M$55,0) -> 2.129786948 | J28: =OFFSET('RISK QUANTN - RELIABILITY expor'!$E$97,0,ROW()-ROW($C$4)) -> 0 | K28: =OFFSET('RISK QUANTN - EMERGENCY REPLACE'!$D$92,0,ROW()-ROW($C$4)) -> 0 | L28: =OFFSET('RISK QUANTN - SAFETY'!$D$90,0,ROW()-ROW($C$4)) -> 0 | M28: =SUM(OFFSET('RISK QUANTN - ENVIRONMENTAL'!$D$90,0,ROW()-ROW($C$4)),OFFSET('RISK QUANTN - ENVIRONMENTAL'!$D$130,0,ROW()-ROW($C$4))) -> 0 | N28: 2.129786948
B29: =Input!Q40 -> 2057 | C29: =OFFSET('RISK QUANTN - RELIABILITY solar'!$E$79,0,ROW()-ROW($C$4)) -> 7.618378768e-05 | D29: =IFERROR(OFFSET('RISK QUANTN - RELIABILITY solar'!$E$78,0,ROW()-ROW($C$4)),0) -> 1023.31482 | E29: 0.077959999 | F29: =OFFSET('RISK QUANTN - RELIABILITY expor'!$E$89,0,ROW()-ROW($C$4)) -> 0 | G29: =IFERROR(OFFSET('RISK QUANTN - RELIABILITY expor'!$E$88,0,ROW()-ROW($C$4)),0) -> 0 | H29: 0 | I29: =IFERROR($E29*Input!M$55,0) -> 3.04902601 | J29: =OFFSET('RISK QUANTN - RELIABILITY expor'!$E$97,0,ROW()-ROW($C$4)) -> 0 | K29: =OFFSET('RISK QUANTN - EMERGENCY REPLACE'!$D$92,0,ROW()-ROW($C$4)) -> 0 | L29: =OFFSET('RISK QUANTN - SAFETY'!$D$90,0,ROW()-ROW($C$4)) -> 0 | M29: =SUM(OFFSET('RISK QUANTN - ENVIRONMENTAL'!$D$90,0,ROW()-ROW($C$4)),OFFSET('RISK QUANTN - ENVIRONMENTAL'!$D$130,0,ROW()-ROW($C$4))) -> 0 | N29: 3.04902601
B30: =Input!Q41 -> 2058 | C30: =OFFSET('RISK QUANTN - RELIABILITY solar'!$E$79,0,ROW()-ROW($C$4)) -> 7.618378768e-05 | D30: =IFERROR(OFFSET('RISK QUANTN - RELIABILITY solar'!$E$78,0,ROW()-ROW($C$4)),0) -> 1318.490606 | E30: 0.1004476084 | F30: =OFFSET('RISK QUANTN - RELIABILITY expor'!$E$89,0,ROW()-ROW($C$4)) -> 0 | G30: =IFERROR(OFFSET('RISK QUANTN - RELIABILITY expor'!$E$88,0,ROW()-ROW($C$4)),0) -> 0 | H30: 0 | I30: =IFERROR($E30*Input!M$55,0) -> 3.928519427 | J30: =OFFSET('RISK QUANTN - RELIABILITY expor'!$E$97,0,ROW()-ROW($C$4)) -> 0 | K30: =OFFSET('RISK QUANTN - EMERGENCY REPLACE'!$D$92,0,ROW()-ROW($C$4)) -> 0 | L30: =OFFSET('RISK QUANTN - SAFETY'!$D$90,0,ROW()-ROW($C$4)) -> 0 | M30: =SUM(OFFSET('RISK QUANTN - ENVIRONMENTAL'!$D$90,0,ROW()-ROW($C$4)),OFFSET('RISK QUANTN - ENVIRONMENTAL'!$D$130,0,ROW()-ROW($C$4))) -> 0 | N30: 3.928519427
B31: =Input!Q42 -> 2059 | C31: =OFFSET('RISK QUANTN - RELIABILITY solar'!$E$79,0,ROW()-ROW($C$4)) -> 7.618378768e-05 | D31: =IFERROR(OFFSET('RISK QUANTN - RELIABILITY solar'!$E$78,0,ROW()-ROW($C$4)),0) -> 1676.125821 | E31: 0.1276936136 | F31: =OFFSET('RISK QUANTN - RELIABILITY expor'!$E$89,0,ROW()-ROW($C$4)) -> 0 | G31: =IFERROR(OFFSET('RISK QUANTN - RELIABILITY expor'!$E$88,0,ROW()-ROW($C$4)),0) -> 0 | H31: 0 | I31: =IFERROR($E31*Input!M$55,0) -> 4.994114344 | J31: =OFFSET('RISK QUANTN - RELIABILITY expor'!$E$97,0,ROW()-ROW($C$4)) -> 0 | K31: =OFFSET('RISK QUANTN - EMERGENCY REPLACE'!$D$92,0,ROW()-ROW($C$4)) -> 0 | L31: =OFFSET('RISK QUANTN - SAFETY'!$D$90,0,ROW()-ROW($C$4)) -> 0 | M31: =SUM(OFFSET('RISK QUANTN - ENVIRONMENTAL'!$D$90,0,ROW()-ROW($C$4)),OFFSET('RISK QUANTN - ENVIRONMENTAL'!$D$130,0,ROW()-ROW($C$4))) -> 0 | N31: 4.994114344
B32: =Input!Q43 -> 2060 | C32: =OFFSET('RISK QUANTN - RELIABILITY solar'!$E$79,0,ROW()-ROW($C$4)) -> 7.618378768e-05 | D32: =IFERROR(OFFSET('RISK QUANTN - RELIABILITY solar'!$E$78,0,ROW()-ROW($C$4)),0) -> 2231.67112 | E32: 0.1700171588 | F32: =OFFSET('RISK QUANTN - RELIABILITY expor'!$E$89,0,ROW()-ROW($C$4)) -> 0 | G32: =IFERROR(OFFSET('RISK QUANTN - RELIABILITY expor'!$E$88,0,ROW()-ROW($C$4)),0) -> 0 | H32: 0 | I32: =IFERROR($E32*Input!M$55,0) -> 6.649393868 | J32: =OFFSET('RISK QUANTN - RELIABILITY expor'!$E$97,0,ROW()-ROW($C$4)) -> 0 | K32: =OFFSET('RISK QUANTN - EMERGENCY REPLACE'!$D$92,0,ROW()-ROW($C$4)) -> 0 | L32: =OFFSET('RISK QUANTN - SAFETY'!$D$90,0,ROW()-ROW($C$4)) -> 0 | M32: =SUM(OFFSET('RISK QUANTN - ENVIRONMENTAL'!$D$90,0,ROW()-ROW($C$4)),OFFSET('RISK QUANTN - ENVIRONMENTAL'!$D$130,0,ROW()-ROW($C$4))) -> 0 | N32: 6.649393868
B33: =Input!Q44 -> 2061 | C33: =OFFSET('RISK QUANTN - RELIABILITY solar'!$E$79,0,ROW()-ROW($C$4)) -> 7.618378768e-05 | D33: =IFERROR(OFFSET('RISK QUANTN - RELIABILITY solar'!$E$78,0,ROW()-ROW($C$4)),0) -> 3206.424439 | E33: 0.2442775587 | F33: =OFFSET('RISK QUANTN - RELIABILITY expor'!$E$89,0,ROW()-ROW($C$4)) -> 0 | G33: =IFERROR(OFFSET('RISK QUANTN - RELIABILITY expor'!$E$88,0,ROW()-ROW($C$4)),0) -> 0 | H33: 0 | I33: =IFERROR($E33*Input!M$55,0) -> 9.55372806 | J33: =OFFSET('RISK QUANTN - RELIABILITY expor'!$E$97,0,ROW()-ROW($C$4)) -> 0 | K33: =OFFSET('RISK QUANTN - EMERGENCY REPLACE'!$D$92,0,ROW()-ROW($C$4)) -> 0 | L33: =OFFSET('RISK QUANTN - SAFETY'!$D$90,0,ROW()-ROW($C$4)) -> 0 | M33: =SUM(OFFSET('RISK QUANTN - ENVIRONMENTAL'!$D$90,0,ROW()-ROW($C$4)),OFFSET('RISK QUANTN - ENVIRONMENTAL'!$D$130,0,ROW()-ROW($C$4))) -> 0 | N33: 9.55372806
B34: =Input!Q45 -> 2062 | C34: =OFFSET('RISK QUANTN - RELIABILITY solar'!$E$79,0,ROW()-ROW($C$4)) -> 7.618378768e-05 | D34: =IFERROR(OFFSET('RISK QUANTN - RELIABILITY solar'!$E$78,0,ROW()-ROW($C$4)),0) -> 4764.523985 | E34: 0.3629794837 | F34: =OFFSET('RISK QUANTN - RELIABILITY expor'!$E$89,0,ROW()-ROW($C$4)) -> 0 | G34: =IFERROR(OFFSET('RISK QUANTN - RELIABILITY expor'!$E$88,0,ROW()-ROW($C$4)),0) -> 0 | H34: 0 | I34: =IFERROR($E34*Input!M$55,0) -> 14.19617626 | J34: =OFFSET('RISK QUANTN - RELIABILITY expor'!$E$97,0,ROW()-ROW($C$4)) -> 0 | K34: =OFFSET('RISK QUANTN - EMERGENCY REPLACE'!$D$92,0,ROW()-ROW($C$4)) -> 0 | L34: =OFFSET('RISK QUANTN - SAFETY'!$D$90,0,ROW()-ROW($C$4)) -> 0 | M34: =SUM(OFFSET('RISK QUANTN - ENVIRONMENTAL'!$D$90,0,ROW()-ROW($C$4)),OFFSET('RISK QUANTN - ENVIRONMENTAL'!$D$130,0,ROW()-ROW($C$4))) -> 0 | N34: 14.19617626
B35: =Input!Q46 -> 2063 | C35: =OFFSET('RISK QUANTN - RELIABILITY solar'!$E$79,0,ROW()-ROW($C$4)) -> 7.618378768e-05 | D35: =IFERROR(OFFSET('RISK QUANTN - RELIABILITY solar'!$E$78,0,ROW()-ROW($C$4)),0) -> 6777.592052 | E35: 0.5163426339 | F35: =OFFSET('RISK QUANTN - RELIABILITY expor'!$E$89,0,ROW()-ROW($C$4)) -> 0 | G35: =IFERROR(OFFSET('RISK QUANTN - RELIABILITY expor'!$E$88,0,ROW()-ROW($C$4)),0) -> 0 | H35: 0 | I35: =IFERROR($E35*Input!M$55,0) -> 20.19422962 | J35: =OFFSET('RISK QUANTN - RELIABILITY expor'!$E$97,0,ROW()-ROW($C$4)) -> 0 | K35: =OFFSET('RISK QUANTN - EMERGENCY REPLACE'!$D$92,0,ROW()-ROW($C$4)) -> 0 | L35: =OFFSET('RISK QUANTN - SAFETY'!$D$90,0,ROW()-ROW($C$4)) -> 0 | M35: =SUM(OFFSET('RISK QUANTN - ENVIRONMENTAL'!$D$90,0,ROW()-ROW($C$4)),OFFSET('RISK QUANTN - ENVIRONMENTAL'!$D$130,0,ROW()-ROW($C$4))) -> 0 | N35: 20.19422962
B36: =Input!Q47 -> 2064 | C36: =OFFSET('RISK QUANTN - RELIABILITY solar'!$E$79,0,ROW()-ROW($C$4)) -> 7.618378768e-05 | D36: =IFERROR(OFFSET('RISK QUANTN - RELIABILITY solar'!$E$78,0,ROW()-ROW($C$4)),0) -> 8922.464075 | E36: 0.6797471087 | F36: =OFFSET('RISK QUANTN - RELIABILITY expor'!$E$89,0,ROW()-ROW($C$4)) -> 0 | G36: =IFERROR(OFFSET('RISK QUANTN - RELIABILITY expor'!$E$88,0,ROW()-ROW($C$4)),0) -> 0 | H36: 0 | I36: =IFERROR($E36*Input!M$55,0) -> 26.58500053 | J36: =OFFSET('RISK QUANTN - RELIABILITY expor'!$E$97,0,ROW()-ROW($C$4)) -> 0 | K36: =OFFSET('RISK QUANTN - EMERGENCY REPLACE'!$D$92,0,ROW()-ROW($C$4)) -> 0 | L36: =OFFSET('RISK QUANTN - SAFETY'!$D$90,0,ROW()-ROW($C$4)) -> 0 | M36: =SUM(OFFSET('RISK QUANTN - ENVIRONMENTAL'!$D$90,0,ROW()-ROW($C$4)),OFFSET('RISK QUANTN - ENVIRONMENTAL'!$D$130,0,ROW()-ROW($C$4))) -> 0 | N36: 26.58500053
B37: =Input!Q48 -> 2065 | C37: =OFFSET('RISK QUANTN - RELIABILITY solar'!$E$79,0,ROW()-ROW($C$4)) -> 7.618378768e-05 | D37: =IFERROR(OFFSET('RISK QUANTN - RELIABILITY solar'!$E$78,0,ROW()-ROW($C$4)),0) -> 11581.17747 | E37: 0.8822979656 | F37: =OFFSET('RISK QUANTN - RELIABILITY expor'!$E$89,0,ROW()-ROW($C$4)) -> 0 | G37: =IFERROR(OFFSET('RISK QUANTN - RELIABILITY expor'!$E$88,0,ROW()-ROW($C$4)),0) -> 0 | H37: 0 | I37: =IFERROR($E37*Input!M$55,0) -> 34.50679168 | J37: =OFFSET('RISK QUANTN - RELIABILITY expor'!$E$97,0,ROW()-ROW($C$4)) -> 0 | K37: =OFFSET('RISK QUANTN - EMERGENCY REPLACE'!$D$92,0,ROW()-ROW($C$4)) -> 0 | L37: =OFFSET('RISK QUANTN - SAFETY'!$D$90,0,ROW()-ROW($C$4)) -> 0 | M37: =SUM(OFFSET('RISK QUANTN - ENVIRONMENTAL'!$D$90,0,ROW()-ROW($C$4)),OFFSET('RISK QUANTN - ENVIRONMENTAL'!$D$130,0,ROW()-ROW($C$4))) -> 0 | N37: 34.50679168
B38: =Input!Q49 -> 2066 | C38: =OFFSET('RISK QUANTN - RELIABILITY solar'!$E$79,0,ROW()-ROW($C$4)) -> 7.618378768e-05 | D38: =IFERROR(OFFSET('RISK QUANTN - RELIABILITY solar'!$E$78,0,ROW()-ROW($C$4)),0) -> 15106.72644 | E38: 1.15088764 | F38: =OFFSET('RISK QUANTN - RELIABILITY expor'!$E$89,0,ROW()-ROW($C$4)) -> 0 | G38: =IFERROR(OFFSET('RISK QUANTN - RELIABILITY expor'!$E$88,0,ROW()-ROW($C$4)),0) -> 0 | H38: 0 | I38: =IFERROR($E38*Input!M$55,0) -> 45.01136984 | J38: =OFFSET('RISK QUANTN - RELIABILITY expor'!$E$97,0,ROW()-ROW($C$4)) -> 0 | K38: =OFFSET('RISK QUANTN - EMERGENCY REPLACE'!$D$92,0,ROW()-ROW($C$4)) -> 0 | L38: =OFFSET('RISK QUANTN - SAFETY'!$D$90,0,ROW()-ROW($C$4)) -> 0 | M38: =SUM(OFFSET('RISK QUANTN - ENVIRONMENTAL'!$D$90,0,ROW()-ROW($C$4)),OFFSET('RISK QUANTN - ENVIRONMENTAL'!$D$130,0,ROW()-ROW($C$4))) -> 0 | N38: 45.01136984
B39: =Input!Q50 -> 2067 | C39: =OFFSET('RISK QUANTN - RELIABILITY solar'!$E$79,0,ROW()-ROW($C$4)) -> 7.618378768e-05 | D39: =IFERROR(OFFSET('RISK QUANTN - RELIABILITY solar'!$E$78,0,ROW()-ROW($C$4)),0) -> 19480.26394 | E39: 1.484080292 | F39: =OFFSET('RISK QUANTN - RELIABILITY expor'!$E$89,0,ROW()-ROW($C$4)) -> 0 | G39: =IFERROR(OFFSET('RISK QUANTN - RELIABILITY expor'!$E$88,0,ROW()-ROW($C$4)),0) -> 0 | H39: 0 | I39: =IFERROR($E39*Input!M$55,0) -> 58.04257913 | J39: =OFFSET('RISK QUANTN - RELIABILITY expor'!$E$97,0,ROW()-ROW($C$4)) -> 0 | K39: =OFFSET('RISK QUANTN - EMERGENCY REPLACE'!$D$92,0,ROW()-ROW($C$4)) -> 0 | L39: =OFFSET('RISK QUANTN - SAFETY'!$D$90,0,ROW()-ROW($C$4)) -> 0 | M39: =SUM(OFFSET('RISK QUANTN - ENVIRONMENTAL'!$D$90,0,ROW()-ROW($C$4)),OFFSET('RISK QUANTN - ENVIRONMENTAL'!$D$130,0,ROW()-ROW($C$4))) -> 0 | N39: 58.04257913
B40: =Input!Q51 -> 2068 | C40: =OFFSET('RISK QUANTN - RELIABILITY solar'!$E$79,0,ROW()-ROW($C$4)) -> 7.618378768e-05 | D40: =IFERROR(OFFSET('RISK QUANTN - RELIABILITY solar'!$E$78,0,ROW()-ROW($C$4)),0) -> 24913.99373 | E40: 1.898042409 | F40: =OFFSET('RISK QUANTN - RELIABILITY expor'!$E$89,0,ROW()-ROW($C$4)) -> 0 | G40: =IFERROR(OFFSET('RISK QUANTN - RELIABILITY expor'!$E$88,0,ROW()-ROW($C$4)),0) -> 0 | H40: 0 | I40: =IFERROR($E40*Input!M$55,0) -> 74.232693 | J40: =OFFSET('RISK QUANTN - RELIABILITY expor'!$E$97,0,ROW()-ROW($C$4)) -> 0 | K40: =OFFSET('RISK QUANTN - EMERGENCY REPLACE'!$D$92,0,ROW()-ROW($C$4)) -> 0 | L40: =OFFSET('RISK QUANTN - SAFETY'!$D$90,0,ROW()-ROW($C$4)) -> 0 | M40: =SUM(OFFSET('RISK QUANTN - ENVIRONMENTAL'!$D$90,0,ROW()-ROW($C$4)),OFFSET('RISK QUANTN - ENVIRONMENTAL'!$D$130,0,ROW()-ROW($C$4))) -> 0 | N40: 74.232693
B41: =Input!Q52 -> 2069 | C41: =OFFSET('RISK QUANTN - RELIABILITY solar'!$E$79,0,ROW()-ROW($C$4)) -> 7.618378768e-05 | D41: =IFERROR(OFFSET('RISK QUANTN - RELIABILITY solar'!$E$78,0,ROW()-ROW($C$4)),0) -> 31417.6286 | E41: 2.393513947 | F41: =OFFSET('RISK QUANTN - RELIABILITY expor'!$E$89,0,ROW()-ROW($C$4)) -> 0 | G41: =IFERROR(OFFSET('RISK QUANTN - RELIABILITY expor'!$E$88,0,ROW()-ROW($C$4)),0) -> 0 | H41: 0 | I41: =IFERROR($E41*Input!M$55,0) -> 93.61065126 | J41: =OFFSET('RISK QUANTN - RELIABILITY expor'!$E$97,0,ROW()-ROW($C$4)) -> 0 | K41: =OFFSET('RISK QUANTN - EMERGENCY REPLACE'!$D$92,0,ROW()-ROW($C$4)) -> 0 | L41: =OFFSET('RISK QUANTN - SAFETY'!$D$90,0,ROW()-ROW($C$4)) -> 0 | M41: =SUM(OFFSET('RISK QUANTN - ENVIRONMENTAL'!$D$90,0,ROW()-ROW($C$4)),OFFSET('RISK QUANTN - ENVIRONMENTAL'!$D$130,0,ROW()-ROW($C$4))) -> 0 | N41: 93.61065126
B42: =Input!Q53 -> 2070 | C42: =OFFSET('RISK QUANTN - RELIABILITY solar'!$E$79,0,ROW()-ROW($C$4)) -> 7.618378768e-05 | D42: =IFERROR(OFFSET('RISK QUANTN - RELIABILITY solar'!$E$78,0,ROW()-ROW($C$4)),0) -> 38571.96052 | E42: 2.938558051 | F42: =OFFSET('RISK QUANTN - RELIABILITY expor'!$E$89,0,ROW()-ROW($C$4)) -> 0 | G42: =IFERROR(OFFSET('RISK QUANTN - RELIABILITY expor'!$E$88,0,ROW()-ROW($C$4)),0) -> 0 | H42: 0 | I42: =IFERROR($E42*Input!M$55,0) -> 114.9273992 | J42: =OFFSET('RISK QUANTN - RELIABILITY expor'!$E$97,0,ROW()-ROW($C$4)) -> 0 | K42: =OFFSET('RISK QUANTN - EMERGENCY REPLACE'!$D$92,0,ROW()-ROW($C$4)) -> 0 | L42: =OFFSET('RISK QUANTN - SAFETY'!$D$90,0,ROW()-ROW($C$4)) -> 0 | M42: =SUM(OFFSET('RISK QUANTN - ENVIRONMENTAL'!$D$90,0,ROW()-ROW($C$4)),OFFSET('RISK QUANTN - ENVIRONMENTAL'!$D$130,0,ROW()-ROW($C$4))) -> 0 | N42: 114.9273992
B43: =Input!Q54 -> 2071 | C43: =OFFSET('RISK QUANTN - RELIABILITY solar'!$E$79,0,ROW()-ROW($C$4)) -> 7.618378768e-05 | D43: =IFERROR(OFFSET('RISK QUANTN - RELIABILITY solar'!$E$78,0,ROW()-ROW($C$4)),0) -> 48978.5707 | E43: 3.731373031 | F43: =OFFSET('RISK QUANTN - RELIABILITY expor'!$E$89,0,ROW()-ROW($C$4)) -> 0 | G43: =IFERROR(OFFSET('RISK QUANTN - RELIABILITY expor'!$E$88,0,ROW()-ROW($C$4)),0) -> 0 | H43: 0 | I43: =IFERROR($E43*Input!M$55,0) -> 145.9344994 | J43: =OFFSET('RISK QUANTN - RELIABILITY expor'!$E$97,0,ROW()-ROW($C$4)) -> 0 | K43: =OFFSET('RISK QUANTN - EMERGENCY REPLACE'!$D$92,0,ROW()-ROW($C$4)) -> 0 | L43: =OFFSET('RISK QUANTN - SAFETY'!$D$90,0,ROW()-ROW($C$4)) -> 0 | M43: =SUM(OFFSET('RISK QUANTN - ENVIRONMENTAL'!$D$90,0,ROW()-ROW($C$4)),OFFSET('RISK QUANTN - ENVIRONMENTAL'!$D$130,0,ROW()-ROW($C$4))) -> 0 | N43: 145.9344994
B44: =Input!Q55 -> 2072 | C44: =OFFSET('RISK QUANTN - RELIABILITY solar'!$E$79,0,ROW()-ROW($C$4)) -> 7.618378768e-05 | D44: =IFERROR(OFFSET('RISK QUANTN - RELIABILITY solar'!$E$78,0,ROW()-ROW($C$4)),0) -> 60504.74437 | E44: 4.609480599 | F44: =OFFSET('RISK QUANTN - RELIABILITY expor'!$E$89,0,ROW()-ROW($C$4)) -> 0 | G44: =IFERROR(OFFSET('RISK QUANTN - RELIABILITY expor'!$E$88,0,ROW()-ROW($C$4)),0) -> 0 | H44: 0 | I44: =IFERROR($E44*Input!M$55,0) -> 180.277404 | J44: =OFFSET('RISK QUANTN - RELIABILITY expor'!$E$97,0,ROW()-ROW($C$4)) -> 0 | K44: =OFFSET('RISK QUANTN - EMERGENCY REPLACE'!$D$92,0,ROW()-ROW($C$4)) -> 0 | L44: =OFFSET('RISK QUANTN - SAFETY'!$D$90,0,ROW()-ROW($C$4)) -> 0 | M44: =SUM(OFFSET('RISK QUANTN - ENVIRONMENTAL'!$D$90,0,ROW()-ROW($C$4)),OFFSET('RISK QUANTN - ENVIRONMENTAL'!$D$130,0,ROW()-ROW($C$4))) -> 0 | N44: 180.277404
B45: =Input!Q56 -> 2073 | C45: =OFFSET('RISK QUANTN - RELIABILITY solar'!$E$79,0,ROW()-ROW($C$4)) -> 7.618378768e-05 | D45: =IFERROR(OFFSET('RISK QUANTN - RELIABILITY solar'!$E$78,0,ROW()-ROW($C$4)),0) -> 74743.9333 | E45: 5.694275945 | F45: =OFFSET('RISK QUANTN - RELIABILITY expor'!$E$89,0,ROW()-ROW($C$4)) -> 0 | G45: =IFERROR(OFFSET('RISK QUANTN - RELIABILITY expor'!$E$88,0,ROW()-ROW($C$4)),0) -> 0 | H45: 0 | I45: =IFERROR($E45*Input!M$55,0) -> 222.7038954 | J45: =OFFSET('RISK QUANTN - RELIABILITY expor'!$E$97,0,ROW()-ROW($C$4)) -> 0 | K45: =OFFSET('RISK QUANTN - EMERGENCY REPLACE'!$D$92,0,ROW()-ROW($C$4)) -> 0 | L45: =OFFSET('RISK QUANTN - SAFETY'!$D$90,0,ROW()-ROW($C$4)) -> 0 | M45: =SUM(OFFSET('RISK QUANTN - ENVIRONMENTAL'!$D$90,0,ROW()-ROW($C$4)),OFFSET('RISK QUANTN - ENVIRONMENTAL'!$D$130,0,ROW()-ROW($C$4))) -> 0 | N45: 222.7038954
B46: =Input!Q57 -> 2074 | C46: =OFFSET('RISK QUANTN - RELIABILITY solar'!$E$79,0,ROW()-ROW($C$4)) -> 7.618378768e-05 | D46: =IFERROR(OFFSET('RISK QUANTN - RELIABILITY solar'!$E$78,0,ROW()-ROW($C$4)),0) -> 90581.30504 | E46: 6.900826912 | F46: =OFFSET('RISK QUANTN - RELIABILITY expor'!$E$89,0,ROW()-ROW($C$4)) -> 0 | G46: =IFERROR(OFFSET('RISK QUANTN - RELIABILITY expor'!$E$88,0,ROW()-ROW($C$4)),0) -> 0 | H46: 0 | I46: =IFERROR($E46*Input!M$55,0) -> 269.8922654 | J46: =OFFSET('RISK QUANTN - RELIABILITY expor'!$E$97,0,ROW()-ROW($C$4)) -> 0 | K46: =OFFSET('RISK QUANTN - EMERGENCY REPLACE'!$D$92,0,ROW()-ROW($C$4)) -> 0 | L46: =OFFSET('RISK QUANTN - SAFETY'!$D$90,0,ROW()-ROW($C$4)) -> 0 | M46: =SUM(OFFSET('RISK QUANTN - ENVIRONMENTAL'!$D$90,0,ROW()-ROW($C$4)),OFFSET('RISK QUANTN - ENVIRONMENTAL'!$D$130,0,ROW()-ROW($C$4))) -> 0 | N46: 269.8922654
B47: =Input!Q58 -> 2075 | C47: =OFFSET('RISK QUANTN - RELIABILITY solar'!$E$79,0,ROW()-ROW($C$4)) -> 7.618378768e-05 | D47: =IFERROR(OFFSET('RISK QUANTN - RELIABILITY solar'!$E$78,0,ROW()-ROW($C$4)),0) -> 106794.961 | E47: 8.136044638 | F47: =OFFSET('RISK QUANTN - RELIABILITY expor'!$E$89,0,ROW()-ROW($C$4)) -> 0 | G47: =IFERROR(OFFSET('RISK QUANTN - RELIABILITY expor'!$E$88,0,ROW()-ROW($C$4)),0) -> 0 | H47: 0 | I47: =IFERROR($E47*Input!M$55,0) -> 318.2017962 | J47: =OFFSET('RISK QUANTN - RELIABILITY expor'!$E$97,0,ROW()-ROW($C$4)) -> 0 | K47: =OFFSET('RISK QUANTN - EMERGENCY REPLACE'!$D$92,0,ROW()-ROW($C$4)) -> 0 | L47: =OFFSET('RISK QUANTN - SAFETY'!$D$90,0,ROW()-ROW($C$4)) -> 0 | M47: =SUM(OFFSET('RISK QUANTN - ENVIRONMENTAL'!$D$90,0,ROW()-ROW($C$4)),OFFSET('RISK QUANTN - ENVIRONMENTAL'!$D$130,0,ROW()-ROW($C$4))) -> 0 | N47: 318.2017962
B48: =Input!Q59 -> 2076 | C48: =OFFSET('RISK QUANTN - RELIABILITY solar'!$E$79,0,ROW()-ROW($C$4)) -> 7.618378768e-05 | D48: =IFERROR(OFFSET('RISK QUANTN - RELIABILITY solar'!$E$78,0,ROW()-ROW($C$4)),0) -> 125487.1101 | E48: 9.560083352 | F48: =OFFSET('RISK QUANTN - RELIABILITY expor'!$E$89,0,ROW()-ROW($C$4)) -> 0 | G48: =IFERROR(OFFSET('RISK QUANTN - RELIABILITY expor'!$E$88,0,ROW()-ROW($C$4)),0) -> 0 | H48: 0 | I48: =IFERROR($E48*Input!M$55,0) -> 373.8961412 | J48: =OFFSET('RISK QUANTN - RELIABILITY expor'!$E$97,0,ROW()-ROW($C$4)) -> 0 | K48: =OFFSET('RISK QUANTN - EMERGENCY REPLACE'!$D$92,0,ROW()-ROW($C$4)) -> 0 | L48: =OFFSET('RISK QUANTN - SAFETY'!$D$90,0,ROW()-ROW($C$4)) -> 0 | M48: =SUM(OFFSET('RISK QUANTN - ENVIRONMENTAL'!$D$90,0,ROW()-ROW($C$4)),OFFSET('RISK QUANTN - ENVIRONMENTAL'!$D$130,0,ROW()-ROW($C$4))) -> 0 | N48: 373.8961412
B49: =Input!Q60 -> 2077 | C49: =OFFSET('RISK QUANTN - RELIABILITY solar'!$E$79,0,ROW()-ROW($C$4)) -> 7.618378768e-05 | D49: =IFERROR(OFFSET('RISK QUANTN - RELIABILITY solar'!$E$78,0,ROW()-ROW($C$4)),0) -> 148280.3423 | E49: 11.29655811 | F49: =OFFSET('RISK QUANTN - RELIABILITY expor'!$E$89,0,ROW()-ROW($C$4)) -> 0 | G49: =IFERROR(OFFSET('RISK QUANTN - RELIABILITY expor'!$E$88,0,ROW()-ROW($C$4)),0) -> 0 | H49: 0 | I49: =IFERROR($E49*Input!M$55,0) -> 441.8099018 | J49: =OFFSET('RISK QUANTN - RELIABILITY expor'!$E$97,0,ROW()-ROW($C$4)) -> 0 | K49: =OFFSET('RISK QUANTN - EMERGENCY REPLACE'!$D$92,0,ROW()-ROW($C$4)) -> 0 | L49: =OFFSET('RISK QUANTN - SAFETY'!$D$90,0,ROW()-ROW($C$4)) -> 0 | M49: =SUM(OFFSET('RISK QUANTN - ENVIRONMENTAL'!$D$90,0,ROW()-ROW($C$4)),OFFSET('RISK QUANTN - ENVIRONMENTAL'!$D$130,0,ROW()-ROW($C$4))) -> 0 | N49: 441.8099018
B50: =Input!Q61 -> 2078 | C50: =OFFSET('RISK QUANTN - RELIABILITY solar'!$E$79,0,ROW()-ROW($C$4)) -> 7.618378768e-05 | D50: =IFERROR(OFFSET('RISK QUANTN - RELIABILITY solar'!$E$78,0,ROW()-ROW($C$4)),0) -> 171689.8508 | E50: 13.07998314 | F50: =OFFSET('RISK QUANTN - RELIABILITY expor'!$E$89,0,ROW()-ROW($C$4)) -> 0 | G50: =IFERROR(OFFSET('RISK QUANTN - RELIABILITY expor'!$E$88,0,ROW()-ROW($C$4)),0) -> 0 | H50: 0 | I50: =IFERROR($E50*Input!M$55,0) -> 511.5598938 | J50: =OFFSET('RISK QUANTN - RELIABILITY expor'!$E$97,0,ROW()-ROW($C$4)) -> 0 | K50: =OFFSET('RISK QUANTN - EMERGENCY REPLACE'!$D$92,0,ROW()-ROW($C$4)) -> 0 | L50: =OFFSET('RISK QUANTN - SAFETY'!$D$90,0,ROW()-ROW($C$4)) -> 0 | M50: =SUM(OFFSET('RISK QUANTN - ENVIRONMENTAL'!$D$90,0,ROW()-ROW($C$4)),OFFSET('RISK QUANTN - ENVIRONMENTAL'!$D$130,0,ROW()-ROW($C$4))) -> 0 | N50: 511.5598938
B51: =Input!Q62 -> 2079 | C51: =OFFSET('RISK QUANTN - RELIABILITY solar'!$E$79,0,ROW()-ROW($C$4)) -> 7.618378768e-05 | D51: =IFERROR(OFFSET('RISK QUANTN - RELIABILITY solar'!$E$78,0,ROW()-ROW($C$4)),0) -> 194287.7323 | E51: 14.80157535 | F51: =OFFSET('RISK QUANTN - RELIABILITY expor'!$E$89,0,ROW()-ROW($C$4)) -> 0 | G51: =IFERROR(OFFSET('RISK QUANTN - RELIABILITY expor'!$E$88,0,ROW()-ROW($C$4)),0) -> 0 | H51: 0 | I51: =IFERROR($E51*Input!M$55,0) -> 578.8915958 | J51: =OFFSET('RISK QUANTN - RELIABILITY expor'!$E$97,0,ROW()-ROW($C$4)) -> 0 | K51: =OFFSET('RISK QUANTN - EMERGENCY REPLACE'!$D$92,0,ROW()-ROW($C$4)) -> 0 | L51: =OFFSET('RISK QUANTN - SAFETY'!$D$90,0,ROW()-ROW($C$4)) -> 0 | M51: =SUM(OFFSET('RISK QUANTN - ENVIRONMENTAL'!$D$90,0,ROW()-ROW($C$4)),OFFSET('RISK QUANTN - ENVIRONMENTAL'!$D$130,0,ROW()-ROW($C$4))) -> 0 | N51: 578.8915958
B52: =Input!Q63 -> 2080 | C52: =OFFSET('RISK QUANTN - RELIABILITY solar'!$E$79,0,ROW()-ROW($C$4)) -> 7.618378768e-05 | D52: =IFERROR(OFFSET('RISK QUANTN - RELIABILITY solar'!$E$78,0,ROW()-ROW($C$4)),0) -> 222640.5819 | E52: 16.96160282 | F52: =OFFSET('RISK QUANTN - RELIABILITY expor'!$E$89,0,ROW()-ROW($C$4)) -> 0 | G52: =IFERROR(OFFSET('RISK QUANTN - RELIABILITY expor'!$E$88,0,ROW()-ROW($C$4)),0) -> 0 | H52: 0 | I52: =IFERROR($E52*Input!M$55,0) -> 663.3705596 | J52: =OFFSET('RISK QUANTN - RELIABILITY expor'!$E$97,0,ROW()-ROW($C$4)) -> 0 | K52: =OFFSET('RISK QUANTN - EMERGENCY REPLACE'!$D$92,0,ROW()-ROW($C$4)) -> 0 | L52: =OFFSET('RISK QUANTN - SAFETY'!$D$90,0,ROW()-ROW($C$4)) -> 0 | M52: =SUM(OFFSET('RISK QUANTN - ENVIRONMENTAL'!$D$90,0,ROW()-ROW($C$4)),OFFSET('RISK QUANTN - ENVIRONMENTAL'!$D$130,0,ROW()-ROW($C$4))) -> 0 | N52: 663.3705596
B53: =Input!Q64 -> 2081 | C53: =OFFSET('RISK QUANTN - RELIABILITY solar'!$E$79,0,ROW()-ROW($C$4)) -> 7.622416403e-05 | D53: =IFERROR(OFFSET('RISK QUANTN - RELIABILITY solar'!$E$78,0,ROW()-ROW($C$4)),0) -> 254643.0073 | E53: 19.40995035 | F53: =OFFSET('RISK QUANTN - RELIABILITY expor'!$E$89,0,ROW()-ROW($C$4)) -> 0 | G53: =IFERROR(OFFSET('RISK QUANTN - RELIABILITY expor'!$E$88,0,ROW()-ROW($C$4)),0) -> 0 | H53: 0 | I53: =IFERROR($E53*Input!M$55,0) -> 759.1257598 | J53: =OFFSET('RISK QUANTN - RELIABILITY expor'!$E$97,0,ROW()-ROW($C$4)) -> 0 | K53: =OFFSET('RISK QUANTN - EMERGENCY REPLACE'!$D$92,0,ROW()-ROW($C$4)) -> 0 | L53: =OFFSET('RISK QUANTN - SAFETY'!$D$90,0,ROW()-ROW($C$4)) -> 0 | M53: =SUM(OFFSET('RISK QUANTN - ENVIRONMENTAL'!$D$90,0,ROW()-ROW($C$4)),OFFSET('RISK QUANTN - ENVIRONMENTAL'!$D$130,0,ROW()-ROW($C$4))) -> 0 | N53: 759.1257598
B54: =Input!Q65 -> 2082 | C54: =OFFSET('RISK QUANTN - RELIABILITY solar'!$E$79,0,ROW()-ROW($C$4)) -> 7.629256714e-05 | D54: =IFERROR(OFFSET('RISK QUANTN - RELIABILITY solar'!$E$78,0,ROW()-ROW($C$4)),0) -> 286501.7718 | E54: 21.85795566 | F54: =OFFSET('RISK QUANTN - RELIABILITY expor'!$E$89,0,ROW()-ROW($C$4)) -> 0 | G54: =IFERROR(OFFSET('RISK QUANTN - RELIABILITY expor'!$E$88,0,ROW()-ROW($C$4)),0) -> 0 | H54: 0 | I54: =IFERROR($E54*Input!M$55,0) -> 854.8675754 | J54: =OFFSET('RISK QUANTN - RELIABILITY expor'!$E$97,0,ROW()-ROW($C$4)) -> 0 | K54: =OFFSET('RISK QUANTN - EMERGENCY REPLACE'!$D$92,0,ROW()-ROW($C$4)) -> 0 | L54: =OFFSET('RISK QUANTN - SAFETY'!$D$90,0,ROW()-ROW($C$4)) -> 0 | M54: =SUM(OFFSET('RISK QUANTN - ENVIRONMENTAL'!$D$90,0,ROW()-ROW($C$4)),OFFSET('RISK QUANTN - ENVIRONMENTAL'!$D$130,0,ROW()-ROW($C$4))) -> 0 | N54: 854.8675754
B55: =Input!Q66 -> 2083 | C55: =OFFSET('RISK QUANTN - RELIABILITY solar'!$E$79,0,ROW()-ROW($C$4)) -> 7.634687434e-05 | D55: =IFERROR(OFFSET('RISK QUANTN - RELIABILITY solar'!$E$78,0,ROW()-ROW($C$4)),0) -> 321775.2669 | E55: 24.56653587 | F55: =OFFSET('RISK QUANTN - RELIABILITY expor'!$E$89,0,ROW()-ROW($C$4)) -> 0 | G55: =IFERROR(OFFSET('RISK QUANTN - RELIABILITY expor'!$E$88,0,ROW()-ROW($C$4)),0) -> 0 | H55: 0 | I55: =IFERROR($E55*Input!M$55,0) -> 960.8005105 | J55: =OFFSET('RISK QUANTN - RELIABILITY expor'!$E$97,0,ROW()-ROW($C$4)) -> 0 | K55: =OFFSET('RISK QUANTN - EMERGENCY REPLACE'!$D$92,0,ROW()-ROW($C$4)) -> 0 | L55: =OFFSET('RISK QUANTN - SAFETY'!$D$90,0,ROW()-ROW($C$4)) -> 0 | M55: =SUM(OFFSET('RISK QUANTN - ENVIRONMENTAL'!$D$90,0,ROW()-ROW($C$4)),OFFSET('RISK QUANTN - ENVIRONMENTAL'!$D$130,0,ROW()-ROW($C$4))) -> 0 | N55: 960.8005105
B56: =Input!Q67 -> 2084 | C56: =OFFSET('RISK QUANTN - RELIABILITY solar'!$E$79,0,ROW()-ROW($C$4)) -> 7.639015951e-05 | D56: =IFERROR(OFFSET('RISK QUANTN - RELIABILITY solar'!$E$78,0,ROW()-ROW($C$4)),0) -> 359626.5869 | E56: 27.47193234 | F56: =OFFSET('RISK QUANTN - RELIABILITY expor'!$E$89,0,ROW()-ROW($C$4)) -> 0 | G56: =IFERROR(OFFSET('RISK QUANTN - RELIABILITY expor'!$E$88,0,ROW()-ROW($C$4)),0) -> 0 | H56: 0 | I56: =IFERROR($E56*Input!M$55,0) -> 1074.430956 | J56: =OFFSET('RISK QUANTN - RELIABILITY expor'!$E$97,0,ROW()-ROW($C$4)) -> 0 | K56: =OFFSET('RISK QUANTN - EMERGENCY REPLACE'!$D$92,0,ROW()-ROW($C$4)) -> 0 | L56: =OFFSET('RISK QUANTN - SAFETY'!$D$90,0,ROW()-ROW($C$4)) -> 0 | M56: =SUM(OFFSET('RISK QUANTN - ENVIRONMENTAL'!$D$90,0,ROW()-ROW($C$4)),OFFSET('RISK QUANTN - ENVIRONMENTAL'!$D$130,0,ROW()-ROW($C$4))) -> 0 | N56: 1074.430956
B57: =Input!Q68 -> 2085 | C57: =OFFSET('RISK QUANTN - RELIABILITY solar'!$E$79,0,ROW()-ROW($C$4)) -> 7.642394231e-05 | D57: =IFERROR(OFFSET('RISK QUANTN - RELIABILITY solar'!$E$78,0,ROW()-ROW($C$4)),0) -> 401341.9657 | E57: 30.67213523 | F57: =OFFSET('RISK QUANTN - RELIABILITY expor'!$E$89,0,ROW()-ROW($C$4)) -> 0 | G57: =IFERROR(OFFSET('RISK QUANTN - RELIABILITY expor'!$E$88,0,ROW()-ROW($C$4)),0) -> 0 | H57: 0 | I57: =IFERROR($E57*Input!M$55,0) -> 1199.59132 | J57: =OFFSET('RISK QUANTN - RELIABILITY expor'!$E$97,0,ROW()-ROW($C$4)) -> 0 | K57: =OFFSET('RISK QUANTN - EMERGENCY REPLACE'!$D$92,0,ROW()-ROW($C$4)) -> 0 | L57: =OFFSET('RISK QUANTN - SAFETY'!$D$90,0,ROW()-ROW($C$4)) -> 0 | M57: =SUM(OFFSET('RISK QUANTN - ENVIRONMENTAL'!$D$90,0,ROW()-ROW($C$4)),OFFSET('RISK QUANTN - ENVIRONMENTAL'!$D$130,0,ROW()-ROW($C$4))) -> 0 | N57: 1199.59132
B58: =Input!Q69 -> 2086 | C58: =OFFSET('RISK QUANTN - RELIABILITY solar'!$E$79,0,ROW()-ROW($C$4)) -> 7.644498051e-05 | D58: =IFERROR(OFFSET('RISK QUANTN - RELIABILITY solar'!$E$78,0,ROW()-ROW($C$4)),0) -> 447240.4451 | E58: 34.18928711 | F58: =OFFSET('RISK QUANTN - RELIABILITY expor'!$E$89,0,ROW()-ROW($C$4)) -> 0 | G58: =IFERROR(OFFSET('RISK QUANTN - RELIABILITY expor'!$E$88,0,ROW()-ROW($C$4)),0) -> 0 | H58: 0 | I58: =IFERROR($E58*Input!M$55,0) -> 1337.147601 | J58: =OFFSET('RISK QUANTN - RELIABILITY expor'!$E$97,0,ROW()-ROW($C$4)) -> 0 | K58: =OFFSET('RISK QUANTN - EMERGENCY REPLACE'!$D$92,0,ROW()-ROW($C$4)) -> 0 | L58: =OFFSET('RISK QUANTN - SAFETY'!$D$90,0,ROW()-ROW($C$4)) -> 0 | M58: =SUM(OFFSET('RISK QUANTN - ENVIRONMENTAL'!$D$90,0,ROW()-ROW($C$4)),OFFSET('RISK QUANTN - ENVIRONMENTAL'!$D$130,0,ROW()-ROW($C$4))) -> 0 | N58: 1337.147601
B59: =Input!Q70 -> 2087 | C59: =OFFSET('RISK QUANTN - RELIABILITY solar'!$E$79,0,ROW()-ROW($C$4)) -> 7.646094172e-05 | D59: =IFERROR(OFFSET('RISK QUANTN - RELIABILITY solar'!$E$78,0,ROW()-ROW($C$4)),0) -> 496593.4479 | E59: 37.97000268 | F59: =OFFSET('RISK QUANTN - RELIABILITY expor'!$E$89,0,ROW()-ROW($C$4)) -> 0 | G59: =IFERROR(OFFSET('RISK QUANTN - RELIABILITY expor'!$E$88,0,ROW()-ROW($C$4)),0) -> 0 | H59: 0 | I59: =IFERROR($E59*Input!M$55,0) -> 1485.011894 | J59: =OFFSET('RISK QUANTN - RELIABILITY expor'!$E$97,0,ROW()-ROW($C$4)) -> 0 | K59: =OFFSET('RISK QUANTN - EMERGENCY REPLACE'!$D$92,0,ROW()-ROW($C$4)) -> 0 | L59: =OFFSET('RISK QUANTN - SAFETY'!$D$90,0,ROW()-ROW($C$4)) -> 0 | M59: =SUM(OFFSET('RISK QUANTN - ENVIRONMENTAL'!$D$90,0,ROW()-ROW($C$4)),OFFSET('RISK QUANTN - ENVIRONMENTAL'!$D$130,0,ROW()-ROW($C$4))) -> 0 | N59: 1485.011894
B60: =Input!Q71 -> 2088 | C60: =OFFSET('RISK QUANTN - RELIABILITY solar'!$E$79,0,ROW()-ROW($C$4)) -> 7.645786479e-05 | D60: =IFERROR(OFFSET('RISK QUANTN - RELIABILITY solar'!$E$78,0,ROW()-ROW($C$4)),0) -> 543305.7402 | E60: 41.53999682 | F60: =OFFSET('RISK QUANTN - RELIABILITY expor'!$E$89,0,ROW()-ROW($C$4)) -> 0 | G60: =IFERROR(OFFSET('RISK QUANTN - RELIABILITY expor'!$E$88,0,ROW()-ROW($C$4)),0) -> 0 | H60: 0 | I60: =IFERROR($E60*Input!M$55,0) -> 1624.634843 | J60: =OFFSET('RISK QUANTN - RELIABILITY expor'!$E$97,0,ROW()-ROW($C$4)) -> 0 | K60: =OFFSET('RISK QUANTN - EMERGENCY REPLACE'!$D$92,0,ROW()-ROW($C$4)) -> 0 | L60: =OFFSET('RISK QUANTN - SAFETY'!$D$90,0,ROW()-ROW($C$4)) -> 0 | M60: =SUM(OFFSET('RISK QUANTN - ENVIRONMENTAL'!$D$90,0,ROW()-ROW($C$4)),OFFSET('RISK QUANTN - ENVIRONMENTAL'!$D$130,0,ROW()-ROW($C$4))) -> 0 | N60: 1624.634843
B61: =Input!Q72 -> 2089 | C61: =OFFSET('RISK QUANTN - RELIABILITY solar'!$E$79,0,ROW()-ROW($C$4)) -> 7.645638179e-05 | D61: =IFERROR(OFFSET('RISK QUANTN - RELIABILITY solar'!$E$78,0,ROW()-ROW($C$4)),0) -> 600585.7021 | E61: 45.91860974 | F61: =OFFSET('RISK QUANTN - RELIABILITY expor'!$E$89,0,ROW()-ROW($C$4)) -> 0 | G61: =IFERROR(OFFSET('RISK QUANTN - RELIABILITY expor'!$E$88,0,ROW()-ROW($C$4)),0) -> 0 | H61: 0 | I61: =IFERROR($E61*Input!M$55,0) -> 1795.882981 | J61: =OFFSET('RISK QUANTN - RELIABILITY expor'!$E$97,0,ROW()-ROW($C$4)) -> 0 | K61: =OFFSET('RISK QUANTN - EMERGENCY REPLACE'!$D$92,0,ROW()-ROW($C$4)) -> 0 | L61: =OFFSET('RISK QUANTN - SAFETY'!$D$90,0,ROW()-ROW($C$4)) -> 0 | M61: =SUM(OFFSET('RISK QUANTN - ENVIRONMENTAL'!$D$90,0,ROW()-ROW($C$4)),OFFSET('RISK QUANTN - ENVIRONMENTAL'!$D$130,0,ROW()-ROW($C$4))) -> 0 | N61: 1795.882981
B62: =Input!Q73 -> 2090 | C62: =OFFSET('RISK QUANTN - RELIABILITY solar'!$E$79,0,ROW()-ROW($C$4)) -> 7.647593291e-05 | D62: =IFERROR(OFFSET('RISK QUANTN - RELIABILITY solar'!$E$78,0,ROW()-ROW($C$4)),0) -> 654297.0211 | E62: 50.03797508 | F62: =OFFSET('RISK QUANTN - RELIABILITY expor'!$E$89,0,ROW()-ROW($C$4)) -> 0 | G62: =IFERROR(OFFSET('RISK QUANTN - RELIABILITY expor'!$E$88,0,ROW()-ROW($C$4)),0) -> 0 | H62: 0 | I62: =IFERROR($E62*Input!M$55,0) -> 1956.991912 | J62: =OFFSET('RISK QUANTN - RELIABILITY expor'!$E$97,0,ROW()-ROW($C$4)) -> 0 | K62: =OFFSET('RISK QUANTN - EMERGENCY REPLACE'!$D$92,0,ROW()-ROW($C$4)) -> 0 | L62: =OFFSET('RISK QUANTN - SAFETY'!$D$90,0,ROW()-ROW($C$4)) -> 0 | M62: =SUM(OFFSET('RISK QUANTN - ENVIRONMENTAL'!$D$90,0,ROW()-ROW($C$4)),OFFSET('RISK QUANTN - ENVIRONMENTAL'!$D$130,0,ROW()-ROW($C$4))) -> 0 | N62: 1956.991912
B63: =Input!Q74 -> 2091 | C63: =OFFSET('RISK QUANTN - RELIABILITY solar'!$E$79,0,ROW()-ROW($C$4)) -> 7.65408865e-05 | D63: =IFERROR(OFFSET('RISK QUANTN - RELIABILITY solar'!$E$78,0,ROW()-ROW($C$4)),0) -> 712025.7596 | E63: 54.49908285 | F63: =OFFSET('RISK QUANTN - RELIABILITY expor'!$E$89,0,ROW()-ROW($C$4)) -> 0 | G63: =IFERROR(OFFSET('RISK QUANTN - RELIABILITY expor'!$E$88,0,ROW()-ROW($C$4)),0) -> 0 | H63: 0 | I63: =IFERROR($E63*Input!M$55,0) -> 2131.466435 | J63: =OFFSET('RISK QUANTN - RELIABILITY expor'!$E$97,0,ROW()-ROW($C$4)) -> 0 | K63: =OFFSET('RISK QUANTN - EMERGENCY REPLACE'!$D$92,0,ROW()-ROW($C$4)) -> 0 | L63: =OFFSET('RISK QUANTN - SAFETY'!$D$90,0,ROW()-ROW($C$4)) -> 0 | M63: =SUM(OFFSET('RISK QUANTN - ENVIRONMENTAL'!$D$90,0,ROW()-ROW($C$4)),OFFSET('RISK QUANTN - ENVIRONMENTAL'!$D$130,0,ROW()-ROW($C$4))) -> 0 | N63: 2131.466435
B64: =Input!Q75 -> 2092 | C64: =OFFSET('RISK QUANTN - RELIABILITY solar'!$E$79,0,ROW()-ROW($C$4)) -> 7.661429876e-05 | D64: =IFERROR(OFFSET('RISK QUANTN - RELIABILITY solar'!$E$78,0,ROW()-ROW($C$4)),0) -> 774492.9535 | E64: 59.33723453 | F64: =OFFSET('RISK QUANTN - RELIABILITY expor'!$E$89,0,ROW()-ROW($C$4)) -> 0 | G64: =IFERROR(OFFSET('RISK QUANTN - RELIABILITY expor'!$E$88,0,ROW()-ROW($C$4)),0) -> 0 | H64: 0 | I64: =IFERROR($E64*Input!M$55,0) -> 2320.687195 | J64: =OFFSET('RISK QUANTN - RELIABILITY expor'!$E$97,0,ROW()-ROW($C$4)) -> 0 | K64: =OFFSET('RISK QUANTN - EMERGENCY REPLACE'!$D$92,0,ROW()-ROW($C$4)) -> 0 | L64: =OFFSET('RISK QUANTN - SAFETY'!$D$90,0,ROW()-ROW($C$4)) -> 0 | M64: =SUM(OFFSET('RISK QUANTN - ENVIRONMENTAL'!$D$90,0,ROW()-ROW($C$4)),OFFSET('RISK QUANTN - ENVIRONMENTAL'!$D$130,0,ROW()-ROW($C$4))) -> 0 | N64: 2320.687195

Sheet DATA (hidden)
B1: Forced Outage Rates | G1: Repair/Replacement Times
C2: Circuits per 100km | H2: Hours | L2: ConnectedBreakerCountTypes
B3: Overhead ≥ 110kV | C3: 0.35 | G3: Overhead ≥ 110kV | H3: 4 | L3: 0
B4: Overhead 66kV | C4: 1.4 | G4: Overhead 66kV | H4: 4 | L4: 1
B5: Overhead 33kV | C5: 5.6 | G5: Overhead 33kV | H5: 4 | L5: 2
B6: Overhead 11kV or 22kV (Urban) | C6: 6 | G6: Overhead 11kV or 22kV (Urban) | H6: 1.5
B7: Overhead 11kV or 22kV (Short Rural) | C7: 6 | G7: Overhead 11kV or 22kV (Short Rural) | H7: 2
B8: Overhead 11kV or 22kV (Long Rural) | C8: 2.6 | G8: Overhead 11kV or 22kV (Long Rural) | H8: 2.5
B9: Underground ≥ 33kV | C9: 0.15 | G9: Underground ≥ 33kV | H9: 24
B10: Underground 11kV or 22kV | C10: 0.75 | G10: Underground 11kV or 22kV | H10: 8
G12: Repair/Replacement Times | L12: 2020
C13: Bus | D13: Retirement Age | E13: Fatality | F13: Multiple Injuries | H13: Hours | L13: =L12+1 -> 2021
B14: GIS 33kV | C14: 0.003 | D14: 0 | E14: =VLOOKUP(Input!$G$3,DATA!$L$48:$M$54,2,FALSE)*VLOOKUP(DATA!$E$41,DATA!$N$48:$O$50,2,FALSE) -> 0.0001 | F14: =VLOOKUP(Input!$G$3,DATA!$L$48:$M$54,2,FALSE)*VLOOKUP(DATA!$F$41,DATA!$N$48:$O$50,2,FALSE) -> 0.0005 | G14: GIS 33kV | H14: 48 | L14: 2022
B15: GIS 66kV | C15: 0.003 | D15: 0 | E15: =VLOOKUP(Input!$G$3,DATA!$L$48:$M$54,2,FALSE)*VLOOKUP(DATA!$E$41,DATA!$N$48:$O$50,2,FALSE) -> 0.0001 | F15: =VLOOKUP(Input!$G$3,DATA!$L$48:$M$54,2,FALSE)*VLOOKUP(DATA!$F$41,DATA!$N$48:$O$50,2,FALSE) -> 0.0005 | G15: GIS 66kV | H15: 48 | L15: 2023
B16: GIS ≥ 110kV | C16: 0.003 | D16: 0 | E16: =VLOOKUP(Input!$G$3,DATA!$L$48:$M$54,2,FALSE)*VLOOKUP(DATA!$E$41,DATA!$N$48:$O$50,2,FALSE) -> 0.0001 | F16: =VLOOKUP(Input!$G$3,DATA!$L$48:$M$54,2,FALSE)*VLOOKUP(DATA!$F$41,DATA!$N$48:$O$50,2,FALSE) -> 0.0005 | G16: GIS ≥ 110kV | H16: 48 | L16: 2024
B17: Outdoor 11kV or 22kV | C17: 0.04 | D17: 0 | E17: =VLOOKUP(Input!$G$3,DATA!$L$48:$M$54,2,FALSE)*VLOOKUP(DATA!$E$41,DATA!$N$48:$O$50,2,FALSE) -> 0.0001 | F17: =VLOOKUP(Input!$G$3,DATA!$L$48:$M$54,2,FALSE)*VLOOKUP(DATA!$F$41,DATA!$N$48:$O$50,2,FALSE) -> 0.0005 | G17: Outdoor 11kV or 22kV | H17: 48 | L17: 2025
B18: Outdoor 33kV | C18: 0.03 | D18: 0 | E18: =VLOOKUP(Input!$G$3,DATA!$L$48:$M$54,2,FALSE)*VLOOKUP(DATA!$E$41,DATA!$N$48:$O$50,2,FALSE) -> 0.0001 | F18: =VLOOKUP(Input!$G$3,DATA!$L$48:$M$54,2,FALSE)*VLOOKUP(DATA!$F$41,DATA!$N$48:$O$50,2,FALSE) -> 0.0005 | G18: Outdoor 33kV | H18: 48 | L18: 2026
B19: Outdoor 66kV | C19: 0.03 | D19: 0 | E19: =VLOOKUP(Input!$G$3,DATA!$L$48:$M$54,2,FALSE)*VLOOKUP(DATA!$E$41,DATA!$N$48:$O$50,2,FALSE) -> 0.0001 | F19: =VLOOKUP(Input!$G$3,DATA!$L$48:$M$54,2,FALSE)*VLOOKUP(DATA!$F$41,DATA!$N$48:$O$50,2,FALSE) -> 0.0005 | G19: Outdoor 66kV | H19: 48 | L19: 2027
B20: Outdoor ≥ 110kV | C20: 0.03 | D20: 0 | E20: =VLOOKUP(Input!$G$3,DATA!$L$48:$M$54,2,FALSE)*VLOOKUP(DATA!$E$41,DATA!$N$48:$O$50,2,FALSE) -> 0.0001 | F20: =VLOOKUP(Input!$G$3,DATA!$L$48:$M$54,2,FALSE)*VLOOKUP(DATA!$F$41,DATA!$N$48:$O$50,2,FALSE) -> 0.0005 | G20: Outdoor ≥ 110kV | H20: 48 | L20: 2028
B21: Indoor Compound 11kV or 22kV | C21: 0.003 | D21: 0 | E21: =VLOOKUP(Input!$G$3,DATA!$L$48:$M$54,2,FALSE)*VLOOKUP(DATA!$E$41,DATA!$N$48:$O$50,2,FALSE) -> 0.0001 | F21: =VLOOKUP(Input!$G$3,DATA!$L$48:$M$54,2,FALSE)*VLOOKUP(DATA!$F$41,DATA!$N$48:$O$50,2,FALSE) -> 0.0005 | G21: Indoor Compound 11kV or 22kV | H21: 48 | L21: 2029
B22: Indoor Compound 33kV | C22: 0.003 | D22: 0 | E22: =VLOOKUP(Input!$G$3,DATA!$L$48:$M$54,2,FALSE)*VLOOKUP(DATA!$E$41,DATA!$N$48:$O$50,2,FALSE) -> 0.0001 | F22: =VLOOKUP(Input!$G$3,DATA!$L$48:$M$54,2,FALSE)*VLOOKUP(DATA!$F$41,DATA!$N$48:$O$50,2,FALSE) -> 0.0005 | G22: Indoor Compound 33kV | H22: 48 | L22: 2030
B23: Indoor Other 11kV or 22kV | C23: 0.003 | D23: 0 | E23: =VLOOKUP(Input!$G$3,DATA!$L$48:$M$54,2,FALSE)*VLOOKUP(DATA!$E$41,DATA!$N$48:$O$50,2,FALSE) -> 0.0001 | F23: =VLOOKUP(Input!$G$3,DATA!$L$48:$M$54,2,FALSE)*VLOOKUP(DATA!$F$41,DATA!$N$48:$O$50,2,FALSE) -> 0.0005 | G23: Indoor Other 11kV or 22kV | H23: 48 | L23: 2031
B24: Indoor Other 33kV | C24: 0.003 | D24: 0 | E24: =VLOOKUP(Input!$G$3,DATA!$L$48:$M$54,2,FALSE)*VLOOKUP(DATA!$E$41,DATA!$N$48:$O$50,2,FALSE) -> 0.0001 | F24: =VLOOKUP(Input!$G$3,DATA!$L$48:$M$54,2,FALSE)*VLOOKUP(DATA!$F$41,DATA!$N$48:$O$50,2,FALSE) -> 0.0005 | G24: Indoor Other 33kV | H24: 48
B25: CT | C25: 0.2 | D25: 60 | E25: =VLOOKUP(Input!$G$3,DATA!$L$48:$M$54,2,FALSE)*VLOOKUP(DATA!$E$41,DATA!$N$48:$O$50,2,FALSE) -> 0.0001 | F25: =VLOOKUP(Input!$G$3,DATA!$L$48:$M$54,2,FALSE)*VLOOKUP(DATA!$F$41,DATA!$N$48:$O$50,2,FALSE) -> 0.0005 | G25: CT | H25: 48 | L25: Yes - model single contingency
B26: VT | C26: 0.2 | D26: 60 | E26: =VLOOKUP(Input!$G$3,DATA!$L$48:$M$54,2,FALSE)*VLOOKUP(DATA!$E$41,DATA!$N$48:$O$50,2,FALSE) -> 0.0001 | F26: =VLOOKUP(Input!$G$3,DATA!$L$48:$M$54,2,FALSE)*VLOOKUP(DATA!$F$41,DATA!$N$48:$O$50,2,FALSE) -> 0.0005 | G26: VT | H26: 48 | L26: No - model double contingency
B27: Electromechanical Relay (single) | C27: 0.2 | D27: 45 | E27: =VLOOKUP(Input!$G$3,DATA!$L$48:$M$54,2,FALSE)*VLOOKUP(DATA!$E$41,DATA!$N$48:$O$50,2,FALSE) -> 0.0001 | F27: =VLOOKUP(Input!$G$3,DATA!$L$48:$M$54,2,FALSE)*VLOOKUP(DATA!$F$41,DATA!$N$48:$O$50,2,FALSE) -> 0.0005 | G27: Electromechanical Relay (single) | H27: 8
B28: Analogue Relay (single) | C28: 0.2 | D28: 25 | E28: =VLOOKUP(Input!$G$3,DATA!$L$48:$M$54,2,FALSE)*VLOOKUP(DATA!$E$41,DATA!$N$48:$O$50,2,FALSE) -> 0.0001 | F28: =VLOOKUP(Input!$G$3,DATA!$L$48:$M$54,2,FALSE)*VLOOKUP(DATA!$F$41,DATA!$N$48:$O$50,2,FALSE) -> 0.0005 | G28: Analogue Relay (single) | H28: 8 | L28: yes
B29: Digital Relay (single) | C29: 0.2 | D29: 20 | E29: =VLOOKUP(Input!$G$3,DATA!$L$48:$M$54,2,FALSE)*VLOOKUP(DATA!$E$41,DATA!$N$48:$O$50,2,FALSE) -> 0.0001 | F29: =VLOOKUP(Input!$G$3,DATA!$L$48:$M$54,2,FALSE)*VLOOKUP(DATA!$F$41,DATA!$N$48:$O$50,2,FALSE) -> 0.0005 | G29: Digital Relay (single) | H29: 8 | L29: no
B30: Electromechanical Relay (X & Y) | C30: =C27*C27 -> 0.04 | D30: 45 | E30: =VLOOKUP(Input!$G$3,DATA!$L$48:$M$54,2,FALSE)*VLOOKUP(DATA!$E$41,DATA!$N$48:$O$50,2,FALSE) -> 0.0001 | F30: =VLOOKUP(Input!$G$3,DATA!$L$48:$M$54,2,FALSE)*VLOOKUP(DATA!$F$41,DATA!$N$48:$O$50,2,FALSE) -> 0.0005 | G30: Electromechanical Relay (X & Y) | H30: 8
B31: Analogue Relay (X & Y) | C31: =C28*C28 -> 0.04 | D31: 25 | E31: =VLOOKUP(Input!$G$3,DATA!$L$48:$M$54,2,FALSE)*VLOOKUP(DATA!$E$41,DATA!$N$48:$O$50,2,FALSE) -> 0.0001 | F31: =VLOOKUP(Input!$G$3,DATA!$L$48:$M$54,2,FALSE)*VLOOKUP(DATA!$F$41,DATA!$N$48:$O$50,2,FALSE) -> 0.0005 | G31: Analogue Relay (X & Y) | H31: 8 | L31: 1
B32: Digital Relay (X & Y) | C32: 0.04 | D32: 20 | E32: =VLOOKUP(Input!$G$3,DATA!$L$48:$M$54,2,FALSE)*VLOOKUP(DATA!$E$41,DATA!$N$48:$O$50,2,FALSE) -> 0.0001 | F32: =VLOOKUP(Input!$G$3,DATA!$L$48:$M$54,2,FALSE)*VLOOKUP(DATA!$F$41,DATA!$N$48:$O$50,2,FALSE) -> 0.0005 | G32: Digital Relay (X & Y) | H32: 8 | L32: 2
L33: 3
L34: 4
L35: 5
L36: 6
L37: Environmental
L38: Quantity of spill | M38: Rectification costs | N38: Fines | O38: Disproportionality | P38: Likelihood scale | Q38: Probability
L39: >20,000 L | M39: 5000000 | N39: 82710 | O39: 6 | P39: 6 | Q39: 0.15
C40: Plant Model | L40: >10,000 <20,000 L | M40: 1000000 | N40: 82710 | O40: 6 | P40: 5 | Q40: 0.1
C41: beta | D41: gamma | E41: Fatality | F41: Multiple Injuries | G41: Repair Time | H41: Multiplier | L41: >5,000 <10,000 L | M41: 500000 | N41: 0 | O41: 6 | P41: 4 | Q41: =1/100 -> 0.01 | V41: 0.05 | W41: 0.025 | X41: 0
B42: Zone Substation Transformer | C42: 3.6 | D42: 79 | E42: =VLOOKUP(Input!$G$3,DATA!$L$48:$M$54,2,FALSE)*VLOOKUP(DATA!$E$41,DATA!$N$48:$O$50,2,FALSE) -> 0.0001 | F42: =VLOOKUP(Input!$G$3,DATA!$L$48:$M$54,2,FALSE)*VLOOKUP(DATA!$F$41,DATA!$N$48:$O$50,2,FALSE) -> 0.0005 | G42: 48 | L42: >1,000 <5,000 L | M42: 50000 | N42: 0 | O42: 3 | P42: 3 | Q42: =1/10000 -> 0.0001 | V42: 0.1 | W42: 0.05 | X42: 0.025
B43: Bulk Supply Transformer | C43: 5.9 | D43: 61 | E43: =VLOOKUP(Input!$G$3,DATA!$L$48:$M$54,2,FALSE)*VLOOKUP(DATA!$E$41,DATA!$N$48:$O$50,2,FALSE) -> 0.0001 | F43: =VLOOKUP(Input!$G$3,DATA!$L$48:$M$54,2,FALSE)*VLOOKUP(DATA!$F$41,DATA!$N$48:$O$50,2,FALSE) -> 0.0005 | G43: 48 | L43: >200 <1,000 L | M43: 5000 | N43: 0 | O43: 3 | P43: 2 | Q43: =1/100000 -> 1e-05 | V43: 0.6 | W43: 0.25 | X43: 0.2
B44: Fused Transformer | C44: 3.6 | D44: 79 | E44: =VLOOKUP(Input!$G$3,DATA!$L$48:$M$54,2,FALSE)*VLOOKUP(DATA!$E$41,DATA!$N$48:$O$50,2,FALSE) -> 0.0001 | F44: =VLOOKUP(Input!$G$3,DATA!$L$48:$M$54,2,FALSE)*VLOOKUP(DATA!$F$41,DATA!$N$48:$O$50,2,FALSE) -> 0.0005 | G44: 48 | H44: 1.2 | V44: 0.6 | W44: 0.35 | X44: 0.3
B45: 11kV or 22kV CB | C45: 4 | D45: 75 | E45: =VLOOKUP(Input!$G$3,DATA!$L$48:$M$54,2,FALSE)*VLOOKUP(DATA!$E$41,DATA!$N$48:$O$50,2,FALSE) -> 0.0001 | F45: =VLOOKUP(Input!$G$3,DATA!$L$48:$M$54,2,FALSE)*VLOOKUP(DATA!$F$41,DATA!$N$48:$O$50,2,FALSE) -> 0.0005 | G45: 48 | L45: <200 L | M45: 500 | N45: 0 | O45: 3 | P45: 1 | Q45: =1/1000000 -> 1e-06 | V45: 0.8 | W45: 0.5 | X45: 0.4
B46: ≥ 33kV CB | C46: 4 | D46: 80 | E46: =VLOOKUP(Input!$G$3,DATA!$L$48:$M$54,2,FALSE)*VLOOKUP(DATA!$E$41,DATA!$N$48:$O$50,2,FALSE) -> 0.0001 | F46: =VLOOKUP(Input!$G$3,DATA!$L$48:$M$54,2,FALSE)*VLOOKUP(DATA!$F$41,DATA!$N$48:$O$50,2,FALSE) -> 0.0005 | G46: 48 | V46: 1 | W46: 1 | X46: 1
L47: Safety
L48: likelihood | M48: probability (conversion rate) | N48: Severity | O48: Prob severity
B49: Safety | L49: 6 | M49: 1 | N49: fatality | O49: 0.1 | V49: property | W49: injury | X49: death
B50: Safety Consequence | C50: Cost | D50: Disproportionality public | E50: Disproportionality industry | F50: PUBLIC | G50: INDUSTRY | L50: 5 | M50: 0.1 | N50: Multiple Injuries | O50: 0.5 | U50: =TRANSPOSE(M57:R57) -> Low-Moderate | V50: 0.05 | W50: 0.025 | X50: 0
B51: Single Fatality | C51: 5300000 | D51: 6 | E51: 3 | F51: =C51*D51 -> 31800000 | G51: =C51*E51 -> 15900000 | L51: 4 | M51: 0.01 | U51: High | V51: 0.1 | W51: 0.05 | X51: 0.025
B52: Multiple Injuries | C52: =C51*25% -> 1325000 | D52: 6 | E52: 3 | F52: =C52*D52 -> 7950000 | G52: =C52*E52 -> 3975000 | L52: 3 | M52: =1/1000 -> 0.001 | U52: Very High | V52: 0.6 | W52: 0.25 | X52: 0.2
L53: 2 | M53: =1/10000 -> 0.0001 | U53: Severe | V53: 0.6 | W53: 0.35 | X53: 0.3
L54: 1 | M54: =1/100000 -> 1e-05 | U54: Extreme | V54: 0.8 | W54: 0.5 | X54: 0.4
B55: Bushfire | U55: Catastrophic | V55: 1 | W55: 1 | X55: 1
B56: Safety Consequence | C56: Cost | D56: Disproportionality | H56: probability | L56: Bushfire
B57: environmental cost | C57: 10000000 | H57: =VLOOKUP(Input!$L$3,DATA!$L$58:$V$73,9,FALSE) -> 0.00105095 | I57: Prob bushfire damage | L57: Annual % of Fire Danger Level per Fire Danger Region | M57: Low-Moderate | N57: High | O57: Very High | P57: Severe | Q57: Extreme | R57: Catastrophic | T57: property | U57: injury | V57: death | X57: probability of fire spreading beyond our assets
B58: Single Fatality | C58: 5100000 | D58: 6 | F58: =C58*D58 -> 30600000 | H58: =VLOOKUP(Input!$L$3,DATA!$L$58:$V$73,11,FALSE) -> 0.0002331 | I58: Prob bushfire fatality | L58: Far North | M58: 0.5444 | N58: 0.35315 | O58: 0.10055 | P58: 0.00195 | Q58: 0 | R58: 0 | T58: =((M58*$V$50)+(N58*$V$51)+(O58*$V$52)+(P58*$V$53)+(Q58*$V$54)+(R58*$V$55))*$X$58 -> 0.00124035 | U58: =((M58*$W$50)+(N58*$W$51)+(O58*$W$52)+(P58*$W$53)+(Q58*$W$54)+(R58*$W$55))*$X$58 -> 0.000570875 | V58: =((M58*$X$50)+(N58*$X$51)+(O58*$X$52)+(P58*$X$53)+(Q58*$X$54)+(R58*$X$55))*$X$58 -> 0.0002952375 | X58: 0.01
B59: Multiple Injuries | C59: =C58*25% -> 1275000 | D59: 6 | F59: =C59*D59 -> 7650000 | H59: =VLOOKUP(Input!$L$3,DATA!$L$58:$V$73,10,FALSE) -> 0.000500475 | I59: Prob bushfire injury | L59: Flinders | M59: 0.4769 | N59: 0.3842 | O59: 0.1328 | P59: 0.0061 | Q59: 0 | R59: 0 | T59: =((M59*$V$50)+(N59*$V$51)+(O59*$V$52)+(P59*$V$53)+(Q59*$V$54)+(R59*$V$55))*$X$58 -> 0.00145605 | U59: =((M59*$W$50)+(N59*$W$51)+(O59*$W$52)+(P59*$W$53)+(Q59*$W$54)+(R59*$W$55))*$X$58 -> 0.000664675 | V59: =((M59*$X$50)+(N59*$X$51)+(O59*$X$52)+(P59*$X$53)+(Q59*$X$54)+(R59*$X$55))*$X$58 -> 0.00037995
L60: Tropical Coast | M60: 0.625 | N60: 0.3277 | O60: 0.0473 | P60: 0 | Q60: 0 | R60: 0 | T60: 0.000924 | U60: 0.00043835 | V60: 0.000176525
B61: Environmental | L61: Herbert | M61: 0.5256 | N61: 0.411 | O61: 0.063 | P61: 0.0004 | Q61: 0 | R61: 0 | T61: 0.0010542 | U61: 0.0004958 | V61: 0.00022995
B62: Safety Consequence | C62: Cost | L62: Pioneer | M62: 0.5788 | N62: 0.3743 | O62: 0.0454 | P62: 0.0016 | Q62: 0 | R62: 0 | T62: 0.0009457 | U62: 0.00045095 | V62: 0.000189175
B63: environmental cost | C63: =VLOOKUP(Input!J4,DATA!L38:N45,2,FALSE)+VLOOKUP(Input!J4,DATA!L38:N45,3,FALSE)*VLOOKUP(Input!J4,DATA!L38:O45,4,FALSE) -> 5496260 | H63: =VLOOKUP(Input!J3,DATA!P38:Q45,2,FALSE) -> 0.0001 | I63: Prob environ damage | L63: Capricornia | M63: 0.4396 | N63: 0.4932 | O63: 0.0653 | P63: 0.0016 | Q63: 0.0004 | R63: 0 | T63: 0.0011176 | U63: 0.00052735 | V63: 0.0002603
L64: Central West | M64: 0.4873 | N64: 0.37385 | O64: 0.1318 | P64: 0.00705 | Q64: 0 | R64: 0 | T64: 0.0014506 | U64: 0.000662925 | V64: 0.0003782125
L65: South West | M65: 0.5862 | N65: 0.32245 | O65: 0.0776 | P65: 0.0129 | Q65: 0.0008 | R65: 0 | T65: 0.00116495 | U65: 0.000550925 | V65: 0.0002777125
L66: Darling Downs | M66: 0.3082 | N66: 0.4662 | O66: 0.2002 | P66: 0.0227 | Q66: 0.0027 | R66: 0 | T66: 0.0019793 | U66: 0.0009036 | V66: 0.00059585
L67: Bundaberg Burnett | M67: 0.4278 | N67: 0.4638 | O67: 0.1017 | P67: 0.0066 | Q67: 0 | R67: 0 | T67: 0.0013275 | U67: 0.0006162 | V67: 0.00033915
L68: Sunshine Coast | M68: 0.5811 | N68: 0.3508 | O68: 0.0594 | P68: 0.0078 | Q68: 0.0008 | R68: 0 | T68: 0.00105095 | U68: 0.000500475 | V68: 0.0002331
L69: Brisbane North | M69: 0.5811 | N69: 0.3508 | O69: 0.0594 | P69: 0.0078 | Q69: 0.0008 | R69: 0 | T69: 0.00105095 | U69: 0.000500475 | V69: 0.0002331
L70: Brisbane Central | M70: 0.5811 | N70: 0.3508 | O70: 0.0594 | P70: 0.0078 | Q70: 0.0008 | R70: 0 | T70: 0.00105095 | U70: 0.000500475 | V70: 0.0002331
L71: Brisbane South | M71: 0.5811 | N71: 0.3508 | O71: 0.0594 | P71: 0.0078 | Q71: 0.0008 | R71: 0 | T71: 0.00105095 | U71: 0.000500475 | V71: 0.0002331
B72: Probability of Failure | C72: 1 | L72: Ispwich Lockyer | M72: 0.5811 | N72: 0.3508 | O72: 0.0594 | P72: 0.0078 | Q72: 0.0008 | R72: 0 | T72: 0.00105095 | U72: 0.000500475 | V72: 0.0002331
B73: Benefit Multipler | C73: 1 | L73: Gold Coast | M73: 0.5811 | N73: 0.3508 | O73: 0.0594 | P73: 0.0078 | Q73: 0.0008 | R73: 0 | T73: 0.00105095 | U73: 0.000500475 | V73: 0.0002331

Sheet Export curtailment above max (hidden)
E1: Input
A2: Data Count | B2: =COUNT(B8:B20008) -> 17575 | E2: Formula/Calculations
A3: Max installed output | B3: =MAX(B8:B20008) -> 0 | E3: Output
A4: number of hours curtailed | B4: =COUNTIF(U8:U17575,">0")/2 -> 0
A5: total unserved generation (MWh) | B5: =SUM(U8:U17575)/2 -> 0
I6: Generation (export) data
B7: Generation data | D7: % of Load | E7: % of Time | I7: Normalized generation | J7: Frequency | K7: Accumulated Frequency | N7: % of Load | O7: % of Time | P7: Area Segmentations | Q7: Area Under LDC | R7: Area Above Limitation | T7: Curtailed export | U7: Unserved generation (MWh)
B8: =Input!AA15 -> 0 | D8: 1 | E8: =IFERROR(K8/B$2,"") -> 0 | I8: =IF(B8="","",IFERROR(B8/B$3,"")) ->  | J8: =FREQUENCY($I$8:$I$20008,$D$8:$D$1008) -> 0 | K8: =J8 -> 0 | N8: =ROUND(D8*100,1) -> 100 | O8: =E8*100 -> 0 | P8: =(O8/1000+0.5*(O9-O8)/1000)*0.01 -> 0 | Q8: =Q9+(O8/1000+0.5*(O9-O8)/1000)*0.01 -> 0 | R8: 0 | T8: =IF(B8<Input!$AE$15,'Export curtailment above max'!B8,Input!$AE$15) -> 0 | U8: =B8-T8 -> 0
B9: =Input!AA16 -> 0 | D9: 0.999 | E9: =IFERROR(K9/B$2,"") -> 0 | I9: =IF(B9="","",IFERROR(B9/B$3,"")) ->  | J9: 0 | K9: =K8+J9 -> 0 | N9: =ROUND(D9*100,1) -> 99.9 | O9: 0 | P9: =(O9/1000+0.5*(O10-O9)/1000)*0.01 -> 0 | Q9: =Q10+(O9/1000+0.5*(O10-O9)/1000)*0.01 -> 0 | R9: =R8+P9 -> 0 | T9: =IF(B9<Input!$AE$15,'Export curtailment above max'!B9,Input!$AE$15) -> 0 | U9: =B9-T9 -> 0
B10: =Input!AA17 -> 0 | D10: 0.998 | E10: 0 | J10: 0 | K10: 0 | N10: 99.8 | O10: 0 | P10: 0 | Q10: 0 | R10: =R9+P10 -> 0 | T10: =IF(B10<Input!$AE$15,'Export curtailment above max'!B10,Input!$AE$15) -> 0 | U10: 0
B11: =Input!AA18 -> 0 | D11: 0.997 | E11: 0 | J11: 0 | K11: 0 | N11: 99.7 | O11: 0 | P11: 0 | Q11: 0 | R11: 0 | T11: =IF(B11<Input!$AE$15,'Export curtailment above max'!B11,Input!$AE$15) -> 0 | U11: 0
B12: =Input!AA19 -> 0 | D12: 0.996 | E12: 0 | J12: 0 | K12: 0 | N12: 99.6 | O12: 0 | P12: 0 | Q12: 0 | R12: 0 | T12: =IF(B12<Input!$AE$15,'Export curtailment above max'!B12,Input!$AE$15) -> 0 | U12: 0
B13: =Input!AA20 -> 0 | D13: 0.995 | E13: 0 | J13: 0 | K13: 0 | N13: 99.5 | O13: 0 | P13: 0 | Q13: 0 | R13: 0 | T13: =IF(B13<Input!$AE$15,'Export curtailment above max'!B13,Input!$AE$15) -> 0 | U13: 0
B14: =Input!AA21 -> 0 | D14: 0.994 | E14: 0 | J14: 0 | K14: 0 | N14: 99.4 | O14: 0 | P14: 0 | Q14: 0 | R14: 0 | T14: =IF(B14<Input!$AE$15,'Export curtailment above max'!B14,Input!$AE$15) -> 0 | U14: 0
B15: =Input!AA22 -> 0 | D15: 0.993 | E15: 0 | J15: 0 | K15: 0 | N15: 99.3 | O15: 0 | P15: 0 | Q15: 0 | R15: 0 | T15: =IF(B15<Input!$AE$15,'Export curtailment above max'!B15,Input!$AE$15) -> 0 | U15: 0
B16: =Input!AA23 -> 0 | D16: 0.992 | E16: 0 | J16: 0 | K16: 0 | N16: 99.2 | O16: 0 | P16: 0 | Q16: 0 | R16: 0 | T16: =IF(B16<Input!$AE$15,'Export curtailment above max'!B16,Input!$AE$15) -> 0 | U16: 0
B17: =Input!AA24 -> 0 | D17: 0.991 | E17: 0 | J17: 0 | K17: 0 | N17: 99.1 | O17: 0 | P17: 0 | Q17: 0 | R17: 0 | T17: =IF(B17<Input!$AE$15,'Export curtailment above max'!B17,Input!$AE$15) -> 0 | U17: 0
B18: =Input!AA25 -> 0 | D18: 0.99 | E18: 0 | J18: 0 | K18: 0 | N18: 99 | O18: 0 | P18: 0 | Q18: 0 | R18: 0 | T18: =IF(B18<Input!$AE$15,'Export curtailment above max'!B18,Input!$AE$15) -> 0 | U18: 0
B19: =Input!AA26 -> 0 | D19: 0.989 | E19: 0 | J19: 0 | K19: 0 | N19: 98.9 | O19: 0 | P19: 0 | Q19: 0 | R19: 0 | T19: =IF(B19<Input!$AE$15,'Export curtailment above max'!B19,Input!$AE$15) -> 0 | U19: 0
B20: =Input!AA27 -> 0 | D20: 0.988 | E20: 0 | J20: 0 | K20: 0 | N20: 98.8 | O20: 0 | P20: 0 | Q20: 0 | R20: 0 | T20: =IF(B20<Input!$AE$15,'Export curtailment above max'!B20,Input!$AE$15) -> 0 | U20: 0
B21: =Input!AA28 -> 0 | D21: 0.987 | E21: 0 | J21: 0 | K21: 0 | N21: 98.7 | O21: 0 | P21: 0 | Q21: 0 | R21: 0 | T21: =IF(B21<Input!$AE$15,'Export curtailment above max'!B21,Input!$AE$15) -> 0 | U21: 0
B22: =Input!AA29 -> 0 | D22: 0.986 | E22: 0 | J22: 0 | K22: 0 | N22: 98.6 | O22: 0 | P22: 0 | Q22: 0 | R22: 0 | T22: =IF(B22<Input!$AE$15,'Export curtailment above max'!B22,Input!$AE$15) -> 0 | U22: 0
B23: =Input!AA30 -> 0 | D23: 0.985 | E23: 0 | J23: 0 | K23: 0 | N23: 98.5 | O23: 0 | P23: 0 | Q23: 0 | R23: 0 | T23: =IF(B23<Input!$AE$15,'Export curtailment above max'!B23,Input!$AE$15) -> 0 | U23: 0
B24: =Input!AA31 -> 0 | D24: 0.984 | E24: 0 | J24: 0 | K24: 0 | N24: 98.4 | O24: 0 | P24: 0 | Q24: 0 | R24: 0 | T24: =IF(B24<Input!$AE$15,'Export curtailment above max'!B24,Input!$AE$15) -> 0 | U24: 0
B25: =Input!AA32 -> 0 | D25: 0.983 | E25: 0 | J25: 0 | K25: 0 | N25: 98.3 | O25: 0 | P25: 0 | Q25: 0 | R25: 0 | T25: =IF(B25<Input!$AE$15,'Export curtailment above max'!B25,Input!$AE$15) -> 0 | U25: 0
B26: =Input!AA33 -> 0 | D26: 0.982 | E26: 0 | J26: 0 | K26: 0 | N26: 98.2 | O26: 0 | P26: 0 | Q26: 0 | R26: 0 | T26: =IF(B26<Input!$AE$15,'Export curtailment above max'!B26,Input!$AE$15) -> 0 | U26: 0
B27: =Input!AA34 -> 0 | D27: 0.981 | E27: 0 | J27: 0 | K27: 0 | N27: 98.1 | O27: 0 | P27: 0 | Q27: 0 | R27: 0 | T27: =IF(B27<Input!$AE$15,'Export curtailment above max'!B27,Input!$AE$15) -> 0 | U27: 0
B28: =Input!AA35 -> 0 | D28: 0.98 | E28: 0 | J28: 0 | K28: 0 | N28: 98 | O28: 0 | P28: 0 | Q28: 0 | R28: 0 | T28: =IF(B28<Input!$AE$15,'Export curtailment above max'!B28,Input!$AE$15) -> 0 | U28: 0
B29: =Input!AA36 -> 0 | D29: 0.979 | E29: 0 | J29: 0 | K29: 0 | N29: 97.9 | O29: 0 | P29: 0 | Q29: 0 | R29: 0 | T29: =IF(B29<Input!$AE$15,'Export curtailment above max'!B29,Input!$AE$15) -> 0 | U29: 0
B30: =Input!AA37 -> 0 | D30: 0.978 | E30: 0 | J30: 0 | K30: 0 | N30: 97.8 | O30: 0 | P30: 0 | Q30: 0 | R30: 0 | T30: =IF(B30<Input!$AE$15,'Export curtailment above max'!B30,Input!$AE$15) -> 0 | U30: 0
B31: =Input!AA38 -> 0 | D31: 0.977 | E31: 0 | J31: 0 | K31: 0 | N31: 97.7 | O31: 0 | P31: 0 | Q31: 0 | R31: 0 | T31: =IF(B31<Input!$AE$15,'Export curtailment above max'!B31,Input!$AE$15) -> 0 | U31: 0
B32: =Input!AA39 -> 0 | D32: 0.976 | E32: 0 | J32: 0 | K32: 0 | N32: 97.6 | O32: 0 | P32: 0 | Q32: 0 | R32: 0 | T32: =IF(B32<Input!$AE$15,'Export curtailment above max'!B32,Input!$AE$15) -> 0 | U32: 0
B33: =Input!AA40 -> 0 | D33: 0.975 | E33: 0 | J33: 0 | K33: 0 | N33: 97.5 | O33: 0 | P33: 0 | Q33: 0 | R33: 0 | T33: =IF(B33<Input!$AE$15,'Export curtailment above max'!B33,Input!$AE$15) -> 0 | U33: 0
B34: =Input!AA41 -> 0 | D34: 0.974 | E34: 0 | J34: 0 | K34: 0 | N34: 97.4 | O34: 0 | P34: 0 | Q34: 0 | R34: 0 | T34: =IF(B34<Input!$AE$15,'Export curtailment above max'!B34,Input!$AE$15) -> 0 | U34: 0
B35: =Input!AA42 -> 0 | D35: 0.973 | E35: 0 | J35: 0 | K35: 0 | N35: 97.3 | O35: 0 | P35: 0 | Q35: 0 | R35: 0 | T35: =IF(B35<Input!$AE$15,'Export curtailment above max'!B35,Input!$AE$15) -> 0 | U35: 0
B36: =Input!AA43 -> 0 | D36: 0.972 | E36: 0 | J36: 0 | K36: 0 | N36: 97.2 | O36: 0 | P36: 0 | Q36: 0 | R36: 0 | T36: =IF(B36<Input!$AE$15,'Export curtailment above max'!B36,Input!$AE$15) -> 0 | U36: 0
B37: =Input!AA44 -> 0 | D37: 0.971 | E37: 0 | J37: 0 | K37: 0 | N37: 97.1 | O37: 0 | P37: 0 | Q37: 0 | R37: 0 | T37: =IF(B37<Input!$AE$15,'Export curtailment above max'!B37,Input!$AE$15) -> 0 | U37: 0
B38: =Input!AA45 -> 0 | D38: 0.97 | E38: 0 | J38: 0 | K38: 0 | N38: 97 | O38: 0 | P38: 0 | Q38: 0 | R38: 0 | T38: =IF(B38<Input!$AE$15,'Export curtailment above max'!B38,Input!$AE$15) -> 0 | U38: 0
B39: =Input!AA46 -> 0 | D39: 0.969 | E39: 0 | J39: 0 | K39: 0 | N39: 96.9 | O39: 0 | P39: 0 | Q39: 0 | R39: 0 | T39: =IF(B39<Input!$AE$15,'Export curtailment above max'!B39,Input!$AE$15) -> 0 | U39: 0
B40: =Input!AA47 -> 0 | D40: 0.968 | E40: 0 | J40: 0 | K40: 0 | N40: 96.8 | O40: 0 | P40: 0 | Q40: 0 | R40: 0 | T40: =IF(B40<Input!$AE$15,'Export curtailment above max'!B40,Input!$AE$15) -> 0 | U40: 0
B41: =Input!AA48 -> 0 | D41: 0.967 | E41: 0 | J41: 0 | K41: 0 | N41: 96.7 | O41: 0 | P41: 0 | Q41: 0 | R41: 0 | T41: =IF(B41<Input!$AE$15,'Export curtailment above max'!B41,Input!$AE$15) -> 0 | U41: 0
B42: =Input!AA49 -> 0 | D42: 0.966 | E42: 0 | J42: 0 | K42: 0 | N42: 96.6 | O42: 0 | P42: 0 | Q42: 0 | R42: 0 | T42: =IF(B42<Input!$AE$15,'Export curtailment above max'!B42,Input!$AE$15) -> 0 | U42: 0
B43: =Input!AA50 -> 0 | D43: 0.965 | E43: 0 | J43: 0 | K43: 0 | N43: 96.5 | O43: 0 | P43: 0 | Q43: 0 | R43: 0 | T43: =IF(B43<Input!$AE$15,'Export curtailment above max'!B43,Input!$AE$15) -> 0 | U43: 0
B44: =Input!AA51 -> 0 | D44: 0.964 | E44: 0 | J44: 0 | K44: 0 | N44: 96.4 | O44: 0 | P44: 0 | Q44: 0 | R44: 0 | T44: =IF(B44<Input!$AE$15,'Export curtailment above max'!B44,Input!$AE$15) -> 0 | U44: 0
B45: =Input!AA52 -> 0 | D45: 0.963 | E45: 0 | J45: 0 | K45: 0 | N45: 96.3 | O45: 0 | P45: 0 | Q45: 0 | R45: 0 | T45: =IF(B45<Input!$AE$15,'Export curtailment above max'!B45,Input!$AE$15) -> 0 | U45: 0
B46: =Input!AA53 -> 0 | D46: 0.962 | E46: 0 | J46: 0 | K46: 0 | N46: 96.2 | O46: 0 | P46: 0 | Q46: 0 | R46: 0 | T46: =IF(B46<Input!$AE$15,'Export curtailment above max'!B46,Input!$AE$15) -> 0 | U46: 0
B47: =Input!AA54 -> 0 | D47: 0.961 | E47: 0 | J47: 0 | K47: 0 | N47: 96.1 | O47: 0 | P47: 0 | Q47: 0 | R47: 0 | T47: =IF(B47<Input!$AE$15,'Export curtailment above max'!B47,Input!$AE$15) -> 0 | U47: 0
B48: =Input!AA55 -> 0 | D48: 0.96 | E48: 0 | J48: 0 | K48: 0 | N48: 96 | O48: 0 | P48: 0 | Q48: 0 | R48: 0 | T48: =IF(B48<Input!$AE$15,'Export curtailment above max'!B48,Input!$AE$15) -> 0 | U48: 0
B49: =Input!AA56 -> 0 | D49: 0.959 | E49: 0 | J49: 0 | K49: 0 | N49: 95.9 | O49: 0 | P49: 0 | Q49: 0 | R49: 0 | T49: =IF(B49<Input!$AE$15,'Export curtailment above max'!B49,Input!$AE$15) -> 0 | U49: 0
B50: =Input!AA57 -> 0 | D50: 0.958 | E50: 0 | J50: 0 | K50: 0 | N50: 95.8 | O50: 0 | P50: 0 | Q50: 0 | R50: 0 | T50: =IF(B50<Input!$AE$15,'Export curtailment above max'!B50,Input!$AE$15) -> 0 | U50: 0
B51: =Input!AA58 -> 0 | D51: 0.957 | E51: 0 | J51: 0 | K51: 0 | N51: 95.7 | O51: 0 | P51: 0 | Q51: 0 | R51: 0 | T51: =IF(B51<Input!$AE$15,'Export curtailment above max'!B51,Input!$AE$15) -> 0 | U51: 0
B52: =Input!AA59 -> 0 | D52: 0.956 | E52: 0 | J52: 0 | K52: 0 | N52: 95.6 | O52: 0 | P52: 0 | Q52: 0 | R52: 0 | T52: =IF(B52<Input!$AE$15,'Export curtailment above max'!B52,Input!$AE$15) -> 0 | U52: 0
B53: =Input!AA60 -> 0 | D53: 0.955 | E53: 0 | J53: 0 | K53: 0 | N53: 95.5 | O53: 0 | P53: 0 | Q53: 0 | R53: 0 | T53: =IF(B53<Input!$AE$15,'Export curtailment above max'!B53,Input!$AE$15) -> 0 | U53: 0
B54: =Input!AA61 -> 0 | D54: 0.954 | E54: 0 | J54: 0 | K54: 0 | N54: 95.4 | O54: 0 | P54: 0 | Q54: 0 | R54: 0 | T54: =IF(B54<Input!$AE$15,'Export curtailment above max'!B54,Input!$AE$15) -> 0 | U54: 0
B55: =Input!AA62 -> 0 | D55: 0.953 | E55: 0 | J55: 0 | K55: 0 | N55: 95.3 | O55: 0 | P55: 0 | Q55: 0 | R55: 0 | T55: =IF(B55<Input!$AE$15,'Export curtailment above max'!B55,Input!$AE$15) -> 0 | U55: 0
B56: =Input!AA63 -> 0 | D56: 0.952 | E56: 0 | J56: 0 | K56: 0 | N56: 95.2 | O56: 0 | P56: 0 | Q56: 0 | R56: 0 | T56: =IF(B56<Input!$AE$15,'Export curtailment above max'!B56,Input!$AE$15) -> 0 | U56: 0
B57: =Input!AA64 -> 0 | D57: 0.951 | E57: 0 | J57: 0 | K57: 0 | N57: 95.1 | O57: 0 | P57: 0 | Q57: 0 | R57: 0 | T57: =IF(B57<Input!$AE$15,'Export curtailment above max'!B57,Input!$AE$15) -> 0 | U57: 0
B58: =Input!AA65 -> 0 | D58: 0.95 | E58: 0 | J58: 0 | K58: 0 | N58: 95 | O58: 0 | P58: 0 | Q58: 0 | R58: 0 | T58: =IF(B58<Input!$AE$15,'Export curtailment above max'!B58,Input!$AE$15) -> 0 | U58: 0
B59: =Input!AA66 -> 0 | D59: 0.949 | E59: 0 | J59: 0 | K59: 0 | N59: 94.9 | O59: 0 | P59: 0 | Q59: 0 | R59: 0 | T59: =IF(B59<Input!$AE$15,'Export curtailment above max'!B59,Input!$AE$15) -> 0 | U59: 0
B60: =Input!AA67 -> 0 | D60: 0.948 | E60: 0 | J60: 0 | K60: 0 | N60: 94.8 | O60: 0 | P60: 0 | Q60: 0 | R60: 0 | T60: =IF(B60<Input!$AE$15,'Export curtailment above max'!B60,Input!$AE$15) -> 0 | U60: 0
B61: =Input!AA68 -> 0 | D61: 0.947 | E61: 0 | J61: 0 | K61: 0 | N61: 94.7 | O61: 0 | P61: 0 | Q61: 0 | R61: 0 | T61: =IF(B61<Input!$AE$15,'Export curtailment above max'!B61,Input!$AE$15) -> 0 | U61: 0
B62: =Input!AA69 -> 0 | D62: 0.946 | E62: 0 | J62: 0 | K62: 0 | N62: 94.6 | O62: 0 | P62: 0 | Q62: 0 | R62: 0 | T62: =IF(B62<Input!$AE$15,'Export curtailment above max'!B62,Input!$AE$15) -> 0 | U62: 0
B63: =Input!AA70 -> 0 | D63: 0.945 | E63: 0 | J63: 0 | K63: 0 | N63: 94.5 | O63: 0 | P63: 0 | Q63: 0 | R63: 0 | T63: =IF(B63<Input!$AE$15,'Export curtailment above max'!B63,Input!$AE$15) -> 0 | U63: 0
B64: =Input!AA71 -> 0 | D64: 0.944 | E64: 0 | J64: 0 | K64: 0 | N64: 94.4 | O64: 0 | P64: 0 | Q64: 0 | R64: 0 | T64: =IF(B64<Input!$AE$15,'Export curtailment above max'!B64,Input!$AE$15) -> 0 | U64: 0
B65: =Input!AA72 -> 0 | D65: 0.943 | E65: 0 | J65: 0 | K65: 0 | N65: 94.3 | O65: 0 | P65: 0 | Q65: 0 | R65: 0 | T65: =IF(B65<Input!$AE$15,'Export curtailment above max'!B65,Input!$AE$15) -> 0 | U65: 0
B66: =Input!AA73 -> 0 | D66: 0.942 | E66: 0 | J66: 0 | K66: 0 | N66: 94.2 | O66: 0 | P66: 0 | Q66: 0 | R66: 0 | T66: =IF(B66<Input!$AE$15,'Export curtailment above max'!B66,Input!$AE$15) -> 0 | U66: 0
B67: =Input!AA74 -> 0 | D67: 0.941 | E67: 0 | J67: 0 | K67: 0 | N67: 94.1 | O67: 0 | P67: 0 | Q67: 0 | R67: 0 | T67: =IF(B67<Input!$AE$15,'Export curtailment above max'!B67,Input!$AE$15) -> 0 | U67: 0
B68: =Input!AA75 -> 0 | D68: 0.94 | E68: 0 | J68: 0 | K68: 0 | N68: 94 | O68: 0 | P68: 0 | Q68: 0 | R68: 0 | T68: =IF(B68<Input!$AE$15,'Export curtailment above max'!B68,Input!$AE$15) -> 0 | U68: 0
B69: =Input!AA76 -> 0 | D69: 0.939 | E69: 0 | J69: 0 | K69: 0 | N69: 93.9 | O69: 0 | P69: 0 | Q69: 0 | R69: 0 | T69: =IF(B69<Input!$AE$15,'Export curtailment above max'!B69,Input!$AE$15) -> 0 | U69: 0
B70: =Input!AA77 -> 0 | D70: 0.938 | E70: 0 | J70: 0 | K70: 0 | N70: 93.8 | O70: 0 | P70: 0 | Q70: 0 | R70: 0 | T70: =IF(B70<Input!$AE$15,'Export curtailment above max'!B70,Input!$AE$15) -> 0 | U70: 0
B71: =Input!AA78 -> 0 | D71: 0.937 | E71: 0 | J71: 0 | K71: 0 | N71: 93.7 | O71: 0 | P71: 0 | Q71: 0 | R71: 0 | T71: =IF(B71<Input!$AE$15,'Export curtailment above max'!B71,Input!$AE$15) -> 0 | U71: 0
B72: =Input!AA79 -> 0 | D72: 0.936 | E72: =IFERROR(K72/B$2,"") -> 0 | J72: 0 | K72: 0 | N72: 93.6 | O72: =E72*100 -> 0 | P72: 0 | Q72: 0 | R72: 0 | T72: =IF(B72<Input!$AE$15,'Export curtailment above max'!B72,Input!$AE$15) -> 0 | U72: =B72-T72 -> 0
B73: =Input!AA80 -> 0 | D73: 0.935 | E73: 0 | I73: =IF(B73="","",IFERROR(B73/B$3,"")) ->  | J73: 0 | K73: =K72+J73 -> 0 | N73: =ROUND(D73*100,1) -> 93.5 | O73: 0 | P73: =(O73/1000+0.5*(O74-O73)/1000)*0.01 -> 0 | Q73: =Q74+(O73/1000+0.5*(O74-O73)/1000)*0.01 -> 0 | R73: 0 | T73: =IF(B73<Input!$AE$15,'Export curtailment above max'!B73,Input!$AE$15) -> 0 | U73: 0
B74: =Input!AA81 -> 0 | D74: 0.934 | E74: 0 | J74: 0 | K74: 0 | N74: 93.4 | O74: 0 | P74: 0 | Q74: 0 | R74: =R73+P74 -> 0 | T74: =IF(B74<Input!$AE$15,'Export curtailment above max'!B74,Input!$AE$15) -> 0 | U74: 0
B75: =Input!AA82 -> 0 | D75: 0.933 | E75: 0 | J75: 0 | K75: 0 | N75: 93.3 | O75: 0 | P75: 0 | Q75: 0 | R75: 0 | T75: =IF(B75<Input!$AE$15,'Export curtailment above max'!B75,Input!$AE$15) -> 0 | U75: 0
B76: =Input!AA83 -> 0 | D76: 0.932 | E76: 0 | J76: 0 | K76: 0 | N76: 93.2 | O76: 0 | P76: 0 | Q76: 0 | R76: 0 | T76: =IF(B76<Input!$AE$15,'Export curtailment above max'!B76,Input!$AE$15) -> 0 | U76: 0
B77: =Input!AA84 -> 0 | D77: 0.931 | E77: 0 | J77: 0 | K77: 0 | N77: 93.1 | O77: 0 | P77: 0 | Q77: 0 | R77: 0 | T77: =IF(B77<Input!$AE$15,'Export curtailment above max'!B77,Input!$AE$15) -> 0 | U77: 0
B78: =Input!AA85 -> 0 | D78: 0.93 | E78: 0 | J78: 0 | K78: 0 | N78: 93 | O78: 0 | P78: 0 | Q78: 0 | R78: 0 | T78: =IF(B78<Input!$AE$15,'Export curtailment above max'!B78,Input!$AE$15) -> 0 | U78: 0
B79: =Input!AA86 -> 0 | D79: 0.929 | E79: 0 | J79: 0 | K79: 0 | N79: 92.9 | O79: 0 | P79: 0 | Q79: 0 | R79: 0 | T79: =IF(B79<Input!$AE$15,'Export curtailment above max'!B79,Input!$AE$15) -> 0 | U79: 0
B80: =Input!AA87 -> 0 | D80: 0.928 | E80: 0 | J80: 0 | K80: 0 | N80: 92.8 | O80: 0 | P80: 0 | Q80: 0 | R80: 0 | T80: =IF(B80<Input!$AE$15,'Export curtailment above max'!B80,Input!$AE$15) -> 0 | U80: 0
B81: =Input!AA88 -> 0 | D81: 0.927 | E81: 0 | J81: 0 | K81: 0 | N81: 92.7 | O81: 0 | P81: 0 | Q81: 0 | R81: 0 | T81: =IF(B81<Input!$AE$15,'Export curtailment above max'!B81,Input!$AE$15) -> 0 | U81: 0
B82: =Input!AA89 -> 0 | D82: 0.926 | E82: 0 | J82: 0 | K82: 0 | N82: 92.6 | O82: 0 | P82: 0 | Q82: 0 | R82: 0 | T82: =IF(B82<Input!$AE$15,'Export curtailment above max'!B82,Input!$AE$15) -> 0 | U82: 0
B83: =Input!AA90 -> 0 | D83: 0.925 | E83: 0 | J83: 0 | K83: 0 | N83: 92.5 | O83: 0 | P83: 0 | Q83: 0 | R83: 0 | T83: =IF(B83<Input!$AE$15,'Export curtailment above max'!B83,Input!$AE$15) -> 0 | U83: 0
B84: =Input!AA91 -> 0 | D84: 0.924 | E84: 0 | J84: 0 | K84: 0 | N84: 92.4 | O84: 0 | P84: 0 | Q84: 0 | R84: 0 | T84: =IF(B84<Input!$AE$15,'Export curtailment above max'!B84,Input!$AE$15) -> 0 | U84: 0
B85: =Input!AA92 -> 0 | D85: 0.923 | E85: 0 | J85: 0 | K85: 0 | N85: 92.3 | O85: 0 | P85: 0 | Q85: 0 | R85: 0 | T85: =IF(B85<Input!$AE$15,'Export curtailment above max'!B85,Input!$AE$15) -> 0 | U85: 0
B86: =Input!AA93 -> 0 | D86: 0.922 | E86: 0 | J86: 0 | K86: 0 | N86: 92.2 | O86: 0 | P86: 0 | Q86: 0 | R86: 0 | T86: =IF(B86<Input!$AE$15,'Export curtailment above max'!B86,Input!$AE$15) -> 0 | U86: 0
B87: =Input!AA94 -> 0 | D87: 0.921 | E87: 0 | J87: 0 | K87: 0 | N87: 92.1 | O87: 0 | P87: 0 | Q87: 0 | R87: 0 | T87: =IF(B87<Input!$AE$15,'Export curtailment above max'!B87,Input!$AE$15) -> 0 | U87: 0
B88: =Input!AA95 -> 0 | D88: 0.92 | E88: 0 | J88: 0 | K88: 0 | N88: 92 | O88: 0 | P88: 0 | Q88: 0 | R88: 0 | T88: =IF(B88<Input!$AE$15,'Export curtailment above max'!B88,Input!$AE$15) -> 0 | U88: 0
B89: =Input!AA96 -> 0 | D89: 0.919 | E89: 0 | J89: 0 | K89: 0 | N89: 91.9 | O89: 0 | P89: 0 | Q89: 0 | R89: 0 | T89: =IF(B89<Input!$AE$15,'Export curtailment above max'!B89,Input!$AE$15) -> 0 | U89: 0
B90: =Input!AA97 -> 0 | D90: 0.918 | E90: 0 | J90: 0 | K90: 0 | N90: 91.8 | O90: 0 | P90: 0 | Q90: 0 | R90: 0 | T90: =IF(B90<Input!$AE$15,'Export curtailment above max'!B90,Input!$AE$15) -> 0 | U90: 0
B91: =Input!AA98 -> 0 | D91: 0.917 | E91: 0 | J91: 0 | K91: 0 | N91: 91.7 | O91: 0 | P91: 0 | Q91: 0 | R91: 0 | T91: =IF(B91<Input!$AE$15,'Export curtailment above max'!B91,Input!$AE$15) -> 0 | U91: 0
B92: =Input!AA99 -> 0 | D92: 0.916 | E92: 0 | J92: 0 | K92: 0 | N92: 91.6 | O92: 0 | P92: 0 | Q92: 0 | R92: 0 | T92: =IF(B92<Input!$AE$15,'Export curtailment above max'!B92,Input!$AE$15) -> 0 | U92: 0
B93: =Input!AA100 -> 0 | D93: 0.915 | E93: 0 | J93: 0 | K93: 0 | N93: 91.5 | O93: 0 | P93: 0 | Q93: 0 | R93: 0 | T93: =IF(B93<Input!$AE$15,'Export curtailment above max'!B93,Input!$AE$15) -> 0 | U93: 0
B94: =Input!AA101 -> 0 | D94: 0.914 | E94: 0 | J94: 0 | K94: 0 | N94: 91.4 | O94: 0 | P94: 0 | Q94: 0 | R94: 0 | T94: =IF(B94<Input!$AE$15,'Export curtailment above max'!B94,Input!$AE$15) -> 0 | U94: 0
B95: =Input!AA102 -> 0 | D95: 0.913 | E95: 0 | J95: 0 | K95: 0 | N95: 91.3 | O95: 0 | P95: 0 | Q95: 0 | R95: 0 | T95: =IF(B95<Input!$AE$15,'Export curtailment above max'!B95,Input!$AE$15) -> 0 | U95: 0
B96: =Input!AA103 -> 0 | D96: 0.912 | E96: 0 | J96: 0 | K96: 0 | N96: 91.2 | O96: 0 | P96: 0 | Q96: 0 | R96: 0 | T96: =IF(B96<Input!$AE$15,'Export curtailment above max'!B96,Input!$AE$15) -> 0 | U96: 0
B97: =Input!AA104 -> 0 | D97: 0.911 | E97: 0 | J97: 0 | K97: 0 | N97: 91.1 | O97: 0 | P97: 0 | Q97: 0 | R97: 0 | T97: =IF(B97<Input!$AE$15,'Export curtailment above max'!B97,Input!$AE$15) -> 0 | U97: 0
B98: =Input!AA105 -> 0 | D98: 0.91 | E98: 0 | J98: 0 | K98: 0 | N98: 91 | O98: 0 | P98: 0 | Q98: 0 | R98: 0 | T98: =IF(B98<Input!$AE$15,'Export curtailment above max'!B98,Input!$AE$15) -> 0 | U98: 0
B99: =Input!AA106 -> 0 | D99: 0.909 | E99: 0 | J99: 0 | K99: 0 | N99: 90.9 | O99: 0 | P99: 0 | Q99: 0 | R99: 0 | T99: =IF(B99<Input!$AE$15,'Export curtailment above max'!B99,Input!$AE$15) -> 0 | U99: 0
B100: =Input!AA107 -> 0 | D100: 0.908 | E100: 0 | J100: 0 | K100: 0 | N100: 90.8 | O100: 0 | P100: 0 | Q100: 0 | R100: 0 | T100: =IF(B100<Input!$AE$15,'Export curtailment above max'!B100,Input!$AE$15) -> 0 | U100: 0
B101: =Input!AA108 -> 0 | D101: 0.907 | E101: 0 | J101: 0 | K101: 0 | N101: 90.7 | O101: 0 | P101: 0 | Q101: 0 | R101: 0 | T101: =IF(B101<Input!$AE$15,'Export curtailment above max'!B101,Input!$AE$15) -> 0 | U101: 0
B102: =Input!AA109 -> 0 | D102: 0.906 | E102: 0 | J102: 0 | K102: 0 | N102: 90.6 | O102: 0 | P102: 0 | Q102: 0 | R102: 0 | T102: =IF(B102<Input!$AE$15,'Export curtailment above max'!B102,Input!$AE$15) -> 0 | U102: 0
B103: =Input!AA110 -> 0 | D103: 0.905 | E103: 0 | J103: 0 | K103: 0 | N103: 90.5 | O103: 0 | P103: 0 | Q103: 0 | R103: 0 | T103: =IF(B103<Input!$AE$15,'Export curtailment above max'!B103,Input!$AE$15) -> 0 | U103: 0
B104: =Input!AA111 -> 0 | D104: 0.904 | E104: 0 | J104: 0 | K104: 0 | N104: 90.4 | O104: 0 | P104: 0 | Q104: 0 | R104: 0 | T104: =IF(B104<Input!$AE$15,'Export curtailment above max'!B104,Input!$AE$15) -> 0 | U104: 0
B105: =Input!AA112 -> 0 | D105: 0.903 | E105: 0 | J105: 0 | K105: 0 | N105: 90.3 | O105: 0 | P105: 0 | Q105: 0 | R105: 0 | T105: =IF(B105<Input!$AE$15,'Export curtailment above max'!B105,Input!$AE$15) -> 0 | U105: 0
B106: =Input!AA113 -> 0 | D106: 0.902 | E106: 0 | J106: 0 | K106: 0 | N106: 90.2 | O106: 0 | P106: 0 | Q106: 0 | R106: 0 | T106: =IF(B106<Input!$AE$15,'Export curtailment above max'!B106,Input!$AE$15) -> 0 | U106: 0
B107: =Input!AA114 -> 0 | D107: 0.901 | E107: 0 | J107: 0 | K107: 0 | N107: 90.1 | O107: 0 | P107: 0 | Q107: 0 | R107: 0 | T107: =IF(B107<Input!$AE$15,'Export curtailment above max'!B107,Input!$AE$15) -> 0 | U107: 0
B108: =Input!AA115 -> 0 | D108: 0.9 | E108: 0 | J108: 0 | K108: 0 | N108: 90 | O108: 0 | P108: 0 | Q108: 0 | R108: 0 | T108: =IF(B108<Input!$AE$15,'Export curtailment above max'!B108,Input!$AE$15) -> 0 | U108: 0
B109: =Input!AA116 -> 0 | D109: 0.899 | E109: 0 | J109: 0 | K109: 0 | N109: 89.9 | O109: 0 | P109: 0 | Q109: 0 | R109: =R108+P109 -> 0 | T109: =IF(B109<Input!$AE$15,'Export curtailment above max'!B109,Input!$AE$15) -> 0 | U109: 0
B110: =Input!AA117 -> 0 | D110: 0.898 | E110: 0 | J110: 0 | K110: 0 | N110: 89.8 | O110: 0 | P110: 0 | Q110: 0 | R110: 0 | T110: =IF(B110<Input!$AE$15,'Export curtailment above max'!B110,Input!$AE$15) -> 0 | U110: 0
B111: =Input!AA118 -> 0 | D111: 0.897 | E111: 0 | J111: 0 | K111: 0 | N111: 89.7 | O111: 0 | P111: 0 | Q111: 0 | R111: 0 | T111: =IF(B111<Input!$AE$15,'Export curtailment above max'!B111,Input!$AE$15) -> 0 | U111: 0
B112: =Input!AA119 -> 0 | D112: 0.896 | E112: 0 | J112: 0 | K112: 0 | N112: 89.6 | O112: 0 | P112: 0 | Q112: 0 | R112: 0 | T112: =IF(B112<Input!$AE$15,'Export curtailment above max'!B112,Input!$AE$15) -> 0 | U112: 0
B113: =Input!AA120 -> 0 | D113: 0.895 | E113: 0 | J113: 0 | K113: 0 | N113: 89.5 | O113: 0 | P113: 0 | Q113: 0 | R113: 0 | T113: =IF(B113<Input!$AE$15,'Export curtailment above max'!B113,Input!$AE$15) -> 0 | U113: 0
B114: =Input!AA121 -> 0 | D114: 0.894 | E114: 0 | J114: 0 | K114: 0 | N114: 89.4 | O114: 0 | P114: 0 | Q114: 0 | R114: 0 | T114: =IF(B114<Input!$AE$15,'Export curtailment above max'!B114,Input!$AE$15) -> 0 | U114: 0
B115: =Input!AA122 -> 0 | D115: 0.893 | E115: 0 | J115: 0 | K115: 0 | N115: 89.3 | O115: 0 | P115: 0 | Q115: 0 | R115: 0 | T115: =IF(B115<Input!$AE$15,'Export curtailment above max'!B115,Input!$AE$15) -> 0 | U115: 0
B116: =Input!AA123 -> 0 | D116: 0.892 | E116: 0 | J116: 0 | K116: 0 | N116: 89.2 | O116: 0 | P116: 0 | Q116: 0 | R116: 0 | T116: =IF(B116<Input!$AE$15,'Export curtailment above max'!B116,Input!$AE$15) -> 0 | U116: 0
B117: =Input!AA124 -> 0 | D117: 0.891 | E117: 0 | J117: 0 | K117: 0 | N117: 89.1 | O117: 0 | P117: 0 | Q117: 0 | R117: 0 | T117: =IF(B117<Input!$AE$15,'Export curtailment above max'!B117,Input!$AE$15) -> 0 | U117: 0
B118: =Input!AA125 -> 0 | D118: 0.89 | E118: 0 | J118: 0 | K118: 0 | N118: 89 | O118: 0 | P118: 0 | Q118: 0 | R118: 0 | T118: =IF(B118<Input!$AE$15,'Export curtailment above max'!B118,Input!$AE$15) -> 0 | U118: 0
B119: =Input!AA126 -> 0 | D119: 0.889 | E119: 0 | J119: 0 | K119: 0 | N119: 88.9 | O119: 0 | P119: 0 | Q119: 0 | R119: 0 | T119: =IF(B119<Input!$AE$15,'Export curtailment above max'!B119,Input!$AE$15) -> 0 | U119: 0
B120: =Input!AA127 -> 0 | D120: 0.888 | E120: 0 | J120: 0 | K120: 0 | N120: 88.8 | O120: 0 | P120: 0 | Q120: 0 | R120: 0 | T120: =IF(B120<Input!$AE$15,'Export curtailment above max'!B120,Input!$AE$15) -> 0 | U120: 0
B121: =Input!AA128 -> 0 | D121: 0.887 | E121: 0 | J121: 0 | K121: 0 | N121: 88.7 | O121: 0 | P121: 0 | Q121: 0 | R121: 0 | T121: =IF(B121<Input!$AE$15,'Export curtailment above max'!B121,Input!$AE$15) -> 0 | U121: 0
B122: =Input!AA129 -> 0 | D122: 0.886 | E122: 0 | J122: 0 | K122: 0 | N122: 88.6 | O122: 0 | P122: 0 | Q122: 0 | R122: 0 | T122: =IF(B122<Input!$AE$15,'Export curtailment above max'!B122,Input!$AE$15) -> 0 | U122: 0
B123: =Input!AA130 -> 0 | D123: 0.885 | E123: 0 | J123: 0 | K123: 0 | N123: 88.5 | O123: 0 | P123: 0 | Q123: 0 | R123: 0 | T123: =IF(B123<Input!$AE$15,'Export curtailment above max'!B123,Input!$AE$15) -> 0 | U123: 0
B124: =Input!AA131 -> 0 | D124: 0.884 | E124: 0 | J124: 0 | K124: 0 | N124: 88.4 | O124: 0 | P124: 0 | Q124: 0 | R124: 0 | T124: =IF(B124<Input!$AE$15,'Export curtailment above max'!B124,Input!$AE$15) -> 0 | U124: 0
B125: =Input!AA132 -> 0 | D125: 0.883 | E125: 0 | J125: 0 | K125: 0 | N125: 88.3 | O125: 0 | P125: 0 | Q125: 0 | R125: 0 | T125: =IF(B125<Input!$AE$15,'Export curtailment above max'!B125,Input!$AE$15) -> 0 | U125: 0
B126: =Input!AA133 -> 0 | D126: 0.882 | E126: 0 | J126: 0 | K126: 0 | N126: 88.2 | O126: 0 | P126: 0 | Q126: 0 | R126: 0 | T126: =IF(B126<Input!$AE$15,'Export curtailment above max'!B126,Input!$AE$15) -> 0 | U126: 0
B127: =Input!AA134 -> 0 | D127: 0.881 | E127: 0 | J127: 0 | K127: 0 | N127: 88.1 | O127: 0 | P127: 0 | Q127: 0 | R127: 0 | T127: =IF(B127<Input!$AE$15,'Export curtailment above max'!B127,Input!$AE$15) -> 0 | U127: 0
B128: =Input!AA135 -> 0 | D128: 0.88 | E128: 0 | J128: 0 | K128: 0 | N128: 88 | O128: 0 | P128: 0 | Q128: 0 | R128: 0 | T128: =IF(B128<Input!$AE$15,'Export curtailment above max'!B128,Input!$AE$15) -> 0 | U128: 0
B129: =Input!AA136 -> 0 | D129: 0.879 | E129: 0 | J129: 0 | K129: 0 | N129: 87.9 | O129: 0 | P129: 0 | Q129: 0 | R129: 0 | T129: =IF(B129<Input!$AE$15,'Export curtailment above max'!B129,Input!$AE$15) -> 0 | U129: 0
B130: =Input!AA137 -> 0 | D130: 0.878 | E130: 0 | J130: 0 | K130: 0 | N130: 87.8 | O130: 0 | P130: 0 | Q130: 0 | R130: 0 | T130: =IF(B130<Input!$AE$15,'Export curtailment above max'!B130,Input!$AE$15) -> 0 | U130: 0
B131: =Input!AA138 -> 0 | D131: 0.877 | E131: 0 | J131: 0 | K131: 0 | N131: 87.7 | O131: 0 | P131: 0 | Q131: 0 | R131: 0 | T131: =IF(B131<Input!$AE$15,'Export curtailment above max'!B131,Input!$AE$15) -> 0 | U131: 0
B132: =Input!AA139 -> 0 | D132: 0.876 | E132: 0 | J132: 0 | K132: 0 | N132: 87.6 | O132: 0 | P132: 0 | Q132: 0 | R132: 0 | T132: =IF(B132<Input!$AE$15,'Export curtailment above max'!B132,Input!$AE$15) -> 0 | U132: 0
B133: =Input!AA140 -> 0 | D133: 0.875 | E133: 0 | J133: 0 | K133: 0 | N133: 87.5 | O133: 0 | P133: 0 | Q133: 0 | R133: 0 | T133: =IF(B133<Input!$AE$15,'Export curtailment above max'!B133,Input!$AE$15) -> 0 | U133: 0
B134: =Input!AA141 -> 0 | D134: 0.874 | E134: 0 | J134: 0 | K134: 0 | N134: 87.4 | O134: 0 | P134: 0 | Q134: 0 | R134: 0 | T134: =IF(B134<Input!$AE$15,'Export curtailment above max'!B134,Input!$AE$15) -> 0 | U134: 0
B135: =Input!AA142 -> 0 | D135: 0.873 | E135: 0 | J135: 0 | K135: 0 | N135: 87.3 | O135: 0 | P135: 0 | Q135: 0 | R135: 0 | T135: =IF(B135<Input!$AE$15,'Export curtailment above max'!B135,Input!$AE$15) -> 0 | U135: 0
B136: =Input!AA143 -> 0 | D136: 0.872 | E136: =IFERROR(K136/B$2,"") -> 0 | J136: 0 | K136: 0 | N136: 87.2 | O136: =E136*100 -> 0 | P136: 0 | Q136: 0 | R136: 0 | T136: =IF(B136<Input!$AE$15,'Export curtailment above max'!B136,Input!$AE$15) -> 0 | U136: =B136-T136 -> 0
B137: =Input!AA144 -> 0 | D137: 0.871 | E137: 0 | I137: =IF(B137="","",IFERROR(B137/B$3,"")) ->  | J137: 0 | K137: =K136+J137 -> 0 | N137: =ROUND(D137*100,1) -> 87.1 | O137: 0 | P137: =(O137/1000+0.5*(O138-O137)/1000)*0.01 -> 0 | Q137: =Q138+(O137/1000+0.5*(O138-O137)/1000)*0.01 -> 0 | R137: 0 | T137: =IF(B137<Input!$AE$15,'Export curtailment above max'!B137,Input!$AE$15) -> 0 | U137: 0
B138: =Input!AA145 -> 0 | D138: 0.87 | E138: 0 | J138: 0 | K138: 0 | N138: 87 | O138: 0 | P138: 0 | Q138: 0 | R138: 0 | T138: =IF(B138<Input!$AE$15,'Export curtailment above max'!B138,Input!$AE$15) -> 0 | U138: 0
B139: =Input!AA146 -> 0 | D139: 0.869 | E139: 0 | J139: 0 | K139: 0 | N139: 86.9 | O139: 0 | P139: 0 | Q139: 0 | R139: 0 | T139: =IF(B139<Input!$AE$15,'Export curtailment above max'!B139,Input!$AE$15) -> 0 | U139: 0
B140: =Input!AA147 -> 0 | D140: 0.868 | E140: 0 | J140: 0 | K140: 0 | N140: 86.8 | O140: 0 | P140: 0 | Q140: 0 | R140: 0 | T140: =IF(B140<Input!$AE$15,'Export curtailment above max'!B140,Input!$AE$15) -> 0 | U140: 0
B141: =Input!AA148 -> 0 | D141: 0.867 | E141: 0 | J141: 0 | K141: 0 | N141: 86.7 | O141: 0 | P141: 0 | Q141: 0 | R141: 0 | T141: =IF(B141<Input!$AE$15,'Export curtailment above max'!B141,Input!$AE$15) -> 0 | U141: 0
B142: =Input!AA149 -> 0 | D142: 0.866 | E142: 0 | J142: 0 | K142: 0 | N142: 86.6 | O142: 0 | P142: 0 | Q142: 0 | R142: 0 | T142: =IF(B142<Input!$AE$15,'Export curtailment above max'!B142,Input!$AE$15) -> 0 | U142: 0
B143: =Input!AA150 -> 0 | D143: 0.865 | E143: 0 | J143: 0 | K143: 0 | N143: 86.5 | O143: 0 | P143: 0 | Q143: 0 | R143: 0 | T143: =IF(B143<Input!$AE$15,'Export curtailment above max'!B143,Input!$AE$15) -> 0 | U143: 0
B144: =Input!AA151 -> 0 | D144: 0.864 | E144: 0 | J144: 0 | K144: 0 | N144: 86.4 | O144: 0 | P144: 0 | Q144: 0 | R144: 0 | T144: =IF(B144<Input!$AE$15,'Export curtailment above max'!B144,Input!$AE$15) -> 0 | U144: 0
B145: =Input!AA152 -> 0 | D145: 0.863 | E145: 0 | J145: 0 | K145: 0 | N145: 86.3 | O145: 0 | P145: 0 | Q145: 0 | R145: 0 | T145: =IF(B145<Input!$AE$15,'Export curtailment above max'!B145,Input!$AE$15) -> 0 | U145: 0
B146: =Input!AA153 -> 0 | D146: 0.862 | E146: 0 | J146: 0 | K146: 0 | N146: 86.2 | O146: 0 | P146: 0 | Q146: 0 | R146: 0 | T146: =IF(B146<Input!$AE$15,'Export curtailment above max'!B146,Input!$AE$15) -> 0 | U146: 0
B147: =Input!AA154 -> 0 | D147: 0.861 | E147: 0 | J147: 0 | K147: 0 | N147: 86.1 | O147: 0 | P147: 0 | Q147: 0 | R147: 0 | T147: =IF(B147<Input!$AE$15,'Export curtailment above max'!B147,Input!$AE$15) -> 0 | U147: 0
B148: =Input!AA155 -> 0 | D148: 0.86 | E148: 0 | J148: 0 | K148: 0 | N148: 86 | O148: 0 | P148: 0 | Q148: 0 | R148: 0 | T148: =IF(B148<Input!$AE$15,'Export curtailment above max'!B148,Input!$AE$15) -> 0 | U148: 0
B149: =Input!AA156 -> 0 | D149: 0.859 | E149: 0 | J149: 0 | K149: 0 | N149: 85.9 | O149: 0 | P149: 0 | Q149: 0 | R149: 0 | T149: =IF(B149<Input!$AE$15,'Export curtailment above max'!B149,Input!$AE$15) -> 0 | U149: 0
B150: =Input!AA157 -> 0 | D150: 0.858 | E150: 0 | J150: 0 | K150: 0 | N150: 85.8 | O150: 0 | P150: 0 | Q150: 0 | R150: 0 | T150: =IF(B150<Input!$AE$15,'Export curtailment above max'!B150,Input!$AE$15) -> 0 | U150: 0
B151: =Input!AA158 -> 0 | D151: 0.857 | E151: 0 | J151: 0 | K151: 0 | N151: 85.7 | O151: 0 | P151: 0 | Q151: 0 | R151: 0 | T151: =IF(B151<Input!$AE$15,'Export curtailment above max'!B151,Input!$AE$15) -> 0 | U151: 0
B152: =Input!AA159 -> 0 | D152: 0.856 | E152: 0 | J152: 0 | K152: 0 | N152: 85.6 | O152: 0 | P152: 0 | Q152: 0 | R152: 0 | T152: =IF(B152<Input!$AE$15,'Export curtailment above max'!B152,Input!$AE$15) -> 0 | U152: 0
B153: =Input!AA160 -> 0 | D153: 0.855 | E153: 0 | J153: 0 | K153: 0 | N153: 85.5 | O153: 0 | P153: 0 | Q153: 0 | R153: 0 | T153: =IF(B153<Input!$AE$15,'Export curtailment above max'!B153,Input!$AE$15) -> 0 | U153: 0
B154: =Input!AA161 -> 0 | D154: 0.854 | E154: 0 | J154: 0 | K154: 0 | N154: 85.4 | O154: 0 | P154: 0 | Q154: 0 | R154: 0 | T154: =IF(B154<Input!$AE$15,'Export curtailment above max'!B154,Input!$AE$15) -> 0 | U154: 0
B155: =Input!AA162 -> 0 | D155: 0.853 | E155: 0 | J155: 0 | K155: 0 | N155: 85.3 | O155: 0 | P155: 0 | Q155: 0 | R155: 0 | T155: =IF(B155<Input!$AE$15,'Export curtailment above max'!B155,Input!$AE$15) -> 0 | U155: 0
B156: =Input!AA163 -> 0 | D156: 0.852 | E156: 0 | J156: 0 | K156: 0 | N156: 85.2 | O156: 0 | P156: 0 | Q156: 0 | R156: 0 | T156: =IF(B156<Input!$AE$15,'Export curtailment above max'!B156,Input!$AE$15) -> 0 | U156: 0
B157: =Input!AA164 -> 0 | D157: 0.851 | E157: 0 | J157: 0 | K157: 0 | N157: 85.1 | O157: 0 | P157: 0 | Q157: 0 | R157: 0 | T157: =IF(B157<Input!$AE$15,'Export curtailment above max'!B157,Input!$AE$15) -> 0 | U157: 0
B158: =Input!AA165 -> 0 | D158: 0.85 | E158: 0 | J158: 0 | K158: 0 | N158: 85 | O158: 0 | P158: 0 | Q158: 0 | R158: 0 | T158: =IF(B158<Input!$AE$15,'Export curtailment above max'!B158,Input!$AE$15) -> 0 | U158: 0
B159: =Input!AA166 -> 0 | D159: 0.849 | E159: 0 | J159: 0 | K159: 0 | N159: 84.9 | O159: 0 | P159: 0 | Q159: 0 | R159: 0 | T159: =IF(B159<Input!$AE$15,'Export curtailment above max'!B159,Input!$AE$15) -> 0 | U159: 0
B160: =Input!AA167 -> 0 | D160: 0.848 | E160: 0 | J160: 0 | K160: 0 | N160: 84.8 | O160: 0 | P160: 0 | Q160: 0 | R160: 0 | T160: =IF(B160<Input!$AE$15,'Export curtailment above max'!B160,Input!$AE$15) -> 0 | U160: 0
B161: =Input!AA168 -> 0 | D161: 0.847 | E161: 0 | J161: 0 | K161: 0 | N161: 84.7 | O161: 0 | P161: 0 | Q161: 0 | R161: 0 | T161: =IF(B161<Input!$AE$15,'Export curtailment above max'!B161,Input!$AE$15) -> 0 | U161: 0
B162: =Input!AA169 -> 0 | D162: 0.846 | E162: 0 | J162: 0 | K162: 0 | N162: 84.6 | O162: 0 | P162: 0 | Q162: 0 | R162: 0 | T162: =IF(B162<Input!$AE$15,'Export curtailment above max'!B162,Input!$AE$15) -> 0 | U162: 0
B163: =Input!AA170 -> 0 | D163: 0.845 | E163: 0 | J163: 0 | K163: 0 | N163: 84.5 | O163: 0 | P163: 0 | Q163: 0 | R163: 0 | T163: =IF(B163<Input!$AE$15,'Export curtailment above max'!B163,Input!$AE$15) -> 0 | U163: 0
B164: =Input!AA171 -> 0 | D164: 0.844 | E164: 0 | J164: 0 | K164: 0 | N164: 84.4 | O164: 0 | P164: 0 | Q164: 0 | R164: 0 | T164: =IF(B164<Input!$AE$15,'Export curtailment above max'!B164,Input!$AE$15) -> 0 | U164: 0
B165: =Input!AA172 -> 0 | D165: 0.843 | E165: 0 | J165: 0 | K165: 0 | N165: 84.3 | O165: 0 | P165: 0 | Q165: 0 | R165: 0 | T165: =IF(B165<Input!$AE$15,'Export curtailment above max'!B165,Input!$AE$15) -> 0 | U165: 0
B166: =Input!AA173 -> 0 | D166: 0.842 | E166: 0 | J166: 0 | K166: 0 | N166: 84.2 | O166: 0 | P166: 0 | Q166: 0 | R166: 0 | T166: =IF(B166<Input!$AE$15,'Export curtailment above max'!B166,Input!$AE$15) -> 0 | U166: 0
B167: =Input!AA174 -> 0 | D167: 0.841 | E167: 0 | J167: 0 | K167: 0 | N167: 84.1 | O167: 0 | P167: 0 | Q167: 0 | R167: 0 | T167: =IF(B167<Input!$AE$15,'Export curtailment above max'!B167,Input!$AE$15) -> 0 | U167: 0
B168: =Input!AA175 -> 0 | D168: 0.84 | E168: 0 | J168: 0 | K168: 0 | N168: 84 | O168: 0 | P168: 0 | Q168: 0 | R168: 0 | T168: =IF(B168<Input!$AE$15,'Export curtailment above max'!B168,Input!$AE$15) -> 0 | U168: 0
B169: =Input!AA176 -> 0 | D169: 0.839 | E169: 0 | J169: 0 | K169: 0 | N169: 83.9 | O169: 0 | P169: 0 | Q169: 0 | R169: 0 | T169: =IF(B169<Input!$AE$15,'Export curtailment above max'!B169,Input!$AE$15) -> 0 | U169: 0
B170: =Input!AA177 -> 0 | D170: 0.838 | E170: 0 | J170: 0 | K170: 0 | N170: 83.8 | O170: 0 | P170: 0 | Q170: 0 | R170: 0 | T170: =IF(B170<Input!$AE$15,'Export curtailment above max'!B170,Input!$AE$15) -> 0 | U170: 0
B171: =Input!AA178 -> 0 | D171: 0.837 | E171: 0 | J171: 0 | K171: 0 | N171: 83.7 | O171: 0 | P171: 0 | Q171: 0 | R171: 0 | T171: =IF(B171<Input!$AE$15,'Export curtailment above max'!B171,Input!$AE$15) -> 0 | U171: 0
B172: =Input!AA179 -> 0 | D172: 0.836 | E172: 0 | J172: 0 | K172: 0 | N172: 83.6 | O172: 0 | P172: 0 | Q172: 0 | R172: 0 | T172: =IF(B172<Input!$AE$15,'Export curtailment above max'!B172,Input!$AE$15) -> 0 | U172: 0
B173: =Input!AA180 -> 0 | D173: 0.835 | E173: 0 | J173: 0 | K173: 0 | N173: 83.5 | O173: 0 | P173: 0 | Q173: 0 | R173: =R172+P173 -> 0 | T173: =IF(B173<Input!$AE$15,'Export curtailment above max'!B173,Input!$AE$15) -> 0 | U173: 0
B174: =Input!AA181 -> 0 | D174: 0.834 | E174: 0 | J174: 0 | K174: 0 | N174: 83.4 | O174: 0 | P174: 0 | Q174: 0 | R174: 0 | T174: =IF(B174<Input!$AE$15,'Export curtailment above max'!B174,Input!$AE$15) -> 0 | U174: 0
B175: =Input!AA182 -> 0 | D175: 0.833 | E175: 0 | J175: 0 | K175: 0 | N175: 83.3 | O175: 0 | P175: 0 | Q175: 0 | R175: 0 | T175: =IF(B175<Input!$AE$15,'Export curtailment above max'!B175,Input!$AE$15) -> 0 | U175: 0
B176: =Input!AA183 -> 0 | D176: 0.832 | E176: 0 | J176: 0 | K176: 0 | N176: 83.2 | O176: 0 | P176: 0 | Q176: 0 | R176: 0 | T176: =IF(B176<Input!$AE$15,'Export curtailment above max'!B176,Input!$AE$15) -> 0 | U176: 0
B177: =Input!AA184 -> 0 | D177: 0.831 | E177: 0 | J177: 0 | K177: 0 | N177: 83.1 | O177: 0 | P177: 0 | Q177: 0 | R177: 0 | T177: =IF(B177<Input!$AE$15,'Export curtailment above max'!B177,Input!$AE$15) -> 0 | U177: 0
B178: =Input!AA185 -> 0 | D178: 0.83 | E178: 0 | J178: 0 | K178: 0 | N178: 83 | O178: 0 | P178: 0 | Q178: 0 | R178: 0 | T178: =IF(B178<Input!$AE$15,'Export curtailment above max'!B178,Input!$AE$15) -> 0 | U178: 0
B179: =Input!AA186 -> 0 | D179: 0.829 | E179: 0 | J179: 0 | K179: 0 | N179: 82.9 | O179: 0 | P179: 0 | Q179: 0 | R179: 0 | T179: =IF(B179<Input!$AE$15,'Export curtailment above max'!B179,Input!$AE$15) -> 0 | U179: 0
B180: =Input!AA187 -> 0 | D180: 0.828 | E180: 0 | J180: 0 | K180: 0 | N180: 82.8 | O180: 0 | P180: 0 | Q180: 0 | R180: 0 | T180: =IF(B180<Input!$AE$15,'Export curtailment above max'!B180,Input!$AE$15) -> 0 | U180: 0
B181: =Input!AA188 -> 0 | D181: 0.827 | E181: 0 | J181: 0 | K181: 0 | N181: 82.7 | O181: 0 | P181: 0 | Q181: 0 | R181: 0 | T181: =IF(B181<Input!$AE$15,'Export curtailment above max'!B181,Input!$AE$15) -> 0 | U181: 0
B182: =Input!AA189 -> 0 | D182: 0.826 | E182: 0 | J182: 0 | K182: 0 | N182: 82.6 | O182: 0 | P182: 0 | Q182: 0 | R182: 0 | T182: =IF(B182<Input!$AE$15,'Export curtailment above max'!B182,Input!$AE$15) -> 0 | U182: 0
B183: =Input!AA190 -> 0 | D183: 0.825 | E183: 0 | J183: 0 | K183: 0 | N183: 82.5 | O183: 0 | P183: 0 | Q183: 0 | R183: 0 | T183: =IF(B183<Input!$AE$15,'Export curtailment above max'!B183,Input!$AE$15) -> 0 | U183: 0
B184: =Input!AA191 -> 0 | D184: 0.824 | E184: 0 | J184: 0 | K184: 0 | N184: 82.4 | O184: 0 | P184: 0 | Q184: 0 | R184: 0 | T184: =IF(B184<Input!$AE$15,'Export curtailment above max'!B184,Input!$AE$15) -> 0 | U184: 0
B185: =Input!AA192 -> 0 | D185: 0.823 | E185: 0 | J185: 0 | K185: 0 | N185: 82.3 | O185: 0 | P185: 0 | Q185: 0 | R185: 0 | T185: =IF(B185<Input!$AE$15,'Export curtailment above max'!B185,Input!$AE$15) -> 0 | U185: 0
B186: =Input!AA193 -> 0 | D186: 0.822 | E186: 0 | J186: 0 | K186: 0 | N186: 82.2 | O186: 0 | P186: 0 | Q186: 0 | R186: 0 | T186: =IF(B186<Input!$AE$15,'Export curtailment above max'!B186,Input!$AE$15) -> 0 | U186: 0
B187: =Input!AA194 -> 0 | D187: 0.821 | E187: 0 | J187: 0 | K187: 0 | N187: 82.1 | O187: 0 | P187: 0 | Q187: 0 | R187: 0 | T187: =IF(B187<Input!$AE$15,'Export curtailment above max'!B187,Input!$AE$15) -> 0 | U187: 0
B188: =Input!AA195 -> 0 | D188: 0.82 | E188: 0 | J188: 0 | K188: 0 | N188: 82 | O188: 0 | P188: 0 | Q188: 0 | R188: 0 | T188: =IF(B188<Input!$AE$15,'Export curtailment above max'!B188,Input!$AE$15) -> 0 | U188: 0
B189: =Input!AA196 -> 0 | D189: 0.819 | E189: 0 | J189: 0 | K189: 0 | N189: 81.9 | O189: 0 | P189: 0 | Q189: 0 | R189: 0 | T189: =IF(B189<Input!$AE$15,'Export curtailment above max'!B189,Input!$AE$15) -> 0 | U189: 0
B190: =Input!AA197 -> 0 | D190: 0.818 | E190: 0 | J190: 0 | K190: 0 | N190: 81.8 | O190: 0 | P190: 0 | Q190: 0 | R190: 0 | T190: =IF(B190<Input!$AE$15,'Export curtailment above max'!B190,Input!$AE$15) -> 0 | U190: 0
B191: =Input!AA198 -> 0 | D191: 0.817 | E191: 0 | J191: 0 | K191: 0 | N191: 81.7 | O191: 0 | P191: 0 | Q191: 0 | R191: 0 | T191: =IF(B191<Input!$AE$15,'Export curtailment above max'!B191,Input!$AE$15) -> 0 | U191: 0
B192: =Input!AA199 -> 0 | D192: 0.816 | E192: 0 | J192: 0 | K192: 0 | N192: 81.6 | O192: 0 | P192: 0 | Q192: 0 | R192: 0 | T192: =IF(B192<Input!$AE$15,'Export curtailment above max'!B192,Input!$AE$15) -> 0 | U192: 0
B193: =Input!AA200 -> 0 | D193: 0.815 | E193: 0 | J193: 0 | K193: 0 | N193: 81.5 | O193: 0 | P193: 0 | Q193: 0 | R193: 0 | T193: =IF(B193<Input!$AE$15,'Export curtailment above max'!B193,Input!$AE$15) -> 0 | U193: 0
B194: =Input!AA201 -> 0 | D194: 0.814 | E194: 0 | J194: 0 | K194: 0 | N194: 81.4 | O194: 0 | P194: 0 | Q194: 0 | R194: 0 | T194: =IF(B194<Input!$AE$15,'Export curtailment above max'!B194,Input!$AE$15) -> 0 | U194: 0
B195: =Input!AA202 -> 0 | D195: 0.813 | E195: 0 | J195: 0 | K195: 0 | N195: 81.3 | O195: 0 | P195: 0 | Q195: 0 | R195: 0 | T195: =IF(B195<Input!$AE$15,'Export curtailment above max'!B195,Input!$AE$15) -> 0 | U195: 0
B196: =Input!AA203 -> 0 | D196: 0.812 | E196: 0 | J196: 0 | K196: 0 | N196: 81.2 | O196: 0 | P196: 0 | Q196: 0 | R196: 0 | T196: =IF(B196<Input!$AE$15,'Export curtailment above max'!B196,Input!$AE$15) -> 0 | U196: 0
B197: =Input!AA204 -> 0 | D197: 0.811 | E197: 0 | J197: 0 | K197: 0 | N197: 81.1 | O197: 0 | P197: 0 | Q197: 0 | R197: 0 | T197: =IF(B197<Input!$AE$15,'Export curtailment above max'!B197,Input!$AE$15) -> 0 | U197: 0
B198: =Input!AA205 -> 0 | D198: 0.81 | E198: 0 | J198: 0 | K198: 0 | N198: 81 | O198: 0 | P198: 0 | Q198: 0 | R198: 0 | T198: =IF(B198<Input!$AE$15,'Export curtailment above max'!B198,Input!$AE$15) -> 0 | U198: 0
B199: =Input!AA206 -> 0 | D199: 0.809 | E199: 0 | J199: 0 | K199: 0 | N199: 80.9 | O199: 0 | P199: 0 | Q199: 0 | R199: 0 | T199: =IF(B199<Input!$AE$15,'Export curtailment above max'!B199,Input!$AE$15) -> 0 | U199: 0
B200: =Input!AA207 -> 0 | D200: 0.808 | E200: =IFERROR(K200/B$2,"") -> 0 | J200: 0 | K200: 0 | N200: 80.8 | O200: =E200*100 -> 0 | P200: 0 | Q200: 0 | R200: 0 | T200: =IF(B200<Input!$AE$15,'Export curtailment above max'!B200,Input!$AE$15) -> 0 | U200: =B200-T200 -> 0
... 4300 more rows

Sheet RISK QUANTN - RELIABILITY expor (hidden)
F1: Annual | G1: =8760 -> 8760 | I1: Very Large No. | J1: 1000000000 | L1: =(MAX(Input!$F$15:$F$36,Input!$M$15:$M$27,Input!$L$31:$L$40)-Input!$E$57) -> 6
D2: Outage rates
A3: beta | B3: gamma | C3: Multiplier | E3: =Input!D6 -> 2032 | F3: =E3+1 -> 2033 | G3: =F3+1 -> 2034 | H3: 2035 | I3: 2036 | J3: 2037 | K3: 2038 | L3: 2039 | M3: 2040 | N3: 2041 | O3: 2042 | P3: 2043 | Q3: 2044 | R3: 2045 | S3: 2046 | T3: 2047 | U3: =T3+1 -> 2048 | V3: 2049 | W3: 2050 | X3: 2051 | Y3: 2052 | Z3: 2053 | AA3: 2054 | AB3: 2055 | AC3: 2056 | AD3: 2057 | AE3: 2058 | AF3: 2059 | AG3: 2060 | AH3: 2061 | AI3: 2062 | AJ3: 2063 | AK3: 2064 | AL3: 2065 | AM3: 2066 | AN3: 2067 | AO3: 2068 | AP3: 2069 | AQ3: 2070 | AR3: 2071 | AS3: 2072 | AT3: 2073 | AU3: 2074 | AV3: 2075 | AW3: 2076 | AX3: 2077 | AY3: 2078 | AZ3: 2079 | BA3: 2080 | BB3: 2081 | BC3: 2082 | BD3: 2083 | BE3: 2084 | BF3: 2085 | BG3: 2086 | BH3: 2087 | BI3: 2088 | BJ3: 2089 | BK3: 2090 | BL3: 2091 | BM3: 2092
A4: =IFERROR(VLOOKUP(Input!D15,DATA!B$42:D$46,2,FALSE),"") ->  | B4: =IFERROR(VLOOKUP(Input!D15,DATA!B$42:D$46,3,FALSE),"") ->  | C4: =IF(Input!D15=DATA!$B$44,DATA!$H$44,IF(Input!D15="","",1)) ->  | D4: FOR TR or CB 1 | E4: =IFERROR(IF(E$3-Input!$E15<0,0,IF(E$3-Input!$E15>3,($A4*(E$3-Input!$E15)^($A4-1))/($B4^$A4),0.027))*$C4*DATA!$C$72,"") ->  | F4: =IFERROR(IF(F$3-Input!$E15<0,0,IF(F$3-Input!$E15>3,($A4*(F$3-Input!$E15)^($A4-1))/($B4^$A4),0.027))*$C4*DATA!$C$72,"") ->  | G4: =IFERROR(IF(G$3-Input!$E15<0,0,IF(G$3-Input!$E15>3,($A4*(G$3-Input!$E15)^($A4-1))/($B4^$A4),0.027))*$C4*DATA!$C$72,"") ->  | H4: =IFERROR(IF(H$3-Input!$E15<0,0,IF(H$3-Input!$E15>3,($A4*(H$3-Input!$E15)^($A4-1))/($B4^$A4),0.027))*$C4*DATA!$C$72,"") ->  | I4: =IFERROR(IF(I$3-Input!$E15<0,0,IF(I$3-Input!$E15>3,($A4*(I$3-Input!$E15)^($A4-1))/($B4^$A4),0.027))*$C4*DATA!$C$72,"") ->  | J4: =IFERROR(IF(J$3-Input!$E15<0,0,IF(J$3-Input!$E15>3,($A4*(J$3-Input!$E15)^($A4-1))/($B4^$A4),0.027))*$C4*DATA!$C$72,"") ->  | K4: =IFERROR(IF(K$3-Input!$E15<0,0,IF(K$3-Input!$E15>3,($A4*(K$3-Input!$E15)^($A4-1))/($B4^$A4),0.027))*$C4*DATA!$C$72,"") ->  | L4: =IFERROR(IF(L$3-Input!$E15<0,0,IF(L$3-Input!$E15>3,($A4*(L$3-Input!$E15)^($A4-1))/($B4^$A4),0.027))*$C4*DATA!$C$72,"") ->  | M4: =IFERROR(IF(M$3-Input!$E15<0,0,IF(M$3-Input!$E15>3,($A4*(M$3-Input!$E15)^($A4-1))/($B4^$A4),0.027))*$C4*DATA!$C$72,"") ->  | N4: =IFERROR(IF(N$3-Input!$E15<0,0,IF(N$3-Input!$E15>3,($A4*(N$3-Input!$E15)^($A4-1))/($B4^$A4),0.027))*$C4*DATA!$C$72,"") ->  | O4: =IFERROR(IF(O$3-Input!$E15<0,0,IF(O$3-Input!$E15>3,($A4*(O$3-Input!$E15)^($A4-1))/($B4^$A4),0.027))*$C4*DATA!$C$72,"") ->  | P4: =IFERROR(IF(P$3-Input!$E15<0,0,IF(P$3-Input!$E15>3,($A4*(P$3-Input!$E15)^($A4-1))/($B4^$A4),0.027))*$C4*DATA!$C$72,"") ->  | Q4: =IFERROR(IF(Q$3-Input!$E15<0,0,IF(Q$3-Input!$E15>3,($A4*(Q$3-Input!$E15)^($A4-1))/($B4^$A4),0.027))*$C4*DATA!$C$72,"") ->  | R4: =IFERROR(IF(R$3-Input!$E15<0,0,IF(R$3-Input!$E15>3,($A4*(R$3-Input!$E15)^($A4-1))/($B4^$A4),0.027))*$C4*DATA!$C$72,"") ->  | S4: =IFERROR(IF(S$3-Input!$E15<0,0,IF(S$3-Input!$E15>3,($A4*(S$3-Input!$E15)^($A4-1))/($B4^$A4),0.027))*$C4*DATA!$C$72,"") ->  | T4: =IFERROR(IF(T$3-Input!$E15<0,0,IF(T$3-Input!$E15>3,($A4*(T$3-Input!$E15)^($A4-1))/($B4^$A4),0.027))*$C4*DATA!$C$72,"") ->  | U4: =IFERROR(IF(U$3-Input!$E15<0,0,IF(U$3-Input!$E15>3,($A4*(U$3-Input!$E15)^($A4-1))/($B4^$A4),0.027))*$C4*DATA!$C$72,"") ->  | V4: =IFERROR(IF(V$3-Input!$E15<0,0,IF(V$3-Input!$E15>3,($A4*(V$3-Input!$E15)^($A4-1))/($B4^$A4),0.027))*$C4*DATA!$C$72,"") ->  | W4: =IFERROR(IF(W$3-Input!$E15<0,0,IF(W$3-Input!$E15>3,($A4*(W$3-Input!$E15)^($A4-1))/($B4^$A4),0.027))*$C4*DATA!$C$72,"") ->  | X4: =IFERROR(IF(X$3-Input!$E15<0,0,IF(X$3-Input!$E15>3,($A4*(X$3-Input!$E15)^($A4-1))/($B4^$A4),0.027))*$C4*DATA!$C$72,"") ->  | Y4: =IFERROR(IF(Y$3-Input!$E15<0,0,IF(Y$3-Input!$E15>3,($A4*(Y$3-Input!$E15)^($A4-1))/($B4^$A4),0.027))*$C4*DATA!$C$72,"") ->  | Z4: =IFERROR(IF(Z$3-Input!$E15<0,0,IF(Z$3-Input!$E15>3,($A4*(Z$3-Input!$E15)^($A4-1))/($B4^$A4),0.027))*$C4*DATA!$C$72,"") ->  | AA4: =IFERROR(IF(AA$3-Input!$E15<0,0,IF(AA$3-Input!$E15>3,($A4*(AA$3-Input!$E15)^($A4-1))/($B4^$A4),0.027))*$C4*DATA!$C$72,"") ->  | AB4: =IFERROR(IF(AB$3-Input!$E15<0,0,IF(AB$3-Input!$E15>3,($A4*(AB$3-Input!$E15)^($A4-1))/($B4^$A4),0.027))*$C4*DATA!$C$72,"") ->  | AC4: =IFERROR(IF(AC$3-Input!$E15<0,0,IF(AC$3-Input!$E15>3,($A4*(AC$3-Input!$E15)^($A4-1))/($B4^$A4),0.027))*$C4*DATA!$C$72,"") ->  | AD4: =IFERROR(IF(AD$3-Input!$E15<0,0,IF(AD$3-Input!$E15>3,($A4*(AD$3-Input!$E15)^($A4-1))/($B4^$A4),0.027))*$C4*DATA!$C$72,"") ->  | AE4: =IFERROR(IF(AE$3-Input!$E15<0,0,IF(AE$3-Input!$E15>3,($A4*(AE$3-Input!$E15)^($A4-1))/($B4^$A4),0.027))*$C4*DATA!$C$72,"") ->  | AF4: =IFERROR(IF(AF$3-Input!$E15<0,0,IF(AF$3-Input!$E15>3,($A4*(AF$3-Input!$E15)^($A4-1))/($B4^$A4),0.027))*$C4*DATA!$C$72,"") ->  | AG4: =IFERROR(IF(AG$3-Input!$E15<0,0,IF(AG$3-Input!$E15>3,($A4*(AG$3-Input!$E15)^($A4-1))/($B4^$A4),0.027))*$C4*DATA!$C$72,"") ->  | AH4: =IFERROR(IF(AH$3-Input!$E15<0,0,IF(AH$3-Input!$E15>3,($A4*(AH$3-Input!$E15)^($A4-1))/($B4^$A4),0.027))*$C4*DATA!$C$72,"") ->  | AI4: =IFERROR(IF(AI$3-Input!$E15<0,0,IF(AI$3-Input!$E15>3,($A4*(AI$3-Input!$E15)^($A4-1))/($B4^$A4),0.027))*$C4*DATA!$C$72,"") ->  | AJ4: =IFERROR(IF(AJ$3-Input!$E15<0,0,IF(AJ$3-Input!$E15>3,($A4*(AJ$3-Input!$E15)^($A4-1))/($B4^$A4),0.027))*$C4*DATA!$C$72,"") ->  | AK4: =IFERROR(IF(AK$3-Input!$E15<0,0,IF(AK$3-Input!$E15>3,($A4*(AK$3-Input!$E15)^($A4-1))/($B4^$A4),0.027))*$C4*DATA!$C$72,"") ->  | AL4: =IFERROR(IF(AL$3-Input!$E15<0,0,IF(AL$3-Input!$E15>3,($A4*(AL$3-Input!$E15)^($A4-1))/($B4^$A4),0.027))*$C4*DATA!$C$72,"") ->  | AM4: =IFERROR(IF(AM$3-Input!$E15<0,0,IF(AM$3-Input!$E15>3,($A4*(AM$3-Input!$E15)^($A4-1))/($B4^$A4),0.027))*$C4*DATA!$C$72,"") ->  | AN4: =IFERROR(IF(AN$3-Input!$E15<0,0,IF(AN$3-Input!$E15>3,($A4*(AN$3-Input!$E15)^($A4-1))/($B4^$A4),0.027))*$C4*DATA!$C$72,"") ->  | AO4: =IFERROR(IF(AO$3-Input!$E15<0,0,IF(AO$3-Input!$E15>3,($A4*(AO$3-Input!$E15)^($A4-1))/($B4^$A4),0.027))*$C4*DATA!$C$72,"") ->  | AP4: =IFERROR(IF(AP$3-Input!$E15<0,0,IF(AP$3-Input!$E15>3,($A4*(AP$3-Input!$E15)^($A4-1))/($B4^$A4),0.027))*$C4*DATA!$C$72,"") ->  | AQ4: =IFERROR(IF(AQ$3-Input!$E15<0,0,IF(AQ$3-Input!$E15>3,($A4*(AQ$3-Input!$E15)^($A4-1))/($B4^$A4),0.027))*$C4*DATA!$C$72,"") ->  | AR4: =IFERROR(IF(AR$3-Input!$E15<0,0,IF(AR$3-Input!$E15>3,($A4*(AR$3-Input!$E15)^($A4-1))/($B4^$A4),0.027))*$C4*DATA!$C$72,"") ->  | AS4: =IFERROR(IF(AS$3-Input!$E15<0,0,IF(AS$3-Input!$E15>3,($A4*(AS$3-Input!$E15)^($A4-1))/($B4^$A4),0.027))*$C4*DATA!$C$72,"") ->  | AT4: =IFERROR(IF(AT$3-Input!$E15<0,0,IF(AT$3-Input!$E15>3,($A4*(AT$3-Input!$E15)^($A4-1))/($B4^$A4),0.027))*$C4*DATA!$C$72,"") ->  | AU4: =IFERROR(IF(AU$3-Input!$E15<0,0,IF(AU$3-Input!$E15>3,($A4*(AU$3-Input!$E15)^($A4-1))/($B4^$A4),0.027))*$C4*DATA!$C$72,"") ->  | AV4: =IFERROR(IF(AV$3-Input!$E15<0,0,IF(AV$3-Input!$E15>3,($A4*(AV$3-Input!$E15)^($A4-1))/($B4^$A4),0.027))*$C4*DATA!$C$72,"") ->  | AW4: =IFERROR(IF(AW$3-Input!$E15<0,0,IF(AW$3-Input!$E15>3,($A4*(AW$3-Input!$E15)^($A4-1))/($B4^$A4),0.027))*$C4*DATA!$C$72,"") ->  | AX4: =IFERROR(IF(AX$3-Input!$E15<0,0,IF(AX$3-Input!$E15>3,($A4*(AX$3-Input!$E15)^($A4-1))/($B4^$A4),0.027))*$C4*DATA!$C$72,"") ->  | AY4: =IFERROR(IF(AY$3-Input!$E15<0,0,IF(AY$3-Input!$E15>3,($A4*(AY$3-Input!$E15)^($A4-1))/($B4^$A4),0.027))*$C4*DATA!$C$72,"") ->  | AZ4: =IFERROR(IF(AZ$3-Input!$E15<0,0,IF(AZ$3-Input!$E15>3,($A4*(AZ$3-Input!$E15)^($A4-1))/($B4^$A4),0.027))*$C4*DATA!$C$72,"") ->  | BA4: =IFERROR(IF(BA$3-Input!$E15<0,0,IF(BA$3-Input!$E15>3,($A4*(BA$3-Input!$E15)^($A4-1))/($B4^$A4),0.027))*$C4*DATA!$C$72,"") ->  | BB4: =IFERROR(IF(BB$3-Input!$E15<0,0,IF(BB$3-Input!$E15>3,($A4*(BB$3-Input!$E15)^($A4-1))/($B4^$A4),0.027))*$C4*DATA!$C$72,"") ->  | BC4: =IFERROR(IF(BC$3-Input!$E15<0,0,IF(BC$3-Input!$E15>3,($A4*(BC$3-Input!$E15)^($A4-1))/($B4^$A4),0.027))*$C4*DATA!$C$72,"") ->  | BD4: =IFERROR(IF(BD$3-Input!$E15<0,0,IF(BD$3-Input!$E15>3,($A4*(BD$3-Input!$E15)^($A4-1))/($B4^$A4),0.027))*$C4*DATA!$C$72,"") ->  | BE4: =IFERROR(IF(BE$3-Input!$E15<0,0,IF(BE$3-Input!$E15>3,($A4*(BE$3-Input!$E15)^($A4-1))/($B4^$A4),0.027))*$C4*DATA!$C$72,"") ->  | BF4: =IFERROR(IF(BF$3-Input!$E15<0,0,IF(BF$3-Input!$E15>3,($A4*(BF$3-Input!$E15)^($A4-1))/($B4^$A4),0.027))*$C4*DATA!$C$72,"") ->  | BG4: =IFERROR(IF(BG$3-Input!$E15<0,0,IF(BG$3-Input!$E15>3,($A4*(BG$3-Input!$E15)^($A4-1))/($B4^$A4),0.027))*$C4*DATA!$C$72,"") ->  | BH4: =IFERROR(IF(BH$3-Input!$E15<0,0,IF(BH$3-Input!$E15>3,($A4*(BH$3-Input!$E15)^($A4-1))/($B4^$A4),0.027))*$C4*DATA!$C$72,"") ->  | BI4: =IFERROR(IF(BI$3-Input!$E15<0,0,IF(BI$3-Input!$E15>3,($A4*(BI$3-Input!$E15)^($A4-1))/($B4^$A4),0.027))*$C4*DATA!$C$72,"") ->  | BJ4: =IFERROR(IF(BJ$3-Input!$E15<0,0,IF(BJ$3-Input!$E15>3,($A4*(BJ$3-Input!$E15)^($A4-1))/($B4^$A4),0.027))*$C4*DATA!$C$72,"") ->  | BK4: =IFERROR(IF(BK$3-Input!$E15<0,0,IF(BK$3-Input!$E15>3,($A4*(BK$3-Input!$E15)^($A4-1))/($B4^$A4),0.027))*$C4*DATA!$C$72,"") ->  | BL4: =IFERROR(IF(BL$3-Input!$E15<0,0,IF(BL$3-Input!$E15>3,($A4*(BL$3-Input!$E15)^($A4-1))/($B4^$A4),0.027))*$C4*DATA!$C$72,"") ->  | BM4: =IFERROR(IF(BM$3-Input!$E15<0,0,IF(BM$3-Input!$E15>3,($A4*(BM$3-Input!$E15)^($A4-1))/($B4^$A4),0.027))*$C4*DATA!$C$72,"") -> 
A5: =IFERROR(VLOOKUP(Input!D16,DATA!B$42:D$46,2,FALSE),"") ->  | B5: =IFERROR(VLOOKUP(Input!D16,DATA!B$42:D$46,3,FALSE),"") ->  | C5: =IF(Input!D16=DATA!$B$44,DATA!$H$44,IF(Input!D16="","",1)) ->  | D5: FOR TR or CB 2 | E5: =IFERROR(IF(E$3-Input!$E16<0,0,IF(E$3-Input!$E16>3,($A5*(E$3-Input!$E16)^($A5-1))/($B5^$A5),0.027))*$C5*DATA!$C$72,"") ->  | F5: =IFERROR(IF(F$3-Input!$E16<0,0,IF(F$3-Input!$E16>3,($A5*(F$3-Input!$E16)^($A5-1))/($B5^$A5),0.027))*$C5*DATA!$C$72,"") ->  | G5: =IFERROR(IF(G$3-Input!$E16<0,0,IF(G$3-Input!$E16>3,($A5*(G$3-Input!$E16)^($A5-1))/($B5^$A5),0.027))*$C5*DATA!$C$72,"") ->  | H5: =IFERROR(IF(H$3-Input!$E16<0,0,IF(H$3-Input!$E16>3,($A5*(H$3-Input!$E16)^($A5-1))/($B5^$A5),0.027))*$C5*DATA!$C$72,"") ->  | I5: =IFERROR(IF(I$3-Input!$E16<0,0,IF(I$3-Input!$E16>3,($A5*(I$3-Input!$E16)^($A5-1))/($B5^$A5),0.027))*$C5*DATA!$C$72,"") ->  | J5: =IFERROR(IF(J$3-Input!$E16<0,0,IF(J$3-Input!$E16>3,($A5*(J$3-Input!$E16)^($A5-1))/($B5^$A5),0.027))*$C5*DATA!$C$72,"") ->  | K5: =IFERROR(IF(K$3-Input!$E16<0,0,IF(K$3-Input!$E16>3,($A5*(K$3-Input!$E16)^($A5-1))/($B5^$A5),0.027))*$C5*DATA!$C$72,"") ->  | L5: =IFERROR(IF(L$3-Input!$E16<0,0,IF(L$3-Input!$E16>3,($A5*(L$3-Input!$E16)^($A5-1))/($B5^$A5),0.027))*$C5*DATA!$C$72,"") ->  | M5: =IFERROR(IF(M$3-Input!$E16<0,0,IF(M$3-Input!$E16>3,($A5*(M$3-Input!$E16)^($A5-1))/($B5^$A5),0.027))*$C5*DATA!$C$72,"") ->  | N5: =IFERROR(IF(N$3-Input!$E16<0,0,IF(N$3-Input!$E16>3,($A5*(N$3-Input!$E16)^($A5-1))/($B5^$A5),0.027))*$C5*DATA!$C$72,"") ->  | O5: =IFERROR(IF(O$3-Input!$E16<0,0,IF(O$3-Input!$E16>3,($A5*(O$3-Input!$E16)^($A5-1))/($B5^$A5),0.027))*$C5*DATA!$C$72,"") ->  | P5: =IFERROR(IF(P$3-Input!$E16<0,0,IF(P$3-Input!$E16>3,($A5*(P$3-Input!$E16)^($A5-1))/($B5^$A5),0.027))*$C5*DATA!$C$72,"") ->  | Q5: =IFERROR(IF(Q$3-Input!$E16<0,0,IF(Q$3-Input!$E16>3,($A5*(Q$3-Input!$E16)^($A5-1))/($B5^$A5),0.027))*$C5*DATA!$C$72,"") ->  | R5: =IFERROR(IF(R$3-Input!$E16<0,0,IF(R$3-Input!$E16>3,($A5*(R$3-Input!$E16)^($A5-1))/($B5^$A5),0.027))*$C5*DATA!$C$72,"") ->  | S5: =IFERROR(IF(S$3-Input!$E16<0,0,IF(S$3-Input!$E16>3,($A5*(S$3-Input!$E16)^($A5-1))/($B5^$A5),0.027))*$C5*DATA!$C$72,"") ->  | T5: =IFERROR(IF(T$3-Input!$E16<0,0,IF(T$3-Input!$E16>3,($A5*(T$3-Input!$E16)^($A5-1))/($B5^$A5),0.027))*$C5*DATA!$C$72,"") ->  | U5: =IFERROR(IF(U$3-Input!$E16<0,0,IF(U$3-Input!$E16>3,($A5*(U$3-Input!$E16)^($A5-1))/($B5^$A5),0.027))*$C5*DATA!$C$72,"") ->  | V5: =IFERROR(IF(V$3-Input!$E16<0,0,IF(V$3-Input!$E16>3,($A5*(V$3-Input!$E16)^($A5-1))/($B5^$A5),0.027))*$C5*DATA!$C$72,"") ->  | W5: =IFERROR(IF(W$3-Input!$E16<0,0,IF(W$3-Input!$E16>3,($A5*(W$3-Input!$E16)^($A5-1))/($B5^$A5),0.027))*$C5*DATA!$C$72,"") ->  | X5: =IFERROR(IF(X$3-Input!$E16<0,0,IF(X$3-Input!$E16>3,($A5*(X$3-Input!$E16)^($A5-1))/($B5^$A5),0.027))*$C5*DATA!$C$72,"") ->  | Y5: =IFERROR(IF(Y$3-Input!$E16<0,0,IF(Y$3-Input!$E16>3,($A5*(Y$3-Input!$E16)^($A5-1))/($B5^$A5),0.027))*$C5*DATA!$C$72,"") ->  | Z5: =IFERROR(IF(Z$3-Input!$E16<0,0,IF(Z$3-Input!$E16>3,($A5*(Z$3-Input!$E16)^($A5-1))/($B5^$A5),0.027))*$C5*DATA!$C$72,"") ->  | AA5: =IFERROR(IF(AA$3-Input!$E16<0,0,IF(AA$3-Input!$E16>3,($A5*(AA$3-Input!$E16)^($A5-1))/($B5^$A5),0.027))*$C5*DATA!$C$72,"") ->  | AB5: =IFERROR(IF(AB$3-Input!$E16<0,0,IF(AB$3-Input!$E16>3,($A5*(AB$3-Input!$E16)^($A5-1))/($B5^$A5),0.027))*$C5*DATA!$C$72,"") ->  | AC5: =IFERROR(IF(AC$3-Input!$E16<0,0,IF(AC$3-Input!$E16>3,($A5*(AC$3-Input!$E16)^($A5-1))/($B5^$A5),0.027))*$C5*DATA!$C$72,"") ->  | AD5: =IFERROR(IF(AD$3-Input!$E16<0,0,IF(AD$3-Input!$E16>3,($A5*(AD$3-Input!$E16)^($A5-1))/($B5^$A5),0.027))*$C5*DATA!$C$72,"") ->  | AE5: =IFERROR(IF(AE$3-Input!$E16<0,0,IF(AE$3-Input!$E16>3,($A5*(AE$3-Input!$E16)^($A5-1))/($B5^$A5),0.027))*$C5*DATA!$C$72,"") ->  | AF5: =IFERROR(IF(AF$3-Input!$E16<0,0,IF(AF$3-Input!$E16>3,($A5*(AF$3-Input!$E16)^($A5-1))/($B5^$A5),0.027))*$C5*DATA!$C$72,"") ->  | AG5: =IFERROR(IF(AG$3-Input!$E16<0,0,IF(AG$3-Input!$E16>3,($A5*(AG$3-Input!$E16)^($A5-1))/($B5^$A5),0.027))*$C5*DATA!$C$72,"") ->  | AH5: =IFERROR(IF(AH$3-Input!$E16<0,0,IF(AH$3-Input!$E16>3,($A5*(AH$3-Input!$E16)^($A5-1))/($B5^$A5),0.027))*$C5*DATA!$C$72,"") ->  | AI5: =IFERROR(IF(AI$3-Input!$E16<0,0,IF(AI$3-Input!$E16>3,($A5*(AI$3-Input!$E16)^($A5-1))/($B5^$A5),0.027))*$C5*DATA!$C$72,"") ->  | AJ5: =IFERROR(IF(AJ$3-Input!$E16<0,0,IF(AJ$3-Input!$E16>3,($A5*(AJ$3-Input!$E16)^($A5-1))/($B5^$A5),0.027))*$C5*DATA!$C$72,"") ->  | AK5: =IFERROR(IF(AK$3-Input!$E16<0,0,IF(AK$3-Input!$E16>3,($A5*(AK$3-Input!$E16)^($A5-1))/($B5^$A5),0.027))*$C5*DATA!$C$72,"") ->  | AL5: =IFERROR(IF(AL$3-Input!$E16<0,0,IF(AL$3-Input!$E16>3,($A5*(AL$3-Input!$E16)^($A5-1))/($B5^$A5),0.027))*$C5*DATA!$C$72,"") ->  | AM5: =IFERROR(IF(AM$3-Input!$E16<0,0,IF(AM$3-Input!$E16>3,($A5*(AM$3-Input!$E16)^($A5-1))/($B5^$A5),0.027))*$C5*DATA!$C$72,"") ->  | AN5: =IFERROR(IF(AN$3-Input!$E16<0,0,IF(AN$3-Input!$E16>3,($A5*(AN$3-Input!$E16)^($A5-1))/($B5^$A5),0.027))*$C5*DATA!$C$72,"") ->  | AO5: =IFERROR(IF(AO$3-Input!$E16<0,0,IF(AO$3-Input!$E16>3,($A5*(AO$3-Input!$E16)^($A5-1))/($B5^$A5),0.027))*$C5*DATA!$C$72,"") ->  | AP5: =IFERROR(IF(AP$3-Input!$E16<0,0,IF(AP$3-Input!$E16>3,($A5*(AP$3-Input!$E16)^($A5-1))/($B5^$A5),0.027))*$C5*DATA!$C$72,"") ->  | AQ5: =IFERROR(IF(AQ$3-Input!$E16<0,0,IF(AQ$3-Input!$E16>3,($A5*(AQ$3-Input!$E16)^($A5-1))/($B5^$A5),0.027))*$C5*DATA!$C$72,"") ->  | AR5: =IFERROR(IF(AR$3-Input!$E16<0,0,IF(AR$3-Input!$E16>3,($A5*(AR$3-Input!$E16)^($A5-1))/($B5^$A5),0.027))*$C5*DATA!$C$72,"") ->  | AS5: =IFERROR(IF(AS$3-Input!$E16<0,0,IF(AS$3-Input!$E16>3,($A5*(AS$3-Input!$E16)^($A5-1))/($B5^$A5),0.027))*$C5*DATA!$C$72,"") ->  | AT5: =IFERROR(IF(AT$3-Input!$E16<0,0,IF(AT$3-Input!$E16>3,($A5*(AT$3-Input!$E16)^($A5-1))/($B5^$A5),0.027))*$C5*DATA!$C$72,"") ->  | AU5: =IFERROR(IF(AU$3-Input!$E16<0,0,IF(AU$3-Input!$E16>3,($A5*(AU$3-Input!$E16)^($A5-1))/($B5^$A5),0.027))*$C5*DATA!$C$72,"") ->  | AV5: =IFERROR(IF(AV$3-Input!$E16<0,0,IF(AV$3-Input!$E16>3,($A5*(AV$3-Input!$E16)^($A5-1))/($B5^$A5),0.027))*$C5*DATA!$C$72,"") ->  | AW5: =IFERROR(IF(AW$3-Input!$E16<0,0,IF(AW$3-Input!$E16>3,($A5*(AW$3-Input!$E16)^($A5-1))/($B5^$A5),0.027))*$C5*DATA!$C$72,"") ->  | AX5: =IFERROR(IF(AX$3-Input!$E16<0,0,IF(AX$3-Input!$E16>3,($A5*(AX$3-Input!$E16)^($A5-1))/($B5^$A5),0.027))*$C5*DATA!$C$72,"") ->  | AY5: =IFERROR(IF(AY$3-Input!$E16<0,0,IF(AY$3-Input!$E16>3,($A5*(AY$3-Input!$E16)^($A5-1))/($B5^$A5),0.027))*$C5*DATA!$C$72,"") ->  | AZ5: =IFERROR(IF(AZ$3-Input!$E16<0,0,IF(AZ$3-Input!$E16>3,($A5*(AZ$3-Input!$E16)^($A5-1))/($B5^$A5),0.027))*$C5*DATA!$C$72,"") ->  | BA5: =IFERROR(IF(BA$3-Input!$E16<0,0,IF(BA$3-Input!$E16>3,($A5*(BA$3-Input!$E16)^($A5-1))/($B5^$A5),0.027))*$C5*DATA!$C$72,"") ->  | BB5: =IFERROR(IF(BB$3-Input!$E16<0,0,IF(BB$3-Input!$E16>3,($A5*(BB$3-Input!$E16)^($A5-1))/($B5^$A5),0.027))*$C5*DATA!$C$72,"") ->  | BC5: =IFERROR(IF(BC$3-Input!$E16<0,0,IF(BC$3-Input!$E16>3,($A5*(BC$3-Input!$E16)^($A5-1))/($B5^$A5),0.027))*$C5*DATA!$C$72,"") ->  | BD5: =IFERROR(IF(BD$3-Input!$E16<0,0,IF(BD$3-Input!$E16>3,($A5*(BD$3-Input!$E16)^($A5-1))/($B5^$A5),0.027))*$C5*DATA!$C$72,"") ->  | BE5: =IFERROR(IF(BE$3-Input!$E16<0,0,IF(BE$3-Input!$E16>3,($A5*(BE$3-Input!$E16)^($A5-1))/($B5^$A5),0.027))*$C5*DATA!$C$72,"") ->  | BF5: =IFERROR(IF(BF$3-Input!$E16<0,0,IF(BF$3-Input!$E16>3,($A5*(BF$3-Input!$E16)^($A5-1))/($B5^$A5),0.027))*$C5*DATA!$C$72,"") ->  | BG5: =IFERROR(IF(BG$3-Input!$E16<0,0,IF(BG$3-Input!$E16>3,($A5*(BG$3-Input!$E16)^($A5-1))/($B5^$A5),0.027))*$C5*DATA!$C$72,"") ->  | BH5: =IFERROR(IF(BH$3-Input!$E16<0,0,IF(BH$3-Input!$E16>3,($A5*(BH$3-Input!$E16)^($A5-1))/($B5^$A5),0.027))*$C5*DATA!$C$72,"") ->  | BI5: =IFERROR(IF(BI$3-Input!$E16<0,0,IF(BI$3-Input!$E16>3,($A5*(BI$3-Input!$E16)^($A5-1))/($B5^$A5),0.027))*$C5*DATA!$C$72,"") ->  | BJ5: =IFERROR(IF(BJ$3-Input!$E16<0,0,IF(BJ$3-Input!$E16>3,($A5*(BJ$3-Input!$E16)^($A5-1))/($B5^$A5),0.027))*$C5*DATA!$C$72,"") ->  | BK5: =IFERROR(IF(BK$3-Input!$E16<0,0,IF(BK$3-Input!$E16>3,($A5*(BK$3-Input!$E16)^($A5-1))/($B5^$A5),0.027))*$C5*DATA!$C$72,"") ->  | BL5: =IFERROR(IF(BL$3-Input!$E16<0,0,IF(BL$3-Input!$E16>3,($A5*(BL$3-Input!$E16)^($A5-1))/($B5^$A5),0.027))*$C5*DATA!$C$72,"") ->  | BM5: =IFERROR(IF(BM$3-Input!$E16<0,0,IF(BM$3-Input!$E16>3,($A5*(BM$3-Input!$E16)^($A5-1))/($B5^$A5),0.027))*$C5*DATA!$C$72,"") -> 
A6: =IFERROR(VLOOKUP(Input!D17,DATA!B$42:D$46,2,FALSE),"") ->  | B6: =IFERROR(VLOOKUP(Input!D17,DATA!B$42:D$46,3,FALSE),"") ->  | C6: =IF(Input!D17=DATA!$B$44,DATA!$H$44,IF(Input!D17="","",1)) ->  | D6: FOR TR or CB 3 | E6: =IFERROR(IF(E$3-Input!$E17<0,0,IF(E$3-Input!$E17>3,($A6*(E$3-Input!$E17)^($A6-1))/($B6^$A6),0.027))*$C6*DATA!$C$72,"") ->  | F6: =IFERROR(IF(F$3-Input!$E17<0,0,IF(F$3-Input!$E17>3,($A6*(F$3-Input!$E17)^($A6-1))/($B6^$A6),0.027))*$C6*DATA!$C$72,"") ->  | G6: =IFERROR(IF(G$3-Input!$E17<0,0,IF(G$3-Input!$E17>3,($A6*(G$3-Input!$E17)^($A6-1))/($B6^$A6),0.027))*$C6*DATA!$C$72,"") ->  | H6: =IFERROR(IF(H$3-Input!$E17<0,0,IF(H$3-Input!$E17>3,($A6*(H$3-Input!$E17)^($A6-1))/($B6^$A6),0.027))*$C6*DATA!$C$72,"") ->  | I6: =IFERROR(IF(I$3-Input!$E17<0,0,IF(I$3-Input!$E17>3,($A6*(I$3-Input!$E17)^($A6-1))/($B6^$A6),0.027))*$C6*DATA!$C$72,"") ->  | J6: =IFERROR(IF(J$3-Input!$E17<0,0,IF(J$3-Input!$E17>3,($A6*(J$3-Input!$E17)^($A6-1))/($B6^$A6),0.027))*$C6*DATA!$C$72,"") ->  | K6: =IFERROR(IF(K$3-Input!$E17<0,0,IF(K$3-Input!$E17>3,($A6*(K$3-Input!$E17)^($A6-1))/($B6^$A6),0.027))*$C6*DATA!$C$72,"") ->  | L6: =IFERROR(IF(L$3-Input!$E17<0,0,IF(L$3-Input!$E17>3,($A6*(L$3-Input!$E17)^($A6-1))/($B6^$A6),0.027))*$C6*DATA!$C$72,"") ->  | M6: =IFERROR(IF(M$3-Input!$E17<0,0,IF(M$3-Input!$E17>3,($A6*(M$3-Input!$E17)^($A6-1))/($B6^$A6),0.027))*$C6*DATA!$C$72,"") ->  | N6: =IFERROR(IF(N$3-Input!$E17<0,0,IF(N$3-Input!$E17>3,($A6*(N$3-Input!$E17)^($A6-1))/($B6^$A6),0.027))*$C6*DATA!$C$72,"") ->  | O6: =IFERROR(IF(O$3-Input!$E17<0,0,IF(O$3-Input!$E17>3,($A6*(O$3-Input!$E17)^($A6-1))/($B6^$A6),0.027))*$C6*DATA!$C$72,"") ->  | P6: =IFERROR(IF(P$3-Input!$E17<0,0,IF(P$3-Input!$E17>3,($A6*(P$3-Input!$E17)^($A6-1))/($B6^$A6),0.027))*$C6*DATA!$C$72,"") ->  | Q6: =IFERROR(IF(Q$3-Input!$E17<0,0,IF(Q$3-Input!$E17>3,($A6*(Q$3-Input!$E17)^($A6-1))/($B6^$A6),0.027))*$C6*DATA!$C$72,"") ->  | R6: =IFERROR(IF(R$3-Input!$E17<0,0,IF(R$3-Input!$E17>3,($A6*(R$3-Input!$E17)^($A6-1))/($B6^$A6),0.027))*$C6*DATA!$C$72,"") ->  | S6: =IFERROR(IF(S$3-Input!$E17<0,0,IF(S$3-Input!$E17>3,($A6*(S$3-Input!$E17)^($A6-1))/($B6^$A6),0.027))*$C6*DATA!$C$72,"") ->  | T6: =IFERROR(IF(T$3-Input!$E17<0,0,IF(T$3-Input!$E17>3,($A6*(T$3-Input!$E17)^($A6-1))/($B6^$A6),0.027))*$C6*DATA!$C$72,"") ->  | U6: =IFERROR(IF(U$3-Input!$E17<0,0,IF(U$3-Input!$E17>3,($A6*(U$3-Input!$E17)^($A6-1))/($B6^$A6),0.027))*$C6*DATA!$C$72,"") ->  | V6: =IFERROR(IF(V$3-Input!$E17<0,0,IF(V$3-Input!$E17>3,($A6*(V$3-Input!$E17)^($A6-1))/($B6^$A6),0.027))*$C6*DATA!$C$72,"") ->  | W6: =IFERROR(IF(W$3-Input!$E17<0,0,IF(W$3-Input!$E17>3,($A6*(W$3-Input!$E17)^($A6-1))/($B6^$A6),0.027))*$C6*DATA!$C$72,"") ->  | X6: =IFERROR(IF(X$3-Input!$E17<0,0,IF(X$3-Input!$E17>3,($A6*(X$3-Input!$E17)^($A6-1))/($B6^$A6),0.027))*$C6*DATA!$C$72,"") ->  | Y6: =IFERROR(IF(Y$3-Input!$E17<0,0,IF(Y$3-Input!$E17>3,($A6*(Y$3-Input!$E17)^($A6-1))/($B6^$A6),0.027))*$C6*DATA!$C$72,"") ->  | Z6: =IFERROR(IF(Z$3-Input!$E17<0,0,IF(Z$3-Input!$E17>3,($A6*(Z$3-Input!$E17)^($A6-1))/($B6^$A6),0.027))*$C6*DATA!$C$72,"") ->  | AA6: =IFERROR(IF(AA$3-Input!$E17<0,0,IF(AA$3-Input!$E17>3,($A6*(AA$3-Input!$E17)^($A6-1))/($B6^$A6),0.027))*$C6*DATA!$C$72,"") ->  | AB6: =IFERROR(IF(AB$3-Input!$E17<0,0,IF(AB$3-Input!$E17>3,($A6*(AB$3-Input!$E17)^($A6-1))/($B6^$A6),0.027))*$C6*DATA!$C$72,"") ->  | AC6: =IFERROR(IF(AC$3-Input!$E17<0,0,IF(AC$3-Input!$E17>3,($A6*(AC$3-Input!$E17)^($A6-1))/($B6^$A6),0.027))*$C6*DATA!$C$72,"") ->  | AD6: =IFERROR(IF(AD$3-Input!$E17<0,0,IF(AD$3-Input!$E17>3,($A6*(AD$3-Input!$E17)^($A6-1))/($B6^$A6),0.027))*$C6*DATA!$C$72,"") ->  | AE6: =IFERROR(IF(AE$3-Input!$E17<0,0,IF(AE$3-Input!$E17>3,($A6*(AE$3-Input!$E17)^($A6-1))/($B6^$A6),0.027))*$C6*DATA!$C$72,"") ->  | AF6: =IFERROR(IF(AF$3-Input!$E17<0,0,IF(AF$3-Input!$E17>3,($A6*(AF$3-Input!$E17)^($A6-1))/($B6^$A6),0.027))*$C6*DATA!$C$72,"") ->  | AG6: =IFERROR(IF(AG$3-Input!$E17<0,0,IF(AG$3-Input!$E17>3,($A6*(AG$3-Input!$E17)^($A6-1))/($B6^$A6),0.027))*$C6*DATA!$C$72,"") ->  | AH6: =IFERROR(IF(AH$3-Input!$E17<0,0,IF(AH$3-Input!$E17>3,($A6*(AH$3-Input!$E17)^($A6-1))/($B6^$A6),0.027))*$C6*DATA!$C$72,"") ->  | AI6: =IFERROR(IF(AI$3-Input!$E17<0,0,IF(AI$3-Input!$E17>3,($A6*(AI$3-Input!$E17)^($A6-1))/($B6^$A6),0.027))*$C6*DATA!$C$72,"") ->  | AJ6: =IFERROR(IF(AJ$3-Input!$E17<0,0,IF(AJ$3-Input!$E17>3,($A6*(AJ$3-Input!$E17)^($A6-1))/($B6^$A6),0.027))*$C6*DATA!$C$72,"") ->  | AK6: =IFERROR(IF(AK$3-Input!$E17<0,0,IF(AK$3-Input!$E17>3,($A6*(AK$3-Input!$E17)^($A6-1))/($B6^$A6),0.027))*$C6*DATA!$C$72,"") ->  | AL6: =IFERROR(IF(AL$3-Input!$E17<0,0,IF(AL$3-Input!$E17>3,($A6*(AL$3-Input!$E17)^($A6-1))/($B6^$A6),0.027))*$C6*DATA!$C$72,"") ->  | AM6: =IFERROR(IF(AM$3-Input!$E17<0,0,IF(AM$3-Input!$E17>3,($A6*(AM$3-Input!$E17)^($A6-1))/($B6^$A6),0.027))*$C6*DATA!$C$72,"") ->  | AN6: =IFERROR(IF(AN$3-Input!$E17<0,0,IF(AN$3-Input!$E17>3,($A6*(AN$3-Input!$E17)^($A6-1))/($B6^$A6),0.027))*$C6*DATA!$C$72,"") ->  | AO6: =IFERROR(IF(AO$3-Input!$E17<0,0,IF(AO$3-Input!$E17>3,($A6*(AO$3-Input!$E17)^($A6-1))/($B6^$A6),0.027))*$C6*DATA!$C$72,"") ->  | AP6: =IFERROR(IF(AP$3-Input!$E17<0,0,IF(AP$3-Input!$E17>3,($A6*(AP$3-Input!$E17)^($A6-1))/($B6^$A6),0.027))*$C6*DATA!$C$72,"") ->  | AQ6: =IFERROR(IF(AQ$3-Input!$E17<0,0,IF(AQ$3-Input!$E17>3,($A6*(AQ$3-Input!$E17)^($A6-1))/($B6^$A6),0.027))*$C6*DATA!$C$72,"") ->  | AR6: =IFERROR(IF(AR$3-Input!$E17<0,0,IF(AR$3-Input!$E17>3,($A6*(AR$3-Input!$E17)^($A6-1))/($B6^$A6),0.027))*$C6*DATA!$C$72,"") ->  | AS6: =IFERROR(IF(AS$3-Input!$E17<0,0,IF(AS$3-Input!$E17>3,($A6*(AS$3-Input!$E17)^($A6-1))/($B6^$A6),0.027))*$C6*DATA!$C$72,"") ->  | AT6: =IFERROR(IF(AT$3-Input!$E17<0,0,IF(AT$3-Input!$E17>3,($A6*(AT$3-Input!$E17)^($A6-1))/($B6^$A6),0.027))*$C6*DATA!$C$72,"") ->  | AU6: =IFERROR(IF(AU$3-Input!$E17<0,0,IF(AU$3-Input!$E17>3,($A6*(AU$3-Input!$E17)^($A6-1))/($B6^$A6),0.027))*$C6*DATA!$C$72,"") ->  | AV6: =IFERROR(IF(AV$3-Input!$E17<0,0,IF(AV$3-Input!$E17>3,($A6*(AV$3-Input!$E17)^($A6-1))/($B6^$A6),0.027))*$C6*DATA!$C$72,"") ->  | AW6: =IFERROR(IF(AW$3-Input!$E17<0,0,IF(AW$3-Input!$E17>3,($A6*(AW$3-Input!$E17)^($A6-1))/($B6^$A6),0.027))*$C6*DATA!$C$72,"") ->  | AX6: =IFERROR(IF(AX$3-Input!$E17<0,0,IF(AX$3-Input!$E17>3,($A6*(AX$3-Input!$E17)^($A6-1))/($B6^$A6),0.027))*$C6*DATA!$C$72,"") ->  | AY6: =IFERROR(IF(AY$3-Input!$E17<0,0,IF(AY$3-Input!$E17>3,($A6*(AY$3-Input!$E17)^($A6-1))/($B6^$A6),0.027))*$C6*DATA!$C$72,"") ->  | AZ6: =IFERROR(IF(AZ$3-Input!$E17<0,0,IF(AZ$3-Input!$E17>3,($A6*(AZ$3-Input!$E17)^($A6-1))/($B6^$A6),0.027))*$C6*DATA!$C$72,"") ->  | BA6: =IFERROR(IF(BA$3-Input!$E17<0,0,IF(BA$3-Input!$E17>3,($A6*(BA$3-Input!$E17)^($A6-1))/($B6^$A6),0.027))*$C6*DATA!$C$72,"") ->  | BB6: =IFERROR(IF(BB$3-Input!$E17<0,0,IF(BB$3-Input!$E17>3,($A6*(BB$3-Input!$E17)^($A6-1))/($B6^$A6),0.027))*$C6*DATA!$C$72,"") ->  | BC6: =IFERROR(IF(BC$3-Input!$E17<0,0,IF(BC$3-Input!$E17>3,($A6*(BC$3-Input!$E17)^($A6-1))/($B6^$A6),0.027))*$C6*DATA!$C$72,"") ->  | BD6: =IFERROR(IF(BD$3-Input!$E17<0,0,IF(BD$3-Input!$E17>3,($A6*(BD$3-Input!$E17)^($A6-1))/($B6^$A6),0.027))*$C6*DATA!$C$72,"") ->  | BE6: =IFERROR(IF(BE$3-Input!$E17<0,0,IF(BE$3-Input!$E17>3,($A6*(BE$3-Input!$E17)^($A6-1))/($B6^$A6),0.027))*$C6*DATA!$C$72,"") ->  | BF6: =IFERROR(IF(BF$3-Input!$E17<0,0,IF(BF$3-Input!$E17>3,($A6*(BF$3-Input!$E17)^($A6-1))/($B6^$A6),0.027))*$C6*DATA!$C$72,"") ->  | BG6: =IFERROR(IF(BG$3-Input!$E17<0,0,IF(BG$3-Input!$E17>3,($A6*(BG$3-Input!$E17)^($A6-1))/($B6^$A6),0.027))*$C6*DATA!$C$72,"") ->  | BH6: =IFERROR(IF(BH$3-Input!$E17<0,0,IF(BH$3-Input!$E17>3,($A6*(BH$3-Input!$E17)^($A6-1))/($B6^$A6),0.027))*$C6*DATA!$C$72,"") ->  | BI6: =IFERROR(IF(BI$3-Input!$E17<0,0,IF(BI$3-Input!$E17>3,($A6*(BI$3-Input!$E17)^($A6-1))/($B6^$A6),0.027))*$C6*DATA!$C$72,"") ->  | BJ6: =IFERROR(IF(BJ$3-Input!$E17<0,0,IF(BJ$3-Input!$E17>3,($A6*(BJ$3-Input!$E17)^($A6-1))/($B6^$A6),0.027))*$C6*DATA!$C$72,"") ->  | BK6: =IFERROR(IF(BK$3-Input!$E17<0,0,IF(BK$3-Input!$E17>3,($A6*(BK$3-Input!$E17)^($A6-1))/($B6^$A6),0.027))*$C6*DATA!$C$72,"") ->  | BL6: =IFERROR(IF(BL$3-Input!$E17<0,0,IF(BL$3-Input!$E17>3,($A6*(BL$3-Input!$E17)^($A6-1))/($B6^$A6),0.027))*$C6*DATA!$C$72,"") ->  | BM6: =IFERROR(IF(BM$3-Input!$E17<0,0,IF(BM$3-Input!$E17>3,($A6*(BM$3-Input!$E17)^($A6-1))/($B6^$A6),0.027))*$C6*DATA!$C$72,"") -> 
A7: =IFERROR(VLOOKUP(Input!D18,DATA!B$42:D$46,2,FALSE),"") ->  | B7: =IFERROR(VLOOKUP(Input!D18,DATA!B$42:D$46,3,FALSE),"") ->  | C7: =IF(Input!D18=DATA!$B$44,DATA!$H$44,IF(Input!D18="","",1)) ->  | D7: FOR TR or CB 4 | E7: =IFERROR(IF(E$3-Input!$E18<0,0,IF(E$3-Input!$E18>3,($A7*(E$3-Input!$E18)^($A7-1))/($B7^$A7),0.027))*$C7*DATA!$C$72,"") ->  | F7: =IFERROR(IF(F$3-Input!$E18<0,0,IF(F$3-Input!$E18>3,($A7*(F$3-Input!$E18)^($A7-1))/($B7^$A7),0.027))*$C7*DATA!$C$72,"") ->  | G7: =IFERROR(IF(G$3-Input!$E18<0,0,IF(G$3-Input!$E18>3,($A7*(G$3-Input!$E18)^($A7-1))/($B7^$A7),0.027))*$C7*DATA!$C$72,"") ->  | H7: =IFERROR(IF(H$3-Input!$E18<0,0,IF(H$3-Input!$E18>3,($A7*(H$3-Input!$E18)^($A7-1))/($B7^$A7),0.027))*$C7*DATA!$C$72,"") ->  | I7: =IFERROR(IF(I$3-Input!$E18<0,0,IF(I$3-Input!$E18>3,($A7*(I$3-Input!$E18)^($A7-1))/($B7^$A7),0.027))*$C7*DATA!$C$72,"") ->  | J7: =IFERROR(IF(J$3-Input!$E18<0,0,IF(J$3-Input!$E18>3,($A7*(J$3-Input!$E18)^($A7-1))/($B7^$A7),0.027))*$C7*DATA!$C$72,"") ->  | K7: =IFERROR(IF(K$3-Input!$E18<0,0,IF(K$3-Input!$E18>3,($A7*(K$3-Input!$E18)^($A7-1))/($B7^$A7),0.027))*$C7*DATA!$C$72,"") ->  | L7: =IFERROR(IF(L$3-Input!$E18<0,0,IF(L$3-Input!$E18>3,($A7*(L$3-Input!$E18)^($A7-1))/($B7^$A7),0.027))*$C7*DATA!$C$72,"") ->  | M7: =IFERROR(IF(M$3-Input!$E18<0,0,IF(M$3-Input!$E18>3,($A7*(M$3-Input!$E18)^($A7-1))/($B7^$A7),0.027))*$C7*DATA!$C$72,"") ->  | N7: =IFERROR(IF(N$3-Input!$E18<0,0,IF(N$3-Input!$E18>3,($A7*(N$3-Input!$E18)^($A7-1))/($B7^$A7),0.027))*$C7*DATA!$C$72,"") ->  | O7: =IFERROR(IF(O$3-Input!$E18<0,0,IF(O$3-Input!$E18>3,($A7*(O$3-Input!$E18)^($A7-1))/($B7^$A7),0.027))*$C7*DATA!$C$72,"") ->  | P7: =IFERROR(IF(P$3-Input!$E18<0,0,IF(P$3-Input!$E18>3,($A7*(P$3-Input!$E18)^($A7-1))/($B7^$A7),0.027))*$C7*DATA!$C$72,"") ->  | Q7: =IFERROR(IF(Q$3-Input!$E18<0,0,IF(Q$3-Input!$E18>3,($A7*(Q$3-Input!$E18)^($A7-1))/($B7^$A7),0.027))*$C7*DATA!$C$72,"") ->  | R7: =IFERROR(IF(R$3-Input!$E18<0,0,IF(R$3-Input!$E18>3,($A7*(R$3-Input!$E18)^($A7-1))/($B7^$A7),0.027))*$C7*DATA!$C$72,"") ->  | S7: =IFERROR(IF(S$3-Input!$E18<0,0,IF(S$3-Input!$E18>3,($A7*(S$3-Input!$E18)^($A7-1))/($B7^$A7),0.027))*$C7*DATA!$C$72,"") ->  | T7: =IFERROR(IF(T$3-Input!$E18<0,0,IF(T$3-Input!$E18>3,($A7*(T$3-Input!$E18)^($A7-1))/($B7^$A7),0.027))*$C7*DATA!$C$72,"") ->  | U7: =IFERROR(IF(U$3-Input!$E18<0,0,IF(U$3-Input!$E18>3,($A7*(U$3-Input!$E18)^($A7-1))/($B7^$A7),0.027))*$C7*DATA!$C$72,"") ->  | V7: =IFERROR(IF(V$3-Input!$E18<0,0,IF(V$3-Input!$E18>3,($A7*(V$3-Input!$E18)^($A7-1))/($B7^$A7),0.027))*$C7*DATA!$C$72,"") ->  | W7: =IFERROR(IF(W$3-Input!$E18<0,0,IF(W$3-Input!$E18>3,($A7*(W$3-Input!$E18)^($A7-1))/($B7^$A7),0.027))*$C7*DATA!$C$72,"") ->  | X7: =IFERROR(IF(X$3-Input!$E18<0,0,IF(X$3-Input!$E18>3,($A7*(X$3-Input!$E18)^($A7-1))/($B7^$A7),0.027))*$C7*DATA!$C$72,"") ->  | Y7: =IFERROR(IF(Y$3-Input!$E18<0,0,IF(Y$3-Input!$E18>3,($A7*(Y$3-Input!$E18)^($A7-1))/($B7^$A7),0.027))*$C7*DATA!$C$72,"") ->  | Z7: =IFERROR(IF(Z$3-Input!$E18<0,0,IF(Z$3-Input!$E18>3,($A7*(Z$3-Input!$E18)^($A7-1))/($B7^$A7),0.027))*$C7*DATA!$C$72,"") ->  | AA7: =IFERROR(IF(AA$3-Input!$E18<0,0,IF(AA$3-Input!$E18>3,($A7*(AA$3-Input!$E18)^($A7-1))/($B7^$A7),0.027))*$C7*DATA!$C$72,"") ->  | AB7: =IFERROR(IF(AB$3-Input!$E18<0,0,IF(AB$3-Input!$E18>3,($A7*(AB$3-Input!$E18)^($A7-1))/($B7^$A7),0.027))*$C7*DATA!$C$72,"") ->  | AC7: =IFERROR(IF(AC$3-Input!$E18<0,0,IF(AC$3-Input!$E18>3,($A7*(AC$3-Input!$E18)^($A7-1))/($B7^$A7),0.027))*$C7*DATA!$C$72,"") ->  | AD7: =IFERROR(IF(AD$3-Input!$E18<0,0,IF(AD$3-Input!$E18>3,($A7*(AD$3-Input!$E18)^($A7-1))/($B7^$A7),0.027))*$C7*DATA!$C$72,"") ->  | AE7: =IFERROR(IF(AE$3-Input!$E18<0,0,IF(AE$3-Input!$E18>3,($A7*(AE$3-Input!$E18)^($A7-1))/($B7^$A7),0.027))*$C7*DATA!$C$72,"") ->  | AF7: =IFERROR(IF(AF$3-Input!$E18<0,0,IF(AF$3-Input!$E18>3,($A7*(AF$3-Input!$E18)^($A7-1))/($B7^$A7),0.027))*$C7*DATA!$C$72,"") ->  | AG7: =IFERROR(IF(AG$3-Input!$E18<0,0,IF(AG$3-Input!$E18>3,($A7*(AG$3-Input!$E18)^($A7-1))/($B7^$A7),0.027))*$C7*DATA!$C$72,"") ->  | AH7: =IFERROR(IF(AH$3-Input!$E18<0,0,IF(AH$3-Input!$E18>3,($A7*(AH$3-Input!$E18)^($A7-1))/($B7^$A7),0.027))*$C7*DATA!$C$72,"") ->  | AI7: =IFERROR(IF(AI$3-Input!$E18<0,0,IF(AI$3-Input!$E18>3,($A7*(AI$3-Input!$E18)^($A7-1))/($B7^$A7),0.027))*$C7*DATA!$C$72,"") ->  | AJ7: =IFERROR(IF(AJ$3-Input!$E18<0,0,IF(AJ$3-Input!$E18>3,($A7*(AJ$3-Input!$E18)^($A7-1))/($B7^$A7),0.027))*$C7*DATA!$C$72,"") ->  | AK7: =IFERROR(IF(AK$3-Input!$E18<0,0,IF(AK$3-Input!$E18>3,($A7*(AK$3-Input!$E18)^($A7-1))/($B7^$A7),0.027))*$C7*DATA!$C$72,"") ->  | AL7: =IFERROR(IF(AL$3-Input!$E18<0,0,IF(AL$3-Input!$E18>3,($A7*(AL$3-Input!$E18)^($A7-1))/($B7^$A7),0.027))*$C7*DATA!$C$72,"") ->  | AM7: =IFERROR(IF(AM$3-Input!$E18<0,0,IF(AM$3-Input!$E18>3,($A7*(AM$3-Input!$E18)^($A7-1))/($B7^$A7),0.027))*$C7*DATA!$C$72,"") ->  | AN7: =IFERROR(IF(AN$3-Input!$E18<0,0,IF(AN$3-Input!$E18>3,($A7*(AN$3-Input!$E18)^($A7-1))/($B7^$A7),0.027))*$C7*DATA!$C$72,"") ->  | AO7: =IFERROR(IF(AO$3-Input!$E18<0,0,IF(AO$3-Input!$E18>3,($A7*(AO$3-Input!$E18)^($A7-1))/($B7^$A7),0.027))*$C7*DATA!$C$72,"") ->  | AP7: =IFERROR(IF(AP$3-Input!$E18<0,0,IF(AP$3-Input!$E18>3,($A7*(AP$3-Input!$E18)^($A7-1))/($B7^$A7),0.027))*$C7*DATA!$C$72,"") ->  | AQ7: =IFERROR(IF(AQ$3-Input!$E18<0,0,IF(AQ$3-Input!$E18>3,($A7*(AQ$3-Input!$E18)^($A7-1))/($B7^$A7),0.027))*$C7*DATA!$C$72,"") ->  | AR7: =IFERROR(IF(AR$3-Input!$E18<0,0,IF(AR$3-Input!$E18>3,($A7*(AR$3-Input!$E18)^($A7-1))/($B7^$A7),0.027))*$C7*DATA!$C$72,"") ->  | AS7: =IFERROR(IF(AS$3-Input!$E18<0,0,IF(AS$3-Input!$E18>3,($A7*(AS$3-Input!$E18)^($A7-1))/($B7^$A7),0.027))*$C7*DATA!$C$72,"") ->  | AT7: =IFERROR(IF(AT$3-Input!$E18<0,0,IF(AT$3-Input!$E18>3,($A7*(AT$3-Input!$E18)^($A7-1))/($B7^$A7),0.027))*$C7*DATA!$C$72,"") ->  | AU7: =IFERROR(IF(AU$3-Input!$E18<0,0,IF(AU$3-Input!$E18>3,($A7*(AU$3-Input!$E18)^($A7-1))/($B7^$A7),0.027))*$C7*DATA!$C$72,"") ->  | AV7: =IFERROR(IF(AV$3-Input!$E18<0,0,IF(AV$3-Input!$E18>3,($A7*(AV$3-Input!$E18)^($A7-1))/($B7^$A7),0.027))*$C7*DATA!$C$72,"") ->  | AW7: =IFERROR(IF(AW$3-Input!$E18<0,0,IF(AW$3-Input!$E18>3,($A7*(AW$3-Input!$E18)^($A7-1))/($B7^$A7),0.027))*$C7*DATA!$C$72,"") ->  | AX7: =IFERROR(IF(AX$3-Input!$E18<0,0,IF(AX$3-Input!$E18>3,($A7*(AX$3-Input!$E18)^($A7-1))/($B7^$A7),0.027))*$C7*DATA!$C$72,"") ->  | AY7: =IFERROR(IF(AY$3-Input!$E18<0,0,IF(AY$3-Input!$E18>3,($A7*(AY$3-Input!$E18)^($A7-1))/($B7^$A7),0.027))*$C7*DATA!$C$72,"") ->  | AZ7: =IFERROR(IF(AZ$3-Input!$E18<0,0,IF(AZ$3-Input!$E18>3,($A7*(AZ$3-Input!$E18)^($A7-1))/($B7^$A7),0.027))*$C7*DATA!$C$72,"") ->  | BA7: =IFERROR(IF(BA$3-Input!$E18<0,0,IF(BA$3-Input!$E18>3,($A7*(BA$3-Input!$E18)^($A7-1))/($B7^$A7),0.027))*$C7*DATA!$C$72,"") ->  | BB7: =IFERROR(IF(BB$3-Input!$E18<0,0,IF(BB$3-Input!$E18>3,($A7*(BB$3-Input!$E18)^($A7-1))/($B7^$A7),0.027))*$C7*DATA!$C$72,"") ->  | BC7: =IFERROR(IF(BC$3-Input!$E18<0,0,IF(BC$3-Input!$E18>3,($A7*(BC$3-Input!$E18)^($A7-1))/($B7^$A7),0.027))*$C7*DATA!$C$72,"") ->  | BD7: =IFERROR(IF(BD$3-Input!$E18<0,0,IF(BD$3-Input!$E18>3,($A7*(BD$3-Input!$E18)^($A7-1))/($B7^$A7),0.027))*$C7*DATA!$C$72,"") ->  | BE7: =IFERROR(IF(BE$3-Input!$E18<0,0,IF(BE$3-Input!$E18>3,($A7*(BE$3-Input!$E18)^($A7-1))/($B7^$A7),0.027))*$C7*DATA!$C$72,"") ->  | BF7: =IFERROR(IF(BF$3-Input!$E18<0,0,IF(BF$3-Input!$E18>3,($A7*(BF$3-Input!$E18)^($A7-1))/($B7^$A7),0.027))*$C7*DATA!$C$72,"") ->  | BG7: =IFERROR(IF(BG$3-Input!$E18<0,0,IF(BG$3-Input!$E18>3,($A7*(BG$3-Input!$E18)^($A7-1))/($B7^$A7),0.027))*$C7*DATA!$C$72,"") ->  | BH7: =IFERROR(IF(BH$3-Input!$E18<0,0,IF(BH$3-Input!$E18>3,($A7*(BH$3-Input!$E18)^($A7-1))/($B7^$A7),0.027))*$C7*DATA!$C$72,"") ->  | BI7: =IFERROR(IF(BI$3-Input!$E18<0,0,IF(BI$3-Input!$E18>3,($A7*(BI$3-Input!$E18)^($A7-1))/($B7^$A7),0.027))*$C7*DATA!$C$72,"") ->  | BJ7: =IFERROR(IF(BJ$3-Input!$E18<0,0,IF(BJ$3-Input!$E18>3,($A7*(BJ$3-Input!$E18)^($A7-1))/($B7^$A7),0.027))*$C7*DATA!$C$72,"") ->  | BK7: =IFERROR(IF(BK$3-Input!$E18<0,0,IF(BK$3-Input!$E18>3,($A7*(BK$3-Input!$E18)^($A7-1))/($B7^$A7),0.027))*$C7*DATA!$C$72,"") ->  | BL7: =IFERROR(IF(BL$3-Input!$E18<0,0,IF(BL$3-Input!$E18>3,($A7*(BL$3-Input!$E18)^($A7-1))/($B7^$A7),0.027))*$C7*DATA!$C$72,"") ->  | BM7: =IFERROR(IF(BM$3-Input!$E18<0,0,IF(BM$3-Input!$E18>3,($A7*(BM$3-Input!$E18)^($A7-1))/($B7^$A7),0.027))*$C7*DATA!$C$72,"") -> 
A8: =IFERROR(VLOOKUP(Input!D19,DATA!B$42:D$46,2,FALSE),"") ->  | B8: =IFERROR(VLOOKUP(Input!D19,DATA!B$42:D$46,3,FALSE),"") ->  | C8: =IF(Input!D19=DATA!$B$44,DATA!$H$44,IF(Input!D19="","",1)) ->  | D8: FOR TR or CB 5 | E8: =IFERROR(IF(E$3-Input!$E19<0,0,IF(E$3-Input!$E19>3,($A8*(E$3-Input!$E19)^($A8-1))/($B8^$A8),0.027))*$C8*DATA!$C$72,"") ->  | F8: =IFERROR(IF(F$3-Input!$E19<0,0,IF(F$3-Input!$E19>3,($A8*(F$3-Input!$E19)^($A8-1))/($B8^$A8),0.027))*$C8*DATA!$C$72,"") ->  | G8: =IFERROR(IF(G$3-Input!$E19<0,0,IF(G$3-Input!$E19>3,($A8*(G$3-Input!$E19)^($A8-1))/($B8^$A8),0.027))*$C8*DATA!$C$72,"") ->  | H8: =IFERROR(IF(H$3-Input!$E19<0,0,IF(H$3-Input!$E19>3,($A8*(H$3-Input!$E19)^($A8-1))/($B8^$A8),0.027))*$C8*DATA!$C$72,"") ->  | I8: =IFERROR(IF(I$3-Input!$E19<0,0,IF(I$3-Input!$E19>3,($A8*(I$3-Input!$E19)^($A8-1))/($B8^$A8),0.027))*$C8*DATA!$C$72,"") ->  | J8: =IFERROR(IF(J$3-Input!$E19<0,0,IF(J$3-Input!$E19>3,($A8*(J$3-Input!$E19)^($A8-1))/($B8^$A8),0.027))*$C8*DATA!$C$72,"") ->  | K8: =IFERROR(IF(K$3-Input!$E19<0,0,IF(K$3-Input!$E19>3,($A8*(K$3-Input!$E19)^($A8-1))/($B8^$A8),0.027))*$C8*DATA!$C$72,"") ->  | L8: =IFERROR(IF(L$3-Input!$E19<0,0,IF(L$3-Input!$E19>3,($A8*(L$3-Input!$E19)^($A8-1))/($B8^$A8),0.027))*$C8*DATA!$C$72,"") ->  | M8: =IFERROR(IF(M$3-Input!$E19<0,0,IF(M$3-Input!$E19>3,($A8*(M$3-Input!$E19)^($A8-1))/($B8^$A8),0.027))*$C8*DATA!$C$72,"") ->  | N8: =IFERROR(IF(N$3-Input!$E19<0,0,IF(N$3-Input!$E19>3,($A8*(N$3-Input!$E19)^($A8-1))/($B8^$A8),0.027))*$C8*DATA!$C$72,"") ->  | O8: =IFERROR(IF(O$3-Input!$E19<0,0,IF(O$3-Input!$E19>3,($A8*(O$3-Input!$E19)^($A8-1))/($B8^$A8),0.027))*$C8*DATA!$C$72,"") ->  | P8: =IFERROR(IF(P$3-Input!$E19<0,0,IF(P$3-Input!$E19>3,($A8*(P$3-Input!$E19)^($A8-1))/($B8^$A8),0.027))*$C8*DATA!$C$72,"") ->  | Q8: =IFERROR(IF(Q$3-Input!$E19<0,0,IF(Q$3-Input!$E19>3,($A8*(Q$3-Input!$E19)^($A8-1))/($B8^$A8),0.027))*$C8*DATA!$C$72,"") ->  | R8: =IFERROR(IF(R$3-Input!$E19<0,0,IF(R$3-Input!$E19>3,($A8*(R$3-Input!$E19)^($A8-1))/($B8^$A8),0.027))*$C8*DATA!$C$72,"") ->  | S8: =IFERROR(IF(S$3-Input!$E19<0,0,IF(S$3-Input!$E19>3,($A8*(S$3-Input!$E19)^($A8-1))/($B8^$A8),0.027))*$C8*DATA!$C$72,"") ->  | T8: =IFERROR(IF(T$3-Input!$E19<0,0,IF(T$3-Input!$E19>3,($A8*(T$3-Input!$E19)^($A8-1))/($B8^$A8),0.027))*$C8*DATA!$C$72,"") ->  | U8: =IFERROR(IF(U$3-Input!$E19<0,0,IF(U$3-Input!$E19>3,($A8*(U$3-Input!$E19)^($A8-1))/($B8^$A8),0.027))*$C8*DATA!$C$72,"") ->  | V8: =IFERROR(IF(V$3-Input!$E19<0,0,IF(V$3-Input!$E19>3,($A8*(V$3-Input!$E19)^($A8-1))/($B8^$A8),0.027))*$C8*DATA!$C$72,"") ->  | W8: =IFERROR(IF(W$3-Input!$E19<0,0,IF(W$3-Input!$E19>3,($A8*(W$3-Input!$E19)^($A8-1))/($B8^$A8),0.027))*$C8*DATA!$C$72,"") ->  | X8: =IFERROR(IF(X$3-Input!$E19<0,0,IF(X$3-Input!$E19>3,($A8*(X$3-Input!$E19)^($A8-1))/($B8^$A8),0.027))*$C8*DATA!$C$72,"") ->  | Y8: =IFERROR(IF(Y$3-Input!$E19<0,0,IF(Y$3-Input!$E19>3,($A8*(Y$3-Input!$E19)^($A8-1))/($B8^$A8),0.027))*$C8*DATA!$C$72,"") ->  | Z8: =IFERROR(IF(Z$3-Input!$E19<0,0,IF(Z$3-Input!$E19>3,($A8*(Z$3-Input!$E19)^($A8-1))/($B8^$A8),0.027))*$C8*DATA!$C$72,"") ->  | AA8: =IFERROR(IF(AA$3-Input!$E19<0,0,IF(AA$3-Input!$E19>3,($A8*(AA$3-Input!$E19)^($A8-1))/($B8^$A8),0.027))*$C8*DATA!$C$72,"") ->  | AB8: =IFERROR(IF(AB$3-Input!$E19<0,0,IF(AB$3-Input!$E19>3,($A8*(AB$3-Input!$E19)^($A8-1))/($B8^$A8),0.027))*$C8*DATA!$C$72,"") ->  | AC8: =IFERROR(IF(AC$3-Input!$E19<0,0,IF(AC$3-Input!$E19>3,($A8*(AC$3-Input!$E19)^($A8-1))/($B8^$A8),0.027))*$C8*DATA!$C$72,"") ->  | AD8: =IFERROR(IF(AD$3-Input!$E19<0,0,IF(AD$3-Input!$E19>3,($A8*(AD$3-Input!$E19)^($A8-1))/($B8^$A8),0.027))*$C8*DATA!$C$72,"") ->  | AE8: =IFERROR(IF(AE$3-Input!$E19<0,0,IF(AE$3-Input!$E19>3,($A8*(AE$3-Input!$E19)^($A8-1))/($B8^$A8),0.027))*$C8*DATA!$C$72,"") ->  | AF8: =IFERROR(IF(AF$3-Input!$E19<0,0,IF(AF$3-Input!$E19>3,($A8*(AF$3-Input!$E19)^($A8-1))/($B8^$A8),0.027))*$C8*DATA!$C$72,"") ->  | AG8: =IFERROR(IF(AG$3-Input!$E19<0,0,IF(AG$3-Input!$E19>3,($A8*(AG$3-Input!$E19)^($A8-1))/($B8^$A8),0.027))*$C8*DATA!$C$72,"") ->  | AH8: =IFERROR(IF(AH$3-Input!$E19<0,0,IF(AH$3-Input!$E19>3,($A8*(AH$3-Input!$E19)^($A8-1))/($B8^$A8),0.027))*$C8*DATA!$C$72,"") ->  | AI8: =IFERROR(IF(AI$3-Input!$E19<0,0,IF(AI$3-Input!$E19>3,($A8*(AI$3-Input!$E19)^($A8-1))/($B8^$A8),0.027))*$C8*DATA!$C$72,"") ->  | AJ8: =IFERROR(IF(AJ$3-Input!$E19<0,0,IF(AJ$3-Input!$E19>3,($A8*(AJ$3-Input!$E19)^($A8-1))/($B8^$A8),0.027))*$C8*DATA!$C$72,"") ->  | AK8: =IFERROR(IF(AK$3-Input!$E19<0,0,IF(AK$3-Input!$E19>3,($A8*(AK$3-Input!$E19)^($A8-1))/($B8^$A8),0.027))*$C8*DATA!$C$72,"") ->  | AL8: =IFERROR(IF(AL$3-Input!$E19<0,0,IF(AL$3-Input!$E19>3,($A8*(AL$3-Input!$E19)^($A8-1))/($B8^$A8),0.027))*$C8*DATA!$C$72,"") ->  | AM8: =IFERROR(IF(AM$3-Input!$E19<0,0,IF(AM$3-Input!$E19>3,($A8*(AM$3-Input!$E19)^($A8-1))/($B8^$A8),0.027))*$C8*DATA!$C$72,"") ->  | AN8: =IFERROR(IF(AN$3-Input!$E19<0,0,IF(AN$3-Input!$E19>3,($A8*(AN$3-Input!$E19)^($A8-1))/($B8^$A8),0.027))*$C8*DATA!$C$72,"") ->  | AO8: =IFERROR(IF(AO$3-Input!$E19<0,0,IF(AO$3-Input!$E19>3,($A8*(AO$3-Input!$E19)^($A8-1))/($B8^$A8),0.027))*$C8*DATA!$C$72,"") ->  | AP8: =IFERROR(IF(AP$3-Input!$E19<0,0,IF(AP$3-Input!$E19>3,($A8*(AP$3-Input!$E19)^($A8-1))/($B8^$A8),0.027))*$C8*DATA!$C$72,"") ->  | AQ8: =IFERROR(IF(AQ$3-Input!$E19<0,0,IF(AQ$3-Input!$E19>3,($A8*(AQ$3-Input!$E19)^($A8-1))/($B8^$A8),0.027))*$C8*DATA!$C$72,"") ->  | AR8: =IFERROR(IF(AR$3-Input!$E19<0,0,IF(AR$3-Input!$E19>3,($A8*(AR$3-Input!$E19)^($A8-1))/($B8^$A8),0.027))*$C8*DATA!$C$72,"") ->  | AS8: =IFERROR(IF(AS$3-Input!$E19<0,0,IF(AS$3-Input!$E19>3,($A8*(AS$3-Input!$E19)^($A8-1))/($B8^$A8),0.027))*$C8*DATA!$C$72,"") ->  | AT8: =IFERROR(IF(AT$3-Input!$E19<0,0,IF(AT$3-Input!$E19>3,($A8*(AT$3-Input!$E19)^($A8-1))/($B8^$A8),0.027))*$C8*DATA!$C$72,"") ->  | AU8: =IFERROR(IF(AU$3-Input!$E19<0,0,IF(AU$3-Input!$E19>3,($A8*(AU$3-Input!$E19)^($A8-1))/($B8^$A8),0.027))*$C8*DATA!$C$72,"") ->  | AV8: =IFERROR(IF(AV$3-Input!$E19<0,0,IF(AV$3-Input!$E19>3,($A8*(AV$3-Input!$E19)^($A8-1))/($B8^$A8),0.027))*$C8*DATA!$C$72,"") ->  | AW8: =IFERROR(IF(AW$3-Input!$E19<0,0,IF(AW$3-Input!$E19>3,($A8*(AW$3-Input!$E19)^($A8-1))/($B8^$A8),0.027))*$C8*DATA!$C$72,"") ->  | AX8: =IFERROR(IF(AX$3-Input!$E19<0,0,IF(AX$3-Input!$E19>3,($A8*(AX$3-Input!$E19)^($A8-1))/($B8^$A8),0.027))*$C8*DATA!$C$72,"") ->  | AY8: =IFERROR(IF(AY$3-Input!$E19<0,0,IF(AY$3-Input!$E19>3,($A8*(AY$3-Input!$E19)^($A8-1))/($B8^$A8),0.027))*$C8*DATA!$C$72,"") ->  | AZ8: =IFERROR(IF(AZ$3-Input!$E19<0,0,IF(AZ$3-Input!$E19>3,($A8*(AZ$3-Input!$E19)^($A8-1))/($B8^$A8),0.027))*$C8*DATA!$C$72,"") ->  | BA8: =IFERROR(IF(BA$3-Input!$E19<0,0,IF(BA$3-Input!$E19>3,($A8*(BA$3-Input!$E19)^($A8-1))/($B8^$A8),0.027))*$C8*DATA!$C$72,"") ->  | BB8: =IFERROR(IF(BB$3-Input!$E19<0,0,IF(BB$3-Input!$E19>3,($A8*(BB$3-Input!$E19)^($A8-1))/($B8^$A8),0.027))*$C8*DATA!$C$72,"") ->  | BC8: =IFERROR(IF(BC$3-Input!$E19<0,0,IF(BC$3-Input!$E19>3,($A8*(BC$3-Input!$E19)^($A8-1))/($B8^$A8),0.027))*$C8*DATA!$C$72,"") ->  | BD8: =IFERROR(IF(BD$3-Input!$E19<0,0,IF(BD$3-Input!$E19>3,($A8*(BD$3-Input!$E19)^($A8-1))/($B8^$A8),0.027))*$C8*DATA!$C$72,"") ->  | BE8: =IFERROR(IF(BE$3-Input!$E19<0,0,IF(BE$3-Input!$E19>3,($A8*(BE$3-Input!$E19)^($A8-1))/($B8^$A8),0.027))*$C8*DATA!$C$72,"") ->  | BF8: =IFERROR(IF(BF$3-Input!$E19<0,0,IF(BF$3-Input!$E19>3,($A8*(BF$3-Input!$E19)^($A8-1))/($B8^$A8),0.027))*$C8*DATA!$C$72,"") ->  | BG8: =IFERROR(IF(BG$3-Input!$E19<0,0,IF(BG$3-Input!$E19>3,($A8*(BG$3-Input!$E19)^($A8-1))/($B8^$A8),0.027))*$C8*DATA!$C$72,"") ->  | BH8: =IFERROR(IF(BH$3-Input!$E19<0,0,IF(BH$3-Input!$E19>3,($A8*(BH$3-Input!$E19)^($A8-1))/($B8^$A8),0.027))*$C8*DATA!$C$72,"") ->  | BI8: =IFERROR(IF(BI$3-Input!$E19<0,0,IF(BI$3-Input!$E19>3,($A8*(BI$3-Input!$E19)^($A8-1))/($B8^$A8),0.027))*$C8*DATA!$C$72,"") ->  | BJ8: =IFERROR(IF(BJ$3-Input!$E19<0,0,IF(BJ$3-Input!$E19>3,($A8*(BJ$3-Input!$E19)^($A8-1))/($B8^$A8),0.027))*$C8*DATA!$C$72,"") ->  | BK8: =IFERROR(IF(BK$3-Input!$E19<0,0,IF(BK$3-Input!$E19>3,($A8*(BK$3-Input!$E19)^($A8-1))/($B8^$A8),0.027))*$C8*DATA!$C$72,"") ->  | BL8: =IFERROR(IF(BL$3-Input!$E19<0,0,IF(BL$3-Input!$E19>3,($A8*(BL$3-Input!$E19)^($A8-1))/($B8^$A8),0.027))*$C8*DATA!$C$72,"") ->  | BM8: =IFERROR(IF(BM$3-Input!$E19<0,0,IF(BM$3-Input!$E19>3,($A8*(BM$3-Input!$E19)^($A8-1))/($B8^$A8),0.027))*$C8*DATA!$C$72,"") -> 
A9: =IFERROR(VLOOKUP(Input!D20,DATA!B$42:D$46,2,FALSE),"") ->  | B9: =IFERROR(VLOOKUP(Input!D20,DATA!B$42:D$46,3,FALSE),"") ->  | C9: =IF(Input!D20=DATA!$B$44,DATA!$H$44,IF(Input!D20="","",1)) ->  | D9: FOR TR or CB 6 | E9: =IFERROR(IF(E$3-Input!$E20<0,0,IF(E$3-Input!$E20>3,($A9*(E$3-Input!$E20)^($A9-1))/($B9^$A9),0.027))*$C9*DATA!$C$72,"") ->  | F9: =IFERROR(IF(F$3-Input!$E20<0,0,IF(F$3-Input!$E20>3,($A9*(F$3-Input!$E20)^($A9-1))/($B9^$A9),0.027))*$C9*DATA!$C$72,"") ->  | G9: =IFERROR(IF(G$3-Input!$E20<0,0,IF(G$3-Input!$E20>3,($A9*(G$3-Input!$E20)^($A9-1))/($B9^$A9),0.027))*$C9*DATA!$C$72,"") ->  | H9: =IFERROR(IF(H$3-Input!$E20<0,0,IF(H$3-Input!$E20>3,($A9*(H$3-Input!$E20)^($A9-1))/($B9^$A9),0.027))*$C9*DATA!$C$72,"") ->  | I9: =IFERROR(IF(I$3-Input!$E20<0,0,IF(I$3-Input!$E20>3,($A9*(I$3-Input!$E20)^($A9-1))/($B9^$A9),0.027))*$C9*DATA!$C$72,"") ->  | J9: =IFERROR(IF(J$3-Input!$E20<0,0,IF(J$3-Input!$E20>3,($A9*(J$3-Input!$E20)^($A9-1))/($B9^$A9),0.027))*$C9*DATA!$C$72,"") ->  | K9: =IFERROR(IF(K$3-Input!$E20<0,0,IF(K$3-Input!$E20>3,($A9*(K$3-Input!$E20)^($A9-1))/($B9^$A9),0.027))*$C9*DATA!$C$72,"") ->  | L9: =IFERROR(IF(L$3-Input!$E20<0,0,IF(L$3-Input!$E20>3,($A9*(L$3-Input!$E20)^($A9-1))/($B9^$A9),0.027))*$C9*DATA!$C$72,"") ->  | M9: =IFERROR(IF(M$3-Input!$E20<0,0,IF(M$3-Input!$E20>3,($A9*(M$3-Input!$E20)^($A9-1))/($B9^$A9),0.027))*$C9*DATA!$C$72,"") ->  | N9: =IFERROR(IF(N$3-Input!$E20<0,0,IF(N$3-Input!$E20>3,($A9*(N$3-Input!$E20)^($A9-1))/($B9^$A9),0.027))*$C9*DATA!$C$72,"") ->  | O9: =IFERROR(IF(O$3-Input!$E20<0,0,IF(O$3-Input!$E20>3,($A9*(O$3-Input!$E20)^($A9-1))/($B9^$A9),0.027))*$C9*DATA!$C$72,"") ->  | P9: =IFERROR(IF(P$3-Input!$E20<0,0,IF(P$3-Input!$E20>3,($A9*(P$3-Input!$E20)^($A9-1))/($B9^$A9),0.027))*$C9*DATA!$C$72,"") ->  | Q9: =IFERROR(IF(Q$3-Input!$E20<0,0,IF(Q$3-Input!$E20>3,($A9*(Q$3-Input!$E20)^($A9-1))/($B9^$A9),0.027))*$C9*DATA!$C$72,"") ->  | R9: =IFERROR(IF(R$3-Input!$E20<0,0,IF(R$3-Input!$E20>3,($A9*(R$3-Input!$E20)^($A9-1))/($B9^$A9),0.027))*$C9*DATA!$C$72,"") ->  | S9: =IFERROR(IF(S$3-Input!$E20<0,0,IF(S$3-Input!$E20>3,($A9*(S$3-Input!$E20)^($A9-1))/($B9^$A9),0.027))*$C9*DATA!$C$72,"") ->  | T9: =IFERROR(IF(T$3-Input!$E20<0,0,IF(T$3-Input!$E20>3,($A9*(T$3-Input!$E20)^($A9-1))/($B9^$A9),0.027))*$C9*DATA!$C$72,"") ->  | U9: =IFERROR(IF(U$3-Input!$E20<0,0,IF(U$3-Input!$E20>3,($A9*(U$3-Input!$E20)^($A9-1))/($B9^$A9),0.027))*$C9*DATA!$C$72,"") ->  | V9: =IFERROR(IF(V$3-Input!$E20<0,0,IF(V$3-Input!$E20>3,($A9*(V$3-Input!$E20)^($A9-1))/($B9^$A9),0.027))*$C9*DATA!$C$72,"") ->  | W9: =IFERROR(IF(W$3-Input!$E20<0,0,IF(W$3-Input!$E20>3,($A9*(W$3-Input!$E20)^($A9-1))/($B9^$A9),0.027))*$C9*DATA!$C$72,"") ->  | X9: =IFERROR(IF(X$3-Input!$E20<0,0,IF(X$3-Input!$E20>3,($A9*(X$3-Input!$E20)^($A9-1))/($B9^$A9),0.027))*$C9*DATA!$C$72,"") ->  | Y9: =IFERROR(IF(Y$3-Input!$E20<0,0,IF(Y$3-Input!$E20>3,($A9*(Y$3-Input!$E20)^($A9-1))/($B9^$A9),0.027))*$C9*DATA!$C$72,"") ->  | Z9: =IFERROR(IF(Z$3-Input!$E20<0,0,IF(Z$3-Input!$E20>3,($A9*(Z$3-Input!$E20)^($A9-1))/($B9^$A9),0.027))*$C9*DATA!$C$72,"") ->  | AA9: =IFERROR(IF(AA$3-Input!$E20<0,0,IF(AA$3-Input!$E20>3,($A9*(AA$3-Input!$E20)^($A9-1))/($B9^$A9),0.027))*$C9*DATA!$C$72,"") ->  | AB9: =IFERROR(IF(AB$3-Input!$E20<0,0,IF(AB$3-Input!$E20>3,($A9*(AB$3-Input!$E20)^($A9-1))/($B9^$A9),0.027))*$C9*DATA!$C$72,"") ->  | AC9: =IFERROR(IF(AC$3-Input!$E20<0,0,IF(AC$3-Input!$E20>3,($A9*(AC$3-Input!$E20)^($A9-1))/($B9^$A9),0.027))*$C9*DATA!$C$72,"") ->  | AD9: =IFERROR(IF(AD$3-Input!$E20<0,0,IF(AD$3-Input!$E20>3,($A9*(AD$3-Input!$E20)^($A9-1))/($B9^$A9),0.027))*$C9*DATA!$C$72,"") ->  | AE9: =IFERROR(IF(AE$3-Input!$E20<0,0,IF(AE$3-Input!$E20>3,($A9*(AE$3-Input!$E20)^($A9-1))/($B9^$A9),0.027))*$C9*DATA!$C$72,"") ->  | AF9: =IFERROR(IF(AF$3-Input!$E20<0,0,IF(AF$3-Input!$E20>3,($A9*(AF$3-Input!$E20)^($A9-1))/($B9^$A9),0.027))*$C9*DATA!$C$72,"") ->  | AG9: =IFERROR(IF(AG$3-Input!$E20<0,0,IF(AG$3-Input!$E20>3,($A9*(AG$3-Input!$E20)^($A9-1))/($B9^$A9),0.027))*$C9*DATA!$C$72,"") ->  | AH9: =IFERROR(IF(AH$3-Input!$E20<0,0,IF(AH$3-Input!$E20>3,($A9*(AH$3-Input!$E20)^($A9-1))/($B9^$A9),0.027))*$C9*DATA!$C$72,"") ->  | AI9: =IFERROR(IF(AI$3-Input!$E20<0,0,IF(AI$3-Input!$E20>3,($A9*(AI$3-Input!$E20)^($A9-1))/($B9^$A9),0.027))*$C9*DATA!$C$72,"") ->  | AJ9: =IFERROR(IF(AJ$3-Input!$E20<0,0,IF(AJ$3-Input!$E20>3,($A9*(AJ$3-Input!$E20)^($A9-1))/($B9^$A9),0.027))*$C9*DATA!$C$72,"") ->  | AK9: =IFERROR(IF(AK$3-Input!$E20<0,0,IF(AK$3-Input!$E20>3,($A9*(AK$3-Input!$E20)^($A9-1))/($B9^$A9),0.027))*$C9*DATA!$C$72,"") ->  | AL9: =IFERROR(IF(AL$3-Input!$E20<0,0,IF(AL$3-Input!$E20>3,($A9*(AL$3-Input!$E20)^($A9-1))/($B9^$A9),0.027))*$C9*DATA!$C$72,"") ->  | AM9: =IFERROR(IF(AM$3-Input!$E20<0,0,IF(AM$3-Input!$E20>3,($A9*(AM$3-Input!$E20)^($A9-1))/($B9^$A9),0.027))*$C9*DATA!$C$72,"") ->  | AN9: =IFERROR(IF(AN$3-Input!$E20<0,0,IF(AN$3-Input!$E20>3,($A9*(AN$3-Input!$E20)^($A9-1))/($B9^$A9),0.027))*$C9*DATA!$C$72,"") ->  | AO9: =IFERROR(IF(AO$3-Input!$E20<0,0,IF(AO$3-Input!$E20>3,($A9*(AO$3-Input!$E20)^($A9-1))/($B9^$A9),0.027))*$C9*DATA!$C$72,"") ->  | AP9: =IFERROR(IF(AP$3-Input!$E20<0,0,IF(AP$3-Input!$E20>3,($A9*(AP$3-Input!$E20)^($A9-1))/($B9^$A9),0.027))*$C9*DATA!$C$72,"") ->  | AQ9: =IFERROR(IF(AQ$3-Input!$E20<0,0,IF(AQ$3-Input!$E20>3,($A9*(AQ$3-Input!$E20)^($A9-1))/($B9^$A9),0.027))*$C9*DATA!$C$72,"") ->  | AR9: =IFERROR(IF(AR$3-Input!$E20<0,0,IF(AR$3-Input!$E20>3,($A9*(AR$3-Input!$E20)^($A9-1))/($B9^$A9),0.027))*$C9*DATA!$C$72,"") ->  | AS9: =IFERROR(IF(AS$3-Input!$E20<0,0,IF(AS$3-Input!$E20>3,($A9*(AS$3-Input!$E20)^($A9-1))/($B9^$A9),0.027))*$C9*DATA!$C$72,"") ->  | AT9: =IFERROR(IF(AT$3-Input!$E20<0,0,IF(AT$3-Input!$E20>3,($A9*(AT$3-Input!$E20)^($A9-1))/($B9^$A9),0.027))*$C9*DATA!$C$72,"") ->  | AU9: =IFERROR(IF(AU$3-Input!$E20<0,0,IF(AU$3-Input!$E20>3,($A9*(AU$3-Input!$E20)^($A9-1))/($B9^$A9),0.027))*$C9*DATA!$C$72,"") ->  | AV9: =IFERROR(IF(AV$3-Input!$E20<0,0,IF(AV$3-Input!$E20>3,($A9*(AV$3-Input!$E20)^($A9-1))/($B9^$A9),0.027))*$C9*DATA!$C$72,"") ->  | AW9: =IFERROR(IF(AW$3-Input!$E20<0,0,IF(AW$3-Input!$E20>3,($A9*(AW$3-Input!$E20)^($A9-1))/($B9^$A9),0.027))*$C9*DATA!$C$72,"") ->  | AX9: =IFERROR(IF(AX$3-Input!$E20<0,0,IF(AX$3-Input!$E20>3,($A9*(AX$3-Input!$E20)^($A9-1))/($B9^$A9),0.027))*$C9*DATA!$C$72,"") ->  | AY9: =IFERROR(IF(AY$3-Input!$E20<0,0,IF(AY$3-Input!$E20>3,($A9*(AY$3-Input!$E20)^($A9-1))/($B9^$A9),0.027))*$C9*DATA!$C$72,"") ->  | AZ9: =IFERROR(IF(AZ$3-Input!$E20<0,0,IF(AZ$3-Input!$E20>3,($A9*(AZ$3-Input!$E20)^($A9-1))/($B9^$A9),0.027))*$C9*DATA!$C$72,"") ->  | BA9: =IFERROR(IF(BA$3-Input!$E20<0,0,IF(BA$3-Input!$E20>3,($A9*(BA$3-Input!$E20)^($A9-1))/($B9^$A9),0.027))*$C9*DATA!$C$72,"") ->  | BB9: =IFERROR(IF(BB$3-Input!$E20<0,0,IF(BB$3-Input!$E20>3,($A9*(BB$3-Input!$E20)^($A9-1))/($B9^$A9),0.027))*$C9*DATA!$C$72,"") ->  | BC9: =IFERROR(IF(BC$3-Input!$E20<0,0,IF(BC$3-Input!$E20>3,($A9*(BC$3-Input!$E20)^($A9-1))/($B9^$A9),0.027))*$C9*DATA!$C$72,"") ->  | BD9: =IFERROR(IF(BD$3-Input!$E20<0,0,IF(BD$3-Input!$E20>3,($A9*(BD$3-Input!$E20)^($A9-1))/($B9^$A9),0.027))*$C9*DATA!$C$72,"") ->  | BE9: =IFERROR(IF(BE$3-Input!$E20<0,0,IF(BE$3-Input!$E20>3,($A9*(BE$3-Input!$E20)^($A9-1))/($B9^$A9),0.027))*$C9*DATA!$C$72,"") ->  | BF9: =IFERROR(IF(BF$3-Input!$E20<0,0,IF(BF$3-Input!$E20>3,($A9*(BF$3-Input!$E20)^($A9-1))/($B9^$A9),0.027))*$C9*DATA!$C$72,"") ->  | BG9: =IFERROR(IF(BG$3-Input!$E20<0,0,IF(BG$3-Input!$E20>3,($A9*(BG$3-Input!$E20)^($A9-1))/($B9^$A9),0.027))*$C9*DATA!$C$72,"") ->  | BH9: =IFERROR(IF(BH$3-Input!$E20<0,0,IF(BH$3-Input!$E20>3,($A9*(BH$3-Input!$E20)^($A9-1))/($B9^$A9),0.027))*$C9*DATA!$C$72,"") ->  | BI9: =IFERROR(IF(BI$3-Input!$E20<0,0,IF(BI$3-Input!$E20>3,($A9*(BI$3-Input!$E20)^($A9-1))/($B9^$A9),0.027))*$C9*DATA!$C$72,"") ->  | BJ9: =IFERROR(IF(BJ$3-Input!$E20<0,0,IF(BJ$3-Input!$E20>3,($A9*(BJ$3-Input!$E20)^($A9-1))/($B9^$A9),0.027))*$C9*DATA!$C$72,"") ->  | BK9: =IFERROR(IF(BK$3-Input!$E20<0,0,IF(BK$3-Input!$E20>3,($A9*(BK$3-Input!$E20)^($A9-1))/($B9^$A9),0.027))*$C9*DATA!$C$72,"") ->  | BL9: =IFERROR(IF(BL$3-Input!$E20<0,0,IF(BL$3-Input!$E20>3,($A9*(BL$3-Input!$E20)^($A9-1))/($B9^$A9),0.027))*$C9*DATA!$C$72,"") ->  | BM9: =IFERROR(IF(BM$3-Input!$E20<0,0,IF(BM$3-Input!$E20>3,($A9*(BM$3-Input!$E20)^($A9-1))/($B9^$A9),0.027))*$C9*DATA!$C$72,"") -> 
A10: =IFERROR(VLOOKUP(Input!D21,DATA!B$42:D$46,2,FALSE),"") ->  | B10: =IFERROR(VLOOKUP(Input!D21,DATA!B$42:D$46,3,FALSE),"") ->  | C10: =IF(Input!D21=DATA!$B$44,DATA!$H$44,IF(Input!D21="","",1)) ->  | D10: FOR TR or CB 7 | E10: =IFERROR(IF(E$3-Input!$E21<0,0,IF(E$3-Input!$E21>3,($A10*(E$3-Input!$E21)^($A10-1))/($B10^$A10),0.027))*$C10*DATA!$C$72,"") ->  | F10: =IFERROR(IF(F$3-Input!$E21<0,0,IF(F$3-Input!$E21>3,($A10*(F$3-Input!$E21)^($A10-1))/($B10^$A10),0.027))*$C10*DATA!$C$72,"") ->  | G10: =IFERROR(IF(G$3-Input!$E21<0,0,IF(G$3-Input!$E21>3,($A10*(G$3-Input!$E21)^($A10-1))/($B10^$A10),0.027))*$C10*DATA!$C$72,"") ->  | H10: =IFERROR(IF(H$3-Input!$E21<0,0,IF(H$3-Input!$E21>3,($A10*(H$3-Input!$E21)^($A10-1))/($B10^$A10),0.027))*$C10*DATA!$C$72,"") ->  | I10: =IFERROR(IF(I$3-Input!$E21<0,0,IF(I$3-Input!$E21>3,($A10*(I$3-Input!$E21)^($A10-1))/($B10^$A10),0.027))*$C10*DATA!$C$72,"") ->  | J10: =IFERROR(IF(J$3-Input!$E21<0,0,IF(J$3-Input!$E21>3,($A10*(J$3-Input!$E21)^($A10-1))/($B10^$A10),0.027))*$C10*DATA!$C$72,"") ->  | K10: =IFERROR(IF(K$3-Input!$E21<0,0,IF(K$3-Input!$E21>3,($A10*(K$3-Input!$E21)^($A10-1))/($B10^$A10),0.027))*$C10*DATA!$C$72,"") ->  | L10: =IFERROR(IF(L$3-Input!$E21<0,0,IF(L$3-Input!$E21>3,($A10*(L$3-Input!$E21)^($A10-1))/($B10^$A10),0.027))*$C10*DATA!$C$72,"") ->  | M10: =IFERROR(IF(M$3-Input!$E21<0,0,IF(M$3-Input!$E21>3,($A10*(M$3-Input!$E21)^($A10-1))/($B10^$A10),0.027))*$C10*DATA!$C$72,"") ->  | N10: =IFERROR(IF(N$3-Input!$E21<0,0,IF(N$3-Input!$E21>3,($A10*(N$3-Input!$E21)^($A10-1))/($B10^$A10),0.027))*$C10*DATA!$C$72,"") ->  | O10: =IFERROR(IF(O$3-Input!$E21<0,0,IF(O$3-Input!$E21>3,($A10*(O$3-Input!$E21)^($A10-1))/($B10^$A10),0.027))*$C10*DATA!$C$72,"") ->  | P10: =IFERROR(IF(P$3-Input!$E21<0,0,IF(P$3-Input!$E21>3,($A10*(P$3-Input!$E21)^($A10-1))/($B10^$A10),0.027))*$C10*DATA!$C$72,"") ->  | Q10: =IFERROR(IF(Q$3-Input!$E21<0,0,IF(Q$3-Input!$E21>3,($A10*(Q$3-Input!$E21)^($A10-1))/($B10^$A10),0.027))*$C10*DATA!$C$72,"") ->  | R10: =IFERROR(IF(R$3-Input!$E21<0,0,IF(R$3-Input!$E21>3,($A10*(R$3-Input!$E21)^($A10-1))/($B10^$A10),0.027))*$C10*DATA!$C$72,"") ->  | S10: =IFERROR(IF(S$3-Input!$E21<0,0,IF(S$3-Input!$E21>3,($A10*(S$3-Input!$E21)^($A10-1))/($B10^$A10),0.027))*$C10*DATA!$C$72,"") ->  | T10: =IFERROR(IF(T$3-Input!$E21<0,0,IF(T$3-Input!$E21>3,($A10*(T$3-Input!$E21)^($A10-1))/($B10^$A10),0.027))*$C10*DATA!$C$72,"") ->  | U10: =IFERROR(IF(U$3-Input!$E21<0,0,IF(U$3-Input!$E21>3,($A10*(U$3-Input!$E21)^($A10-1))/($B10^$A10),0.027))*$C10*DATA!$C$72,"") ->  | V10: =IFERROR(IF(V$3-Input!$E21<0,0,IF(V$3-Input!$E21>3,($A10*(V$3-Input!$E21)^($A10-1))/($B10^$A10),0.027))*$C10*DATA!$C$72,"") ->  | W10: =IFERROR(IF(W$3-Input!$E21<0,0,IF(W$3-Input!$E21>3,($A10*(W$3-Input!$E21)^($A10-1))/($B10^$A10),0.027))*$C10*DATA!$C$72,"") ->  | X10: =IFERROR(IF(X$3-Input!$E21<0,0,IF(X$3-Input!$E21>3,($A10*(X$3-Input!$E21)^($A10-1))/($B10^$A10),0.027))*$C10*DATA!$C$72,"") ->  | Y10: =IFERROR(IF(Y$3-Input!$E21<0,0,IF(Y$3-Input!$E21>3,($A10*(Y$3-Input!$E21)^($A10-1))/($B10^$A10),0.027))*$C10*DATA!$C$72,"") ->  | Z10: =IFERROR(IF(Z$3-Input!$E21<0,0,IF(Z$3-Input!$E21>3,($A10*(Z$3-Input!$E21)^($A10-1))/($B10^$A10),0.027))*$C10*DATA!$C$72,"") ->  | AA10: =IFERROR(IF(AA$3-Input!$E21<0,0,IF(AA$3-Input!$E21>3,($A10*(AA$3-Input!$E21)^($A10-1))/($B10^$A10),0.027))*$C10*DATA!$C$72,"") ->  | AB10: =IFERROR(IF(AB$3-Input!$E21<0,0,IF(AB$3-Input!$E21>3,($A10*(AB$3-Input!$E21)^($A10-1))/($B10^$A10),0.027))*$C10*DATA!$C$72,"") ->  | AC10: =IFERROR(IF(AC$3-Input!$E21<0,0,IF(AC$3-Input!$E21>3,($A10*(AC$3-Input!$E21)^($A10-1))/($B10^$A10),0.027))*$C10*DATA!$C$72,"") ->  | AD10: =IFERROR(IF(AD$3-Input!$E21<0,0,IF(AD$3-Input!$E21>3,($A10*(AD$3-Input!$E21)^($A10-1))/($B10^$A10),0.027))*$C10*DATA!$C$72,"") ->  | AE10: =IFERROR(IF(AE$3-Input!$E21<0,0,IF(AE$3-Input!$E21>3,($A10*(AE$3-Input!$E21)^($A10-1))/($B10^$A10),0.027))*$C10*DATA!$C$72,"") ->  | AF10: =IFERROR(IF(AF$3-Input!$E21<0,0,IF(AF$3-Input!$E21>3,($A10*(AF$3-Input!$E21)^($A10-1))/($B10^$A10),0.027))*$C10*DATA!$C$72,"") ->  | AG10: =IFERROR(IF(AG$3-Input!$E21<0,0,IF(AG$3-Input!$E21>3,($A10*(AG$3-Input!$E21)^($A10-1))/($B10^$A10),0.027))*$C10*DATA!$C$72,"") ->  | AH10: =IFERROR(IF(AH$3-Input!$E21<0,0,IF(AH$3-Input!$E21>3,($A10*(AH$3-Input!$E21)^($A10-1))/($B10^$A10),0.027))*$C10*DATA!$C$72,"") ->  | AI10: =IFERROR(IF(AI$3-Input!$E21<0,0,IF(AI$3-Input!$E21>3,($A10*(AI$3-Input!$E21)^($A10-1))/($B10^$A10),0.027))*$C10*DATA!$C$72,"") ->  | AJ10: =IFERROR(IF(AJ$3-Input!$E21<0,0,IF(AJ$3-Input!$E21>3,($A10*(AJ$3-Input!$E21)^($A10-1))/($B10^$A10),0.027))*$C10*DATA!$C$72,"") ->  | AK10: =IFERROR(IF(AK$3-Input!$E21<0,0,IF(AK$3-Input!$E21>3,($A10*(AK$3-Input!$E21)^($A10-1))/($B10^$A10),0.027))*$C10*DATA!$C$72,"") ->  | AL10: =IFERROR(IF(AL$3-Input!$E21<0,0,IF(AL$3-Input!$E21>3,($A10*(AL$3-Input!$E21)^($A10-1))/($B10^$A10),0.027))*$C10*DATA!$C$72,"") ->  | AM10: =IFERROR(IF(AM$3-Input!$E21<0,0,IF(AM$3-Input!$E21>3,($A10*(AM$3-Input!$E21)^($A10-1))/($B10^$A10),0.027))*$C10*DATA!$C$72,"") ->  | AN10: =IFERROR(IF(AN$3-Input!$E21<0,0,IF(AN$3-Input!$E21>3,($A10*(AN$3-Input!$E21)^($A10-1))/($B10^$A10),0.027))*$C10*DATA!$C$72,"") ->  | AO10: =IFERROR(IF(AO$3-Input!$E21<0,0,IF(AO$3-Input!$E21>3,($A10*(AO$3-Input!$E21)^($A10-1))/($B10^$A10),0.027))*$C10*DATA!$C$72,"") ->  | AP10: =IFERROR(IF(AP$3-Input!$E21<0,0,IF(AP$3-Input!$E21>3,($A10*(AP$3-Input!$E21)^($A10-1))/($B10^$A10),0.027))*$C10*DATA!$C$72,"") ->  | AQ10: =IFERROR(IF(AQ$3-Input!$E21<0,0,IF(AQ$3-Input!$E21>3,($A10*(AQ$3-Input!$E21)^($A10-1))/($B10^$A10),0.027))*$C10*DATA!$C$72,"") ->  | AR10: =IFERROR(IF(AR$3-Input!$E21<0,0,IF(AR$3-Input!$E21>3,($A10*(AR$3-Input!$E21)^($A10-1))/($B10^$A10),0.027))*$C10*DATA!$C$72,"") ->  | AS10: =IFERROR(IF(AS$3-Input!$E21<0,0,IF(AS$3-Input!$E21>3,($A10*(AS$3-Input!$E21)^($A10-1))/($B10^$A10),0.027))*$C10*DATA!$C$72,"") ->  | AT10: =IFERROR(IF(AT$3-Input!$E21<0,0,IF(AT$3-Input!$E21>3,($A10*(AT$3-Input!$E21)^($A10-1))/($B10^$A10),0.027))*$C10*DATA!$C$72,"") ->  | AU10: =IFERROR(IF(AU$3-Input!$E21<0,0,IF(AU$3-Input!$E21>3,($A10*(AU$3-Input!$E21)^($A10-1))/($B10^$A10),0.027))*$C10*DATA!$C$72,"") ->  | AV10: =IFERROR(IF(AV$3-Input!$E21<0,0,IF(AV$3-Input!$E21>3,($A10*(AV$3-Input!$E21)^($A10-1))/($B10^$A10),0.027))*$C10*DATA!$C$72,"") ->  | AW10: =IFERROR(IF(AW$3-Input!$E21<0,0,IF(AW$3-Input!$E21>3,($A10*(AW$3-Input!$E21)^($A10-1))/($B10^$A10),0.027))*$C10*DATA!$C$72,"") ->  | AX10: =IFERROR(IF(AX$3-Input!$E21<0,0,IF(AX$3-Input!$E21>3,($A10*(AX$3-Input!$E21)^($A10-1))/($B10^$A10),0.027))*$C10*DATA!$C$72,"") ->  | AY10: =IFERROR(IF(AY$3-Input!$E21<0,0,IF(AY$3-Input!$E21>3,($A10*(AY$3-Input!$E21)^($A10-1))/($B10^$A10),0.027))*$C10*DATA!$C$72,"") ->  | AZ10: =IFERROR(IF(AZ$3-Input!$E21<0,0,IF(AZ$3-Input!$E21>3,($A10*(AZ$3-Input!$E21)^($A10-1))/($B10^$A10),0.027))*$C10*DATA!$C$72,"") ->  | BA10: =IFERROR(IF(BA$3-Input!$E21<0,0,IF(BA$3-Input!$E21>3,($A10*(BA$3-Input!$E21)^($A10-1))/($B10^$A10),0.027))*$C10*DATA!$C$72,"") ->  | BB10: =IFERROR(IF(BB$3-Input!$E21<0,0,IF(BB$3-Input!$E21>3,($A10*(BB$3-Input!$E21)^($A10-1))/($B10^$A10),0.027))*$C10*DATA!$C$72,"") ->  | BC10: =IFERROR(IF(BC$3-Input!$E21<0,0,IF(BC$3-Input!$E21>3,($A10*(BC$3-Input!$E21)^($A10-1))/($B10^$A10),0.027))*$C10*DATA!$C$72,"") ->  | BD10: =IFERROR(IF(BD$3-Input!$E21<0,0,IF(BD$3-Input!$E21>3,($A10*(BD$3-Input!$E21)^($A10-1))/($B10^$A10),0.027))*$C10*DATA!$C$72,"") ->  | BE10: =IFERROR(IF(BE$3-Input!$E21<0,0,IF(BE$3-Input!$E21>3,($A10*(BE$3-Input!$E21)^($A10-1))/($B10^$A10),0.027))*$C10*DATA!$C$72,"") ->  | BF10: =IFERROR(IF(BF$3-Input!$E21<0,0,IF(BF$3-Input!$E21>3,($A10*(BF$3-Input!$E21)^($A10-1))/($B10^$A10),0.027))*$C10*DATA!$C$72,"") ->  | BG10: =IFERROR(IF(BG$3-Input!$E21<0,0,IF(BG$3-Input!$E21>3,($A10*(BG$3-Input!$E21)^($A10-1))/($B10^$A10),0.027))*$C10*DATA!$C$72,"") ->  | BH10: =IFERROR(IF(BH$3-Input!$E21<0,0,IF(BH$3-Input!$E21>3,($A10*(BH$3-Input!$E21)^($A10-1))/($B10^$A10),0.027))*$C10*DATA!$C$72,"") ->  | BI10: =IFERROR(IF(BI$3-Input!$E21<0,0,IF(BI$3-Input!$E21>3,($A10*(BI$3-Input!$E21)^($A10-1))/($B10^$A10),0.027))*$C10*DATA!$C$72,"") ->  | BJ10: =IFERROR(IF(BJ$3-Input!$E21<0,0,IF(BJ$3-Input!$E21>3,($A10*(BJ$3-Input!$E21)^($A10-1))/($B10^$A10),0.027))*$C10*DATA!$C$72,"") ->  | BK10: =IFERROR(IF(BK$3-Input!$E21<0,0,IF(BK$3-Input!$E21>3,($A10*(BK$3-Input!$E21)^($A10-1))/($B10^$A10),0.027))*$C10*DATA!$C$72,"") ->  | BL10: =IFERROR(IF(BL$3-Input!$E21<0,0,IF(BL$3-Input!$E21>3,($A10*(BL$3-Input!$E21)^($A10-1))/($B10^$A10),0.027))*$C10*DATA!$C$72,"") ->  | BM10: =IFERROR(IF(BM$3-Input!$E21<0,0,IF(BM$3-Input!$E21>3,($A10*(BM$3-Input!$E21)^($A10-1))/($B10^$A10),0.027))*$C10*DATA!$C$72,"") -> 
